{"text_format":"1","workbook":"xlsx","n_sheets":9,"sheets":["Deckblatt","Ein-&Anleitung","Eckdaten","Scope_1","Scope_2","Scope_3","Ergebnisse","EF","Quellen"],"not_rendered":{"charts":2,"images":6,"macros":1,"external_links":1,"defined_names":200,"comments":0,"pivot_tables":0},"unopened":[],"bounds":{"document_bytes":16777216,"sheet_cells":100000,"rows_first":2000,"rows_last":500,"rows_between":2000,"halvings":0,"cell_chars":16384,"cell_head_chars":4096},"cells_cut":0,"cells_raw":0,"read":"whole","date_system":"1900"}

{"sheet":"Deckblatt","index":0,"n_rows":48,"n_cols":17,"rows_kept":48,"cut":false,"hidden":false,"merged":[[34,1,34,18],[43,1,43,18]]}
[]
[]
[]
[]
[]
[]
[]
[]
[null,"Zitationshinweis:"]
[null,"Ran Liu, Leonard Terres, Andreas Ralf Köhler, Laura Meyer, Johanna Ellensohn, Ina Rüdenauer, und Andy Maun. „CAFOGES-Tool zur Berechnung von CO2-Emissionen von Kliniken - CAFOGES: Carbon Footprint im Gesundheitswesen, DBU (AZ 38024/01-43). Version 1.1 vom 25.09.2023, Öko-Institut Freiburg e.V.“, 25.Sep. 2023."]
[null,"Download:"]
[null,"https://www.oeko.de/CaFoGes-Tool"]
[null,"https://www.uniklinik-freiburg.de/allgemeinmedizin/cafoges.html"]
[]
[null,"Entwickelt von:"]
[null,null,"Ran Liu",null,null,"(Öko-Institut e.V.)"]
[null,"Datengrundlage erstellt von:"]
[null,null,"Ran Liu",null,null,"(Öko-Institut e.V.)"]
[null,null,"Ina Rüdenauer",null,null,"(Öko-Institut e.V.)"]
[null,null,"Leonard Terres",null,null,"(Institut für Allgemeinmedizin, Uniklinik Freiburg)"]
[null,null,"Laura Meyer",null,null,"(Institut für Allgemeinmedizin, Uniklinik Freiburg)"]
[null,"Review durch:"]
[null,null,"Dr. Andreas R. Köhler ",null,null,"(Öko-Institut e.V.)"]
[null,null,"Prof. Dr. Andy Maun",null,null,"(Institut für Allgemeinmedizin, Uniklinik Freiburg)"]
[null,null,"Johanna Ellensohn",null,null,"(Institut für Allgemeinmedizin, Uniklinik Freiburg)"]
[]
[null,"Hintergrund des Projekts"]
[null,"Projekt der Förderinitiative der Deutschen Bundesstiftung Umwelt zum Thema \"Planetary Health: Klimaschutz ist Gesundheitsschutz\""]
[null,"Projekttitel: Fallstudiengestützte Carbon Footprint Bewertung nach GHG Protocol und Potenzialanalyse von Klimaschutzmaßnahmen im Klinikbetrieb"]
[]
[null,null,null,null,null,null,null,null,null,null,null,null,null,null,null,null,"https://www.dbu.de/3050.html"]
[]
[null,"Impressum"]
[]
[null,"Dieses MS-Excel-basierte Tool zur Berechnung der Treibhausgasemissionen von Kliniken wurde im Rahmen eines Forschungsprojektes \"CAFOGES: Carbon Footprinting im Gesundheitswesen\" mit Förderung der Deutschen Bundesstiftung Umwelt (DBU) (AZ 38024/01-43) entwickelt. \nDie konzeptionelle und technische Umsetzung erfolgte durch das Öko-Institut e.V. auf Basis einer vom Universitätsklinikum Freiburg durchgeführten Verbrauchsdatenerhebung für das Referenzjahr 2019.\nProjektleitung: Prof. Dr. Andy Maun, Direktor Institut für Allgemeinmedizin, Universitätsklinikum Freiburg\nProjektlaufzeit: 01.01.2022 - 30.06.2023\nRückfragen: ifa.cafoges@uniklinik-freiburg.de"]
[null,"Dieses Tool ist auf der DBU-Webseite zum Download verfügbar."]
[null,"Die im Tool hinterlegten Berechnungsformeln werden in geschützten Zellen gespeichert. Dies verhindert eine versehentliche Änderung der gespeicherten Formeln. "]
[null,"Das Tool ist ein Open-Source-Tool. Wenn Sie bestimmte Aspekte oder bestimmte Emissionsfaktoren ändern möchten, können Sie alle Felder mit dem Passwort \"cafoges\" freischalten."]
[null,"Das Tool enthält VBA-Makros. Die Makros sollen aktiviert werden. Sofern die Makro-Ausführung bei Ihrem System gesperrt ist, wenden Sie sich an Ihren Systemadministrator."]
[]
[]
[null,"Änderungsprotokoll von Version 1.1 gegenüber 1.0"]
[null,"1) In Zelle E378-E380 auf dem Blatt \"Scope_3\" wurden die Werte nochmal mit 1000 multipliziert."]
[null,"2) In Zelle E399 und G399 wurden die Summenformeln korrigiert."]
[null,"3) Auf dem Blatt “Scope_2”: In Zelle C60 und C73 wurde „%“ hinzugefügt und eine Summe-Funktion zum Zweck der Klarheit hinzugefügt. "]
[null,"4) In Zelle E381-E387 auf dem Blatt \"EF\" wurde Zitat [13] durch [33] ersetzt."]
[null,"5) In den Zellen E142-E144 wurde die unnötige Dropdown-Liste gelöscht."]
[null,"6) Zitationshinweis auf diesem Blatt wurde aktualisiert."]

{"sheet":"Ein-&Anleitung","index":1,"n_rows":94,"n_cols":12,"rows_kept":94,"cut":false,"hidden":false,"merged":[[39,2,39,7],[40,2,40,7],[41,2,41,7],[42,2,42,7],[43,2,43,7],[38,2,38,7],[27,2,27,7],[28,2,28,7],[29,2,29,7],[30,2,30,7],[31,2,31,7],[32,2,32,7],[33,2,33,7],[34,2,34,7],[35,2,35,7],[36,2,36,7],[37,2,37,7],[25,11,27,16],[29,11,37,16],[25,2,25,7],[26,2,26,7],[23,2,24,7]]}
[]
[]
[]
[]
[]
[]
[null,null,"Ziel des Tools:"]
[null,null,"-Vereinfachung der Carbon-Footprint-Berechnung im Klinikbereich gemäß GHG Protocol (modifiziert für das Gesundheitswesen)"]
[null,null,"-Erfassung und Bilanzierung der Treibhausgasemissionen des Krankenhauses entsprechend des GHG Protocols"]
[]
[null,null,"Struktur des Tools:"]
[null,null,"• Blatt \"Eckdaten\": Beschreibung der allgemeinen Informationen und Rahmenbedingungen Ihrer Bilanz."]
[null,null,"• Blätter \"Scope 1/2/3\": Eingabe Ihrer Aktivitätsdaten, die zu den jeweiligen Betrachtungsebenen (Scope 1/2/3) des GHG Protocols gehören."]
[null,null,"• Blatt \"EF\" (Emissionsfaktoren): Dokumentation der hintergelegten Emissionsfaktoren"]
[null,null,"• Blatt \"Quellen\": Dokumentation von Datenquellen aus der Literatur"]
[null,null,"• Blatt \"Ergebnisse\": Überblick über die gesamten GHG-Ergebnisse nach Scopes und Kategorien"]
[]
[null,null,"Auf Basis Ihrer eingetragenen Daten werden GHG-Emissionen mit entsprechenden Emissionsfaktoren automatisch berechnet. "]
[null,null,"Bei manchen Aktivitäten gibt es zwei Möglichkeiten: "]
[null,null,"   1) Sie verwenden die im Tool hinterlegten Emissionsfaktoren; "]
[null,null,"   2) Sie nutzen spezifische Emissionsfaktoren, die sie z.B. mittels einer Abfrage Ihrer Lieferanten oder durch eigene Berechnung ermittelt haben."]
[]
[null,null,"Überblick über die Methode für die in diesem Tool dargestellten Emissionsfaktoren:"]
[null,null,"Scope gemäß GHG Protocol (Greenhouse Gas Protocol)",null,null,null,null,null,"Bilanzierungsansatz",null,null,"Erklärungen"]
[null,null,null,null,null,null,null,null,"Bottom-Up?","Top-Down?",null,"• Bottom-up: "]
[null,null,"Scope 1: Direkte GHG-Emissionen aus Quellen im Einflussbereich einer Organisation (z.B.  Verbrennungsprozesse, Freisetzung von Kältemitteln oder Lachgas)",null,null,null,null,null,"R","Q",null,"Die Bottom-Up Methode basiert auf prozessbezogen physischen Daten (z.B. Gewicht, Energiegehalt). Sie ist besonders geeignet für einzigartige Prozesse und Analysen auf Produktebene. "]
[null,null,"Scope 2: Indirekte GHG-Emissionen aus Nutzung extern bereitgestellter Energieträger (z.B. Stromverbrauch, Wärme etc.)",null,null,null,null,null,"R","Q"]
[null,null,"Scope 3: Eingekaufte Güter und Dienstleistungen -> Medikamente",null,null,null,null,null,"Rteilweise, Hybrid","R"]
[null,null,"Scope 3: Eingekaufte Güter und Dienstleistungen -> Medizinische & technische Gase",null,null,null,null,null,"R","Q",null,"• Top-Down: "]
[null,null,"Scope 3: Eingekaufte Güter und Dienstleistungen -> Medizinische Verbrauchsmaterialien",null,null,null,null,null,"Q","R",null,"Die zur Datenerfassung angewandte Top-down Methode approximiert die zur Berechnung der GHG-Emissionen zu berücksichtigenden Sachbilanzdaten (physikalische Einheit) auf Basis von Finanzdaten (monetäre Messgrößen für Aktivitäten). Dazu werden die Finanzdaten mit einem produktgruppen-spezifischen Emissionsfaktor verknüpft. "]
[null,null,"Scope 3: Eingekaufte Güter und Dienstleistungen -> Kältemittel",null,null,null,null,null,"R","Q"]
[null,null,"Scope 3: Eingekaufte Güter und Dienstleistungen -> Lebensmittel",null,null,null,null,null,"R","R"]
[null,null,"Scope 3: Eingekaufte Güter und Dienstleistungen -> Textile",null,null,null,null,null,"R","R"]
[null,null,"Scope 3: Eingekaufte Güter und Dienstleistungen -> Hygieneartikel",null,null,null,null,null,"R","R"]
[null,null,"Scope 3: Eingekaufte Güter und Dienstleistungen -> Papier/Pappe",null,null,null,null,null,"R","R"]
[null,null,"Scope 3: Eingekaufte Güter und Dienstleistungen -> Wasserverbrauch",null,null,null,null,null,"R","Q"]
[null,null,"Scope 3: Eingekaufte Güter und Dienstleistungen -> Externe Dienstleistung: Serverraum & Internet",null,null,null,null,null,"R","Q"]
[null,null,"Scope 3: Kapitalgüter -> IT-Geräte",null,null,null,null,null,"R","Q"]
[null,null,"Scope 3: Brennstoff- und energiebezogene Emissionen",null,null,null,null,null,"R","Q"]
[null,null,"Scope 3: Abfall & Abwässer (am Standort)",null,null,null,null,null,"R","Q"]
[null,null,"Scope 3: Geschäftsreisen",null,null,null,null,null,"R","Q"]
[null,null,"Scope 3: Übernachtung bei Dienstreisen",null,null,null,null,null,"R","Q"]
[null,null,"Scope 3: Mitarbeitendenmobilität",null,null,null,null,null,"R","Q"]
[null,null,"Scope 3: Patient*innenmobilität (zusätzliche Kategorie für Gesundheitswesen)",null,null,null,null,null,"R","Q"]
[]
[null,null,"Berechnungsprinzip zu GHG-Emissionen:"]
[null,null,"Die Berechnung beruht auf den Inventardaten und den entsprechenden Emissionsfaktoren. "]
[null,null,"Die Inventardaten geben Sie in den gelb markierten Bereichen, jeweils in den Blättern \"Eckdaten\", \"Scope_1\", \"Scope_2\", \"Scope_3\" ein. "]
[null,null,"Wichtig dabei ist, dass die Einheiten der Eintragungen in den jeweiligen Tabellen festgelegt sind. "]
[null,null,"Im Beispiel (s. Unten) sind diese Einheiten mit roten Kästen zur Übersicht hervorgehoben."]
[null,null,"Z.B. für die Kältemittel in Scope 3 ist die erforderliche Einheit kg / Jahr. Falls Ihre Daten in der Einheit Tonne sind, rechnen Sie bitte in kg um,"]
[null,null,"Das Ergebnis (letzte Spalte im Beispiel, blau markiert) wurde automatisch berechnet. Die Einheiten wurden somit berücksichtigt.  "]
[]
[]
[]
[null,null,"Die entsprechenden GWP-Werte werden automatisch berechnet (blauer Bereich). Für das Beispiel Kältemittel R-32 ist der Berechnungsweg wie folgend:"]
[null,null,null," GHG-EmissionenHerstellung = Inventardaten (z.B. 2 kg R-32/Jahr) x Emissionsfaktor für den Herstellungsaufwand (z.B. 5,2 kg CO2e/kg R-32)"]
[null,null,null,"                                             = 0.01 tCO2e/Jahr"]
[null,null,"Alle GWP-Ergebnisse sind in Tonnen dargestellt. "]
[]
[null,null,"Legende"]
[]
[null,null,null,"Eingabe erforderlich "]
[]
[null,null,null,"Default-Werte, die durch Nutzer*in änderbar sind"]
[]
[null,null,null,"Default-Werte, die durch Nutzer*in NICHT änderbar sind"]
[]
[null,null,null,"keine Eingabe möglich oder  automatische Ausgabe. Die Zelle enthält Formeln, die vom Nutzer nicht geändert werden können."]
[]
[null,null,null,"Emissionsfaktor auf Basis von der Einkaufsausgabe in Euro"]
[]
[]
[null,null,"Abkürzungen"]
[null,null,"API","Active pharmaceutical ingredient (Wirkstoffe)"]
[null,null,"CDP","Carbon Disclosure Project"]
[null,null,"CO2e","CO₂-Äquivalente"]
[null,null,"EF","Emissionsfaktor"]
[null,null,"GHG","Greenhouse Gas"]
[null,null,"GWP","Global Warming Potential (Treibhauseffekt)"]
[null,null,"k.A.","Keine Angabe"]
[null,null,"kg","Kilogramm"]
[null,null,"kWh","Kilowattstunden"]
[null,null,"LCA","Life cycle assessment (Ökobilanz)"]
[null,null,"PCF","Product carbon footprint"]
[null,null,"Pkm","Personenkilometer"]
[null,null,"RFI","Radiative Forcing Index"]
[null,null,"S1","Scope 1"]
[null,null,"S2","Scope 2"]
[null,null,"S3","Scope 3"]
[null,null,"t","Tonnen"]
[null,null,"T&D","Transmission & Distribution"]
[null,null,"THG ","Treibhausgas"]
[null,null,"Tkm","Tonnenkilometer"]

{"sheet":"Eckdaten","index":2,"n_rows":51,"n_cols":3,"rows_kept":51,"cut":false,"hidden":false,"merged":[[51,1,76,2],[19,1,19,2],[24,1,24,2],[25,1,25,2],[26,1,26,2],[27,1,27,2],[47,1,47,2]]}
[]
[]
[]
[]
[]
[null,"Allgemeine Informationen des zu bilanzierenden Krankenhauses"]
[null,"Name des Krankenhauses ","Klinikum ###"]
[null,"Land","Deutschland"]
[null,"Standort(e)"]
[null,"Anzahl der Mitarbeiter*innen innerhalb der Organisationsgrenze*"]
[null,"Anzahl der Planbetten"]
[null,"Anzahl der belegten Betten"]
[null,"Anzahl der Patient*innen"]
[null,"Sonstige Informationen"]
[null,"Ansprechpartner*in"]
[null,"Datum"]
[null,"*Definition s. unten \"Definition der organisatorischen Systemgrenze\""]
[]
[null,"Definition des Bilanzjahres"]
[null,"Eine betriebliche Klimabilanz bezieht sich in der Regel auf ein Geschäftsjahr bzw. Kalenderjahr, da die vorhandenen Finanzdaten in der Regel auf ein Geschäftsjahr bezogen sind. Der Bilanzierungszeitraum der Fallstudie basiert daher auf dem fiskalischen Kalenderjahr, das am 1. Januar beginnt und am 31. Dezember endet. "]
[null,"Bilanzzeitraum Beginn (Format für die Eingabe Tag.Monat.Jahr)"]
[null,"Bilanzzeitraum Ende (Format für die Eingabe Tag.Monat.Jahr)"]
[]
[null,"Beschreibung der operativen Systemgrenze"]
[null,"Das GHG Protocol ist der de-facto Standard für die GHG-Bilanzierung von Organisationen, das generelle Prinzipien und Berechnungsregeln enthält und dabei drei Betrachtungsebenen (Engl.: Scopes) unterscheidet:"]
[null,"• Scope 1: direkte GHG-Emissionen aus Quellen im Einflussbereich einer Organisation (z.B. durch Verbrennungsprozesse, Freisetzung von Kältemitteln oder Lachgas)"]
[null,"• Scope 2: indirekte GHG-Emissionen aus der Nutzung von extern bereitgestellten Energieträgern (z.B. der eigene Stromverbrauch, Wärme, Kühlung, etc.)"]
[null,"• Scope 3: indirekte GHG-Emissionen in der Lieferkette, aus Fahrzeugnutzung, Dienstreisen und Transporten sowie erbrachte Dienstleistungen des Gesundheitssektors. Der Scope 3 des GHG Protocols ist in 15 Kategorien unterteilt. Je nach Bandbreite des Einkaufs stellt die Datenerhebung in der Praxis eine große Herausforderung dar. Eine Fokussierung der Datenerhebung auf die krankenhausspezifischen Güter und Dienstleistungen ist der erste Schritt zur Abschätzung der GHG-Emissionen. Deshalb ist eine Clusterung und Priorisierung ratsam. Medikamente und medizinische Verbrauchsmaterialien bilden üblicherweise den höchsten ökonomischen Einkaufswert und sollten daher ermittelt und priorisiert betrachtet werden. \nDie untenstehende Tabelle gibt einen Überblick über die verschiedenen Bereiche des Scope 3 nach GHG Protocol und deren Berücksichtigung, bzw. Ergänzung in diesem Tool des Projektes CAFOGES:"]
[null,"Scope 3, Kategorien","Im Tool berücksichtigt?"]
[null,"Kategorie 1: Eingekaufte Güter und Diestleistungen","ja"]
[null,"Kategorie 2: Kapitalgüter","ja, allerdings wurden nur IT-Geräte berücksichtigt"]
[null,"Kategorie 3: Brennstoff- und energiebezogene Emissionen","ja"]
[null,"Kategorie 4: Transport und Verteilung (vorgelagert)","nicht berücksichtigt wegen begrenztem Budget; Emissionen werden zudem als wenig relevant eingeschätzt"]
[null,"Kategorie 5: Abfall (am Standort)","ja"]
[null,"Kategorie 6: Geschäftsreisen","ja, zusätzlich Übernachtungen"]
[null,"Kategorie 7: Pendeln der Arbeitnehmer*innen","ja, zusätzlich Patient*innenmobilität (s. Kategorie 16)"]
[null,"Kategorie 8: Angemietete oder geleaste Sachanlagen","nicht berücksichtigt, nicht relevant"]
[null,"Kategorie 9: Transport und Verteilung (nachgelagert)","nicht berücksichtigt wegen begrenztem Budget; Emissionen werden zudem als wenig relevant eingeschätzt"]
[null,"Kategorie 10: Verarbeitung der verkauften Güter","nicht berücksichtigt, nicht relevant"]
[null,"Kategorie 11: Nutzung der verkauften Güter","nicht berücksichtigt, nicht relevant"]
[null,"Kategorie 12: Umgang mit verkauften Gütern an deren Lebenszyklusende","nicht berücksichtigt, nicht relevant"]
[null,"Kategorie 13: Vermietete oder verleaste Sachanlagen","nicht berücksichtigt, nicht relevant"]
[null,"Kategorie 14: Franchise","nicht berücksichtigt, nicht relevant"]
[null,"Kategorie 15: Investitionen","nicht berücksichtigt, nicht relevant"]
[null,"Kategorie 16: Patient*innenmobilität","zusätzliche Kategorie für Gesundheitswesen (außerhalb GHG Protocol)"]
[]
[null,"Definition der organisatorischen Systemgrenze"]
[null,"Die Organisationsgrenze definiert, welche Bereiche der Organisation in der Bilanz inkludiert werden. Gemäß GHG Protocol sind sämtliche Prozesse, Verbräuche etc. innerhalb der Organisationsgrenze in die Bilanz zu inkludieren. Jegliche Ausnahmen sind im Sinne der Transparenz gesondert darzustellen.\nEine Darstellung durch ein Diagramm für die in der Bilanz beinhaltenten Organisationseinheiten ist hilfreich für die Klarheit während der Datenerhebung.\nIm Rahmen dieser Fallstudie des Projektes CAFOGES am Universitätsklinikum Freiburg, beschränkt sich die Organsationsgrenze der GHG-Bilanz auf die Faktoren, welche für die Patient*innenversorgung relevant sind. Die Aktivitäten und Prozesse im Rahmen Forschung und Lehre liegen außerhalb der zu Projektbeginn definierten Organisationsgrenze und wurden somit in der Datenanalyse exkludiert, wo dies methodisch realisierbar war. \nDiagramm der Organisationsgrenze des Projektes CAFOGES:"]
[]
[null,"Beschreibung Ihrer organisatorischen Systemgrenze:"]
[null,"Diese Angaben dienen für ihre eigene Orientierung und unterstützen bei wiederholter Anwendung in Folgejahren eine konsistente Datenerfassung."]

{"sheet":"Scope_1","index":3,"n_rows":103,"n_cols":13,"rows_kept":103,"cut":false,"hidden":false,"merged":[]}
[]
[]
[]
[]
[]
[]
[]
[null,"Scope 1 - Direkte Emissionen",null,null,null,"Summe :",{"$f":"SUM((IF(Scope1_1_Ja_Nein=\"Nein\",0,IF(Option_Auswahl_S1_1=\"Option 1\",Result_Scope1_1_Option1,Result_Scope1_1_Option2))),Result_Scope1_2_Fuhrpark,Result_Scope1_3_KM,Result_Scope1_4_Medi_Gase,Result_Scope1_4_Analyse_Gase)","v":0},"[t CO2e]"]
[]
[null,"Scope 1.1 - Direkte Emissionen aus Verbrennungsprozessen stationärer Anlagen (selbst produzierte Energie)"]
[null,"•Bilanziert werden die direkten Emissionen, die bei der Umwandlung von Primärenergieträgern bei Verbrennungsprozessen in stationären Anlagen (z.B: Kessel, KWK (Kraft-Wärme-Kopplung), Prozesswärmeerzeuger) entstehen. "]
[null,"•Emissionen im Zusammenhang mit dem Verkauf von selbst erzeugter Energie an andere Unternehmen werden nach dem GHG-Protocol NICHT von Scope 1.1 abgezogen. "]
[null,"•Direkte CO2-Emissionen aus der Verbrennung von biogenen Brennstoffen (z.B. Holzpellets) sollen nach GHG-Protocol nicht in Scope 1 einbezogen werden. Demnach soll nur CO2  aus der Verbrennung von fossilen Energieträgern berücksichtigt werden. "]
[null,"Allerdings sollen die Nicht-CO2-Emissionen (z.B. CH4, N2O) von biogenen Brennstoffen zusammen mit den fossilen Brennstoffen erfasst werden."]
[null,"•Die direkte Erzeugung anderer erneuerbarer Energien (z.B. Photovoltaik, Wasserkraft) beinhaltet keine Verbrennungsprozesse und wird somit hier für Scope 1 als emissionsfrei betrachtet. "]
[null,"•Die Emissionen, welche durch Produktion und Transport der fossilen Energieträger (Vorketten) entstehen, sind als indirekte Emissionen dem Scope 3 zuzuordnen und werden dort separat erfasst (s. Kategorie 3: Brennstoff- und energiebezogene Emissionen im Blatt \"Scope_3\")."]
[]
[null,null,"Frage: Ist Scope 1.1  für Sie relevant?"]
[]
[null,null,"Es gibt zwei Optionen, bei denen die direkten GHG-Emissionen aus den Verbrennungsprozessen stationärer Anlagen gerechnet werden. "]
[null,null,"Option 1: Angaben zu direkten Emissionen der einzelnen Treibhausgase liegen vor."]
[null,null,"Option 2: Direkte Emissionen der einzelnen Treibhausgase wurden nicht erfasst. Bekannt sind die Menge der eingekauften Brennstoffe und ihre Heizwerte."]
[]
[null,null,"Auswahl der Berechnungsmethode"]
[]
[null,null,"Option 1: Messdaten zu direkten Emissionen der einzelnen Treibhausgase liegen vor (z.B. mittels valider Messverfahren, welche aufgrund gesetzlicher Bestimmungen bei einer Anlage vorgeschrieben sind)"]
[null,null,null,null,"Direkte Emissionen","Menge (kg / Jahr)","Emissionsfaktor: kg CO2e/kg  \n(IPCC 2021: AR6)","Ergebnis (t CO2e / Jahr)"]
[null,null,null,"i","Kohlenstoffdioxid",null,{"$f":"VLOOKUP(E28,EF!$C$41:$D$45,2,0)","v":1},{"$f":"IFERROR(F28*G28/1000,\"k.A.\")","v":0}]
[null,null,null,null,"Methan",null,{"$f":"VLOOKUP(E29,EF!$C$41:$D$45,2,0)","v":27.9},{"$f":"IFERROR(F29*G29/1000,\"k.A.\")","v":0}]
[null,null,null,null,"Lachgas (Distickstoffmonoxid)",null,{"$f":"VLOOKUP(E30,EF!$C$41:$D$45,2,0)","v":273},0]
[null,null,null,null,"Stickstofftrifluorid",null,{"$f":"VLOOKUP(E31,EF!$C$41:$D$45,2,0)","v":17400},0]
[null,null,null,null,"Schwefelhexafluorid",null,{"$f":"VLOOKUP(E32,EF!$C$41:$D$45,2,0)","v":24300},0]
[null,null,null,null,"Summe",null,null,{"$f":"SUBTOTAL(109,Tabelle12[Ergebnis (t CO2e / Jahr)])","v":0}]
[]
[]
[null,null,"Option 2: Direkte Emissionen der einzelnen Treibhausgase wurden nicht erfasst. Bekannt sind die Menge der eingekauften Brennstoffe und ihre Heizwerte."]
[]
[null,null,null,null,"Brennstoffe (Gesamt)","Verbrauchsmenge  ","Einheit / Jahr","Heizwert je Energieträger ","kWh / Einheit "," CO2 in t CO2e / Jahr"," CH4 in t CO2e / Jahr"," N2O in t CO2e / Jahr ","Ergebnis (t CO2e / Jahr)"]
[null,null,null,"i","Erdgas",null,"m³",null,{"$f":"\"kWh /  \" & Scope_1!$G39","v":"kWh /  m³"},{"$f":"IF(AND(ISNUMBER(Brechnung_Brennstoffe_Scope1[[#This Row],[Verbrauchsmenge  ]]),ISNUMBER(Brechnung_Brennstoffe_Scope1[[#This Row],[Heizwert je Energieträger ]])),Brechnung_Brennstoffe_Scope1[[#This Row],[Verbrauchsmenge  ]]*Brechnung_Brennstoffe_Scope1[[#This Row],[Heizwert je Energieträger ]]*VLOOKUP(Brechnung_Brennstoffe_Scope1[[#This Row],[Brennstoffe (Gesamt)]],EF!$C$15:$E$21,3,FALSE)/1000,\"k.A.\")","v":"k.A."},{"$f":"IF(AND(ISNUMBER(Brechnung_Brennstoffe_Scope1[[#This Row],[Verbrauchsmenge  ]]),ISNUMBER(Brechnung_Brennstoffe_Scope1[[#This Row],[Heizwert je Energieträger ]])),Brechnung_Brennstoffe_Scope1[[#This Row],[Verbrauchsmenge  ]]*Brechnung_Brennstoffe_Scope1[[#This Row],[Heizwert je Energieträger ]]*VLOOKUP(Brechnung_Brennstoffe_Scope1[[#This Row],[Brennstoffe (Gesamt)]],EF!$C$15:$F$21,4,FALSE)*Methan_IPCC_AR6/1000,\"k.A.\")","v":"k.A."},{"$f":"IF(AND(ISNUMBER(Brechnung_Brennstoffe_Scope1[[#This Row],[Verbrauchsmenge  ]]),ISNUMBER(Brechnung_Brennstoffe_Scope1[[#This Row],[Heizwert je Energieträger ]])),Brechnung_Brennstoffe_Scope1[[#This Row],[Verbrauchsmenge  ]]*Brechnung_Brennstoffe_Scope1[[#This Row],[Heizwert je Energieträger ]]*VLOOKUP(Brechnung_Brennstoffe_Scope1[[#This Row],[Brennstoffe (Gesamt)]],EF!$C$15:$G$21,5,FALSE)*N2O_IPCC_AR6/1000,\"k.A.\")","v":"k.A."},{"$f":"SUM(Scope_1!$J39:$L39)","v":0}]
[null,null,null,null,"Öl",null,"Liter",null,{"$f":"\"kWh /  \" & Scope_1!$G40","v":"kWh /  Liter"},{"$f":"IF(AND(ISNUMBER(Brechnung_Brennstoffe_Scope1[[#This Row],[Verbrauchsmenge  ]]),ISNUMBER(Brechnung_Brennstoffe_Scope1[[#This Row],[Heizwert je Energieträger ]])),Brechnung_Brennstoffe_Scope1[[#This Row],[Verbrauchsmenge  ]]*Brechnung_Brennstoffe_Scope1[[#This Row],[Heizwert je Energieträger ]]*VLOOKUP(Brechnung_Brennstoffe_Scope1[[#This Row],[Brennstoffe (Gesamt)]],EF!$C$15:$E$21,3,FALSE)/1000,\"k.A.\")","v":"k.A."},{"$f":"IF(AND(ISNUMBER(Brechnung_Brennstoffe_Scope1[[#This Row],[Verbrauchsmenge  ]]),ISNUMBER(Brechnung_Brennstoffe_Scope1[[#This Row],[Heizwert je Energieträger ]])),Brechnung_Brennstoffe_Scope1[[#This Row],[Verbrauchsmenge  ]]*Brechnung_Brennstoffe_Scope1[[#This Row],[Heizwert je Energieträger ]]*VLOOKUP(Brechnung_Brennstoffe_Scope1[[#This Row],[Brennstoffe (Gesamt)]],EF!$C$15:$F$21,4,FALSE)*Methan_IPCC_AR6/1000,\"k.A.\")","v":"k.A."},{"$f":"IF(AND(ISNUMBER(Brechnung_Brennstoffe_Scope1[[#This Row],[Verbrauchsmenge  ]]),ISNUMBER(Brechnung_Brennstoffe_Scope1[[#This Row],[Heizwert je Energieträger ]])),Brechnung_Brennstoffe_Scope1[[#This Row],[Verbrauchsmenge  ]]*Brechnung_Brennstoffe_Scope1[[#This Row],[Heizwert je Energieträger ]]*VLOOKUP(Brechnung_Brennstoffe_Scope1[[#This Row],[Brennstoffe (Gesamt)]],EF!$C$15:$G$21,5,FALSE)*N2O_IPCC_AR6/1000,\"k.A.\")","v":"k.A."},{"$f":"SUM(Scope_1!$J40:$L40)","v":0}]
[null,null,null,null,"Holz",null,"Tonnen",null,{"$f":"\"kWh /  \" & Scope_1!$G41","v":"kWh /  Tonnen"},{"$f":"IF(AND(ISNUMBER(Brechnung_Brennstoffe_Scope1[[#This Row],[Verbrauchsmenge  ]]),ISNUMBER(Brechnung_Brennstoffe_Scope1[[#This Row],[Heizwert je Energieträger ]])),Brechnung_Brennstoffe_Scope1[[#This Row],[Verbrauchsmenge  ]]*Brechnung_Brennstoffe_Scope1[[#This Row],[Heizwert je Energieträger ]]*VLOOKUP(Brechnung_Brennstoffe_Scope1[[#This Row],[Brennstoffe (Gesamt)]],EF!$C$15:$E$21,3,FALSE)/1000,\"k.A.\")","v":"k.A."},{"$f":"IF(AND(ISNUMBER(Brechnung_Brennstoffe_Scope1[[#This Row],[Verbrauchsmenge  ]]),ISNUMBER(Brechnung_Brennstoffe_Scope1[[#This Row],[Heizwert je Energieträger ]])),Brechnung_Brennstoffe_Scope1[[#This Row],[Verbrauchsmenge  ]]*Brechnung_Brennstoffe_Scope1[[#This Row],[Heizwert je Energieträger ]]*VLOOKUP(Brechnung_Brennstoffe_Scope1[[#This Row],[Brennstoffe (Gesamt)]],EF!$C$15:$F$21,4,FALSE)*Methan_IPCC_AR6/1000,\"k.A.\")","v":"k.A."},{"$f":"IF(AND(ISNUMBER(Brechnung_Brennstoffe_Scope1[[#This Row],[Verbrauchsmenge  ]]),ISNUMBER(Brechnung_Brennstoffe_Scope1[[#This Row],[Heizwert je Energieträger ]])),Brechnung_Brennstoffe_Scope1[[#This Row],[Verbrauchsmenge  ]]*Brechnung_Brennstoffe_Scope1[[#This Row],[Heizwert je Energieträger ]]*VLOOKUP(Brechnung_Brennstoffe_Scope1[[#This Row],[Brennstoffe (Gesamt)]],EF!$C$15:$G$21,5,FALSE)*N2O_IPCC_AR6/1000,\"k.A.\")","v":"k.A."},{"$f":"SUM(Scope_1!$J41:$L41)","v":0}]
[null,null,null,null,"Braunkohle",null,"Tonnen",null,{"$f":"\"kWh /  \" & Scope_1!$G42","v":"kWh /  Tonnen"},{"$f":"IF(AND(ISNUMBER(Brechnung_Brennstoffe_Scope1[[#This Row],[Verbrauchsmenge  ]]),ISNUMBER(Brechnung_Brennstoffe_Scope1[[#This Row],[Heizwert je Energieträger ]])),Brechnung_Brennstoffe_Scope1[[#This Row],[Verbrauchsmenge  ]]*Brechnung_Brennstoffe_Scope1[[#This Row],[Heizwert je Energieträger ]]*VLOOKUP(Brechnung_Brennstoffe_Scope1[[#This Row],[Brennstoffe (Gesamt)]],EF!$C$15:$E$21,3,FALSE)/1000,\"k.A.\")","v":"k.A."},{"$f":"IF(AND(ISNUMBER(Brechnung_Brennstoffe_Scope1[[#This Row],[Verbrauchsmenge  ]]),ISNUMBER(Brechnung_Brennstoffe_Scope1[[#This Row],[Heizwert je Energieträger ]])),Brechnung_Brennstoffe_Scope1[[#This Row],[Verbrauchsmenge  ]]*Brechnung_Brennstoffe_Scope1[[#This Row],[Heizwert je Energieträger ]]*VLOOKUP(Brechnung_Brennstoffe_Scope1[[#This Row],[Brennstoffe (Gesamt)]],EF!$C$15:$F$21,4,FALSE)*Methan_IPCC_AR6/1000,\"k.A.\")","v":"k.A."},{"$f":"IF(AND(ISNUMBER(Brechnung_Brennstoffe_Scope1[[#This Row],[Verbrauchsmenge  ]]),ISNUMBER(Brechnung_Brennstoffe_Scope1[[#This Row],[Heizwert je Energieträger ]])),Brechnung_Brennstoffe_Scope1[[#This Row],[Verbrauchsmenge  ]]*Brechnung_Brennstoffe_Scope1[[#This Row],[Heizwert je Energieträger ]]*VLOOKUP(Brechnung_Brennstoffe_Scope1[[#This Row],[Brennstoffe (Gesamt)]],EF!$C$15:$G$21,5,FALSE)*N2O_IPCC_AR6/1000,\"k.A.\")","v":"k.A."},{"$f":"SUM(Scope_1!$J42:$L42)","v":0}]
[null,null,null,null,"Steinkohle",null,"Tonnen",null,{"$f":"\"kWh /  \" & Scope_1!$G43","v":"kWh /  Tonnen"},{"$f":"IF(AND(ISNUMBER(Brechnung_Brennstoffe_Scope1[[#This Row],[Verbrauchsmenge  ]]),ISNUMBER(Brechnung_Brennstoffe_Scope1[[#This Row],[Heizwert je Energieträger ]])),Brechnung_Brennstoffe_Scope1[[#This Row],[Verbrauchsmenge  ]]*Brechnung_Brennstoffe_Scope1[[#This Row],[Heizwert je Energieträger ]]*VLOOKUP(Brechnung_Brennstoffe_Scope1[[#This Row],[Brennstoffe (Gesamt)]],EF!$C$15:$E$21,3,FALSE)/1000,\"k.A.\")","v":"k.A."},{"$f":"IF(AND(ISNUMBER(Brechnung_Brennstoffe_Scope1[[#This Row],[Verbrauchsmenge  ]]),ISNUMBER(Brechnung_Brennstoffe_Scope1[[#This Row],[Heizwert je Energieträger ]])),Brechnung_Brennstoffe_Scope1[[#This Row],[Verbrauchsmenge  ]]*Brechnung_Brennstoffe_Scope1[[#This Row],[Heizwert je Energieträger ]]*VLOOKUP(Brechnung_Brennstoffe_Scope1[[#This Row],[Brennstoffe (Gesamt)]],EF!$C$15:$F$21,4,FALSE)*Methan_IPCC_AR6/1000,\"k.A.\")","v":"k.A."},{"$f":"IF(AND(ISNUMBER(Brechnung_Brennstoffe_Scope1[[#This Row],[Verbrauchsmenge  ]]),ISNUMBER(Brechnung_Brennstoffe_Scope1[[#This Row],[Heizwert je Energieträger ]])),Brechnung_Brennstoffe_Scope1[[#This Row],[Verbrauchsmenge  ]]*Brechnung_Brennstoffe_Scope1[[#This Row],[Heizwert je Energieträger ]]*VLOOKUP(Brechnung_Brennstoffe_Scope1[[#This Row],[Brennstoffe (Gesamt)]],EF!$C$15:$G$21,5,FALSE)*N2O_IPCC_AR6/1000,\"k.A.\")","v":"k.A."},{"$f":"SUM(Scope_1!$J43:$L43)","v":0}]
[null,null,null,null,"Biogas/Biomethan (Energiepflanzen, Gülle, Abfall)",null,"m³",null,{"$f":"\"kWh /  \" & Scope_1!$G44","v":"kWh /  m³"},{"$f":"IF(AND(ISNUMBER(Brechnung_Brennstoffe_Scope1[[#This Row],[Verbrauchsmenge  ]]),ISNUMBER(Brechnung_Brennstoffe_Scope1[[#This Row],[Heizwert je Energieträger ]])),Brechnung_Brennstoffe_Scope1[[#This Row],[Verbrauchsmenge  ]]*Brechnung_Brennstoffe_Scope1[[#This Row],[Heizwert je Energieträger ]]*VLOOKUP(Brechnung_Brennstoffe_Scope1[[#This Row],[Brennstoffe (Gesamt)]],EF!$C$15:$E$21,3,FALSE)/1000,\"k.A.\")","v":"k.A."},{"$f":"IF(AND(ISNUMBER(Brechnung_Brennstoffe_Scope1[[#This Row],[Verbrauchsmenge  ]]),ISNUMBER(Brechnung_Brennstoffe_Scope1[[#This Row],[Heizwert je Energieträger ]])),Brechnung_Brennstoffe_Scope1[[#This Row],[Verbrauchsmenge  ]]*Brechnung_Brennstoffe_Scope1[[#This Row],[Heizwert je Energieträger ]]*VLOOKUP(Brechnung_Brennstoffe_Scope1[[#This Row],[Brennstoffe (Gesamt)]],EF!$C$15:$F$21,4,FALSE)*Methan_IPCC_AR6/1000,\"k.A.\")","v":"k.A."},{"$f":"IF(AND(ISNUMBER(Brechnung_Brennstoffe_Scope1[[#This Row],[Verbrauchsmenge  ]]),ISNUMBER(Brechnung_Brennstoffe_Scope1[[#This Row],[Heizwert je Energieträger ]])),Brechnung_Brennstoffe_Scope1[[#This Row],[Verbrauchsmenge  ]]*Brechnung_Brennstoffe_Scope1[[#This Row],[Heizwert je Energieträger ]]*VLOOKUP(Brechnung_Brennstoffe_Scope1[[#This Row],[Brennstoffe (Gesamt)]],EF!$C$15:$G$21,5,FALSE)*N2O_IPCC_AR6/1000,\"k.A.\")","v":"k.A."},{"$f":"SUM(Scope_1!$J44:$L44)","v":0}]
[null,null,null,null,"Flüssige Biomasse (z.B. Pflanzenöl)",null,"Liter",null,{"$f":"\"kWh /  \" & Scope_1!$G45","v":"kWh /  Liter"},{"$f":"IF(AND(ISNUMBER(Brechnung_Brennstoffe_Scope1[[#This Row],[Verbrauchsmenge  ]]),ISNUMBER(Brechnung_Brennstoffe_Scope1[[#This Row],[Heizwert je Energieträger ]])),Brechnung_Brennstoffe_Scope1[[#This Row],[Verbrauchsmenge  ]]*Brechnung_Brennstoffe_Scope1[[#This Row],[Heizwert je Energieträger ]]*VLOOKUP(Brechnung_Brennstoffe_Scope1[[#This Row],[Brennstoffe (Gesamt)]],EF!$C$15:$E$21,3,FALSE)/1000,\"k.A.\")","v":"k.A."},{"$f":"IF(AND(ISNUMBER(Brechnung_Brennstoffe_Scope1[[#This Row],[Verbrauchsmenge  ]]),ISNUMBER(Brechnung_Brennstoffe_Scope1[[#This Row],[Heizwert je Energieträger ]])),Brechnung_Brennstoffe_Scope1[[#This Row],[Verbrauchsmenge  ]]*Brechnung_Brennstoffe_Scope1[[#This Row],[Heizwert je Energieträger ]]*VLOOKUP(Brechnung_Brennstoffe_Scope1[[#This Row],[Brennstoffe (Gesamt)]],EF!$C$15:$F$21,4,FALSE)*Methan_IPCC_AR6/1000,\"k.A.\")","v":"k.A."},{"$f":"IF(AND(ISNUMBER(Brechnung_Brennstoffe_Scope1[[#This Row],[Verbrauchsmenge  ]]),ISNUMBER(Brechnung_Brennstoffe_Scope1[[#This Row],[Heizwert je Energieträger ]])),Brechnung_Brennstoffe_Scope1[[#This Row],[Verbrauchsmenge  ]]*Brechnung_Brennstoffe_Scope1[[#This Row],[Heizwert je Energieträger ]]*VLOOKUP(Brechnung_Brennstoffe_Scope1[[#This Row],[Brennstoffe (Gesamt)]],EF!$C$15:$G$21,5,FALSE)*N2O_IPCC_AR6/1000,\"k.A.\")","v":"k.A."},{"$f":"SUM(Scope_1!$J45:$L45)","v":0}]
[null,null,null,null,"Summe",null,null,null,null,{"$f":"SUBTOTAL(109,Brechnung_Brennstoffe_Scope1[] Brechnung_Brennstoffe_Scope1[ CO2 in t CO2e / Jahr] )","v":0},{"$f":"SUBTOTAL(109,Brechnung_Brennstoffe_Scope1[ CH4 in t CO2e / Jahr])","v":0},{"$f":"SUBTOTAL(109,Brechnung_Brennstoffe_Scope1[ N2O in t CO2e / Jahr ])","v":0},{"$f":"SUBTOTAL(109,Brechnung_Brennstoffe_Scope1[Ergebnis (t CO2e / Jahr)])","v":0}]
[]
[]
[]
[null,"Scope 1.2 - Direkte Emissionen aus Verbrennungsprozessen mobiler Anlagen"]
[null,null,"Erfassung aller direkten Emissionen des Fahrzeugbetriebes vom eigenen Fuhrpark"]
[null,null,null,null,"Kraftstoffe","Verbrauchsmenge  ","Einheit / Jahr","Emissionsfaktor","Ergebnis (t CO2e / Jahr)"]
[null,null,null,null,"Benzin",null,"Liter / Jahr",{"$f":"VLOOKUP(E53,EF!$C$26:$D$35,2,FALSE)","v":2.42},{"$f":"IFERROR(Tabelle20[[#This Row],[Verbrauchsmenge  ]]*Tabelle20[[#This Row],[Emissionsfaktor]]/1000,\"k.A.\")","v":0}]
[null,null,null,null,"Benzin E5 (5 Vol.-% Bioethanol)",null,"Liter / Jahr",{"$f":"VLOOKUP(E54,EF!$C$26:$D$35,2,FALSE)","v":2.2999999999999998},{"$f":"IFERROR(Tabelle20[[#This Row],[Verbrauchsmenge  ]]*Tabelle20[[#This Row],[Emissionsfaktor]]/1000,\"k.A.\")","v":0}]
[null,null,null,null,"Benzin E10 (10 Vol.-% Bioethanol)",null,"Liter / Jahr",{"$f":"VLOOKUP(E55,EF!$C$26:$D$35,2,FALSE)","v":2.1800000000000002},{"$f":"IFERROR(Tabelle20[[#This Row],[Verbrauchsmenge  ]]*Tabelle20[[#This Row],[Emissionsfaktor]]/1000,\"k.A.\")","v":0}]
[null,null,null,null,"Diesel",null,"Liter / Jahr",{"$f":"VLOOKUP(E56,EF!$C$26:$D$35,2,FALSE)","v":2.67},{"$f":"IFERROR(Tabelle20[[#This Row],[Verbrauchsmenge  ]]*Tabelle20[[#This Row],[Emissionsfaktor]]/1000,\"k.A.\")","v":0}]
[null,null,null,null,"Diesel D7 (7 Vol.-% Biodiesel)",null,"Liter / Jahr",{"$f":"VLOOKUP(E57,EF!$C$26:$D$35,2,FALSE)","v":2.48},{"$f":"IFERROR(Tabelle20[[#This Row],[Verbrauchsmenge  ]]*Tabelle20[[#This Row],[Emissionsfaktor]]/1000,\"k.A.\")","v":0}]
[null,null,null,null,"Biodiesel",null,"Liter / Jahr",{"$f":"VLOOKUP(E58,EF!$C$26:$D$35,2,FALSE)","v":0},{"$f":"IFERROR(Tabelle20[[#This Row],[Verbrauchsmenge  ]]*Tabelle20[[#This Row],[Emissionsfaktor]]/1000,\"k.A.\")","v":0}]
[null,null,null,null,"Autogas (LPG)",null,"Liter / Jahr",{"$f":"VLOOKUP(E59,EF!$C$26:$D$35,2,FALSE)","v":1.7},{"$f":"IFERROR(Tabelle20[[#This Row],[Verbrauchsmenge  ]]*Tabelle20[[#This Row],[Emissionsfaktor]]/1000,\"k.A.\")","v":0}]
[null,null,null,null,"Erdgas (CNG)",null,"kg / Jahr*",{"$f":"VLOOKUP(E60,EF!$C$26:$D$35,2,FALSE)","v":2.68},{"$f":"IFERROR(Tabelle20[[#This Row],[Verbrauchsmenge  ]]*Tabelle20[[#This Row],[Emissionsfaktor]]/1000,\"k.A.\")","v":0}]
[null,null,null,null,"Flugbenzin ",null,"Liter / Jahr",{"$f":"VLOOKUP(E61,EF!$C$26:$D$35,2,FALSE)","v":2.5},{"$f":"IFERROR(Tabelle20[[#This Row],[Verbrauchsmenge  ]]*Tabelle20[[#This Row],[Emissionsfaktor]]/1000,\"k.A.\")","v":0}]
[null,null,null,null,"Kerosin (Jet A1 und Jet A)",null,"Liter / Jahr",{"$f":"VLOOKUP(E62,EF!$C$26:$D$35,2,FALSE)","v":2.54},{"$f":"IFERROR(Tabelle20[[#This Row],[Verbrauchsmenge  ]]*Tabelle20[[#This Row],[Emissionsfaktor]]/1000,\"k.A.\")","v":0}]
[null,null,null,null,"Summe",null,null,null,{"$f":"SUBTOTAL(109,Tabelle20[Ergebnis (t CO2e / Jahr)])","v":0}]
[null,null,null,null,"*Für CNG gibt es nur den Emissionsfaktor bezogen auf kg"]
[]
[]
[]
[null,"Scope 1.3 - Direkte Emissionen aus Kältemittelverlusten"]
[null,null,"Scope 1.3 umfasst die direkten Emissionen von F-Gasen (halogenierte Kohlenwasserstoffe), welche in die Atmosphäre emittiert werden."]
[null,null,"Die Emissonsfaktoren stehen für eine begrenzte Anzahl von Kältemitteln in der Drop-down-Liste zur Verfügung. "]
[null,null,null,"i","Nachgefüllte Kältemittel","Menge (kg / Jahr)","Emissionsfaktor  (kg CO2e / kg )","Ergebnis (t CO2e / Jahr)"]
[null,null,null,null,"HFC-23 (R-23)",null,{"$f":"IFERROR(VLOOKUP(E72,EF!$C$41:$D$138,2,FALSE),\"Kältemittel auswählen\")","v":14600},{"$f":"IFERROR(Berechnung_KM_Scope1[[#This Row],[Menge (kg / Jahr)]]*Berechnung_KM_Scope1[[#This Row],[Emissionsfaktor  (kg CO2e / kg )]]/1000,\"k.A\")","v":0}]
[null,null,null,null,"HFC-134a (R-134a)",null,{"$f":"IFERROR(VLOOKUP(E73,EF!$C$41:$D$138,2,FALSE),\"Kältemittel auswählen\")","v":1530},{"$f":"IFERROR(Berechnung_KM_Scope1[[#This Row],[Menge (kg / Jahr)]]*Berechnung_KM_Scope1[[#This Row],[Emissionsfaktor  (kg CO2e / kg )]]/1000,\"k.A\")","v":0}]
[null,null,null,null,"R-404A",null,{"$f":"IFERROR(VLOOKUP(E74,EF!$C$41:$D$138,2,FALSE),\"Kältemittel auswählen\")","v":4728},{"$f":"IFERROR(Berechnung_KM_Scope1[[#This Row],[Menge (kg / Jahr)]]*Berechnung_KM_Scope1[[#This Row],[Emissionsfaktor  (kg CO2e / kg )]]/1000,\"k.A\")","v":0}]
[null,null,null,null,"R-407C",null,{"$f":"IFERROR(VLOOKUP(E75,EF!$C$41:$D$138,2,FALSE),\"Kältemittel auswählen\")","v":1907.9299999999998},{"$f":"IFERROR(Berechnung_KM_Scope1[[#This Row],[Menge (kg / Jahr)]]*Berechnung_KM_Scope1[[#This Row],[Emissionsfaktor  (kg CO2e / kg )]]/1000,\"k.A\")","v":0}]
[null,null,null,null,"R-410A",null,{"$f":"IFERROR(VLOOKUP(E76,EF!$C$41:$D$138,2,FALSE),\"Kältemittel auswählen\")","v":2255.5},{"$f":"IFERROR(Berechnung_KM_Scope1[[#This Row],[Menge (kg / Jahr)]]*Berechnung_KM_Scope1[[#This Row],[Emissionsfaktor  (kg CO2e / kg )]]/1000,\"k.A\")","v":0}]
[null,null,null,null,"R-507",null,{"$f":"IFERROR(VLOOKUP(E77,EF!$C$41:$D$138,2,FALSE),\"Kältemittel auswählen\")","v":4775},{"$f":"IFERROR(Berechnung_KM_Scope1[[#This Row],[Menge (kg / Jahr)]]*Berechnung_KM_Scope1[[#This Row],[Emissionsfaktor  (kg CO2e / kg )]]/1000,\"k.A\")","v":0}]
[null,null,null,null,"Summe",{"$f":"SUBTOTAL(109,Berechnung_KM_Scope1[Menge (kg / Jahr)])","v":0},null,{"$f":"SUBTOTAL(109,Berechnung_KM_Scope1[Ergebnis (t CO2e / Jahr)])","v":0}]
[]
[]
[]
[null,"Scope 1.4 - Direkte Emissionen aus medizinischen & technischen flüchtigen Gasen"]
[null,null,"Die medizinischen & technischen flüchtigen Gase umfassen Anästhesiegase und auch Analysegase."]
[null,null,"Scope 1 umfasst die direkten treibhausgasrelevanten Emissionen, die während der Nutzung in Ihrem definierten Bilanzjahr (s. Blatt „Eckdaten“) in die Atmosphäre austreten. "]
[null,null,"Das Unterregister \"Med./Tech. Gase (S3)\" in Blatt \"Scope_3\" beinhaltet alle Gase, die im jeweiligen Bilanzjahr eingekauft wurden und deren indirekte Emissionen in der Produktionsphase (Vorkette) ermittelt wurden. "]
[null,null,"Die Verbrauchmenge und die Anschaffungsmenge sind nicht zwangsläufig im jeweiligen Bilanzjahr identisch. "]
[null,null,"Wir empfehlen, die Verbrauchmenge hier für Scope 1 zu erfassen. Für Scope 3 sollte die Menge der eingekauften Gase zugrunde gelegt werden. "]
[null,null,"Falls die Verbrauchmenge schwierig zu erfassen ist, können die hier für Scope 1 eingekaufte Menge zugrunde gelegt werden. "]
[null,null,"Wichtig dabei ist, dass die Bilanzen über die einzelnen Jahre hinweg auf der Grundlage konsistenter Methoden erstellt werden."]
[null,null,null,null,"Anästhesiegase ","Verbrauchsmenge \n(kg / Jahr)","Eingabe der Leckagerate\n der Gase in die Atmosphäre in %","Emissionsfaktor  \n(kg CO2e / kg )","Ergebnis (t CO2e / Jahr)"]
[null,null,null,"i","Lachgas (Distickstoffmonoxid)",null,1,{"$f":"IFERROR(VLOOKUP(E91,EF_Scope1_Med_Tech_Gase[[Gase]:[EF (IPCC2021) ]],2,FALSE),\"Bitte geben Sie den individuellen EF ein\")","v":273},{"$f":"IFERROR(MedGase_Scope1[[#This Row],[Verbrauchsmenge \n(kg / Jahr)]]*MedGase_Scope1[[#This Row],[Emissionsfaktor  \n(kg CO2e / kg )]]/1000*MedGase_Scope1[[#This Row],[Eingabe der Leckagerate\n der Gase in die Atmosphäre in %]],\"k.A.\")","v":0}]
[null,null,null,null,"Sevofluran",null,1,{"$f":"IFERROR(VLOOKUP(E92,EF_Scope1_Med_Tech_Gase[[Gase]:[EF (IPCC2021) ]],2,FALSE),\"Bitte geben Sie den individuellen EF ein\")","v":195},{"$f":"IFERROR(MedGase_Scope1[[#This Row],[Verbrauchsmenge \n(kg / Jahr)]]*MedGase_Scope1[[#This Row],[Emissionsfaktor  \n(kg CO2e / kg )]]/1000*MedGase_Scope1[[#This Row],[Eingabe der Leckagerate\n der Gase in die Atmosphäre in %]],\"k.A.\")","v":0}]
[null,null,null,null,"Isofluran",null,1,{"$f":"IFERROR(VLOOKUP(E93,EF_Scope1_Med_Tech_Gase[[Gase]:[EF (IPCC2021) ]],2,FALSE),\"Bitte geben Sie den individuellen EF ein\")","v":539},{"$f":"IFERROR(MedGase_Scope1[[#This Row],[Verbrauchsmenge \n(kg / Jahr)]]*MedGase_Scope1[[#This Row],[Emissionsfaktor  \n(kg CO2e / kg )]]/1000*MedGase_Scope1[[#This Row],[Eingabe der Leckagerate\n der Gase in die Atmosphäre in %]],\"k.A.\")","v":0}]
[null,null,null,null,"Desfluran",null,1,{"$f":"IFERROR(VLOOKUP(E94,EF_Scope1_Med_Tech_Gase[[Gase]:[EF (IPCC2021) ]],2,FALSE),\"Bitte geben Sie den individuellen EF ein\")","v":2590},{"$f":"IFERROR(MedGase_Scope1[[#This Row],[Verbrauchsmenge \n(kg / Jahr)]]*MedGase_Scope1[[#This Row],[Emissionsfaktor  \n(kg CO2e / kg )]]/1000*MedGase_Scope1[[#This Row],[Eingabe der Leckagerate\n der Gase in die Atmosphäre in %]],\"k.A.\")","v":0}]
[null,null,null,null,"Summe ",{"$f":"SUBTOTAL(109,MedGase_Scope1[Verbrauchsmenge \n(kg / Jahr)])","v":0},null,null,{"$f":"SUBTOTAL(109,MedGase_Scope1[Ergebnis (t CO2e / Jahr)])","v":0}]
[]
[null,null,null,null,"Analysegase ","Verbrauchsmenge \n(kg / Jahr)","Eingabe der Leckagerate\n der Gase in die Atmosphäre in %","Emissionsfaktor  \n(kg CO2e / kg )","Ergebnis (t CO2e / Jahr)"]
[null,null,null,null,"Methan",null,1,{"$f":"IFERROR(VLOOKUP(E98,EF_Scope1_Med_Tech_Gase[[Gase]:[EF (IPCC2021) ]],2,FALSE),\"Bitte geben Sie den individuellen EF ein\")","v":27.9},{"$f":"IFERROR(MedGase_Scope14[[#This Row],[Verbrauchsmenge \n(kg / Jahr)]]*MedGase_Scope14[[#This Row],[Emissionsfaktor  \n(kg CO2e / kg )]]/1000*MedGase_Scope14[[#This Row],[Eingabe der Leckagerate\n der Gase in die Atmosphäre in %]],\"k.A.\")","v":0}]
[null,null,null,null,"Kohlenstoffdioxid",null,1,{"$f":"IFERROR(VLOOKUP(E99,EF_Scope1_Med_Tech_Gase[[Gase]:[EF (IPCC2021) ]],2,FALSE),\"Bitte geben Sie den individuellen EF ein\")","v":1},{"$f":"IFERROR(MedGase_Scope14[[#This Row],[Verbrauchsmenge \n(kg / Jahr)]]*MedGase_Scope14[[#This Row],[Emissionsfaktor  \n(kg CO2e / kg )]]/1000*MedGase_Scope14[[#This Row],[Eingabe der Leckagerate\n der Gase in die Atmosphäre in %]],\"k.A.\")","v":0}]
[null,null,null,null,"Propan",null,1,{"$f":"IFERROR(VLOOKUP(E100,EF_Scope1_Med_Tech_Gase[[Gase]:[EF (IPCC2021) ]],2,FALSE),\"Bitte geben Sie den individuellen EF ein\")","v":0.02},{"$f":"IFERROR(MedGase_Scope14[[#This Row],[Verbrauchsmenge \n(kg / Jahr)]]*MedGase_Scope14[[#This Row],[Emissionsfaktor  \n(kg CO2e / kg )]]/1000*MedGase_Scope14[[#This Row],[Eingabe der Leckagerate\n der Gase in die Atmosphäre in %]],\"k.A.\")","v":0}]
[null,null,null,null,"Ethan",null,1,{"$f":"IFERROR(VLOOKUP(E101,EF_Scope1_Med_Tech_Gase[[Gase]:[EF (IPCC2021) ]],2,FALSE),\"Bitte geben Sie den individuellen EF ein\")","v":0.437},{"$f":"IFERROR(MedGase_Scope14[[#This Row],[Verbrauchsmenge \n(kg / Jahr)]]*MedGase_Scope14[[#This Row],[Emissionsfaktor  \n(kg CO2e / kg )]]/1000*MedGase_Scope14[[#This Row],[Eingabe der Leckagerate\n der Gase in die Atmosphäre in %]],\"k.A.\")","v":0}]
[null,null,null,null,"Butan",null,1,{"$f":"IFERROR(VLOOKUP(E102,EF_Scope1_Med_Tech_Gase[[Gase]:[EF (IPCC2021) ]],2,FALSE),\"Bitte geben Sie den individuellen EF ein\")","v":6.0000000000000001E-3},{"$f":"IFERROR(MedGase_Scope14[[#This Row],[Verbrauchsmenge \n(kg / Jahr)]]*MedGase_Scope14[[#This Row],[Emissionsfaktor  \n(kg CO2e / kg )]]/1000*MedGase_Scope14[[#This Row],[Eingabe der Leckagerate\n der Gase in die Atmosphäre in %]],\"k.A.\")","v":0}]
[null,null,null,null,"Summe ",{"$f":"SUBTOTAL(109,MedGase_Scope14[Verbrauchsmenge \n(kg / Jahr)])","v":0},null,null,{"$f":"SUBTOTAL(109,MedGase_Scope14[Ergebnis (t CO2e / Jahr)])","v":0}]

{"sheet":"Scope_2","index":4,"n_rows":89,"n_cols":10,"rows_kept":89,"cut":false,"hidden":false,"merged":[]}
[]
[]
[]
[]
[]
[null,"Scope 2 - Indirekte Emissionen (ortsbezogen)",null,"Summe :",{"$f":"Result_Scope2_Ortsb_Mix","v":0},"[t CO2e]"]
[null,"Scope 2 - Indirekte Emissionen (marktbasiert)",null,"Summe :",{"$f":"IF(Auswahl_Scope2_Spezifisch_Option=\"\",\"Auswahl der Option; s.Zeile D41\",IF(Auswahl_Scope2_Spezifisch_Option=\"Option 1\",Result_Scope2_Marktb_spezifisch_Option1,Result_Scope2_Marktb_spezifisch_Option2))","v":"Auswahl der Option; s.Zeile D41"},"[t CO2e]"]
[]
[null,"Scope 2: Indirekte Emissionen aus gekauftem Strom, Wärme/Kälte, Dampf"]
[null,"Scope 2 quantifiziert GHG-Emissionen, die bei der Erzeugung von eingekauften Energieträgern (Strom, Dampf, Wärme oder Kälte) entstehen. "]
[null,"Scope 2 umfasst NICHT die sonstigen vorgelagerten Emissionen im Zusammenhang mit der Produktion und Transporten von Energieträgern, die von externen Erzeugern eingekauft werden. Diese werden Scope 3 (s. Scope 3.3 im Blatt \"Scope 3\") zugerechnet."]
[null,"Vorgelagerte Emissionen durch Verluste während der Übertragung und der Verteilung des eingekauften Stroms werden ebenfalls Scope 3 zugerechnet."]
[]
[null,"Grundsätzlich bestehen gemäß Guidance-Dokument zu Scope 2 des GHG-Protocols zwei mögliche Ansätze:"]
[null,"•Ortsbezogener Ansatz: "]
[null,"  Quantifizierung der Scope-2-Emissionen basierend auf den GHG-Emissionen des Durchschnittsmix der Stromerzeugung im jeweiligen Stromnetz."]
[null,"•Marktbasierter Ansatz: "]
[null,"  Quantifizierung der Scope-2-Emissionen basierend auf den GHG-Emissionen die im Zuge der Stromerzugung beim Energierzeuger entstehen, bei welchem der Strom gekauft wird. "]
[]
[null,"Anzumerken ist, dass Dampf in diesem Tool nur nach dem ortsbezogenen Ansatz bilanziert wird. Es wurde also nicht zwischen otsbezogenem und marktbasiertem Ansatz unterscheiden."]
[]
[null,"Bitte geben Sie den externen Energiebezug (eingekauft) in MWh ein."]
[null,"Scope 2","Menge  (MWh / Jahr)"]
[null,"Strommix"]
[null,"Fernwärme-Mix"]
[null,"Dampf"]
[null,"Summe",{"$f":"SUBTOTAL(109,Scope2_Mix_Ort[Menge  (MWh / Jahr)])","v":0}]
[]
[null,"Ansatz 1: Ortsbezogener Ansatz "]
[null,"Scope 2","Menge  (MWh / Jahr)"," CO2 in t CO2e / Jahr"," CH4 in t CO2e / Jahr"," N2O in t CO2e / Jahr","Ergebnis (t CO2e / Jahr)"]
[null,"Strommix",{"$f":"IF(ISNUMBER(C24),C24,\"k.A.\")","v":"k.A."},{"$f":"IFERROR(Scope2_Mix_Ort[[#This Row],[Menge  (MWh / Jahr)]]*VLOOKUP($B31,EF_Scope2_Ortsbezogen[[Energie]:[THG-Emissionsfaktor (t CO2e/ MWh)]],2,FALSE),\"k.A.\")","v":"k.A."},{"$f":"IFERROR(Scope2_Mix_Ort[[#This Row],[Menge  (MWh / Jahr)]]*VLOOKUP($B31,EF_Scope2_Ortsbezogen[[Energie]:[THG-Emissionsfaktor (t CO2e/ MWh)]],3,FALSE)*Methan_IPCC_AR6,\"k.A.\")","v":"k.A."},{"$f":"IFERROR(Scope2_Mix_Ort[[#This Row],[Menge  (MWh / Jahr)]]*VLOOKUP($B31,EF_Scope2_Ortsbezogen[[Energie]:[THG-Emissionsfaktor (t CO2e/ MWh)]],4,FALSE)*N2O_IPCC_AR6,\"k.A.\")","v":"k.A."},{"$f":"IFERROR(SUM(D31:F31),\"k.A.\")","v":0}]
[null,"Fernwärme-Mix",{"$f":"IF(ISNUMBER(C25),C25,\"k.A.\")","v":"k.A."},{"$f":"IFERROR(Scope2_Mix_Ort[[#This Row],[Menge  (MWh / Jahr)]]*VLOOKUP($B32,EF_Scope2_Ortsbezogen[[Energie]:[THG-Emissionsfaktor (t CO2e/ MWh)]],2,FALSE),\"k.A.\")","v":"k.A."},{"$f":"IFERROR(Scope2_Mix_Ort[[#This Row],[Menge  (MWh / Jahr)]]*VLOOKUP($B32,EF_Scope2_Ortsbezogen[[Energie]:[THG-Emissionsfaktor (t CO2e/ MWh)]],3,FALSE)*Methan_IPCC_AR6,\"k.A.\")","v":"k.A."},{"$f":"IFERROR(Scope2_Mix_Ort[[#This Row],[Menge  (MWh / Jahr)]]*VLOOKUP($B32,EF_Scope2_Ortsbezogen[[Energie]:[THG-Emissionsfaktor (t CO2e/ MWh)]],4,FALSE)*N2O_IPCC_AR6,\"k.A.\")","v":"k.A."},{"$f":"IFERROR(SUM(D32:F32),\"k.A.\")","v":0}]
[null,"Dampf","k.A.",{"$f":"IFERROR(Scope2_Mix_Ort[[#This Row],[Menge  (MWh / Jahr)]]*VLOOKUP($B33,EF_Scope2_Ortsbezogen[[Energie]:[THG-Emissionsfaktor (t CO2e/ MWh)]],2,FALSE),\"k.A.\")","v":"k.A."},{"$f":"IFERROR(Scope2_Mix_Ort[[#This Row],[Menge  (MWh / Jahr)]]*VLOOKUP($B33,EF_Scope2_Ortsbezogen[[Energie]:[THG-Emissionsfaktor (t CO2e/ MWh)]],3,FALSE)*Methan_IPCC_AR6,\"k.A.\")","v":"k.A."},{"$f":"IFERROR(Scope2_Mix_Ort[[#This Row],[Menge  (MWh / Jahr)]]*VLOOKUP($B33,EF_Scope2_Ortsbezogen[[Energie]:[THG-Emissionsfaktor (t CO2e/ MWh)]],4,FALSE)*N2O_IPCC_AR6,\"k.A.\")","v":"k.A."},0]
[null,"Summe",{"$f":"SUBTOTAL(109,Scope2_Mix_Ort[Menge  (MWh / Jahr)])","v":0},{"$f":"SUBTOTAL(109,Scope2_Mix_Ort[ CO2 in t CO2e / Jahr])","v":0},{"$f":"SUBTOTAL(109,Scope2_Mix_Ort[ CH4 in t CO2e / Jahr])","v":0},{"$f":"SUBTOTAL(109,Scope2_Mix_Ort[ N2O in t CO2e / Jahr])","v":0},{"$f":"SUBTOTAL(109,Scope2_Mix_Ort[Ergebnis (t CO2e / Jahr)])","v":0}]
[]
[]
[null,"Ansatz 2: Marktbasierter Ansatz"]
[null,"Es gibt zwei Optionen, wie die indirekten GHG-Emissionen aus der Erzeugung von erworbenem Strom, Dampf, Wärme oder Kälte berechnet werden können. "]
[null,"Option 1: Emissionsfaktoren für jeweils CO2, CH4 und N2O können von Lieferanten ermittelt werden. Achten Sie darauf, dass die Produktion der Energieträger (z.B. Erdgas, Öl) zu Scope 3 gehört. "]
[null,"Option 2: Die Lieferanten können nur die Aufteilung in % nach Energieträgern abliefern."]
[null,"Auswahl der Berechnungsmethode"]
[null,"Option 1:"]
[null,"Schritt 1:  Bitte fragen Sie ihre Lieferanten nach Emissionsfaktoren und tragen sie ein."]
[null,"Scope 2","Emissionsfaktor: \nkg CO2 / kWh","Emissionsfaktor: \nkg CH4  / kWh","Emissionsfaktor: \nkg N2O / kWh"]
[null,"Strommix"]
[null,"Fernwärme-Mix"]
[null,"Dampf"]
[]
[null,"Schritt 2:  Automatische Ermittlung der GHG-Ergebnisse "]
[null,"Scope 2","Menge  (MWh / Jahr)"," CO2 in t CO2e / Jahr"," CH4 in t CO2e / Jahr"," N2O in t CO2e / Jahr","Ergebnis (t CO2e / Jahr)"]
[null,"Strommix",{"$f":"C24","v":0},{"$f":"IFERROR(Scope2_Marktbasiert14[[#This Row],[Menge  (MWh / Jahr)]]*(VLOOKUP(Scope2_Marktbasiert14[[#This Row],[Scope 2]],Scope2_EF_Marktbasiert[[Scope 2]:[Emissionsfaktor: \nkg CO2 / kWh]],2,FALSE)),\"k.A.\")","v":0},{"$f":"IFERROR(Scope2_Marktbasiert14[[#This Row],[Menge  (MWh / Jahr)]]*(VLOOKUP(Scope2_Marktbasiert14[[#This Row],[Scope 2]],Scope2_EF_Marktbasiert[[Scope 2]:[Emissionsfaktor: \nkg CH4  / kWh]],3,FALSE))*Methan_IPCC_AR6,\"k.A.\")","v":0},{"$f":"IFERROR(Scope2_Marktbasiert14[[#This Row],[Menge  (MWh / Jahr)]]*(VLOOKUP(Scope2_Marktbasiert14[[#This Row],[Scope 2]],Scope2_EF_Marktbasiert[],4,FALSE))*N2O_IPCC_AR6,\"k.A.\")","v":0},{"$f":"IFERROR(SUM(Scope2_Marktbasiert14[[#This Row],[ CO2 in t CO2e / Jahr]:[ N2O in t CO2e / Jahr]]),\"k.A.\")","v":0}]
[null,"Fernwärme-Mix",{"$f":"C25","v":0},{"$f":"IFERROR(Scope2_Marktbasiert14[[#This Row],[Menge  (MWh / Jahr)]]*(VLOOKUP(Scope2_Marktbasiert14[[#This Row],[Scope 2]],Scope2_EF_Marktbasiert[[Scope 2]:[Emissionsfaktor: \nkg CO2 / kWh]],2,FALSE)),\"k.A.\")","v":0},{"$f":"IFERROR(Scope2_Marktbasiert14[[#This Row],[Menge  (MWh / Jahr)]]*(VLOOKUP(Scope2_Marktbasiert14[[#This Row],[Scope 2]],Scope2_EF_Marktbasiert[[Scope 2]:[Emissionsfaktor: \nkg CH4  / kWh]],3,FALSE))*Methan_IPCC_AR6,\"k.A.\")","v":0},{"$f":"IFERROR(Scope2_Marktbasiert14[[#This Row],[Menge  (MWh / Jahr)]]*(VLOOKUP(Scope2_Marktbasiert14[[#This Row],[Scope 2]],Scope2_EF_Marktbasiert[],4,FALSE))*N2O_IPCC_AR6,\"k.A.\")","v":0},{"$f":"IFERROR(SUM(Scope2_Marktbasiert14[[#This Row],[ CO2 in t CO2e / Jahr]:[ N2O in t CO2e / Jahr]]),\"k.A.\")","v":0}]
[null,"Dampf",0,{"$f":"IFERROR(Scope2_Marktbasiert14[[#This Row],[Menge  (MWh / Jahr)]]*(VLOOKUP(Scope2_Marktbasiert14[[#This Row],[Scope 2]],Scope2_EF_Marktbasiert[[Scope 2]:[Emissionsfaktor: \nkg CO2 / kWh]],2,FALSE)),\"k.A.\")","v":0},{"$f":"IFERROR(Scope2_Marktbasiert14[[#This Row],[Menge  (MWh / Jahr)]]*(VLOOKUP(Scope2_Marktbasiert14[[#This Row],[Scope 2]],Scope2_EF_Marktbasiert[[Scope 2]:[Emissionsfaktor: \nkg CH4  / kWh]],3,FALSE))*Methan_IPCC_AR6,\"k.A.\")","v":0},{"$f":"IFERROR(Scope2_Marktbasiert14[[#This Row],[Menge  (MWh / Jahr)]]*(VLOOKUP(Scope2_Marktbasiert14[[#This Row],[Scope 2]],Scope2_EF_Marktbasiert[],4,FALSE))*N2O_IPCC_AR6,\"k.A.\")","v":0},{"$f":"IFERROR(SUM(Scope2_Marktbasiert14[[#This Row],[ CO2 in t CO2e / Jahr]:[ N2O in t CO2e / Jahr]]),\"k.A.\")","v":0}]
[null,"Summe",{"$f":"SUBTOTAL(109,Scope2_Marktbasiert14[Menge  (MWh / Jahr)])","v":0},{"$f":"SUBTOTAL(109,Scope2_Marktbasiert14[ CO2 in t CO2e / Jahr])","v":0},{"$f":"SUBTOTAL(109,Scope2_Marktbasiert14[ CH4 in t CO2e / Jahr])","v":0},{"$f":"SUBTOTAL(109,Scope2_Marktbasiert14[ N2O in t CO2e / Jahr])","v":0},{"$f":"SUBTOTAL(109,Scope2_Marktbasiert14[Ergebnis (t CO2e / Jahr)])","v":0}]
[]
[null,"Option 2:"]
[null,"• Strom_Schritt 1:  Die Aufteilung der Energieträger kann von Ihrem Lieferanten erfragt werden.",null,null,"Strom_Schritt 2:  Automatische Ermittlung der GHG-Ergebnisse "]
[null,"Stromlieferanten können mehrere Produkte anbieten. "]
[null,"Wichtig ist, dass Sie nach der Aufteilung des genutzten Stromproduktmix in Ihrem Stromtarif fragen."]
[null,"Brennstoffe für die Stromerzeugung","%",null,"Brennstoffe","Menge  (MWh / Jahr)"," CO2 in t CO2e / Jahr"," CH4 in t CO2e / Jahr"," N2O in t CO2e / Jahr","Ergebnis (t CO2e / Jahr)"]
[null,"Erdgas",null,null,{"$f":"B61","v":"Erdgas"},{"$f":"$C$24*$C61","v":0},{"$f":"Tabelle18[[#This Row],[Menge  (MWh / Jahr)]]*VLOOKUP(Tabelle18[[#This Row],[Brennstoffe]],EF_Scope2_marktbasiert_strom[[Energieträger]:[CO2 Faktor (t CO2/ MWh)]],2,FALSE)","v":0},{"$f":"Tabelle18[[#This Row],[Menge  (MWh / Jahr)]]*VLOOKUP(Tabelle18[[#This Row],[Brennstoffe]],EF_Scope2_marktbasiert_strom[[Energieträger]:[CH4 Faktor (t CH4/ MWh)]],3,FALSE)*Methan_IPCC_AR6","v":0},{"$f":"Tabelle18[[#This Row],[Menge  (MWh / Jahr)]]*VLOOKUP(Tabelle18[[#This Row],[Brennstoffe]],EF_Scope2_marktbasiert_strom[[Energieträger]:[N2O Faktor (t N2O/ MWh)]],4,FALSE)*N2O_IPCC_AR6","v":0},{"$f":"SUM(Tabelle18[[#This Row],[ CO2 in t CO2e / Jahr]:[ N2O in t CO2e / Jahr]])","v":0}]
[null,"Öl",null,null,"Öl",{"$f":"$C$24*$C62","v":0},{"$f":"Tabelle18[[#This Row],[Menge  (MWh / Jahr)]]*VLOOKUP(Tabelle18[[#This Row],[Brennstoffe]],EF_Scope2_marktbasiert_strom[[Energieträger]:[CO2 Faktor (t CO2/ MWh)]],2,FALSE)","v":0},{"$f":"Tabelle18[[#This Row],[Menge  (MWh / Jahr)]]*VLOOKUP(Tabelle18[[#This Row],[Brennstoffe]],EF_Scope2_marktbasiert_strom[[Energieträger]:[CH4 Faktor (t CH4/ MWh)]],3,FALSE)*Methan_IPCC_AR6","v":0},{"$f":"Tabelle18[[#This Row],[Menge  (MWh / Jahr)]]*VLOOKUP(Tabelle18[[#This Row],[Brennstoffe]],EF_Scope2_marktbasiert_strom[[Energieträger]:[N2O Faktor (t N2O/ MWh)]],4,FALSE)*N2O_IPCC_AR6","v":0},{"$f":"SUM(Tabelle18[[#This Row],[ CO2 in t CO2e / Jahr]:[ N2O in t CO2e / Jahr]])","v":0}]
[null,"Braunkohle",null,null,"Braunkohle",{"$f":"$C$24*$C63","v":0},{"$f":"Tabelle18[[#This Row],[Menge  (MWh / Jahr)]]*VLOOKUP(Tabelle18[[#This Row],[Brennstoffe]],EF_Scope2_marktbasiert_strom[[Energieträger]:[CO2 Faktor (t CO2/ MWh)]],2,FALSE)","v":0},{"$f":"Tabelle18[[#This Row],[Menge  (MWh / Jahr)]]*VLOOKUP(Tabelle18[[#This Row],[Brennstoffe]],EF_Scope2_marktbasiert_strom[[Energieträger]:[CH4 Faktor (t CH4/ MWh)]],3,FALSE)*Methan_IPCC_AR6","v":0},{"$f":"Tabelle18[[#This Row],[Menge  (MWh / Jahr)]]*VLOOKUP(Tabelle18[[#This Row],[Brennstoffe]],EF_Scope2_marktbasiert_strom[[Energieträger]:[N2O Faktor (t N2O/ MWh)]],4,FALSE)*N2O_IPCC_AR6","v":0},{"$f":"SUM(Tabelle18[[#This Row],[ CO2 in t CO2e / Jahr]:[ N2O in t CO2e / Jahr]])","v":0}]
[null,"Steinkohle",null,null,"Steinkohle",0,{"$f":"Tabelle18[[#This Row],[Menge  (MWh / Jahr)]]*VLOOKUP(Tabelle18[[#This Row],[Brennstoffe]],EF_Scope2_marktbasiert_strom[[Energieträger]:[CO2 Faktor (t CO2/ MWh)]],2,FALSE)","v":0},{"$f":"Tabelle18[[#This Row],[Menge  (MWh / Jahr)]]*VLOOKUP(Tabelle18[[#This Row],[Brennstoffe]],EF_Scope2_marktbasiert_strom[[Energieträger]:[CH4 Faktor (t CH4/ MWh)]],3,FALSE)*Methan_IPCC_AR6","v":0},{"$f":"Tabelle18[[#This Row],[Menge  (MWh / Jahr)]]*VLOOKUP(Tabelle18[[#This Row],[Brennstoffe]],EF_Scope2_marktbasiert_strom[[Energieträger]:[N2O Faktor (t N2O/ MWh)]],4,FALSE)*N2O_IPCC_AR6","v":0},{"$f":"SUM(Tabelle18[[#This Row],[ CO2 in t CO2e / Jahr]:[ N2O in t CO2e / Jahr]])","v":0}]
[null,"Holz",null,null,"Holz",0,{"$f":"Tabelle18[[#This Row],[Menge  (MWh / Jahr)]]*VLOOKUP(Tabelle18[[#This Row],[Brennstoffe]],EF_Scope2_marktbasiert_strom[[Energieträger]:[CO2 Faktor (t CO2/ MWh)]],2,FALSE)","v":0},{"$f":"Tabelle18[[#This Row],[Menge  (MWh / Jahr)]]*VLOOKUP(Tabelle18[[#This Row],[Brennstoffe]],EF_Scope2_marktbasiert_strom[[Energieträger]:[CH4 Faktor (t CH4/ MWh)]],3,FALSE)*Methan_IPCC_AR6","v":0},{"$f":"Tabelle18[[#This Row],[Menge  (MWh / Jahr)]]*VLOOKUP(Tabelle18[[#This Row],[Brennstoffe]],EF_Scope2_marktbasiert_strom[[Energieträger]:[N2O Faktor (t N2O/ MWh)]],4,FALSE)*N2O_IPCC_AR6","v":0},{"$f":"SUM(Tabelle18[[#This Row],[ CO2 in t CO2e / Jahr]:[ N2O in t CO2e / Jahr]])","v":0}]
[null,"Biogas/Biomethan (Energiepflanzen, Gülle, Abfall)",null,null,"Biogas/Biomethan (Energiepflanzen, Gülle, Abfall)",0,{"$f":"Tabelle18[[#This Row],[Menge  (MWh / Jahr)]]*VLOOKUP(Tabelle18[[#This Row],[Brennstoffe]],EF_Scope2_marktbasiert_strom[[Energieträger]:[CO2 Faktor (t CO2/ MWh)]],2,FALSE)","v":0},{"$f":"Tabelle18[[#This Row],[Menge  (MWh / Jahr)]]*VLOOKUP(Tabelle18[[#This Row],[Brennstoffe]],EF_Scope2_marktbasiert_strom[[Energieträger]:[CH4 Faktor (t CH4/ MWh)]],3,FALSE)*Methan_IPCC_AR6","v":0},{"$f":"Tabelle18[[#This Row],[Menge  (MWh / Jahr)]]*VLOOKUP(Tabelle18[[#This Row],[Brennstoffe]],EF_Scope2_marktbasiert_strom[[Energieträger]:[N2O Faktor (t N2O/ MWh)]],4,FALSE)*N2O_IPCC_AR6","v":0},{"$f":"SUM(Tabelle18[[#This Row],[ CO2 in t CO2e / Jahr]:[ N2O in t CO2e / Jahr]])","v":0}]
[null,"Flüssige Biomasse (z.B. Pflanzenöl)",null,null,"Flüssige Biomasse (z.B. Pflanzenöl)",0,{"$f":"Tabelle18[[#This Row],[Menge  (MWh / Jahr)]]*VLOOKUP(Tabelle18[[#This Row],[Brennstoffe]],EF_Scope2_marktbasiert_strom[[Energieträger]:[CO2 Faktor (t CO2/ MWh)]],2,FALSE)","v":0},{"$f":"Tabelle18[[#This Row],[Menge  (MWh / Jahr)]]*VLOOKUP(Tabelle18[[#This Row],[Brennstoffe]],EF_Scope2_marktbasiert_strom[[Energieträger]:[CH4 Faktor (t CH4/ MWh)]],3,FALSE)*Methan_IPCC_AR6","v":0},{"$f":"Tabelle18[[#This Row],[Menge  (MWh / Jahr)]]*VLOOKUP(Tabelle18[[#This Row],[Brennstoffe]],EF_Scope2_marktbasiert_strom[[Energieträger]:[N2O Faktor (t N2O/ MWh)]],4,FALSE)*N2O_IPCC_AR6","v":0},{"$f":"SUM(Tabelle18[[#This Row],[ CO2 in t CO2e / Jahr]:[ N2O in t CO2e / Jahr]])","v":0}]
[null,"Kernenergie",null,null,"Kernenergie",0,{"$f":"Tabelle18[[#This Row],[Menge  (MWh / Jahr)]]*VLOOKUP(Tabelle18[[#This Row],[Brennstoffe]],EF_Scope2_marktbasiert_strom[[Energieträger]:[CO2 Faktor (t CO2/ MWh)]],2,FALSE)","v":0},{"$f":"Tabelle18[[#This Row],[Menge  (MWh / Jahr)]]*VLOOKUP(Tabelle18[[#This Row],[Brennstoffe]],EF_Scope2_marktbasiert_strom[[Energieträger]:[CH4 Faktor (t CH4/ MWh)]],3,FALSE)*Methan_IPCC_AR6","v":0},{"$f":"Tabelle18[[#This Row],[Menge  (MWh / Jahr)]]*VLOOKUP(Tabelle18[[#This Row],[Brennstoffe]],EF_Scope2_marktbasiert_strom[[Energieträger]:[N2O Faktor (t N2O/ MWh)]],4,FALSE)*N2O_IPCC_AR6","v":0},{"$f":"SUM(Tabelle18[[#This Row],[ CO2 in t CO2e / Jahr]:[ N2O in t CO2e / Jahr]])","v":0}]
[null,"Erneuerbare Energien (Sonstige)",null,null,"Erneuerbare Energien (Sonstige)",{"$f":"$C$24*$C69","v":0},{"$f":"Tabelle18[[#This Row],[Menge  (MWh / Jahr)]]*VLOOKUP(Tabelle18[[#This Row],[Brennstoffe]],EF_Scope2_marktbasiert_strom[[Energieträger]:[CO2 Faktor (t CO2/ MWh)]],2,FALSE)","v":0},{"$f":"Tabelle18[[#This Row],[Menge  (MWh / Jahr)]]*VLOOKUP(Tabelle18[[#This Row],[Brennstoffe]],EF_Scope2_marktbasiert_strom[[Energieträger]:[CH4 Faktor (t CH4/ MWh)]],3,FALSE)*Methan_IPCC_AR6","v":0},{"$f":"Tabelle18[[#This Row],[Menge  (MWh / Jahr)]]*VLOOKUP(Tabelle18[[#This Row],[Brennstoffe]],EF_Scope2_marktbasiert_strom[[Energieträger]:[N2O Faktor (t N2O/ MWh)]],4,FALSE)*N2O_IPCC_AR6","v":0},{"$f":"SUM(Tabelle18[[#This Row],[ CO2 in t CO2e / Jahr]:[ N2O in t CO2e / Jahr]])","v":0}]
[null,"Summe",{"$f":"SUM(C61:C69)","v":0},null,"Summe",{"$f":"SUBTOTAL(109,Tabelle18[Menge  (MWh / Jahr)])","v":0},{"$f":"SUBTOTAL(109,Tabelle18[ CO2 in t CO2e / Jahr])","v":0},{"$f":"SUBTOTAL(109,Tabelle18[ CH4 in t CO2e / Jahr])","v":0},{"$f":"SUBTOTAL(109,Tabelle18[ N2O in t CO2e / Jahr])","v":0},{"$f":"SUBTOTAL(109,Tabelle18[Ergebnis (t CO2e / Jahr)])","v":0}]
[]
[null,"• Wärme_Schritt 1:  Die Aufteilung der Energieträger kann durch Anfrage beim Lieferanten ermittelt werden. ",null,null,"Wärme_Schritt 2:  Automatische Ermittlung der GHG-Ergebnisse "]
[null,"Brennstoffe für die Wärmebereitstellung","%",null,"Brennstoffe","Menge  (MWh / Jahr)"," CO2 in t CO2e / Jahr"," CH4 in t CO2e / Jahr"," N2O in t CO2e / Jahr","Ergebnis (t CO2e / Jahr)"]
[null,"Erdgas",null,null,{"$f":"B74","v":"Erdgas"},{"$f":"$C$25*$C74","v":0},{"$f":"Tabelle1843[[#This Row],[Menge  (MWh / Jahr)]]*VLOOKUP(Tabelle1843[[#This Row],[Brennstoffe]],EF_Scope2_marktbasiert_waerme[[Energieträger]:[CO2 Faktor (t CO2/ MWh)]],2,FALSE)","v":0},{"$f":"Tabelle1843[[#This Row],[Menge  (MWh / Jahr)]]*VLOOKUP(Tabelle1843[[#This Row],[Brennstoffe]],EF_Scope2_marktbasiert_waerme[[Energieträger]:[CH4 Faktor (t CH4/ MWh)]],3,FALSE)*Methan_IPCC_AR6","v":0},{"$f":"Tabelle1843[[#This Row],[Menge  (MWh / Jahr)]]*VLOOKUP(Tabelle1843[[#This Row],[Brennstoffe]],EF_Scope2_marktbasiert_waerme[[Energieträger]:[N2O Faktor (t N2O/ MWh)]],4,FALSE)*N2O_IPCC_AR6","v":0},{"$f":"SUM(Tabelle1843[[#This Row],[ CO2 in t CO2e / Jahr]:[ N2O in t CO2e / Jahr]])","v":0}]
[null,"Heizöl / Diesel",null,null,"Heizöl / Diesel",{"$f":"$C$25*$C75","v":0},{"$f":"Tabelle1843[[#This Row],[Menge  (MWh / Jahr)]]*VLOOKUP(Tabelle1843[[#This Row],[Brennstoffe]],EF_Scope2_marktbasiert_waerme[[Energieträger]:[CO2 Faktor (t CO2/ MWh)]],2,FALSE)","v":0},{"$f":"Tabelle1843[[#This Row],[Menge  (MWh / Jahr)]]*VLOOKUP(Tabelle1843[[#This Row],[Brennstoffe]],EF_Scope2_marktbasiert_waerme[[Energieträger]:[CH4 Faktor (t CH4/ MWh)]],3,FALSE)*Methan_IPCC_AR6","v":0},{"$f":"Tabelle1843[[#This Row],[Menge  (MWh / Jahr)]]*VLOOKUP(Tabelle1843[[#This Row],[Brennstoffe]],EF_Scope2_marktbasiert_waerme[[Energieträger]:[N2O Faktor (t N2O/ MWh)]],4,FALSE)*N2O_IPCC_AR6","v":0},{"$f":"SUM(Tabelle1843[[#This Row],[ CO2 in t CO2e / Jahr]:[ N2O in t CO2e / Jahr]])","v":0}]
[null,"Braunkohlenbriketts",null,null,"Braunkohlenbriketts",0,{"$f":"Tabelle1843[[#This Row],[Menge  (MWh / Jahr)]]*VLOOKUP(Tabelle1843[[#This Row],[Brennstoffe]],EF_Scope2_marktbasiert_waerme[[Energieträger]:[CO2 Faktor (t CO2/ MWh)]],2,FALSE)","v":0},{"$f":"Tabelle1843[[#This Row],[Menge  (MWh / Jahr)]]*VLOOKUP(Tabelle1843[[#This Row],[Brennstoffe]],EF_Scope2_marktbasiert_waerme[[Energieträger]:[CH4 Faktor (t CH4/ MWh)]],3,FALSE)*Methan_IPCC_AR6","v":0},{"$f":"Tabelle1843[[#This Row],[Menge  (MWh / Jahr)]]*VLOOKUP(Tabelle1843[[#This Row],[Brennstoffe]],EF_Scope2_marktbasiert_waerme[[Energieträger]:[N2O Faktor (t N2O/ MWh)]],4,FALSE)*N2O_IPCC_AR6","v":0},{"$f":"SUM(Tabelle1843[[#This Row],[ CO2 in t CO2e / Jahr]:[ N2O in t CO2e / Jahr]])","v":0}]
[null,"Steinkohle",null,null,"Steinkohle",0,{"$f":"Tabelle1843[[#This Row],[Menge  (MWh / Jahr)]]*VLOOKUP(Tabelle1843[[#This Row],[Brennstoffe]],EF_Scope2_marktbasiert_waerme[[Energieträger]:[CO2 Faktor (t CO2/ MWh)]],2,FALSE)","v":0},{"$f":"Tabelle1843[[#This Row],[Menge  (MWh / Jahr)]]*VLOOKUP(Tabelle1843[[#This Row],[Brennstoffe]],EF_Scope2_marktbasiert_waerme[[Energieträger]:[CH4 Faktor (t CH4/ MWh)]],3,FALSE)*Methan_IPCC_AR6","v":0},{"$f":"Tabelle1843[[#This Row],[Menge  (MWh / Jahr)]]*VLOOKUP(Tabelle1843[[#This Row],[Brennstoffe]],EF_Scope2_marktbasiert_waerme[[Energieträger]:[N2O Faktor (t N2O/ MWh)]],4,FALSE)*N2O_IPCC_AR6","v":0},{"$f":"SUM(Tabelle1843[[#This Row],[ CO2 in t CO2e / Jahr]:[ N2O in t CO2e / Jahr]])","v":0}]
[null,"Fernwärme-Mix",null,null,"Fernwärme-Mix",0,{"$f":"Tabelle1843[[#This Row],[Menge  (MWh / Jahr)]]*VLOOKUP(Tabelle1843[[#This Row],[Brennstoffe]],EF_Scope2_marktbasiert_waerme[[Energieträger]:[CO2 Faktor (t CO2/ MWh)]],2,FALSE)","v":0},{"$f":"Tabelle1843[[#This Row],[Menge  (MWh / Jahr)]]*VLOOKUP(Tabelle1843[[#This Row],[Brennstoffe]],EF_Scope2_marktbasiert_waerme[[Energieträger]:[CH4 Faktor (t CH4/ MWh)]],3,FALSE)*Methan_IPCC_AR6","v":0},{"$f":"Tabelle1843[[#This Row],[Menge  (MWh / Jahr)]]*VLOOKUP(Tabelle1843[[#This Row],[Brennstoffe]],EF_Scope2_marktbasiert_waerme[[Energieträger]:[N2O Faktor (t N2O/ MWh)]],4,FALSE)*N2O_IPCC_AR6","v":0},{"$f":"SUM(Tabelle1843[[#This Row],[ CO2 in t CO2e / Jahr]:[ N2O in t CO2e / Jahr]])","v":0}]
[null,"Strommix",null,null,"Strommix",0,{"$f":"Tabelle1843[[#This Row],[Menge  (MWh / Jahr)]]*VLOOKUP(Tabelle1843[[#This Row],[Brennstoffe]],EF_Scope2_marktbasiert_waerme[[Energieträger]:[CO2 Faktor (t CO2/ MWh)]],2,FALSE)","v":0},{"$f":"Tabelle1843[[#This Row],[Menge  (MWh / Jahr)]]*VLOOKUP(Tabelle1843[[#This Row],[Brennstoffe]],EF_Scope2_marktbasiert_waerme[[Energieträger]:[CH4 Faktor (t CH4/ MWh)]],3,FALSE)*Methan_IPCC_AR6","v":0},{"$f":"Tabelle1843[[#This Row],[Menge  (MWh / Jahr)]]*VLOOKUP(Tabelle1843[[#This Row],[Brennstoffe]],EF_Scope2_marktbasiert_waerme[[Energieträger]:[N2O Faktor (t N2O/ MWh)]],4,FALSE)*N2O_IPCC_AR6","v":0},{"$f":"SUM(Tabelle1843[[#This Row],[ CO2 in t CO2e / Jahr]:[ N2O in t CO2e / Jahr]])","v":0}]
[null,"Holz",null,null,"Holz",0,{"$f":"Tabelle1843[[#This Row],[Menge  (MWh / Jahr)]]*VLOOKUP(Tabelle1843[[#This Row],[Brennstoffe]],EF_Scope2_marktbasiert_waerme[[Energieträger]:[CO2 Faktor (t CO2/ MWh)]],2,FALSE)","v":0},{"$f":"Tabelle1843[[#This Row],[Menge  (MWh / Jahr)]]*VLOOKUP(Tabelle1843[[#This Row],[Brennstoffe]],EF_Scope2_marktbasiert_waerme[[Energieträger]:[CH4 Faktor (t CH4/ MWh)]],3,FALSE)*Methan_IPCC_AR6","v":0},{"$f":"Tabelle1843[[#This Row],[Menge  (MWh / Jahr)]]*VLOOKUP(Tabelle1843[[#This Row],[Brennstoffe]],EF_Scope2_marktbasiert_waerme[[Energieträger]:[N2O Faktor (t N2O/ MWh)]],4,FALSE)*N2O_IPCC_AR6","v":0},{"$f":"SUM(Tabelle1843[[#This Row],[ CO2 in t CO2e / Jahr]:[ N2O in t CO2e / Jahr]])","v":0}]
[null,"Biogas/Biomethan (Energiepflanzen, Gülle, Abfall)",null,null,"Biogas/Biomethan (Energiepflanzen, Gülle, Abfall)",0,{"$f":"Tabelle1843[[#This Row],[Menge  (MWh / Jahr)]]*VLOOKUP(Tabelle1843[[#This Row],[Brennstoffe]],EF_Scope2_marktbasiert_waerme[[Energieträger]:[CO2 Faktor (t CO2/ MWh)]],2,FALSE)","v":0},{"$f":"Tabelle1843[[#This Row],[Menge  (MWh / Jahr)]]*VLOOKUP(Tabelle1843[[#This Row],[Brennstoffe]],EF_Scope2_marktbasiert_waerme[[Energieträger]:[CH4 Faktor (t CH4/ MWh)]],3,FALSE)*Methan_IPCC_AR6","v":0},{"$f":"Tabelle1843[[#This Row],[Menge  (MWh / Jahr)]]*VLOOKUP(Tabelle1843[[#This Row],[Brennstoffe]],EF_Scope2_marktbasiert_waerme[[Energieträger]:[N2O Faktor (t N2O/ MWh)]],4,FALSE)*N2O_IPCC_AR6","v":0},{"$f":"SUM(Tabelle1843[[#This Row],[ CO2 in t CO2e / Jahr]:[ N2O in t CO2e / Jahr]])","v":0}]
[null,"Flüssige Biomasse (z.B. Pflanzenöl)",null,null,"Flüssige Biomasse (z.B. Pflanzenöl)",0,{"$f":"Tabelle1843[[#This Row],[Menge  (MWh / Jahr)]]*VLOOKUP(Tabelle1843[[#This Row],[Brennstoffe]],EF_Scope2_marktbasiert_waerme[[Energieträger]:[CO2 Faktor (t CO2/ MWh)]],2,FALSE)","v":0},{"$f":"Tabelle1843[[#This Row],[Menge  (MWh / Jahr)]]*VLOOKUP(Tabelle1843[[#This Row],[Brennstoffe]],EF_Scope2_marktbasiert_waerme[[Energieträger]:[CH4 Faktor (t CH4/ MWh)]],3,FALSE)*Methan_IPCC_AR6","v":0},{"$f":"Tabelle1843[[#This Row],[Menge  (MWh / Jahr)]]*VLOOKUP(Tabelle1843[[#This Row],[Brennstoffe]],EF_Scope2_marktbasiert_waerme[[Energieträger]:[N2O Faktor (t N2O/ MWh)]],4,FALSE)*N2O_IPCC_AR6","v":0},{"$f":"SUM(Tabelle1843[[#This Row],[ CO2 in t CO2e / Jahr]:[ N2O in t CO2e / Jahr]])","v":0}]
[null,"Summe",{"$f":"SUM(C74:C82)","v":0},null,"Summe",{"$f":"SUBTOTAL(109,Tabelle1843[Menge  (MWh / Jahr)])","v":0},{"$f":"SUBTOTAL(109,Tabelle1843[ CO2 in t CO2e / Jahr])","v":0},{"$f":"SUBTOTAL(109,Tabelle1843[ CH4 in t CO2e / Jahr])","v":0},{"$f":"SUBTOTAL(109,Tabelle1843[ N2O in t CO2e / Jahr])","v":0},{"$f":"SUBTOTAL(109,Tabelle1843[Ergebnis (t CO2e / Jahr)])","v":0}]
[]
[null,null,null,null,"Zusammenfassung der Ergebnisse unten dem marktbasierten Ansatz: Option 2","Ergebnis (t CO2e / Jahr)","Anmerkungen"]
[null,null,null,null,"Strom",{"$f":"Tabelle18[[#Totals],[Ergebnis (t CO2e / Jahr)]]","v":0},"Marktbasierter Ansatz"]
[null,null,null,null,"Wärme",{"$f":"IF(Tabelle1843[[#Totals],[Ergebnis (t CO2e / Jahr)]]<>0,Tabelle1843[[#Totals],[Ergebnis (t CO2e / Jahr)]],G32)","v":0},"Falls Option 2 nicht zutrifft, wird das Ergebnis des ortsbezogenen Ansatzes übernommen."]
[null,null,null,null,"Dampf",{"$f":"G33","v":0},"Einfachheitshalber wurde nur das Ergebnis des ortsbezogenen Ansatzes übernommen."]
[null,null,null,null,"Summe",{"$f":"SUM(F86:F88)","v":0}]

{"sheet":"Scope_3","index":5,"n_rows":614,"n_cols":22,"rows_kept":614,"cut":false,"hidden":false,"merged":[[609,3,609,4],[495,3,495,7],[610,3,610,4],[611,3,611,4],[612,3,612,4]]}
[]
[]
[]
[]
[]
[]
[]
[]
[]
[]
[]
[null,"Scope 3 - Indirekte Emissionen",null,null,"Summe :",{"$f":"IFERROR(SUM(IF(Auswahl_Methode_Medikamente=\"Option 1: Hybrid\",Result_Scope3_Medikamente_Option1,(IF(Auswahl_Methode_Medikamente=\"Option 2: Top-Down (CDP)\",Result_Scope3_Medikamente_Option2,Result_Scope3_Medikamente_Option3))),Result_Scope3_Gase, Result_Scope3_MedizinischVM_Option3,Result_Scope3_KM, IF(Auswahl_Methode_Lebensmittel=\"Option 1: Bottom-Up\",Result_Scope3_Lebensmittel_Option1,Result_Scope3_Lebensmittel_Option2),IF(Auswahl_Methode_Textile=\"Option 1: Bottom-Up\",Result_Scope3_Textile_option1,Result_Scope3_Textile_option2),IF(Auswahl_Methode_HygieneA=\"Option 1: Bottom-Up\",Result_Scope3_HygieneA_Option1,Result_Scope3_HygieneA_Option2),IF(Auswahl_Methode_Papier=\"Option 1: Bottom-Up\",Result_Scope3_Papier_Option1,Result_Scope3_Papier_Option2),Result_Scope3_Wasser,Result_Scope3_Internet, Result_Scope3_Serverraum, Result_Scope3_IT_Geraete, Result_Scope3_Energie, Result_Scope3_Abfall,Result_Scope3_Abwasser,Result_Scope3_Flugreisen,Result_Scope3_Landreisen,Result_Scope3_Uebernachtung, Result_Scope3_Mitarbeitendenmobilität, Result_Scope3_Patient_Regelkontakte_innerhalb_DE+Result_Scope3_Patient_Regelkontakte_Non_DE+Result_Scope3_P_Mobilität_Notfall_Helikoper+Result_Scope3_P_Mobilität_Notfall_K_RTW_PKW+Result_Scope3_Patient_Verlegung),\"k.A.\")","v":0},"[t CO2e]"]
[]
[null,"Kategorie 1 - Eingekaufte Güter und Dienstleistungen"]
[null,null,null,"Scope 3.1.1 - Eingekaufte Medikamente"]
[null,null,null,"Anmerkungen:"]
[null,null,null,"Grundsätzlich lässt sich die Produktion der pharmazeutischen Produkte in zwei modularen Phasen unterteilen:"]
[null,null,null,"• Die Herstellung des Wirkstoffs (Eng: Active pharmaceutical ingredient (API))"]
[null,null,null,"• Fertigungsprozesse (umfasst galenische Formulierung und Verpackung zur Verabreichung an die Patient*innen)"]
[]
[null,null,null,"Die Bestimmung des GWP-Werts eines Medikaments in der Herstellungsphase erfordert eine komplexe Analyse. "]
[null,null,null,"Die Herstellung der Wirkstoffe ist extrem vielfältig. Je nach Ausgangsstoff (tierische, pflanzliche, synthetische Basis) und Verfahren sowie Technologie können in der Herstellungsphase sehr unterschiedliche CO2e verursacht werden. "]
[null,null,null,"Darüber hinaus können sich die Emissionen je nach Standort der Produktion, den verwendeten Energiequellen und den spezifischen Herstellungsprozessen unterscheiden."]
[null,null,null,"Ein Beispiel, das aus einer eigenen Modellierung auf der Datengrundlage von [3] und der Ecoinvent Datenbank resultiert, zeigt, dass die Produktion von 1 kg Sevofluran ja nach Verfahren (A (mit Tetrafluoroethylene) "]
[null,null,null,"und Verfahren B (Hydrogen fluoride)) 472 kg CO2e bzw. 68 kg CO2e verursachen  kann. "]
[null,null,null,"Drew et.al [47] bewerten wirkstoffrelevante LCA/PCF Studien und berichten, dass CO2e-Werte zwischen 2,3 kg CO2e für Naproxen und 280.000 kg CO2e für Nivolumab liegen können."]
[]
[null,null,null,"Zusätzlich haben die Medikamente hinsichtlich der Fertigungsprozesse weitere verschiedene Formen:"]
[null,null,null,"• feste Dosierungsformen, z.B. Tabletten oder Trockenpulver"]
[null,null,null,"• flüssige Dosierungsformen und Suspensionen"]
[null,null,null,"• Cremes und Salben zum Auftragen von Wirkstoffen auf die Haut"]
[null,null,null,"• Gase zur Inhalation"]
[null,null,null,"• Verpackungen wie Flaschen, Ampullen, Beutel etc."]
[]
[null,null,null,"Die unten dargestellten Emissionsfaktoren basieren auf einer umfangreichen Recherche der LCA/PCF-Studien im Rahmen der Budgetmöglichkeit des Projekts. "]
[null,null,null,"Verschiedene LCA/PCF-Studien haben unterschiedliche Untersuchungsrahmenbedingungen, z.B. betrachten manche nur API, andere das ganze Produkt (API + galenische Formulierung sowie Verpackung)."]
[null,null,null,"Für die Wirkstoffherstellung ist die Menge der Wirkstoffe (API) ein guter Skalierungsparameter für diesen Wirkstoff. "]
[null,null,null,"Bei Fertigung der Medikamente (galenische Formulierung und Verpackung) benötigt man andere Parameter. Denn je nach Endprodukt beeinflusst der Fertigungsprozess, die galenische Formulierung und Verpackungsmenge.  "]
[null,null,null,"Wir gehen davon aus, dass für die GWP-Werte die Herstellung der API hinsichtlich der gesamten Produktionsphase eine größere Rolle spielt als galenische Formulierung und Verpackung.  "]
[null,null,null,"Es ist im Rahmen des Projektes nicht möglich, die Emissionsfaktoren mit allen Details und für alle Medikamente mit Bottom-Up-Ansatz anzubieten. "]
[null,null,null,"Die jetzigen Kenntnisse erlauben ebenfalls nicht, auf Basis von vorhanden bekannten Emissionsfaktoren nach einem bestimmten Parameter auf andere Medikamenten hochzuskalieren. Es fehlen valide Belege. "]
[]
[null,null,null,"Die unten dargestellten Emissionsfaktoren basieren auf 2 Bezugsgröße: physikalische Größe der Wirkstoffe und Einkaufsausgabe in Euro."]
[null,null,null,"• Option 1: Hybrid-Ansatz. Eine Mischung von Bottom-Up-Ansatz und Top-Down-Ansatz. "]
[null,null,null,"Bottom-Up-Ansatz wird verwendet, wenn die Emissionsfaktoren der bestimmten Wirkstoffe nach physikalischer Größe aus der Literatur vorliegen. "]
[null,null,null,"Die anderen Wirkstoffe, deren Emissionsfaktoren unbekannt sind, werden allgemein durch den Top-Down-Ansatz bilanziert."]
[null,null,null,"Der Emissionsfaktor des Top-Down-Ansatzes in Option 1 basiert auf der KliOL-Studie [28] mit einem konservativen Ansatz."]
[null,null,null,"• Option 2: Top-down Berechnung mittels generischer EF auf Basis von Euro-basierten Näherungswerten.  Ein durchschnittlicher Wert wurde in Rahmen des Cafegos-Projekts auf Basis von CDP-Ergebnissen der 11 bekannten Pharmaunternehmen errechnet [3]. "]
[null,null,null,"Diese Option wird als \"Option 2: Top-Down (CDP)\" bezeichnet."]
[null,null,null,"• Option 3: Top-down Berechnung mittels generischer EF auf Basis von Euro-basierten Näherungswerten. Dieser Wert basiert auf der KliOL-Studie [28]."]
[null,null,null,"Diese Option wird als \"Option 3: Top-Down (KliOL)\" bezeichnet."]
[null,null,null,"Auswahl der Berechnungsmethode","Option 1: Hybrid"]
[]
[null,null,"Option 1 Teil I: Bottom-Up"]
[null,null,null,"Wirkstoffe","Menge","Einheit der Menge pro Jahr","Emissionsfaktor ","Einheit der EF \n(kg CO2e/kg API oder /1000 I.E)","Ergebnis (t CO2e / Jahr)"]
[null,null,null,"Acetylsalicylsäure",null,"kg",{"$f":"VLOOKUP(D56,EF!$C$201:$D$235,2,FALSE)","v":4.9000000000000004},{"$f":"VLOOKUP(D56,EF!$C$201:$E$235,3,FALSE)","v":"per kg API"},{"$f":"IF(ISNUMBER(Scope_3!$E56),Scope_3!$E56*Scope_3!$G56/1000,\"k.A\")","v":"k.A"}]
[null,null,null,"Albumin (Human)",null,"kg",{"$f":"VLOOKUP(D57,EF!$C$201:$D$235,2,FALSE)","v":604.66575},{"$f":"VLOOKUP(D57,EF!$C$201:$E$235,3,FALSE)","v":"per kg API"},{"$f":"IF(ISNUMBER(Scope_3!$E57),Scope_3!$E57*Scope_3!$G57/1000,\"k.A\")","v":"k.A"}]
[null,null,null,"Bupivacain",null,"kg",{"$f":"VLOOKUP(D58,EF!$C$201:$D$235,2,FALSE)","v":23.340591},{"$f":"VLOOKUP(D58,EF!$C$201:$E$235,3,FALSE)","v":"per kg API"},{"$f":"IF(ISNUMBER(Scope_3!$E58),Scope_3!$E58*Scope_3!$G58/1000,\"k.A\")","v":"k.A"}]
[null,null,null,"Dexmedetomidin",null,"kg",{"$f":"VLOOKUP(D59,EF!$C$201:$D$235,2,FALSE)","v":3006},{"$f":"VLOOKUP(D59,EF!$C$201:$E$235,3,FALSE)","v":"per kg API"},{"$f":"IF(ISNUMBER(Scope_3!$E59),Scope_3!$E59*Scope_3!$G59/1000,\"k.A\")","v":"k.A"}]
[null,null,null,"Ephedrin",null,"kg",{"$f":"VLOOKUP(D60,EF!$C$201:$D$235,2,FALSE)","v":82},{"$f":"VLOOKUP(D60,EF!$C$201:$E$235,3,FALSE)","v":"per kg API"},{"$f":"IF(ISNUMBER(Scope_3!$E60),Scope_3!$E60*Scope_3!$G60/1000,\"k.A\")","v":"k.A"}]
[null,null,null,"Epinephrin / Epinephrin (Razemisch)",null,"kg",{"$f":"VLOOKUP(D61,EF!$C$201:$D$235,2,FALSE)","v":33.827187000000002},{"$f":"VLOOKUP(D61,EF!$C$201:$E$235,3,FALSE)","v":"per kg API"},{"$f":"IF(ISNUMBER(Scope_3!$E61),Scope_3!$E61*Scope_3!$G61/1000,\"k.A\")","v":"k.A"}]
[null,null,null,"Fentanyl / Fentanyl (Transdermal)",null,"kg",{"$f":"VLOOKUP(D62,EF!$C$201:$D$235,2,FALSE)","v":95.8},{"$f":"VLOOKUP(D62,EF!$C$201:$E$235,3,FALSE)","v":"per kg API"},{"$f":"IF(ISNUMBER(Scope_3!$E62),Scope_3!$E62*Scope_3!$G62/1000,\"k.A\")","v":"k.A"}]
[null,null,null,"Glycopyrroniumbromid",null,"kg",{"$f":"VLOOKUP(D63,EF!$C$201:$D$235,2,FALSE)","v":76},{"$f":"VLOOKUP(D63,EF!$C$201:$E$235,3,FALSE)","v":"per kg API"},{"$f":"IF(ISNUMBER(Scope_3!$E63),Scope_3!$E63*Scope_3!$G63/1000,\"k.A\")","v":"k.A"}]
[null,null,null,"Hydromorphon-Hcl",null,"kg",{"$f":"VLOOKUP(D64,EF!$C$201:$D$235,2,FALSE)","v":799},{"$f":"VLOOKUP(D64,EF!$C$201:$E$235,3,FALSE)","v":"per kg API"},{"$f":"IF(ISNUMBER(Scope_3!$E64),Scope_3!$E64*Scope_3!$G64/1000,\"k.A\")","v":"k.A"}]
[null,null,null,"Ibuprofen",null,"kg",{"$f":"VLOOKUP(D65,EF!$C$201:$D$235,2,FALSE)","v":26.643750000000001},{"$f":"VLOOKUP(D65,EF!$C$201:$E$235,3,FALSE)","v":"per kg API"},{"$f":"IF(ISNUMBER(Scope_3!$E65),Scope_3!$E65*Scope_3!$G65/1000,\"k.A\")","v":"k.A"}]
[null,null,null,"Immunglobulin G / G+A / G-Vorhyaluronidase",null,"kg",{"$f":"VLOOKUP(D66,EF!$C$201:$D$235,2,FALSE)","v":2910.3},{"$f":"VLOOKUP(D66,EF!$C$201:$E$235,3,FALSE)","v":"per kg API"},{"$f":"IF(ISNUMBER(Scope_3!$E66),Scope_3!$E66*Scope_3!$G66/1000,\"k.A\")","v":"k.A"}]
[null,null,null,"Infliximab",null,"kg",{"$f":"VLOOKUP(D67,EF!$C$201:$D$235,2,FALSE)","v":25499.999999999996},{"$f":"VLOOKUP(D67,EF!$C$201:$E$235,3,FALSE)","v":"per kg API"},{"$f":"IF(ISNUMBER(Scope_3!$E67),Scope_3!$E67*Scope_3!$G67/1000,\"k.A\")","v":"k.A"}]
[null,null,null,"Ketamin",null,"kg",{"$f":"VLOOKUP(D68,EF!$C$201:$D$235,2,FALSE)","v":140},{"$f":"VLOOKUP(D68,EF!$C$201:$E$235,3,FALSE)","v":"per kg API"},{"$f":"IF(ISNUMBER(Scope_3!$E68),Scope_3!$E68*Scope_3!$G68/1000,\"k.A\")","v":"k.A"}]
[null,null,null,"Lidocain / Lidocain + Prilocain",null,"kg",{"$f":"VLOOKUP(D69,EF!$C$201:$D$235,2,FALSE)","v":28.599285999999999},{"$f":"VLOOKUP(D69,EF!$C$201:$E$235,3,FALSE)","v":"per kg API"},{"$f":"IF(ISNUMBER(Scope_3!$E69),Scope_3!$E69*Scope_3!$G69/1000,\"k.A\")","v":"k.A"}]
[null,null,null,"Metformin",null,"kg",{"$f":"VLOOKUP(D70,EF!$C$201:$D$235,2,FALSE)","v":22.3},{"$f":"VLOOKUP(D70,EF!$C$201:$E$235,3,FALSE)","v":"per kg API"},{"$f":"IF(ISNUMBER(Scope_3!$E70),Scope_3!$E70*Scope_3!$G70/1000,\"k.A\")","v":"k.A"}]
[null,null,null,"Midazolam",null,"kg",{"$f":"VLOOKUP(D71,EF!$C$201:$D$235,2,FALSE)","v":444},{"$f":"VLOOKUP(D71,EF!$C$201:$E$235,3,FALSE)","v":"per kg API"},{"$f":"IF(ISNUMBER(Scope_3!$E71),Scope_3!$E71*Scope_3!$G71/1000,\"k.A\")","v":"k.A"}]
[null,null,null,"Morphin / Morphin Sulfat / Morphinhydrochlorid",null,"kg",{"$f":"VLOOKUP(D72,EF!$C$201:$D$235,2,FALSE)","v":1506},{"$f":"VLOOKUP(D72,EF!$C$201:$E$235,3,FALSE)","v":"per kg API"},{"$f":"IF(ISNUMBER(Scope_3!$E72),Scope_3!$E72*Scope_3!$G72/1000,\"k.A\")","v":"k.A"}]
[null,null,null,"Naproxen",null,"kg",{"$f":"VLOOKUP(D73,EF!$C$201:$D$235,2,FALSE)","v":2.2999999999999998},{"$f":"VLOOKUP(D73,EF!$C$201:$E$235,3,FALSE)","v":"per kg API"},{"$f":"IF(ISNUMBER(Scope_3!$E73),Scope_3!$E73*Scope_3!$G73/1000,\"k.A\")","v":"k.A"}]
[null,null,null,"Neostigmin",null,"kg",{"$f":"VLOOKUP(D74,EF!$C$201:$D$235,2,FALSE)","v":21.812297000000001},{"$f":"VLOOKUP(D74,EF!$C$201:$E$235,3,FALSE)","v":"per kg API"},{"$f":"IF(ISNUMBER(Scope_3!$E74),Scope_3!$E74*Scope_3!$G74/1000,\"k.A\")","v":"k.A"}]
[null,null,null,"Nitrofurantoin",null,"kg",{"$f":"VLOOKUP(D75,EF!$C$201:$D$235,2,FALSE)","v":341.5},{"$f":"VLOOKUP(D75,EF!$C$201:$E$235,3,FALSE)","v":"per kg API"},{"$f":"IF(ISNUMBER(Scope_3!$E75),Scope_3!$E75*Scope_3!$G75/1000,\"k.A\")","v":"k.A"}]
[null,null,null,"Nivolumab",null,"kg",{"$f":"VLOOKUP(D76,EF!$C$201:$D$235,2,FALSE)","v":207000},{"$f":"VLOOKUP(D76,EF!$C$201:$E$235,3,FALSE)","v":"per kg API"},{"$f":"IF(ISNUMBER(Scope_3!$E76),Scope_3!$E76*Scope_3!$G76/1000,\"k.A\")","v":"k.A"}]
[null,null,null,"Ondansetron",null,"kg",{"$f":"VLOOKUP(D77,EF!$C$201:$D$235,2,FALSE)","v":36.732593000000001},{"$f":"VLOOKUP(D77,EF!$C$201:$E$235,3,FALSE)","v":"per kg API"},{"$f":"IF(ISNUMBER(Scope_3!$E77),Scope_3!$E77*Scope_3!$G77/1000,\"k.A\")","v":"k.A"}]
[null,null,null,"Paracetamol",null,"kg",{"$f":"VLOOKUP(D78,EF!$C$201:$D$235,2,FALSE)","v":0.66400000000000003},{"$f":"VLOOKUP(D78,EF!$C$201:$E$235,3,FALSE)","v":"per kg API"},{"$f":"IF(ISNUMBER(Scope_3!$E78),Scope_3!$E78*Scope_3!$G78/1000,\"k.A\")","v":"k.A"}]
[null,null,null,"Phenoxymethylpenicillin",null,"kg",{"$f":"VLOOKUP(D79,EF!$C$201:$D$235,2,FALSE)","v":6.02},{"$f":"VLOOKUP(D79,EF!$C$201:$E$235,3,FALSE)","v":"per kg API"},{"$f":"IF(ISNUMBER(Scope_3!$E79),Scope_3!$E79*Scope_3!$G79/1000,\"k.A\")","v":"k.A"}]
[null,null,null,"Phenylephrin",null,"kg",{"$f":"VLOOKUP(D80,EF!$C$201:$D$235,2,FALSE)","v":171},{"$f":"VLOOKUP(D80,EF!$C$201:$E$235,3,FALSE)","v":"per kg API"},{"$f":"IF(ISNUMBER(Scope_3!$E80),Scope_3!$E80*Scope_3!$G80/1000,\"k.A\")","v":"k.A"}]
[null,null,null,"Propofol",null,"kg",{"$f":"VLOOKUP(D81,EF!$C$201:$D$235,2,FALSE)","v":21},{"$f":"VLOOKUP(D81,EF!$C$201:$E$235,3,FALSE)","v":"per kg API"},{"$f":"IF(ISNUMBER(Scope_3!$E81),Scope_3!$E81*Scope_3!$G81/1000,\"k.A\")","v":"k.A"}]
[null,null,null,"Remifentanil",null,"kg",{"$f":"VLOOKUP(D82,EF!$C$201:$D$235,2,FALSE)","v":103},{"$f":"VLOOKUP(D82,EF!$C$201:$E$235,3,FALSE)","v":"per kg API"},{"$f":"IF(ISNUMBER(Scope_3!$E82),Scope_3!$E82*Scope_3!$G82/1000,\"k.A\")","v":"k.A"}]
[null,null,null,"Rocuroniumbromid",null,"kg",{"$f":"VLOOKUP(D83,EF!$C$201:$D$235,2,FALSE)","v":144},{"$f":"VLOOKUP(D83,EF!$C$201:$E$235,3,FALSE)","v":"per kg API"},{"$f":"IF(ISNUMBER(Scope_3!$E83),Scope_3!$E83*Scope_3!$G83/1000,\"k.A\")","v":"k.A"}]
[null,null,null,"Ropivacain",null,"kg",{"$f":"VLOOKUP(D84,EF!$C$201:$D$235,2,FALSE)","v":35.632758000000003},{"$f":"VLOOKUP(D84,EF!$C$201:$E$235,3,FALSE)","v":"per kg API"},{"$f":"IF(ISNUMBER(Scope_3!$E84),Scope_3!$E84*Scope_3!$G84/1000,\"k.A\")","v":"k.A"}]
[null,null,null,"Sertralin",null,"kg",{"$f":"VLOOKUP(D85,EF!$C$201:$D$235,2,FALSE)","v":3690},{"$f":"VLOOKUP(D85,EF!$C$201:$E$235,3,FALSE)","v":"per kg API"},{"$f":"IF(ISNUMBER(Scope_3!$E85),Scope_3!$E85*Scope_3!$G85/1000,\"k.A\")","v":"k.A"}]
[null,null,null,"Sugammadex",null,"kg",{"$f":"VLOOKUP(D86,EF!$C$201:$D$235,2,FALSE)","v":11.582380000000001},{"$f":"VLOOKUP(D86,EF!$C$201:$E$235,3,FALSE)","v":"per kg API"},{"$f":"IF(ISNUMBER(Scope_3!$E86),Scope_3!$E86*Scope_3!$G86/1000,\"k.A\")","v":"k.A"}]
[null,null,null,"Suxamethonium",null,"kg",{"$f":"VLOOKUP(D87,EF!$C$201:$D$235,2,FALSE)","v":11.225565},{"$f":"VLOOKUP(D87,EF!$C$201:$E$235,3,FALSE)","v":"per kg API"},{"$f":"IF(ISNUMBER(Scope_3!$E87),Scope_3!$E87*Scope_3!$G87/1000,\"k.A\")","v":"k.A"}]
[null,null,null,"Vancomycin",null,"kg",{"$f":"VLOOKUP(D88,EF!$C$201:$D$235,2,FALSE)","v":60},{"$f":"VLOOKUP(D88,EF!$C$201:$E$235,3,FALSE)","v":"per kg API"},{"$f":"IF(ISNUMBER(Scope_3!$E88),Scope_3!$E88*Scope_3!$G88/1000,\"k.A\")","v":"k.A"}]
[null,null,null,"Blutgerinnungsfaktor VIII / (F VIII:C) / Rekomb.",null,"1000 I.E.",{"$f":"VLOOKUP(D89,EF!$C$201:$D$235,2,FALSE)","v":73.2256},{"$f":"VLOOKUP(D89,EF!$C$201:$E$235,3,FALSE)","v":"per 1.000 I.E. API"},{"$f":"IF(ISNUMBER(Scope_3!$E89),Scope_3!$E89*Scope_3!$G89/1000,\"k.A\")","v":"k.A"}]
[null,null,null,"Colecalciferol (+ Natriumfluorid, Calciumcarbonat)",null,"1000 I.E.",{"$f":"VLOOKUP(D90,EF!$C$201:$D$235,2,FALSE)","v":9.4124999999999998E-5},{"$f":"VLOOKUP(D90,EF!$C$201:$E$235,3,FALSE)","v":"per 1.000 I.E. API"},{"$f":"IF(ISNUMBER(Scope_3!$E90),Scope_3!$E90*Scope_3!$G90/1000,\"k.A\")","v":"k.A"}]
[null,null,null,"Summe",null,null,null,null,{"$f":"SUBTOTAL(109,Tabelle58[Ergebnis (t CO2e / Jahr)])","v":0}]
[]
[null,null,"Option 1 Teil II: Top-Down"]
[null,null,null,"Option 1 Teil II: Top-Down","Euro / Jahr"]
[null,null,null,"Gesamte Einkaufsausgaben für Medikamente"]
[null,null,null,"-Einkaufsausgaben von oben durch Bottom-Up identifzierten Medikamenten"]
[null,null,null,"Anteil der durch Bottom-Up gerechneten Medikamente an den gesamten Einkaufsausgaben",{"$f":"IFERROR(E96/$E$95,\"k.A.\")","v":"k.A."}]
[]
[null,null,null,"Berechnung des GWP-Werts für die restlichen Medikamenten anhand des Emissionsfaktors in Euro. "]
[null,null,null,"Option 1 Teil II: Top-Down","Euro / Jahr","t CO2-eq/Mio. €","Ergebnis (t CO2e / Jahr)"]
[null,null,null,"-Einkaufsausgaben von den Rest",{"$f":"E95-E96","v":0},{"$f":"EF_Medikamente_Konserv_KliOL","v":296},{"$f":"E101/1000000*F101","v":0}]
[]
[null,null,"Zusammenfassung von Option 1 Hybrid-Ansatz"]
[null,null,null,"Option 1: Hyrid-Ansatz","Ergebnis (t CO2e / Jahr)"]
[null,null,null,"Bottom-Up-Ansatz",{"$f":"Tabelle58[[#Totals],[Ergebnis (t CO2e / Jahr)]]","v":0}]
[null,null,null,"Top-Down-Ansatz",{"$f":"G101","v":0}]
[null,null,null,"Summe",{"$f":"SUM(E105:E106)","v":0}]
[]
[null,null,"Option 2 Top-Down-Ansatz (CDP):  Der Emissionsfaktor basiert auf dem durchschnittlichen Euro-basierten EF-Wert von 11 Pharmaunternehmen [3], deren Klimabilanzen nach GHG-Protocol durchgeführt wurden."]
[null,null,null,"Medikamente: Top-Down","Euro / Jahr","t CO2-eq/Mio. €","Ergebnis (t CO2e / Jahr)"]
[null,null,null,"Einkaufsausgaben ",null,{"$f":"EF_Medikamente_CDP","v":186},{"$f":"E111/1000000*F111","v":0}]
[]
[null,null,"Option 3 Top-Down-Ansatz (KliOL): Der Emissionsfaktor basiert auf der KliOL-Studie [28] "]
[null,null,null,"Medikamente: Top-Down","Euro / Jahr","t CO2-eq/Mio. €","Ergebnis (t CO2e / Jahr)"]
[null,null,null,"Einkaufsausgaben ",null,{"$f":"EF_Medikamente_KliOL","v":296},{"$f":"E115/1000000*F115","v":0}]
[]
[]
[null,null,null,"Scope 3.1.2 - Eingekaufte medizinische & technische Gase (Bottom-Up)"]
[null,null,null,"Gase","Menge (kg / Jahr)","Emissionsfaktor (kg CO2e/kg)","Ergebnis (t CO2e / Jahr)"]
[null,null,null,"Argon",null,{"$f":"VLOOKUP(Scope3_THG_Med_Tech_Gase[[#This Row],[Gase]],EF_Scope3_Gase[[Gase]:[Emissionsfaktor (kg CO2e/kg)]],2,FALSE)","v":2.2400000000000002},{"$f":"IFERROR(Scope3_THG_Med_Tech_Gase[[#This Row],[Menge (kg / Jahr)]]*Scope3_THG_Med_Tech_Gase[[#This Row],[Emissionsfaktor (kg CO2e/kg)]]/1000, \"k.A.\")","v":0}]
[null,null,null,"C2H2",null,{"$f":"VLOOKUP(Scope3_THG_Med_Tech_Gase[[#This Row],[Gase]],EF_Scope3_Gase[[Gase]:[Emissionsfaktor (kg CO2e/kg)]],2,FALSE)","v":4.2747400000000004},{"$f":"IFERROR(Scope3_THG_Med_Tech_Gase[[#This Row],[Menge (kg / Jahr)]]*Scope3_THG_Med_Tech_Gase[[#This Row],[Emissionsfaktor (kg CO2e/kg)]]/1000, \"k.A.\")","v":0}]
[null,null,null,"CH4",null,{"$f":"VLOOKUP(Scope3_THG_Med_Tech_Gase[[#This Row],[Gase]],EF_Scope3_Gase[[Gase]:[Emissionsfaktor (kg CO2e/kg)]],2,FALSE)","v":0.65898000000000001},{"$f":"IFERROR(Scope3_THG_Med_Tech_Gase[[#This Row],[Menge (kg / Jahr)]]*Scope3_THG_Med_Tech_Gase[[#This Row],[Emissionsfaktor (kg CO2e/kg)]]/1000, \"k.A.\")","v":0}]
[null,null,null,"CO",null,{"$f":"VLOOKUP(Scope3_THG_Med_Tech_Gase[[#This Row],[Gase]],EF_Scope3_Gase[[Gase]:[Emissionsfaktor (kg CO2e/kg)]],2,FALSE)","v":1.5},{"$f":"IFERROR(Scope3_THG_Med_Tech_Gase[[#This Row],[Menge (kg / Jahr)]]*Scope3_THG_Med_Tech_Gase[[#This Row],[Emissionsfaktor (kg CO2e/kg)]]/1000, \"k.A.\")","v":0}]
[null,null,null,"CO2",null,{"$f":"VLOOKUP(Scope3_THG_Med_Tech_Gase[[#This Row],[Gase]],EF_Scope3_Gase[[Gase]:[Emissionsfaktor (kg CO2e/kg)]],2,FALSE)","v":0.49299999999999999},{"$f":"IFERROR(Scope3_THG_Med_Tech_Gase[[#This Row],[Menge (kg / Jahr)]]*Scope3_THG_Med_Tech_Gase[[#This Row],[Emissionsfaktor (kg CO2e/kg)]]/1000, \"k.A.\")","v":0}]
[null,null,null,"H2",null,{"$f":"VLOOKUP(Scope3_THG_Med_Tech_Gase[[#This Row],[Gase]],EF_Scope3_Gase[[Gase]:[Emissionsfaktor (kg CO2e/kg)]],2,FALSE)","v":1.7558400000000001},{"$f":"IFERROR(Scope3_THG_Med_Tech_Gase[[#This Row],[Menge (kg / Jahr)]]*Scope3_THG_Med_Tech_Gase[[#This Row],[Emissionsfaktor (kg CO2e/kg)]]/1000, \"k.A.\")","v":0}]
[null,null,null,"He",null,{"$f":"VLOOKUP(Scope3_THG_Med_Tech_Gase[[#This Row],[Gase]],EF_Scope3_Gase[[Gase]:[Emissionsfaktor (kg CO2e/kg)]],2,FALSE)","v":8.5565499999999997},{"$f":"IFERROR(Scope3_THG_Med_Tech_Gase[[#This Row],[Menge (kg / Jahr)]]*Scope3_THG_Med_Tech_Gase[[#This Row],[Emissionsfaktor (kg CO2e/kg)]]/1000, \"k.A.\")","v":0}]
[null,null,null,"Luft, verdicht",null,{"$f":"VLOOKUP(Scope3_THG_Med_Tech_Gase[[#This Row],[Gase]],EF_Scope3_Gase[[Gase]:[Emissionsfaktor (kg CO2e/kg)]],2,FALSE)","v":1.2E-2},{"$f":"IFERROR(Scope3_THG_Med_Tech_Gase[[#This Row],[Menge (kg / Jahr)]]*Scope3_THG_Med_Tech_Gase[[#This Row],[Emissionsfaktor (kg CO2e/kg)]]/1000, \"k.A.\")","v":0}]
[null,null,null,"N2",null,{"$f":"VLOOKUP(Scope3_THG_Med_Tech_Gase[[#This Row],[Gase]],EF_Scope3_Gase[[Gase]:[Emissionsfaktor (kg CO2e/kg)]],2,FALSE)","v":0.22105},{"$f":"IFERROR(Scope3_THG_Med_Tech_Gase[[#This Row],[Menge (kg / Jahr)]]*Scope3_THG_Med_Tech_Gase[[#This Row],[Emissionsfaktor (kg CO2e/kg)]]/1000, \"k.A.\")","v":0}]
[null,null,null,"N2O",null,{"$f":"VLOOKUP(Scope3_THG_Med_Tech_Gase[[#This Row],[Gase]],EF_Scope3_Gase[[Gase]:[Emissionsfaktor (kg CO2e/kg)]],2,FALSE)","v":2.7295500000000001},{"$f":"IFERROR(Scope3_THG_Med_Tech_Gase[[#This Row],[Menge (kg / Jahr)]]*Scope3_THG_Med_Tech_Gase[[#This Row],[Emissionsfaktor (kg CO2e/kg)]]/1000, \"k.A.\")","v":0}]
[null,null,null,"NO",null,{"$f":"VLOOKUP(Scope3_THG_Med_Tech_Gase[[#This Row],[Gase]],EF_Scope3_Gase[[Gase]:[Emissionsfaktor (kg CO2e/kg)]],2,FALSE)","v":2.7295500000000001},{"$f":"IFERROR(Scope3_THG_Med_Tech_Gase[[#This Row],[Menge (kg / Jahr)]]*Scope3_THG_Med_Tech_Gase[[#This Row],[Emissionsfaktor (kg CO2e/kg)]]/1000, \"k.A.\")","v":0}]
[null,null,null,"O2",null,{"$f":"VLOOKUP(Scope3_THG_Med_Tech_Gase[[#This Row],[Gase]],EF_Scope3_Gase[[Gase]:[Emissionsfaktor (kg CO2e/kg)]],2,FALSE)","v":0.55081999999999998},{"$f":"IFERROR(Scope3_THG_Med_Tech_Gase[[#This Row],[Menge (kg / Jahr)]]*Scope3_THG_Med_Tech_Gase[[#This Row],[Emissionsfaktor (kg CO2e/kg)]]/1000, \"k.A.\")","v":0}]
[null,null,null,"Propan, C₃H₈",null,{"$f":"VLOOKUP(Scope3_THG_Med_Tech_Gase[[#This Row],[Gase]],EF_Scope3_Gase[[Gase]:[Emissionsfaktor (kg CO2e/kg)]],2,FALSE)","v":0.85709000000000002},{"$f":"IFERROR(Scope3_THG_Med_Tech_Gase[[#This Row],[Menge (kg / Jahr)]]*Scope3_THG_Med_Tech_Gase[[#This Row],[Emissionsfaktor (kg CO2e/kg)]]/1000, \"k.A.\")","v":0}]
[null,null,null,"Propen, C3H6",null,{"$f":"VLOOKUP(Scope3_THG_Med_Tech_Gase[[#This Row],[Gase]],EF_Scope3_Gase[[Gase]:[Emissionsfaktor (kg CO2e/kg)]],2,FALSE)","v":1.50115},{"$f":"IFERROR(Scope3_THG_Med_Tech_Gase[[#This Row],[Menge (kg / Jahr)]]*Scope3_THG_Med_Tech_Gase[[#This Row],[Emissionsfaktor (kg CO2e/kg)]]/1000, \"k.A.\")","v":0}]
[null,null,null,"Sevofluran",null,{"$f":"VLOOKUP(Scope3_THG_Med_Tech_Gase[[#This Row],[Gase]],EF_Scope3_Gase[[Gase]:[Emissionsfaktor (kg CO2e/kg)]],2,FALSE)","v":269.96555999999998},{"$f":"IFERROR(Scope3_THG_Med_Tech_Gase[[#This Row],[Menge (kg / Jahr)]]*Scope3_THG_Med_Tech_Gase[[#This Row],[Emissionsfaktor (kg CO2e/kg)]]/1000, \"k.A.\")","v":0}]
[null,null,null,"Isofluran",null,{"$f":"VLOOKUP(Scope3_THG_Med_Tech_Gase[[#This Row],[Gase]],EF_Scope3_Gase[[Gase]:[Emissionsfaktor (kg CO2e/kg)]],2,FALSE)","v":147.52145999999999},{"$f":"IFERROR(Scope3_THG_Med_Tech_Gase[[#This Row],[Menge (kg / Jahr)]]*Scope3_THG_Med_Tech_Gase[[#This Row],[Emissionsfaktor (kg CO2e/kg)]]/1000, \"k.A.\")","v":0}]
[null,null,null,"Desfluran",null,{"$f":"VLOOKUP(Scope3_THG_Med_Tech_Gase[[#This Row],[Gase]],EF_Scope3_Gase[[Gase]:[Emissionsfaktor (kg CO2e/kg)]],2,FALSE)","v":188.79313999999999},{"$f":"IFERROR(Scope3_THG_Med_Tech_Gase[[#This Row],[Menge (kg / Jahr)]]*Scope3_THG_Med_Tech_Gase[[#This Row],[Emissionsfaktor (kg CO2e/kg)]]/1000, \"k.A.\")","v":0}]
[null,null,null,"Summe (Scope 3: med./tech. Gase)",{"$f":"SUBTOTAL(109,Scope3_THG_Med_Tech_Gase[Menge (kg / Jahr)])","v":0},null,{"$f":"SUBTOTAL(109,Scope3_THG_Med_Tech_Gase[Ergebnis (t CO2e / Jahr)])","v":0}]
[]
[]
[null,null,null,"Scope 3.1.3 - Eingekaufte medizinische Verbrauchsmaterialien (Top-Down)"]
[null,null,null,"Die medizinischen Verbrauchsmaterialien umfassen umfangreiche Materialien und Stoffe sowie Produkte. "]
[null,null,null,"Im Rahmen des Projekts ist es nicht mehr möglich, ein Bottom-Up-Ansatz zu entwickeln."]
[null,null,null,"Als Proxy-Berechnung wurde der Emissionsfaktor auf Euro-Basis aus der KliOL-Studie übernommen. "]
[]
[null,null,null,"Top-Down-Ansatz (KliOL): Der Emissionsfaktor basiert auf der KliOL-Studie [28] "]
[null,null,null,"Medizinische Verbrauchsmaterialien: Top-Down","Euro / Jahr","t CO2-eq/Mio. €","Ergebnis (t CO2e / Jahr)"]
[null,null,null,"Einkaufsausgaben ",null,{"$f":"EF_Medizinische_VM_KliOL","v":315},{"$f":"E147/1000000*F147","v":0}]
[]
[null,null,null,"Scope 3.1.4 - Eingekaufte Kältemittel (KM) (Bottom-Up)"]
[null,null,null,"Die Dropdownliste stellt 1) spezifische Kältemittel und 2) sonstige allgemeine Kältemittel dar. "]
[null,null,null,"Kältemitteltyp","Menge (kg / Jahr)","Emissionsfaktor  (kg CO2e / kg )","Ergebnis (t CO2e / Jahr)"]
[null,null,null,"Difluormethan (R-32)",null,{"$f":"IFERROR(VLOOKUP(D152,EF_Scope3_KM[[Kältemittel]:[Emissionsfaktor (kg CO2e/kg)]],2,FALSE),\"Kältemittel auswählen\")","v":5.202},{"$f":"IFERROR(Scope3_THG_KM[[#This Row],[Menge (kg / Jahr)]]*Scope3_THG_KM[[#This Row],[Emissionsfaktor  (kg CO2e / kg )]]/1000,\"k.A.\")","v":0}]
[null,null,null,"Tetrafluorethan (R-134a)",null,{"$f":"IFERROR(VLOOKUP(D153,EF_Scope3_KM[[Kältemittel]:[Emissionsfaktor (kg CO2e/kg)]],2,FALSE),\"Kältemittel auswählen\")","v":7.968},{"$f":"IFERROR(Scope3_THG_KM[[#This Row],[Menge (kg / Jahr)]]*Scope3_THG_KM[[#This Row],[Emissionsfaktor  (kg CO2e / kg )]]/1000,\"k.A.\")","v":0}]
[null,null,null,"R-404A",null,{"$f":"IFERROR(VLOOKUP(D154,EF_Scope3_KM[[Kältemittel]:[Emissionsfaktor (kg CO2e/kg)]],2,FALSE),\"Kältemittel auswählen\")","v":11.35},{"$f":"IFERROR(Scope3_THG_KM[[#This Row],[Menge (kg / Jahr)]]*Scope3_THG_KM[[#This Row],[Emissionsfaktor  (kg CO2e / kg )]]/1000,\"k.A.\")","v":0}]
[null,null,null,"R-407C",null,{"$f":"IFERROR(VLOOKUP(D155,EF_Scope3_KM[[Kältemittel]:[Emissionsfaktor (kg CO2e/kg)]],2,FALSE),\"Kältemittel auswählen\")","v":9.67},{"$f":"IFERROR(Scope3_THG_KM[[#This Row],[Menge (kg / Jahr)]]*Scope3_THG_KM[[#This Row],[Emissionsfaktor  (kg CO2e / kg )]]/1000,\"k.A.\")","v":0}]
[null,null,null,"R-410A",null,{"$f":"IFERROR(VLOOKUP(D156,EF_Scope3_KM[[Kältemittel]:[Emissionsfaktor (kg CO2e/kg)]],2,FALSE),\"Kältemittel auswählen\")","v":10.43},{"$f":"IFERROR(Scope3_THG_KM[[#This Row],[Menge (kg / Jahr)]]*Scope3_THG_KM[[#This Row],[Emissionsfaktor  (kg CO2e / kg )]]/1000,\"k.A.\")","v":0}]
[null,null,null,"Sonstige KM als Kältemittel-Mischung",null,{"$f":"IFERROR(VLOOKUP(D157,EF_Scope3_KM[[Kältemittel]:[Emissionsfaktor (kg CO2e/kg)]],2,FALSE),\"Kältemittel auswählen\")","v":10.483333333333333},{"$f":"IFERROR(Scope3_THG_KM[[#This Row],[Menge (kg / Jahr)]]*Scope3_THG_KM[[#This Row],[Emissionsfaktor  (kg CO2e / kg )]]/1000,\"k.A.\")","v":0}]
[null,null,null,"Summe (Kältemittel)",{"$f":"SUBTOTAL(109,Scope3_THG_KM[Menge (kg / Jahr)])","v":0},null,{"$f":"SUBTOTAL(109,Scope3_THG_KM[Ergebnis (t CO2e / Jahr)])","v":0}]
[]
[]
[null,null,null,"Scope 3.1.5 - Eingekaufte Lebensmittel"]
[null,null,null,"Auswahl der Berechnungsmethode","Option 1: Bottom-Up"]
[null,null,null,"Option 1 (Bottom-Up): Sie können das gesamte Gewicht der eingekauften Lebensmittel nach Lebensmittelgruppen ermitteln. "]
[null,null,null,"Option 2 (Top-Down): Nur Einkaufsausgaben in Euro liegen vor."]
[null,null,null,"Option 1"]
[null,null,null,"Lebensmittelgruppe","Untergruppe","Menge (kg/Jahr)","Emissionsfaktor  (kg CO2e / kg )","Ergebnis (t CO2e / Jahr)"]
[null,null,null,"Getreideprodukte","Getreide/Cerealien, Mehl, Teige, Teigwaren, Salzgebäck",null,{"$f":"VLOOKUP(Scope3_THG_Lebensmittel[[#This Row],[Untergruppe]],EF_Scope3_Lebensmittel[[Untergruppe]:[Emissionsfaktor (kg CO2e/kg)]],2,FALSE)","v":0.6875},{"$f":"IFERROR(Scope3_THG_Lebensmittel[[#This Row],[Menge (kg/Jahr)]]*Scope3_THG_Lebensmittel[[#This Row],[Emissionsfaktor  (kg CO2e / kg )]]/1000,\"k.A.\")","v":0}]
[null,null,null,"Getreideprodukte","Dauerbackwaren, Gebäck/Feingebäck, Kuchen, Torten",null,{"$f":"VLOOKUP(Scope3_THG_Lebensmittel[[#This Row],[Untergruppe]],EF_Scope3_Lebensmittel[[Untergruppe]:[Emissionsfaktor (kg CO2e/kg)]],2,FALSE)","v":1.6},{"$f":"IFERROR(Scope3_THG_Lebensmittel[[#This Row],[Menge (kg/Jahr)]]*Scope3_THG_Lebensmittel[[#This Row],[Emissionsfaktor  (kg CO2e / kg )]]/1000,\"k.A.\")","v":0}]
[null,null,null,"Getreideprodukte","Reis",null,{"$f":"VLOOKUP(Scope3_THG_Lebensmittel[[#This Row],[Untergruppe]],EF_Scope3_Lebensmittel[[Untergruppe]:[Emissionsfaktor (kg CO2e/kg)]],2,FALSE)","v":3.1},{"$f":"IFERROR(Scope3_THG_Lebensmittel[[#This Row],[Menge (kg/Jahr)]]*Scope3_THG_Lebensmittel[[#This Row],[Emissionsfaktor  (kg CO2e / kg )]]/1000,\"k.A.\")","v":0}]
[null,null,null,"Fleisch","Rind/Kalb",null,{"$f":"VLOOKUP(Scope3_THG_Lebensmittel[[#This Row],[Untergruppe]],EF_Scope3_Lebensmittel[[Untergruppe]:[Emissionsfaktor (kg CO2e/kg)]],2,FALSE)","v":13.6},{"$f":"IFERROR(Scope3_THG_Lebensmittel[[#This Row],[Menge (kg/Jahr)]]*Scope3_THG_Lebensmittel[[#This Row],[Emissionsfaktor  (kg CO2e / kg )]]/1000,\"k.A.\")","v":0}]
[null,null,null,"Fleisch","Schwein",null,{"$f":"VLOOKUP(Scope3_THG_Lebensmittel[[#This Row],[Untergruppe]],EF_Scope3_Lebensmittel[[Untergruppe]:[Emissionsfaktor (kg CO2e/kg)]],2,FALSE)","v":4.5999999999999996},{"$f":"IFERROR(Scope3_THG_Lebensmittel[[#This Row],[Menge (kg/Jahr)]]*Scope3_THG_Lebensmittel[[#This Row],[Emissionsfaktor  (kg CO2e / kg )]]/1000,\"k.A.\")","v":0}]
[null,null,null,"Fleisch","Geflügel",null,{"$f":"VLOOKUP(Scope3_THG_Lebensmittel[[#This Row],[Untergruppe]],EF_Scope3_Lebensmittel[[Untergruppe]:[Emissionsfaktor (kg CO2e/kg)]],2,FALSE)","v":5.5},{"$f":"IFERROR(Scope3_THG_Lebensmittel[[#This Row],[Menge (kg/Jahr)]]*Scope3_THG_Lebensmittel[[#This Row],[Emissionsfaktor  (kg CO2e / kg )]]/1000,\"k.A.\")","v":0}]
[null,null,null,"Fleisch","Schaf/Ziege/Lamm",null,{"$f":"VLOOKUP(Scope3_THG_Lebensmittel[[#This Row],[Untergruppe]],EF_Scope3_Lebensmittel[[Untergruppe]:[Emissionsfaktor (kg CO2e/kg)]],2,FALSE)","v":10.85},{"$f":"IFERROR(Scope3_THG_Lebensmittel[[#This Row],[Menge (kg/Jahr)]]*Scope3_THG_Lebensmittel[[#This Row],[Emissionsfaktor  (kg CO2e / kg )]]/1000,\"k.A.\")","v":0}]
[null,null,null,"Fleisch","Wild",null,{"$f":"VLOOKUP(Scope3_THG_Lebensmittel[[#This Row],[Untergruppe]],EF_Scope3_Lebensmittel[[Untergruppe]:[Emissionsfaktor (kg CO2e/kg)]],2,FALSE)","v":11.5},{"$f":"IFERROR(Scope3_THG_Lebensmittel[[#This Row],[Menge (kg/Jahr)]]*Scope3_THG_Lebensmittel[[#This Row],[Emissionsfaktor  (kg CO2e / kg )]]/1000,\"k.A.\")","v":0}]
[null,null,null,"Fisch","Fisch",null,{"$f":"VLOOKUP(Scope3_THG_Lebensmittel[[#This Row],[Untergruppe]],EF_Scope3_Lebensmittel[[Untergruppe]:[Emissionsfaktor (kg CO2e/kg)]],2,FALSE)","v":5.375},{"$f":"IFERROR(Scope3_THG_Lebensmittel[[#This Row],[Menge (kg/Jahr)]]*Scope3_THG_Lebensmittel[[#This Row],[Emissionsfaktor  (kg CO2e / kg )]]/1000,\"k.A.\")","v":0}]
[null,null,null,"Fisch","Meeresfrüchte",null,{"$f":"VLOOKUP(Scope3_THG_Lebensmittel[[#This Row],[Untergruppe]],EF_Scope3_Lebensmittel[[Untergruppe]:[Emissionsfaktor (kg CO2e/kg)]],2,FALSE)","v":12.5},{"$f":"IFERROR(Scope3_THG_Lebensmittel[[#This Row],[Menge (kg/Jahr)]]*Scope3_THG_Lebensmittel[[#This Row],[Emissionsfaktor  (kg CO2e / kg )]]/1000,\"k.A.\")","v":0}]
[null,null,null,"Milchprodukte","Butter",null,{"$f":"VLOOKUP(Scope3_THG_Lebensmittel[[#This Row],[Untergruppe]],EF_Scope3_Lebensmittel[[Untergruppe]:[Emissionsfaktor (kg CO2e/kg)]],2,FALSE)","v":9},{"$f":"IFERROR(Scope3_THG_Lebensmittel[[#This Row],[Menge (kg/Jahr)]]*Scope3_THG_Lebensmittel[[#This Row],[Emissionsfaktor  (kg CO2e / kg )]]/1000,\"k.A.\")","v":0}]
[null,null,null,"Milchprodukte","Milch und Joghurt",null,{"$f":"VLOOKUP(Scope3_THG_Lebensmittel[[#This Row],[Untergruppe]],EF_Scope3_Lebensmittel[[Untergruppe]:[Emissionsfaktor (kg CO2e/kg)]],2,FALSE)","v":1.3999999999999997},{"$f":"IFERROR(Scope3_THG_Lebensmittel[[#This Row],[Menge (kg/Jahr)]]*Scope3_THG_Lebensmittel[[#This Row],[Emissionsfaktor  (kg CO2e / kg )]]/1000,\"k.A.\")","v":0}]
[null,null,null,"Milchprodukte","Käse",null,{"$f":"VLOOKUP(Scope3_THG_Lebensmittel[[#This Row],[Untergruppe]],EF_Scope3_Lebensmittel[[Untergruppe]:[Emissionsfaktor (kg CO2e/kg)]],2,FALSE)","v":6.371428571428571},{"$f":"IFERROR(Scope3_THG_Lebensmittel[[#This Row],[Menge (kg/Jahr)]]*Scope3_THG_Lebensmittel[[#This Row],[Emissionsfaktor  (kg CO2e / kg )]]/1000,\"k.A.\")","v":0}]
[null,null,null,"Milchprodukte","Sahne&Quark",null,{"$f":"VLOOKUP(Scope3_THG_Lebensmittel[[#This Row],[Untergruppe]],EF_Scope3_Lebensmittel[[Untergruppe]:[Emissionsfaktor (kg CO2e/kg)]],2,FALSE)","v":3.7166666666666668},{"$f":"IFERROR(Scope3_THG_Lebensmittel[[#This Row],[Menge (kg/Jahr)]]*Scope3_THG_Lebensmittel[[#This Row],[Emissionsfaktor  (kg CO2e / kg )]]/1000,\"k.A.\")","v":0}]
[null,null,null,"Eier","Eier",null,{"$f":"VLOOKUP(Scope3_THG_Lebensmittel[[#This Row],[Untergruppe]],EF_Scope3_Lebensmittel[[Untergruppe]:[Emissionsfaktor (kg CO2e/kg)]],2,FALSE)","v":3},{"$f":"IFERROR(Scope3_THG_Lebensmittel[[#This Row],[Menge (kg/Jahr)]]*Scope3_THG_Lebensmittel[[#This Row],[Emissionsfaktor  (kg CO2e / kg )]]/1000,\"k.A.\")","v":0}]
[null,null,null,"Gemüse_Obst_Schalenfrüchte ","Obst/Gemüse frisch",null,{"$f":"VLOOKUP(Scope3_THG_Lebensmittel[[#This Row],[Untergruppe]],EF_Scope3_Lebensmittel[[Untergruppe]:[Emissionsfaktor (kg CO2e/kg)]],2,FALSE)","v":0.37749999999999995},{"$f":"IFERROR(Scope3_THG_Lebensmittel[[#This Row],[Menge (kg/Jahr)]]*Scope3_THG_Lebensmittel[[#This Row],[Emissionsfaktor  (kg CO2e / kg )]]/1000,\"k.A.\")","v":0}]
[null,null,null,"Gemüse_Obst_Schalenfrüchte ","Obst/Gemüse TK",null,{"$f":"VLOOKUP(Scope3_THG_Lebensmittel[[#This Row],[Untergruppe]],EF_Scope3_Lebensmittel[[Untergruppe]:[Emissionsfaktor (kg CO2e/kg)]],2,FALSE)","v":0.76},{"$f":"IFERROR(Scope3_THG_Lebensmittel[[#This Row],[Menge (kg/Jahr)]]*Scope3_THG_Lebensmittel[[#This Row],[Emissionsfaktor  (kg CO2e / kg )]]/1000,\"k.A.\")","v":0}]
[null,null,null,"Gemüse_Obst_Schalenfrüchte ","Obst/Gemüse Dose/Glas",null,{"$f":"VLOOKUP(Scope3_THG_Lebensmittel[[#This Row],[Untergruppe]],EF_Scope3_Lebensmittel[[Untergruppe]:[Emissionsfaktor (kg CO2e/kg)]],2,FALSE)","v":1.5214285714285711},{"$f":"IFERROR(Scope3_THG_Lebensmittel[[#This Row],[Menge (kg/Jahr)]]*Scope3_THG_Lebensmittel[[#This Row],[Emissionsfaktor  (kg CO2e / kg )]]/1000,\"k.A.\")","v":0}]
[null,null,null,"Gemüse_Obst_Schalenfrüchte ","Obst/Gemüse trocken",null,{"$f":"VLOOKUP(Scope3_THG_Lebensmittel[[#This Row],[Untergruppe]],EF_Scope3_Lebensmittel[[Untergruppe]:[Emissionsfaktor (kg CO2e/kg)]],2,FALSE)","v":1.7333333333333334},{"$f":"IFERROR(Scope3_THG_Lebensmittel[[#This Row],[Menge (kg/Jahr)]]*Scope3_THG_Lebensmittel[[#This Row],[Emissionsfaktor  (kg CO2e / kg )]]/1000,\"k.A.\")","v":0}]
[null,null,null,"Gemüse_Obst_Schalenfrüchte ","Schalenfrüchte (Nüsse, Mandeln)",null,{"$f":"VLOOKUP(Scope3_THG_Lebensmittel[[#This Row],[Untergruppe]],EF_Scope3_Lebensmittel[[Untergruppe]:[Emissionsfaktor (kg CO2e/kg)]],2,FALSE)","v":1.1500000000000001},{"$f":"IFERROR(Scope3_THG_Lebensmittel[[#This Row],[Menge (kg/Jahr)]]*Scope3_THG_Lebensmittel[[#This Row],[Emissionsfaktor  (kg CO2e / kg )]]/1000,\"k.A.\")","v":0}]
[null,null,null,"Fette_Öle","Fette/Öle",null,{"$f":"VLOOKUP(Scope3_THG_Lebensmittel[[#This Row],[Untergruppe]],EF_Scope3_Lebensmittel[[Untergruppe]:[Emissionsfaktor (kg CO2e/kg)]],2,FALSE)","v":3},{"$f":"IFERROR(Scope3_THG_Lebensmittel[[#This Row],[Menge (kg/Jahr)]]*Scope3_THG_Lebensmittel[[#This Row],[Emissionsfaktor  (kg CO2e / kg )]]/1000,\"k.A.\")","v":0}]
[null,null,null,"Getränke","Kaffee-/Kakaopulver",null,{"$f":"VLOOKUP(Scope3_THG_Lebensmittel[[#This Row],[Untergruppe]],EF_Scope3_Lebensmittel[[Untergruppe]:[Emissionsfaktor (kg CO2e/kg)]],2,FALSE)","v":5.3},{"$f":"IFERROR(Scope3_THG_Lebensmittel[[#This Row],[Menge (kg/Jahr)]]*Scope3_THG_Lebensmittel[[#This Row],[Emissionsfaktor  (kg CO2e / kg )]]/1000,\"k.A.\")","v":0}]
[null,null,null,"Getränke","Beuteltee",null,{"$f":"VLOOKUP(Scope3_THG_Lebensmittel[[#This Row],[Untergruppe]],EF_Scope3_Lebensmittel[[Untergruppe]:[Emissionsfaktor (kg CO2e/kg)]],2,FALSE)","v":3.48},{"$f":"IFERROR(Scope3_THG_Lebensmittel[[#This Row],[Menge (kg/Jahr)]]*Scope3_THG_Lebensmittel[[#This Row],[Emissionsfaktor  (kg CO2e / kg )]]/1000,\"k.A.\")","v":0}]
[null,null,null,"Getränke","Bier/Wein",null,{"$f":"VLOOKUP(Scope3_THG_Lebensmittel[[#This Row],[Untergruppe]],EF_Scope3_Lebensmittel[[Untergruppe]:[Emissionsfaktor (kg CO2e/kg)]],2,FALSE)","v":0.96666666666666667},{"$f":"IFERROR(Scope3_THG_Lebensmittel[[#This Row],[Menge (kg/Jahr)]]*Scope3_THG_Lebensmittel[[#This Row],[Emissionsfaktor  (kg CO2e / kg )]]/1000,\"k.A.\")","v":0}]
[null,null,null,"Getränke","Säfte",null,{"$f":"VLOOKUP(Scope3_THG_Lebensmittel[[#This Row],[Untergruppe]],EF_Scope3_Lebensmittel[[Untergruppe]:[Emissionsfaktor (kg CO2e/kg)]],2,FALSE)","v":0.45},{"$f":"IFERROR(Scope3_THG_Lebensmittel[[#This Row],[Menge (kg/Jahr)]]*Scope3_THG_Lebensmittel[[#This Row],[Emissionsfaktor  (kg CO2e / kg )]]/1000,\"k.A.\")","v":0}]
[null,null,null,"Getränke","Milchersatz-Drinks",null,{"$f":"VLOOKUP(Scope3_THG_Lebensmittel[[#This Row],[Untergruppe]],EF_Scope3_Lebensmittel[[Untergruppe]:[Emissionsfaktor (kg CO2e/kg)]],2,FALSE)","v":0.32499999999999996},{"$f":"IFERROR(Scope3_THG_Lebensmittel[[#This Row],[Menge (kg/Jahr)]]*Scope3_THG_Lebensmittel[[#This Row],[Emissionsfaktor  (kg CO2e / kg )]]/1000,\"k.A.\")","v":0}]
[null,null,null,"Getränke","Mineralwasser",null,{"$f":"VLOOKUP(Scope3_THG_Lebensmittel[[#This Row],[Untergruppe]],EF_Scope3_Lebensmittel[[Untergruppe]:[Emissionsfaktor (kg CO2e/kg)]],2,FALSE)","v":0.2},{"$f":"IFERROR(Scope3_THG_Lebensmittel[[#This Row],[Menge (kg/Jahr)]]*Scope3_THG_Lebensmittel[[#This Row],[Emissionsfaktor  (kg CO2e / kg )]]/1000,\"k.A.\")","v":0}]
[null,null,null,"Babynahrung_Sondennahrung","Baby- und Sondennahrung",null,{"$f":"VLOOKUP(Scope3_THG_Lebensmittel[[#This Row],[Untergruppe]],EF_Scope3_Lebensmittel[[Untergruppe]:[Emissionsfaktor (kg CO2e/kg)]],2,FALSE)","v":1.4607142857142854},{"$f":"IFERROR(Scope3_THG_Lebensmittel[[#This Row],[Menge (kg/Jahr)]]*Scope3_THG_Lebensmittel[[#This Row],[Emissionsfaktor  (kg CO2e / kg )]]/1000,\"k.A.\")","v":0}]
[null,null,null,"Süßwaren","Schokoladenwaren",null,{"$f":"VLOOKUP(Scope3_THG_Lebensmittel[[#This Row],[Untergruppe]],EF_Scope3_Lebensmittel[[Untergruppe]:[Emissionsfaktor (kg CO2e/kg)]],2,FALSE)","v":4.0999999999999996},{"$f":"IFERROR(Scope3_THG_Lebensmittel[[#This Row],[Menge (kg/Jahr)]]*Scope3_THG_Lebensmittel[[#This Row],[Emissionsfaktor  (kg CO2e / kg )]]/1000,\"k.A.\")","v":0}]
[null,null,null,"Süßwaren","Sonstige",null,{"$f":"VLOOKUP(Scope3_THG_Lebensmittel[[#This Row],[Untergruppe]],EF_Scope3_Lebensmittel[[Untergruppe]:[Emissionsfaktor (kg CO2e/kg)]],2,FALSE)","v":1.0499999999999998},{"$f":"IFERROR(Scope3_THG_Lebensmittel[[#This Row],[Menge (kg/Jahr)]]*Scope3_THG_Lebensmittel[[#This Row],[Emissionsfaktor  (kg CO2e / kg )]]/1000,\"k.A.\")","v":0}]
[null,null,null,"Gewürze","Zucker",null,{"$f":"VLOOKUP(Scope3_THG_Lebensmittel[[#This Row],[Untergruppe]],EF_Scope3_Lebensmittel[[Untergruppe]:[Emissionsfaktor (kg CO2e/kg)]],2,FALSE)","v":0.78934000000000004},{"$f":"IFERROR(Scope3_THG_Lebensmittel[[#This Row],[Menge (kg/Jahr)]]*Scope3_THG_Lebensmittel[[#This Row],[Emissionsfaktor  (kg CO2e / kg )]]/1000,\"k.A.\")","v":0}]
[null,null,null,"Gewürze","Salz",null,{"$f":"VLOOKUP(Scope3_THG_Lebensmittel[[#This Row],[Untergruppe]],EF_Scope3_Lebensmittel[[Untergruppe]:[Emissionsfaktor (kg CO2e/kg)]],2,FALSE)","v":0.18859999999999999},{"$f":"IFERROR(Scope3_THG_Lebensmittel[[#This Row],[Menge (kg/Jahr)]]*Scope3_THG_Lebensmittel[[#This Row],[Emissionsfaktor  (kg CO2e / kg )]]/1000,\"k.A.\")","v":0}]
[null,null,null,"Gewürze","Sonstige",null,{"$f":"VLOOKUP(Scope3_THG_Lebensmittel[[#This Row],[Untergruppe]],EF_Scope3_Lebensmittel[[Untergruppe]:[Emissionsfaktor (kg CO2e/kg)]],2,FALSE)","v":1.0499999999999998},{"$f":"IFERROR(Scope3_THG_Lebensmittel[[#This Row],[Menge (kg/Jahr)]]*Scope3_THG_Lebensmittel[[#This Row],[Emissionsfaktor  (kg CO2e / kg )]]/1000,\"k.A.\")","v":0}]
[null,null,null,"Sonstige","Sonstige, fleischhaltig",null,{"$f":"VLOOKUP(Scope3_THG_Lebensmittel[[#This Row],[Untergruppe]],EF_Scope3_Lebensmittel[[Untergruppe]:[Emissionsfaktor (kg CO2e/kg)]],2,FALSE)","v":3.5672470238095233},{"$f":"IFERROR(Scope3_THG_Lebensmittel[[#This Row],[Menge (kg/Jahr)]]*Scope3_THG_Lebensmittel[[#This Row],[Emissionsfaktor  (kg CO2e / kg )]]/1000,\"k.A.\")","v":0}]
[null,null,null,"Sonstige","Sonstige, Vegetarisch/Vegan",null,{"$f":"VLOOKUP(Scope3_THG_Lebensmittel[[#This Row],[Untergruppe]],EF_Scope3_Lebensmittel[[Untergruppe]:[Emissionsfaktor (kg CO2e/kg)]],2,FALSE)","v":1.1276041666666667},{"$f":"IFERROR(Scope3_THG_Lebensmittel[[#This Row],[Menge (kg/Jahr)]]*Scope3_THG_Lebensmittel[[#This Row],[Emissionsfaktor  (kg CO2e / kg )]]/1000,\"k.A.\")","v":0}]
[null,null,null,"Ergebnis",null,{"$f":"SUBTOTAL(109,Scope3_THG_Lebensmittel[Menge (kg/Jahr)])","v":0},null,{"$f":"SUBTOTAL(109,Scope3_THG_Lebensmittel[Ergebnis (t CO2e / Jahr)])","v":0}]
[]
[null,null,null,"Option 2"]
[null,null,null,"Lebensmittel: Top-Down","Euro / Jahr","Emissionsfaktor (kg CO2e/Euro)","Ergebnis (t CO2e / Jahr)"]
[null,null,null,"Einkaufsausgaben für Lebensmittel",null,{"$f":"EF!D328","v":0.76621682555323301},{"$f":"E206*F206/1000","v":0}]
[]
[]
[null,null,null,"Scope 3.1.6 - Eingekaufte Textilien"]
[null,null,null,"Auswahl der Berechnungsmethode"]
[null,null,null,"Option 1 (Bottom-Up): Sie können das gesamte Gewicht der Textilien ermitteln. Die Aufteilung der Materialtypen können Sie entweder durch eigene spezifische Daten oder durch Defaultwerte angeben. "]
[null,null,null,"Option 2 (Top-Down): Nur Einkaufsausgaben in Euro liegen vor."]
[null,null,null,"Option 1"]
[null,null,null,"Gesamtgewicht",null,"kg / Jahr"]
[null,null,null,null,null,null,null,null,null,{"$f":"_xlfn.UNICHAR(9733)&\"Helpdesk\"","v":"★Helpdesk"},"Defaultwerte (Cafoges)"]
[null,null,null,"Materialien","Anteil in %","kg / Jahr","Emissionsfaktor (kg CO2e/kg)","Ergebnis (t CO2e / Jahr)",null,"Materialien","Anteil in %"]
[null,null,"i","Acrylstoffe",0,{"$f":"E217*$E$214","v":0},{"$f":"VLOOKUP(D217,EF_Scope3_Textile[[Textilien]:[Emissionsfaktor (kg CO2e/kg)]],2,FALSE)","v":35.700000000000003},{"$f":"IFERROR(F217*G217/1000,\"k.A.\")","v":0},null,"Acrylstoffe",0]
[null,null,null,"Baumwolle",0.73699999999999999,0,{"$f":"VLOOKUP(D218,EF_Scope3_Textile[[Textilien]:[Emissionsfaktor (kg CO2e/kg)]],2,FALSE)","v":22.7},{"$f":"IFERROR(F218*G218/1000,\"k.A.\")","v":0},null,"Baumwolle",0.73699999999999999]
[null,null,null,"Flachs/Leinen",6.0000000000000001E-3,0,{"$f":"VLOOKUP(D219,EF_Scope3_Textile[[Textilien]:[Emissionsfaktor (kg CO2e/kg)]],2,FALSE)","v":25.9},0,null,"Flachs/Leinen",6.0000000000000001E-3]
[null,null,null,"PA6 (Nylon)",0,0,{"$f":"VLOOKUP(D220,EF_Scope3_Textile[[Textilien]:[Emissionsfaktor (kg CO2e/kg)]],2,FALSE)","v":30.9},0,null,"PA6",0]
[null,null,null,"Polyester",0.23100000000000001,0,{"$f":"VLOOKUP(D221,EF_Scope3_Textile[[Textilien]:[Emissionsfaktor (kg CO2e/kg)]],2,FALSE)","v":27.2},0,null,"Polyester",0.23100000000000001]
[null,null,null,"Poplypropylen",0,0,{"$f":"VLOOKUP(D222,EF_Scope3_Textile[[Textilien]:[Emissionsfaktor (kg CO2e/kg)]],2,FALSE)","v":25.5},0,null,"Poplypropylen",0]
[null,null,null,"Seide",0,0,{"$f":"VLOOKUP(D223,EF_Scope3_Textile[[Textilien]:[Emissionsfaktor (kg CO2e/kg)]],2,FALSE)","v":14.9},0,null,"Seide",0]
[null,null,null,"Viskose",2.5999999999999999E-2,0,{"$f":"VLOOKUP(D224,EF_Scope3_Textile[[Textilien]:[Emissionsfaktor (kg CO2e/kg)]],2,FALSE)","v":23},0,null,"Viskose",2.5999999999999999E-2]
[null,null,null,"Wollstoff",0,0,{"$f":"VLOOKUP(D225,EF_Scope3_Textile[[Textilien]:[Emissionsfaktor (kg CO2e/kg)]],2,FALSE)","v":19.5},0,null,"Wollstoff",0]
[null,null,null,"Summe: Textilien",{"$f":"SUBTOTAL(109,Scope3_THG_Textile[Anteil in %])","v":1},{"$f":"SUBTOTAL(109,Scope3_THG_Textile[kg / Jahr])","v":0},null,{"$f":"SUBTOTAL(109,Scope3_THG_Textile[Ergebnis (t CO2e / Jahr)])","v":0}]
[]
[null,null,null,"Option 2"]
[null,null,null,"Textilien: Top-Down","Euro / Jahr","Emissionsfaktor (kg CO2e/Euro)","Ergebnis (t CO2e / Jahr)"]
[null,null,null,"Einkaufsausgaben für Textilien",null,{"$f":"EF!D343","v":3.7595382169794176},{"$f":"$F$230*$E$230/1000","v":0}]
[]
[]
[null,null,null,"Scope 3.1.7 - Eingekaufte Hygieneartikel & Reinigungsmittel"]
[null,null,null,"Auswahl der Berechnungsmethode"]
[null,null,null,"Option 1 (Bottom-Up): Sie können die Gewichte der unten dargestellten Kategorien ermitteln. "]
[null,null,null,"Option 2 (Top-Down): Nur Einkaufsausgaben in Euro liegen vor."]
[]
[null,null,null,"Option 1"]
[null,null,null,"Hygieneartikel & Reinigungsmittel","kg / Jahr","Emissionsfaktor (kg CO2e/kg)","Ergebnis (t CO2e / Jahr)"]
[null,null,"i","Hygienepapier, Primärfaser",null,{"$f":"VLOOKUP(D240,EF_Scope3_Hygiene_Reinigung[[Hygieneartikel & Renigungsmittel]:[Emissionsfaktor (kg CO2e/kg)]],2,FALSE)","v":1.353},{"$f":"IFERROR(Scope3_THG_Hygiene[[#This Row],[kg / Jahr]]*Scope3_THG_Hygiene[[#This Row],[Emissionsfaktor (kg CO2e/kg)]]/1000,\"k.A.\")","v":0}]
[null,null,null,"Hygienepapier, Recyclingfaser",null,{"$f":"VLOOKUP(D241,EF_Scope3_Hygiene_Reinigung[[Hygieneartikel & Renigungsmittel]:[Emissionsfaktor (kg CO2e/kg)]],2,FALSE)","v":1.1930000000000001},{"$f":"IFERROR(Scope3_THG_Hygiene[[#This Row],[kg / Jahr]]*Scope3_THG_Hygiene[[#This Row],[Emissionsfaktor (kg CO2e/kg)]]/1000,\"k.A.\")","v":0}]
[null,null,null,"Körperpflegemittel",null,{"$f":"VLOOKUP(D242,EF_Scope3_Hygiene_Reinigung[[Hygieneartikel & Renigungsmittel]:[Emissionsfaktor (kg CO2e/kg)]],2,FALSE)","v":0.5},{"$f":"IFERROR(Scope3_THG_Hygiene[[#This Row],[kg / Jahr]]*Scope3_THG_Hygiene[[#This Row],[Emissionsfaktor (kg CO2e/kg)]]/1000,\"k.A.\")","v":0}]
[null,null,null,"Sonstige Hygieneartikel, z.B. Haarbürste",null,{"$f":"VLOOKUP(D243,EF_Scope3_Hygiene_Reinigung[[Hygieneartikel & Renigungsmittel]:[Emissionsfaktor (kg CO2e/kg)]],2,FALSE)","v":3.218},{"$f":"IFERROR(Scope3_THG_Hygiene[[#This Row],[kg / Jahr]]*Scope3_THG_Hygiene[[#This Row],[Emissionsfaktor (kg CO2e/kg)]]/1000,\"k.A.\")","v":0}]
[null,null,null,"Reinigungschemikalien",null,{"$f":"VLOOKUP(D244,EF_Scope3_Hygiene_Reinigung[[Hygieneartikel & Renigungsmittel]:[Emissionsfaktor (kg CO2e/kg)]],2,FALSE)","v":0.46440999999999999},{"$f":"IFERROR(Scope3_THG_Hygiene[[#This Row],[kg / Jahr]]*Scope3_THG_Hygiene[[#This Row],[Emissionsfaktor (kg CO2e/kg)]]/1000,\"k.A.\")","v":0}]
[null,null,null,"Reinigungsutensilien",null,{"$f":"VLOOKUP(D245,EF_Scope3_Hygiene_Reinigung[[Hygieneartikel & Renigungsmittel]:[Emissionsfaktor (kg CO2e/kg)]],2,FALSE)","v":1.9410000000000001},{"$f":"IFERROR(Scope3_THG_Hygiene[[#This Row],[kg / Jahr]]*Scope3_THG_Hygiene[[#This Row],[Emissionsfaktor (kg CO2e/kg)]]/1000,\"k.A.\")","v":0}]
[null,null,null,"Summe: Hygieneartikel & Reinigungsmittel",{"$f":"SUBTOTAL(109,Scope3_THG_Hygiene[kg / Jahr])","v":0},null,{"$f":"SUBTOTAL(109,Scope3_THG_Hygiene[Ergebnis (t CO2e / Jahr)])","v":0}]
[]
[null,null,null,"Option 2"]
[null,null,null,"Hygieneartikel & Reinigungsmittel: \nTop-Down","Euro / Jahr","Emissionsfaktor (kg CO2e/Euro)","Ergebnis (t CO2e / Jahr)"]
[null,null,null,"Einkaufsausgaben für Hygieneartikel & Reinigungsmittel",null,0.32025422652403279,{"$f":"E250*F250/1000","v":0}]
[]
[]
[null,null,null,"Scope 3.1.8 - Eingekauftes Papier/Pappe"]
[null,null,null,"Auswahl der Berechnungsmethode"]
[null,null,null,"Option 1 (Bottom-Up): Sie können die Gewichte der in unten dargestellten Kategorien ermitteln. "]
[null,null,null,"Option 2 (Top-Down): Nur Einkaufsausgaben in Euro liegen vor."]
[]
[null,null,null,"Papier/Pappe","kg / Jahr","Emissionsfaktor (kg CO2e/kg)","Ergebnis (t CO2e / Jahr)"]
[null,null,null,"Druckerzeugnisse",null,{"$f":"VLOOKUP(Scope3_THG_Papier[[#This Row],[Papier/Pappe]],EF_Scope3_Papier[[Papier/Pappe]:[Emissionsfaktor (kg CO2e/kg)]],2,FALSE)","v":0.96111999999999997},{"$f":"IFERROR(Scope3_THG_Papier[[#This Row],[kg / Jahr]]*Scope3_THG_Papier[[#This Row],[Emissionsfaktor (kg CO2e/kg)]]/1000,\"k.A.\")","v":0}]
[null,null,null,"Etiketten",null,{"$f":"VLOOKUP(Scope3_THG_Papier[[#This Row],[Papier/Pappe]],EF_Scope3_Papier[[Papier/Pappe]:[Emissionsfaktor (kg CO2e/kg)]],2,FALSE)","v":2.1113862377754216},{"$f":"IFERROR(Scope3_THG_Papier[[#This Row],[kg / Jahr]]*Scope3_THG_Papier[[#This Row],[Emissionsfaktor (kg CO2e/kg)]]/1000,\"k.A.\")","v":0}]
[null,null,"i","Papier, Primärfaser",null,{"$f":"VLOOKUP(Scope3_THG_Papier[[#This Row],[Papier/Pappe]],EF_Scope3_Papier[[Papier/Pappe]:[Emissionsfaktor (kg CO2e/kg)]],2,FALSE)","v":0.97099999999999997},{"$f":"IFERROR(Scope3_THG_Papier[[#This Row],[kg / Jahr]]*Scope3_THG_Papier[[#This Row],[Emissionsfaktor (kg CO2e/kg)]]/1000,\"k.A.\")","v":0}]
[null,null,null,"Papier, Reyclingfaser",null,{"$f":"VLOOKUP(Scope3_THG_Papier[[#This Row],[Papier/Pappe]],EF_Scope3_Papier[[Papier/Pappe]:[Emissionsfaktor (kg CO2e/kg)]],2,FALSE)","v":0.82199999999999995},{"$f":"IFERROR(Scope3_THG_Papier[[#This Row],[kg / Jahr]]*Scope3_THG_Papier[[#This Row],[Emissionsfaktor (kg CO2e/kg)]]/1000,\"k.A.\")","v":0}]
[null,null,null,"Versandbedarf",null,{"$f":"VLOOKUP(Scope3_THG_Papier[[#This Row],[Papier/Pappe]],EF_Scope3_Papier[[Papier/Pappe]:[Emissionsfaktor (kg CO2e/kg)]],2,FALSE)","v":0.94881000000000004},{"$f":"IFERROR(Scope3_THG_Papier[[#This Row],[kg / Jahr]]*Scope3_THG_Papier[[#This Row],[Emissionsfaktor (kg CO2e/kg)]]/1000,\"k.A.\")","v":0}]
[null,null,null,"Summe",{"$f":"SUBTOTAL(109,Scope3_THG_Papier[kg / Jahr])","v":0},null,{"$f":"SUBTOTAL(109,Scope3_THG_Papier[Ergebnis (t CO2e / Jahr)])","v":0}]
[]
[null,null,null,"Option 2"]
[null,null,null,"Papier/Pappe: Top-Down","Euro / Jahr","Emissionsfaktor (kg CO2e/Euro)","Ergebnis (t CO2e / Jahr)"]
[null,null,null,"Einkaufsausgaben",null,{"$f":"EF!D366","v":1.1306314394650332},{"$f":"E268*F268/1000","v":0}]
[]
[]
[null,null,null,"Scope 3.1.9 - Wasserverbrauch (Bottom-Up)"]
[null,null,null,"Wasserverbrauch","Verbrauchsmenge (t / Jahr)","Emissionsfaktor  \n(t CO2e / t )","Ergebnis (t CO2e / Jahr)"]
[null,null,null,"Leitungswasser",null,{"$f":"VLOOKUP(D273,EF_Scope3_Wasser[[Wasser]:[Emissionsfaktor (kg CO2e/kg)]],2,FALSE)","v":3.3E-4},{"$f":"IFERROR(E273*F273,\"k.A.\")","v":0}]
[null,null,null,"Entsalztes Wasser",null,{"$f":"VLOOKUP(D274,EF_Scope3_Wasser[[Wasser]:[Emissionsfaktor (kg CO2e/kg)]],2,FALSE)","v":4.4000000000000002E-4},{"$f":"IFERROR(E274*F274,\"k.A.\")","v":0}]
[null,null,null,"Summe (Wasser)",{"$f":"SUBTOTAL(109,Scope3_THG_Wasser[Verbrauchsmenge (t / Jahr)])","v":0},null,{"$f":"SUBTOTAL(109,Scope3_THG_Wasser[Ergebnis (t CO2e / Jahr)])","v":0}]
[]
[]
[null,null,null,"Scope 3.1.10 - Externe Dienstleistungen: Serverraum & Internet (Bottom-Up)"]
[null,null,null,"Die Datenmenge im Festnetz kann anhand der Anzahl der Anschlüsse und der eingeschätzen Übertragungsdaten ermittelt werden."]
[null,null,null,"Die Datenmenge im Mobilfunknetz kann anhand der Anzahl der Diensthandys und der eingeschätzten Übertragungsdaten ermittelt werden.",null,null,null,{"$f":"_xlfn.UNICHAR(9733)&\"Helpdesk\"","v":"★Helpdesk"}]
[null,null,null,"Anzahl der Diensthandys",null,"Stück/Jahr",null,"Defaultwerte für Datenvolumen ",null,"Quelle"]
[null,null,null,"Anzahl der Festnetzanschlüsse",null,"Stück/Jahr",null,"in Festnetz (2019)",142,"im Durchschnitt pro Anschluss und Monat in GB [18]"]
[null,null,"i","Datenvolumen in Festnetz",{"$f":"I282","v":142},"GB/Anschluss/Monat",null,"in Festnetz (2020)",187,"im Durchschnitt pro Anschluss und Monat in GB [18]"]
[null,null,null,"Datenvolumen in Mobilnetz",{"$f":"I285","v":5},"GB/Handy/Monat; ",null,"in Festnetz (2021)",225,"im Durchschnitt pro Anschluss und Monat in GB [18]"]
[null,null,null,null,null,null,null,"in Mobilnetz",5,"pro aktiver SIM-Karte und Monat in GB; eingeschätzt auf Basis von [18]"]
[]
[null,null,null,"Sie können die Berechnungsformeln in den gelbmarkierten Bereichen der untenstehenden Tabelle verwenden, falls Sie die Datenvolumen anhand der Information im Helpdesk ermittelt haben. "]
[null,null,null,"Alternativ können Sie auch die Datenvolumen direkt in die gelbmarkierten Bereiche eintragen."]
[null,null,null,"Externe Dienstleistung: Internet","Übertragungsdatenvolumen\n (GB/Jahr)","Emissionsfaktor (kg CO2e/GB )","Ergebnis (t CO2e/Jahr)"]
[null,null,null,"Datenmenge in Mobilfunknetz",{"$f":"IFERROR($E$281*$E$284*12,\"k.A.\")","v":0},{"$f":"VLOOKUP(D290,EF!$C$376:$E$377,3,FALSE)","v":4.3256340000000004E-2},{"$f":"IFERROR(E290*F290/1000,\"k.A.\")","v":0}]
[null,null,null,"Datenmenge in Festnetz",{"$f":"IFERROR($E$282*$E$283*12,\"k.A.\")","v":0},{"$f":"VLOOKUP(D291,EF!$C$376:$E$377,3,FALSE)","v":2.8116621E-3},{"$f":"IFERROR(E291*F291/1000,\"k.A.\")","v":0}]
[null,null,null,"Summe (Externe Serverraum & Internet)",{"$f":"SUBTOTAL(109,Scope3_THG_Internet[Übertragungsdatenvolumen\n (GB/Jahr)])","v":0},null,{"$f":"SUBTOTAL(109,Scope3_THG_Internet[Ergebnis (t CO2e/Jahr)])","v":0}]
[]
[]
[null,null,null,"Externe Dienstleistung: externer Serverraum","Stromverbrauch (kWh / Jahr)","Auswahl der Emissionsfaktoren","Emissionsfaktor (kg CO2e / GWP )","Ergebnis (t CO2e / Jahr)"]
[null,null,null,"Stromverbrauch",null,"Defaultwerte",0.43256339999999999,{"$f":"IFERROR(E296*G296/1000,\"k.A.\")","v":0}]
[]
[]
[null,"Kategorie 2: Kapitalgüter "]
[null,null,null,"Scope 3.2.1 - Eingekaufte IT-Geräte (Bottom-Up)"]
[null,null,null,"Ein Krankenhaus beinhaltet verschiedene Kapitalgüter. Im Rahmen des verfügbaren Budgets konnten nur die kurzlebigen IT-Geräte betrachtet werden."]
[null,null,null,"IT-Geräte","Stückzahl","Emissionsfaktor (kg CO2e / Stück )","Ergebnis (t CO2e / Jahr)"]
[null,null,null,"Desktop-PC (ohne Monitor)",null,{"$f":"VLOOKUP(D303,EF_Scope3_IT_geräte[[IT-Geräte]:[Emissionsfaktor (kg CO2e/Stück)]],2,FALSE)","v":372.8},{"$f":"IFERROR(Scope3_THG_IT_Geräte[[#This Row],[Stückzahl]]*Scope3_THG_IT_Geräte[[#This Row],[Emissionsfaktor (kg CO2e / Stück )]]/1000,\"k.A.\")","v":0}]
[null,null,null,"Laptop",null,{"$f":"VLOOKUP(D304,EF_Scope3_IT_geräte[[IT-Geräte]:[Emissionsfaktor (kg CO2e/Stück)]],2,FALSE)","v":283.39999999999998},{"$f":"IFERROR(Scope3_THG_IT_Geräte[[#This Row],[Stückzahl]]*Scope3_THG_IT_Geräte[[#This Row],[Emissionsfaktor (kg CO2e / Stück )]]/1000,\"k.A.\")","v":0}]
[null,null,null,"Server",null,{"$f":"VLOOKUP(D305,EF_Scope3_IT_geräte[[IT-Geräte]:[Emissionsfaktor (kg CO2e/Stück)]],2,FALSE)","v":571},{"$f":"IFERROR(Scope3_THG_IT_Geräte[[#This Row],[Stückzahl]]*Scope3_THG_IT_Geräte[[#This Row],[Emissionsfaktor (kg CO2e / Stück )]]/1000,\"k.A.\")","v":0}]
[null,null,null,"Drucker ",null,{"$f":"VLOOKUP(D306,EF_Scope3_IT_geräte[[IT-Geräte]:[Emissionsfaktor (kg CO2e/Stück)]],2,FALSE)","v":100.7},{"$f":"IFERROR(Scope3_THG_IT_Geräte[[#This Row],[Stückzahl]]*Scope3_THG_IT_Geräte[[#This Row],[Emissionsfaktor (kg CO2e / Stück )]]/1000,\"k.A.\")","v":0}]
[null,null,null,"Smartphone",null,{"$f":"VLOOKUP(D307,EF_Scope3_IT_geräte[[IT-Geräte]:[Emissionsfaktor (kg CO2e/Stück)]],2,FALSE)","v":50.5},{"$f":"IFERROR(Scope3_THG_IT_Geräte[[#This Row],[Stückzahl]]*Scope3_THG_IT_Geräte[[#This Row],[Emissionsfaktor (kg CO2e / Stück )]]/1000,\"k.A.\")","v":0}]
[null,null,null,"Tablet",null,{"$f":"VLOOKUP(D308,EF_Scope3_IT_geräte[[IT-Geräte]:[Emissionsfaktor (kg CO2e/Stück)]],2,FALSE)","v":116.1},{"$f":"IFERROR(Scope3_THG_IT_Geräte[[#This Row],[Stückzahl]]*Scope3_THG_IT_Geräte[[#This Row],[Emissionsfaktor (kg CO2e / Stück )]]/1000,\"k.A.\")","v":0}]
[null,null,null,"Desktop Monitor",null,{"$f":"VLOOKUP(D309,EF_Scope3_IT_geräte[[IT-Geräte]:[Emissionsfaktor (kg CO2e/Stück)]],2,FALSE)","v":393.6},{"$f":"IFERROR(Scope3_THG_IT_Geräte[[#This Row],[Stückzahl]]*Scope3_THG_IT_Geräte[[#This Row],[Emissionsfaktor (kg CO2e / Stück )]]/1000,\"k.A.\")","v":0}]
[null,null,null,"Summe (IT-Geräte)",{"$f":"SUBTOTAL(109,Scope3_THG_IT_Geräte[Stückzahl])","v":0},null,{"$f":"SUBTOTAL(109,Scope3_THG_IT_Geräte[Ergebnis (t CO2e / Jahr)])","v":0}]
[]
[]
[]
[null,"Kategorie 3: Brennstoff- und energiebezogene Emissionen "]
[null,null,null,"Scope 3.3 - Brennstoff- und energiebezogene Emissionen (Bottom-Up)"]
[null,null,null,"Erfassung der vorgelagerten indirekten Emissionen (z.B. Abbau, Produktion) der Energieträger."]
[null,null,null,"•Subkategorie: Vorkette aus Scope 1.1 (Selbstproduzierte Energie)"]
[null,null,null,"Schritt 1: Erfassung des Anteils der Eigennutzung"]
[null,null,null,"Hintergrund ist, dass die Scope 3.3 Emissionen, die auf die eigene Energieerzeugung zurückzuführen sind und an eine andere Organisation verkauft werden, nach GHG-Protocol als \"optional information\" dargestellt werden können.  "]
[null,null,null,"Daher wurde die Vorkette der verkauften Energie im vorliegenden Tool nicht betrachtet."]
[]
[null,null,null,"Erfassung der Eigennutzungsrate ","Menge","Einheit"]
[null,null,null,"Gesamte selberproduzierte Energie",null,"MWh / Jahr"]
[null,null,"i","an Dritte verkaufte Energie",null,"MWh / Jahr"]
[null,null,null,"Anteil der Eigennutzung in %",{"$f":"IFERROR(($E$323-$E$324)/$E$323,\"k.A.\")","v":"k.A."},"Mit dieser Ratio werden die mit Eigennutzung verbundenen Emissionen aus der Vorkette für Ihre Bilanz berücksichtigt."]
[]
[null,null,null,"Schritt 2: Erfassung der Primärenergie der gesamten selberproduzierten Energie "]
[null,null,null,"Hinweis: Falls Sie Option 2 im Blatt \"Scope_1\" verwendet haben, können Sie direkt diese Daten hierher kopieren. "]
[null,null,null,"Energieträger (Gesamt)","Verbrauchsmenge","Einheit / Jahr","Heizwert je Energieträger","kWh / Einheit ","Energie (MWh/a)","Anmerkung"]
[null,null,null,"Erdgas",null,"m³",null,{"$f":"\"kWh /  \" & F330","v":"kWh /  m³"},{"$f":"Brechnung_Brennstoffe_Scope1_Kopie[[#This Row],[Verbrauchsmenge]]*Brechnung_Brennstoffe_Scope1_Kopie[[#This Row],[Heizwert je Energieträger]]/1000","v":0},"bezogen auf Primärenergie"]
[null,null,null,"Öl",null,"Liter",null,{"$f":"\"kWh /  \" & F331","v":"kWh /  Liter"},{"$f":"Brechnung_Brennstoffe_Scope1_Kopie[[#This Row],[Verbrauchsmenge]]*Brechnung_Brennstoffe_Scope1_Kopie[[#This Row],[Heizwert je Energieträger]]/1000","v":0},"bezogen auf Primärenergie"]
[null,null,null,"Braunkohle",null,"Tonnen",null,"kWh /  Tonnen",{"$f":"Brechnung_Brennstoffe_Scope1_Kopie[[#This Row],[Verbrauchsmenge]]*Brechnung_Brennstoffe_Scope1_Kopie[[#This Row],[Heizwert je Energieträger]]/1000","v":0},"bezogen auf Primärenergie"]
[null,null,null,"Steinkohle",null,"Tonnen",null,"kWh /  Tonnen",{"$f":"Brechnung_Brennstoffe_Scope1_Kopie[[#This Row],[Verbrauchsmenge]]*Brechnung_Brennstoffe_Scope1_Kopie[[#This Row],[Heizwert je Energieträger]]/1000","v":0},"bezogen auf Primärenergie"]
[null,null,null,"Holz",null,"Tonnen",null,"kWh /  Tonnen",{"$f":"Brechnung_Brennstoffe_Scope1_Kopie[[#This Row],[Verbrauchsmenge]]*Brechnung_Brennstoffe_Scope1_Kopie[[#This Row],[Heizwert je Energieträger]]/1000","v":0},"bezogen auf Primärenergie"]
[null,null,null,"Biogas/Biomethan (Energiepflanzen, Gülle, \nAbfall)",null,"m³",null,"kWh /  m³",{"$f":"Brechnung_Brennstoffe_Scope1_Kopie[[#This Row],[Verbrauchsmenge]]*Brechnung_Brennstoffe_Scope1_Kopie[[#This Row],[Heizwert je Energieträger]]/1000","v":0},"bezogen auf Primärenergie"]
[null,null,null,"Flüssige Biomasse (z.B. Pflanzenöl)",null,"Liter",null,"kWh /  Liter",{"$f":"Brechnung_Brennstoffe_Scope1_Kopie[[#This Row],[Verbrauchsmenge]]*Brechnung_Brennstoffe_Scope1_Kopie[[#This Row],[Heizwert je Energieträger]]/1000","v":0},"bezogen auf Primärenergie"]
[null,null,null,"Photovoltaik",null,null,null,null,null,"bezogen auf Endenergie"]
[null,null,null,"Windenergie an Land",null,null,null,null,null,"bezogen auf Endenergie"]
[null,null,null,"Windenergie auf See",null,null,null,null,null,"bezogen auf Endenergie"]
[null,null,null,"Wasserkraft ",null,null,null,null,null,"bezogen auf Endenergie"]
[null,null,null,"Geothermie (Erdwärme)",null,null,null,null,null,"bezogen auf Endenergie"]
[]
[null,null,null,"Berechnung der mit der Eigennutzung verbundenen Emissionen "]
[null,null,null,"Energieträger (Eigene Nutzung)","Primärenergie (MWh/a)","Emissionsfaktor: \nkg CO2e / kWh","Ergebnis (t CO2e / Jahr)"]
[null,null,null,"Erdgas",{"$f":"IFERROR(I330*Energie_EigenNutzungsrate,\"k.A.\")","v":"k.A."},{"$f":"VLOOKUP(Brechnung_Brennstoffe_Scope3_EigeneNutzung[[#This Row],[Energieträger (Eigene Nutzung)]],EF_Scope3_Energie_ausScope1[[#All],[Energieträger (Scope 3)]:[Emissionsfaktor (kg CO2e/ kWh Primärenergie)]],2,FALSE)","v":3.99184E-2},{"$f":"IFERROR(Brechnung_Brennstoffe_Scope3_EigeneNutzung[[#This Row],[Primärenergie (MWh/a)]]*Brechnung_Brennstoffe_Scope3_EigeneNutzung[[#This Row],[Emissionsfaktor: \nkg CO2e / kWh]],\"k.A.\")","v":"k.A."}]
[null,null,null,"Öl",{"$f":"IFERROR(I331*Energie_EigenNutzungsrate,\"k.A.\")","v":"k.A."},{"$f":"VLOOKUP(Brechnung_Brennstoffe_Scope3_EigeneNutzung[[#This Row],[Energieträger (Eigene Nutzung)]],EF_Scope3_Energie_ausScope1[[#All],[Energieträger (Scope 3)]:[Emissionsfaktor (kg CO2e/ kWh Primärenergie)]],2,FALSE)","v":4.3710800000000001E-2},{"$f":"IFERROR(Brechnung_Brennstoffe_Scope3_EigeneNutzung[[#This Row],[Primärenergie (MWh/a)]]*Brechnung_Brennstoffe_Scope3_EigeneNutzung[[#This Row],[Emissionsfaktor: \nkg CO2e / kWh]],\"k.A.\")","v":"k.A."}]
[null,null,null,"Braunkohle","k.A.",{"$f":"VLOOKUP(Brechnung_Brennstoffe_Scope3_EigeneNutzung[[#This Row],[Energieträger (Eigene Nutzung)]],EF_Scope3_Energie_ausScope1[[#All],[Energieträger (Scope 3)]:[Emissionsfaktor (kg CO2e/ kWh Primärenergie)]],2,FALSE)","v":1.0624600000000001E-2},{"$f":"IFERROR(Brechnung_Brennstoffe_Scope3_EigeneNutzung[[#This Row],[Primärenergie (MWh/a)]]*Brechnung_Brennstoffe_Scope3_EigeneNutzung[[#This Row],[Emissionsfaktor: \nkg CO2e / kWh]],\"k.A.\")","v":"k.A."}]
[null,null,null,"Steinkohle","k.A.",{"$f":"VLOOKUP(Brechnung_Brennstoffe_Scope3_EigeneNutzung[[#This Row],[Energieträger (Eigene Nutzung)]],EF_Scope3_Energie_ausScope1[[#All],[Energieträger (Scope 3)]:[Emissionsfaktor (kg CO2e/ kWh Primärenergie)]],2,FALSE)","v":4.4188600000000001E-2},{"$f":"IFERROR(Brechnung_Brennstoffe_Scope3_EigeneNutzung[[#This Row],[Primärenergie (MWh/a)]]*Brechnung_Brennstoffe_Scope3_EigeneNutzung[[#This Row],[Emissionsfaktor: \nkg CO2e / kWh]],\"k.A.\")","v":"k.A."}]
[null,null,null,"Holz","k.A.",{"$f":"VLOOKUP(Brechnung_Brennstoffe_Scope3_EigeneNutzung[[#This Row],[Energieträger (Eigene Nutzung)]],EF_Scope3_Energie_ausScope1[[#All],[Energieträger (Scope 3)]:[Emissionsfaktor (kg CO2e/ kWh Primärenergie)]],2,FALSE)","v":2.1000000000000001E-2},{"$f":"IFERROR(Brechnung_Brennstoffe_Scope3_EigeneNutzung[[#This Row],[Primärenergie (MWh/a)]]*Brechnung_Brennstoffe_Scope3_EigeneNutzung[[#This Row],[Emissionsfaktor: \nkg CO2e / kWh]],\"k.A.\")","v":"k.A."}]
[null,null,null,"Biogas/Biomethan (Energiepflanzen, Gülle, Abfall)","k.A.",{"$f":"VLOOKUP(Brechnung_Brennstoffe_Scope3_EigeneNutzung[[#This Row],[Energieträger (Eigene Nutzung)]],EF_Scope3_Energie_ausScope1[[#All],[Energieträger (Scope 3)]:[Emissionsfaktor (kg CO2e/ kWh Primärenergie)]],2,FALSE)","v":0.11823301284683101},{"$f":"IFERROR(Brechnung_Brennstoffe_Scope3_EigeneNutzung[[#This Row],[Primärenergie (MWh/a)]]*Brechnung_Brennstoffe_Scope3_EigeneNutzung[[#This Row],[Emissionsfaktor: \nkg CO2e / kWh]],\"k.A.\")","v":"k.A."}]
[null,null,null,"Flüssige Biomasse (z.B. Pflanzenöl)","k.A.",{"$f":"VLOOKUP(Brechnung_Brennstoffe_Scope3_EigeneNutzung[[#This Row],[Energieträger (Eigene Nutzung)]],EF_Scope3_Energie_ausScope1[[#All],[Energieträger (Scope 3)]:[Emissionsfaktor (kg CO2e/ kWh Primärenergie)]],2,FALSE)","v":0.12723103399999999},{"$f":"IFERROR(Brechnung_Brennstoffe_Scope3_EigeneNutzung[[#This Row],[Primärenergie (MWh/a)]]*Brechnung_Brennstoffe_Scope3_EigeneNutzung[[#This Row],[Emissionsfaktor: \nkg CO2e / kWh]],\"k.A.\")","v":"k.A."}]
[null,null,null,"Photovoltaik","k.A.",{"$f":"VLOOKUP(Brechnung_Brennstoffe_Scope3_EigeneNutzung[[#This Row],[Energieträger (Eigene Nutzung)]],EF_Scope3_Energie_ausScope1[[#All],[Energieträger (Scope 3)]:[Emissionsfaktor (kg CO2e/ kWh Primärenergie)]],2,FALSE)","v":5.6860799999999996E-2},{"$f":"IFERROR(Brechnung_Brennstoffe_Scope3_EigeneNutzung[[#This Row],[Primärenergie (MWh/a)]]*Brechnung_Brennstoffe_Scope3_EigeneNutzung[[#This Row],[Emissionsfaktor: \nkg CO2e / kWh]],\"k.A.\")","v":"k.A."}]
[null,null,null,"Windenergie an Land","k.A.",{"$f":"VLOOKUP(Brechnung_Brennstoffe_Scope3_EigeneNutzung[[#This Row],[Energieträger (Eigene Nutzung)]],EF_Scope3_Energie_ausScope1[[#All],[Energieträger (Scope 3)]:[Emissionsfaktor (kg CO2e/ kWh Primärenergie)]],2,FALSE)","v":1.7640799999999998E-2},{"$f":"IFERROR(Brechnung_Brennstoffe_Scope3_EigeneNutzung[[#This Row],[Primärenergie (MWh/a)]]*Brechnung_Brennstoffe_Scope3_EigeneNutzung[[#This Row],[Emissionsfaktor: \nkg CO2e / kWh]],\"k.A.\")","v":"k.A."}]
[null,null,null,"Windenergie auf See","k.A.",{"$f":"VLOOKUP(Brechnung_Brennstoffe_Scope3_EigeneNutzung[[#This Row],[Energieträger (Eigene Nutzung)]],EF_Scope3_Energie_ausScope1[[#All],[Energieträger (Scope 3)]:[Emissionsfaktor (kg CO2e/ kWh Primärenergie)]],2,FALSE)","v":9.6449999999999991E-3},{"$f":"IFERROR(Brechnung_Brennstoffe_Scope3_EigeneNutzung[[#This Row],[Primärenergie (MWh/a)]]*Brechnung_Brennstoffe_Scope3_EigeneNutzung[[#This Row],[Emissionsfaktor: \nkg CO2e / kWh]],\"k.A.\")","v":"k.A."}]
[null,null,null,"Wasserkraft ","k.A.",{"$f":"VLOOKUP(Brechnung_Brennstoffe_Scope3_EigeneNutzung[[#This Row],[Energieträger (Eigene Nutzung)]],EF_Scope3_Energie_ausScope1[[#All],[Energieträger (Scope 3)]:[Emissionsfaktor (kg CO2e/ kWh Primärenergie)]],2,FALSE)","v":4.3037579085252707E-3},{"$f":"IFERROR(Brechnung_Brennstoffe_Scope3_EigeneNutzung[[#This Row],[Primärenergie (MWh/a)]]*Brechnung_Brennstoffe_Scope3_EigeneNutzung[[#This Row],[Emissionsfaktor: \nkg CO2e / kWh]],\"k.A.\")","v":"k.A."}]
[null,null,null,"Geothermie (Erdwärme)","k.A.",{"$f":"VLOOKUP(Brechnung_Brennstoffe_Scope3_EigeneNutzung[[#This Row],[Energieträger (Eigene Nutzung)]],EF_Scope3_Energie_ausScope1[[#All],[Energieträger (Scope 3)]:[Emissionsfaktor (kg CO2e/ kWh Primärenergie)]],2,FALSE)","v":0.1455912},{"$f":"IFERROR(Brechnung_Brennstoffe_Scope3_EigeneNutzung[[#This Row],[Primärenergie (MWh/a)]]*Brechnung_Brennstoffe_Scope3_EigeneNutzung[[#This Row],[Emissionsfaktor: \nkg CO2e / kWh]],\"k.A.\")","v":"k.A."}]
[null,null,null,"Summe",null,null,{"$f":"SUBTOTAL(109,Brechnung_Brennstoffe_Scope3_EigeneNutzung[Ergebnis (t CO2e / Jahr)])","v":0}]
[]
[null,null,null,"•Subkategorie: Vorkette aus Scope 1.2 (verwendete Kraftstoffe für eigenen Fuhrpark) "]
[null,null,null,"Verbrauchsdaten werden direkt aus \"Scope 1.2 - Direkte Emissionen aus Verbrennungsprozessen mobiler Anlagen\" im Blatt \"Scope 1\" übernommen. "]
[null,null,null,"Kraftstoffe","Verbrauchsmenge  ","Einheit / Jahr","Emissionsfaktor","Ergebnis (t CO2e / Jahr)"]
[null,null,null,"Benzin",{"$f":"VLOOKUP(Result_THG_Scope3_Kraftstoffe[[#This Row],[Kraftstoffe]],Tabelle20[[Kraftstoffe]:[Einheit / Jahr]],2,FALSE)","v":0},{"$f":"Scope_1!G53","v":"Liter / Jahr"},{"$f":"VLOOKUP(D362,EF_Scope3_Kraftstoffe_Well2Tank[[Kraftstoffe (Scope 3)]:[Emissionsfaktor ]],2,FALSE)","v":0.45999999999999996},{"$f":"IFERROR(Result_THG_Scope3_Kraftstoffe[[#This Row],[Verbrauchsmenge  ]]*Result_THG_Scope3_Kraftstoffe[[#This Row],[Emissionsfaktor]]/1000,\"k.A.\")","v":0}]
[null,null,null,"Benzin E5 (5 Vol.-% Bioethanol)",{"$f":"VLOOKUP(Result_THG_Scope3_Kraftstoffe[[#This Row],[Kraftstoffe]],Tabelle20[[Kraftstoffe]:[Einheit / Jahr]],2,FALSE)","v":0},{"$f":"Scope_1!G54","v":"Liter / Jahr"},{"$f":"VLOOKUP(D363,EF_Scope3_Kraftstoffe_Well2Tank[[Kraftstoffe (Scope 3)]:[Emissionsfaktor ]],2,FALSE)","v":0.5},{"$f":"IFERROR(Result_THG_Scope3_Kraftstoffe[[#This Row],[Verbrauchsmenge  ]]*Result_THG_Scope3_Kraftstoffe[[#This Row],[Emissionsfaktor]]/1000,\"k.A.\")","v":0}]
[null,null,null,"Benzin E10 (10 Vol.-% Bioethanol)",{"$f":"VLOOKUP(Result_THG_Scope3_Kraftstoffe[[#This Row],[Kraftstoffe]],Tabelle20[[Kraftstoffe]:[Einheit / Jahr]],2,FALSE)","v":0},{"$f":"Scope_1!G55","v":"Liter / Jahr"},{"$f":"VLOOKUP(D364,EF_Scope3_Kraftstoffe_Well2Tank[[Kraftstoffe (Scope 3)]:[Emissionsfaktor ]],2,FALSE)","v":0.54},{"$f":"IFERROR(Result_THG_Scope3_Kraftstoffe[[#This Row],[Verbrauchsmenge  ]]*Result_THG_Scope3_Kraftstoffe[[#This Row],[Emissionsfaktor]]/1000,\"k.A.\")","v":0}]
[null,null,null,"Diesel",{"$f":"VLOOKUP(Result_THG_Scope3_Kraftstoffe[[#This Row],[Kraftstoffe]],Tabelle20[[Kraftstoffe]:[Einheit / Jahr]],2,FALSE)","v":0},{"$f":"Scope_1!G56","v":"Liter / Jahr"},{"$f":"VLOOKUP(D365,EF_Scope3_Kraftstoffe_Well2Tank[[Kraftstoffe (Scope 3)]:[Emissionsfaktor ]],2,FALSE)","v":0.57000000000000028},{"$f":"IFERROR(Result_THG_Scope3_Kraftstoffe[[#This Row],[Verbrauchsmenge  ]]*Result_THG_Scope3_Kraftstoffe[[#This Row],[Emissionsfaktor]]/1000,\"k.A.\")","v":0}]
[null,null,null,"Diesel D7 (7 Vol.-% Biodiesel)",{"$f":"VLOOKUP(Result_THG_Scope3_Kraftstoffe[[#This Row],[Kraftstoffe]],Tabelle20[[Kraftstoffe]:[Einheit / Jahr]],2,FALSE)","v":0},{"$f":"Scope_1!G57","v":"Liter / Jahr"},{"$f":"VLOOKUP(D366,EF_Scope3_Kraftstoffe_Well2Tank[[Kraftstoffe (Scope 3)]:[Emissionsfaktor ]],2,FALSE)","v":0.66999999999999993},{"$f":"IFERROR(Result_THG_Scope3_Kraftstoffe[[#This Row],[Verbrauchsmenge  ]]*Result_THG_Scope3_Kraftstoffe[[#This Row],[Emissionsfaktor]]/1000,\"k.A.\")","v":0}]
[null,null,null,"Biodiesel",{"$f":"VLOOKUP(Result_THG_Scope3_Kraftstoffe[[#This Row],[Kraftstoffe]],Tabelle20[[Kraftstoffe]:[Einheit / Jahr]],2,FALSE)","v":0},{"$f":"Scope_1!G58","v":"Liter / Jahr"},{"$f":"VLOOKUP(D367,EF_Scope3_Kraftstoffe_Well2Tank[[Kraftstoffe (Scope 3)]:[Emissionsfaktor ]],2,FALSE)","v":1.92},{"$f":"IFERROR(Result_THG_Scope3_Kraftstoffe[[#This Row],[Verbrauchsmenge  ]]*Result_THG_Scope3_Kraftstoffe[[#This Row],[Emissionsfaktor]]/1000,\"k.A.\")","v":0}]
[null,null,null,"Autogas (LPG)",{"$f":"VLOOKUP(Result_THG_Scope3_Kraftstoffe[[#This Row],[Kraftstoffe]],Tabelle20[[Kraftstoffe]:[Einheit / Jahr]],2,FALSE)","v":0},{"$f":"Scope_1!G59","v":"Liter / Jahr"},{"$f":"VLOOKUP(D368,EF_Scope3_Kraftstoffe_Well2Tank[[Kraftstoffe (Scope 3)]:[Emissionsfaktor ]],2,FALSE)","v":0.19999999999999996},{"$f":"IFERROR(Result_THG_Scope3_Kraftstoffe[[#This Row],[Verbrauchsmenge  ]]*Result_THG_Scope3_Kraftstoffe[[#This Row],[Emissionsfaktor]]/1000,\"k.A.\")","v":0}]
[null,null,null,"Erdgas (CNG)",{"$f":"VLOOKUP(Result_THG_Scope3_Kraftstoffe[[#This Row],[Kraftstoffe]],Tabelle20[[Kraftstoffe]:[Einheit / Jahr]],2,FALSE)","v":0},{"$f":"Scope_1!G60","v":"kg / Jahr*"},{"$f":"VLOOKUP(D369,EF_Scope3_Kraftstoffe_Well2Tank[[Kraftstoffe (Scope 3)]:[Emissionsfaktor ]],2,FALSE)","v":0.38999999999999968},{"$f":"IFERROR(Result_THG_Scope3_Kraftstoffe[[#This Row],[Verbrauchsmenge  ]]*Result_THG_Scope3_Kraftstoffe[[#This Row],[Emissionsfaktor]]/1000,\"k.A.\")","v":0}]
[null,null,null,"Flugbenzin ",{"$f":"VLOOKUP(Result_THG_Scope3_Kraftstoffe[[#This Row],[Kraftstoffe]],Tabelle20[[Kraftstoffe]:[Einheit / Jahr]],2,FALSE)","v":0},{"$f":"Scope_1!G61","v":"Liter / Jahr"},{"$f":"VLOOKUP(D370,EF_Scope3_Kraftstoffe_Well2Tank[[Kraftstoffe (Scope 3)]:[Emissionsfaktor ]],2,FALSE)","v":0.50999999999999979},{"$f":"IFERROR(Result_THG_Scope3_Kraftstoffe[[#This Row],[Verbrauchsmenge  ]]*Result_THG_Scope3_Kraftstoffe[[#This Row],[Emissionsfaktor]]/1000,\"k.A.\")","v":0}]
[null,null,null,"Kerosin (Jet A1 und Jet A)",{"$f":"VLOOKUP(Result_THG_Scope3_Kraftstoffe[[#This Row],[Kraftstoffe]],Tabelle20[[Kraftstoffe]:[Einheit / Jahr]],2,FALSE)","v":0},{"$f":"Scope_1!G62","v":"Liter / Jahr"},{"$f":"VLOOKUP(D371,EF_Scope3_Kraftstoffe_Well2Tank[[Kraftstoffe (Scope 3)]:[Emissionsfaktor ]],2,FALSE)","v":0.56000000000000005},{"$f":"IFERROR(Result_THG_Scope3_Kraftstoffe[[#This Row],[Verbrauchsmenge  ]]*Result_THG_Scope3_Kraftstoffe[[#This Row],[Emissionsfaktor]]/1000,\"k.A.\")","v":0}]
[null,null,null,"Summe",null,null,null,{"$f":"SUBTOTAL(109,H362:H371)","v":0}]
[null,null,null,"*Es gibt für Erdgas (CNG) nur einen auf kg bezogenen Emissionsfaktor."]
[]
[null,null,null,"•Subkategorie: Vorkette aus Scope 2 (eingekaufte Strom/Wärme/Kälte/Dampf)"]
[null,null,null,"Die Mengen der eingekauften Strom/Wärme/Kälte/Dampf werden direkt aus dem Blatt \"Scope 2\" übernommen. "]
[null,"Ortsbezogener \nAnsatz",null,"Energie","Verbrauchsmenge \n(kWh / Jahr)","Emissionsfaktor  \n(kg CO2e / kWh )","Ergebnis (t CO2e / Jahr)"]
[null,"(Endenergie)",null,"Strommix",{"$f":"VLOOKUP(THG_Energie[[#This Row],[Energie]],Scope_2!$B$24:$C$26,2,FALSE)*1000","v":0},{"$f":"VLOOKUP(THG_Energie[[#This Row],[Energie]],EF!$C$423:$D$425,2,FALSE)","v":5.72726E-2},{"$f":"IFERROR(THG_Energie[[#This Row],[Verbrauchsmenge \n(kWh / Jahr)]]*THG_Energie[[#This Row],[Emissionsfaktor  \n(kg CO2e / kWh )]]/1000,\"k.A.\")","v":0}]
[null,null,null,"Fernwärme-Mix",{"$f":"VLOOKUP(THG_Energie[[#This Row],[Energie]],Scope_2!$B$24:$C$26,2,FALSE)*1000","v":0},{"$f":"VLOOKUP(THG_Energie[[#This Row],[Energie]],EF!$C$423:$D$425,2,FALSE)","v":4.5756999999999999E-2},{"$f":"IFERROR(THG_Energie[[#This Row],[Verbrauchsmenge \n(kWh / Jahr)]]*THG_Energie[[#This Row],[Emissionsfaktor  \n(kg CO2e / kWh )]]/1000,\"k.A.\")","v":0}]
[null,null,null,"Dampf",{"$f":"VLOOKUP(THG_Energie[[#This Row],[Energie]],Scope_2!$B$24:$C$26,2,FALSE)*1000","v":0},{"$f":"VLOOKUP(THG_Energie[[#This Row],[Energie]],EF!$C$423:$D$425,2,FALSE)","v":5.0203640296701081E-2},{"$f":"IFERROR(THG_Energie[[#This Row],[Verbrauchsmenge \n(kWh / Jahr)]]*THG_Energie[[#This Row],[Emissionsfaktor  \n(kg CO2e / kWh )]]/1000,\"k.A.\")","v":0}]
[null,null,null,"Summe (Brennstoff- und energiebezogene Emissionen, die nicht in Scope 1&2 enthalten sind)",null,null,{"$f":"SUM(THG_Energie[Ergebnis (t CO2e / Jahr)])","v":0}]
[]
[null,null,null,"Sub-Summe",null,null,"Ergebnis (t CO2e / Jahr)"]
[null,null,null,{"$f":"Scope_3.3_energiebezogene_Emissionen","v":"Scope 3.3 - Brennstoff- und energiebezogene Emissionen (Bottom-Up)"},null,null,{"$f":"Brechnung_Brennstoffe_Scope3_EigeneNutzung[[#Totals],[Ergebnis (t CO2e / Jahr)]]+H372+G381","v":0}]
[]
[]
[null,"Kategorie 5: Abfall & Abwässer (am Standort)"]
[null,null,null,"Scope 3.5 - Abfall & Abwasser (am Standort) (Bottom-Up)"]
[null,null,null,"Abfall","Menge (t / Jahr)","Emissionsfaktor \n(kg CO2e / kg) ","Ergebnis \n(t CO2e / Jahr)"]
[null,null,null,"Gewerbemischabfall zur Verbrennung",null,{"$f":"VLOOKUP(D390,EF!$C$451:$D$459,2,FALSE)","v":0.16700000000000001},{"$f":"IFERROR(E390*F390,\"k.A.\")","v":0}]
[null,null,null,"Abfälle zur Kompostierung ",null,{"$f":"VLOOKUP(D391,EF!$C$451:$D$459,2,FALSE)","v":3.7999999999999999E-2},{"$f":"IFERROR(E391*F391,\"k.A.\")","v":0}]
[null,null,null,"Sondermüllverbrennung",null,{"$f":"VLOOKUP(D392,EF!$C$451:$D$459,2,FALSE)","v":0.94899999999999995},0]
[null,null,null,"Papier Pappe Kartonage (PPK) (stoffliche Verwertung)",null,{"$f":"VLOOKUP(D393,EF!$C$451:$D$459,2,FALSE)","v":0.55970000000000009},0]
[null,null,null,"Kunststoffe (stoffliche Verwertung)",null,{"$f":"VLOOKUP(D394,EF!$C$451:$D$459,2,FALSE)","v":0.73670000000000002},0]
[null,null,null,"Kunststoffe (energetisch)",null,{"$f":"VLOOKUP(D395,EF!$C$451:$D$459,2,FALSE)","v":2.3875000000000002},0]
[null,null,null,"Kunststoffe 83% energetisch; 17% stofflich",null,{"$f":"VLOOKUP(D396,EF!$C$451:$D$459,2,FALSE)","v":2.1068639999999998},0]
[null,null,null,"Glas (stoffl. Verwertung)",null,{"$f":"VLOOKUP(D397,EF!$C$451:$D$459,2,FALSE)","v":0.38500000000000001},0]
[null,null,null,"E-Schrott (Recycling)",null,{"$f":"VLOOKUP(D398,EF!$C$451:$D$459,2,FALSE)","v":1.1479999999999999},0]
[null,null,null,"Summe",{"$f":"SUM(E390:E398)","v":0},null,{"$f":"SUM(G390:G398)","v":0}]
[]
[null,null,null,"Abwasser","Menge (m³ / Jahr)","Emissionsfaktor \n(t CO2e / m³) ","Ergebnis \n(t CO2e / Jahr)"]
[null,null,null,"Abwasserreinigung",null,{"$f":"EF!D462","v":2.7399999999999999E-4},{"$f":"IFERROR(E402*F402,\"k.A.\")","v":0}]
[]
[]
[null,"Kategorie 6: Geschäftsreisen + Übernachtungen"]
[null,null,null,"Scope 3.6.1 - Geschäftsreisen (Bottom-Up)"]
[null,null,null,"Es ist wichtig, dass bei der Berechnung der Emissionen die Entfernung für die Hin- und Rückfahrt berücksichtigt wird."]
[null,null,null,"Dienstreisen "]
[null,null,null,"Flugreisen","Oneway: Gesamte Entfernung \n(km / Jahr)","Hin- & Rückfahrt (km / Jahr)","Emissionsfaktor \n(kg CO2e / Pkm) ","Ergebnis \n(t CO2e / Jahr)"]
[null,null,null,"Flugreisen, innerhalb Deutschlands",null,{"$f":"Flugreisen_Scop3[[#This Row],[Oneway: Gesamte Entfernung \n(km / Jahr)]]*2","v":0},{"$f":"VLOOKUP(D410,EF_Scope3_Flugreisen[[Flugreisen (Klasse)]:[Total kg CO2e / Pkm (Personenkilometer)]],2,FALSE)","v":0.214},{"$f":"IFERROR(Flugreisen_Scop3[[#This Row],[Hin- & Rückfahrt (km / Jahr)]]*Flugreisen_Scop3[[#This Row],[Emissionsfaktor \n(kg CO2e / Pkm) ]]/1000,\"k.A.\")","v":0}]
[null,null,null,"Short-haul (< 3700km), Average passenger",null,{"$f":"Flugreisen_Scop3[[#This Row],[Oneway: Gesamte Entfernung \n(km / Jahr)]]*2","v":0},{"$f":"VLOOKUP(D411,EF_Scope3_Flugreisen[[Flugreisen (Klasse)]:[Total kg CO2e / Pkm (Personenkilometer)]],2,FALSE)","v":0.25871740161073831},{"$f":"IFERROR(Flugreisen_Scop3[[#This Row],[Hin- & Rückfahrt (km / Jahr)]]*Flugreisen_Scop3[[#This Row],[Emissionsfaktor \n(kg CO2e / Pkm) ]]/1000,\"k.A.\")","v":0}]
[null,null,null,"Short-haul (< 3700km), Economy class",null,{"$f":"Flugreisen_Scop3[[#This Row],[Oneway: Gesamte Entfernung \n(km / Jahr)]]*2","v":0},{"$f":"VLOOKUP(D412,EF_Scope3_Flugreisen[[Flugreisen (Klasse)]:[Total kg CO2e / Pkm (Personenkilometer)]],2,FALSE)","v":0.25449087211586013},{"$f":"IFERROR(Flugreisen_Scop3[[#This Row],[Hin- & Rückfahrt (km / Jahr)]]*Flugreisen_Scop3[[#This Row],[Emissionsfaktor \n(kg CO2e / Pkm) ]]/1000,\"k.A.\")","v":0}]
[null,null,null,"Short-haul (< 3700km), Business class",null,{"$f":"Flugreisen_Scop3[[#This Row],[Oneway: Gesamte Entfernung \n(km / Jahr)]]*2","v":0},{"$f":"VLOOKUP(D413,EF_Scope3_Flugreisen[[Flugreisen (Klasse)]:[Total kg CO2e / Pkm (Personenkilometer)]],2,FALSE)","v":0.38171614763687745},{"$f":"IFERROR(Flugreisen_Scop3[[#This Row],[Hin- & Rückfahrt (km / Jahr)]]*Flugreisen_Scop3[[#This Row],[Emissionsfaktor \n(kg CO2e / Pkm) ]]/1000,\"k.A.\")","v":0}]
[null,null,null,"Long-haul (≥ 3700km), Average passenger",null,{"$f":"Flugreisen_Scop3[[#This Row],[Oneway: Gesamte Entfernung \n(km / Jahr)]]*2","v":0},{"$f":"VLOOKUP(D414,EF_Scope3_Flugreisen[[Flugreisen (Klasse)]:[Total kg CO2e / Pkm (Personenkilometer)]],2,FALSE)","v":0.32537799150830105},{"$f":"IFERROR(Flugreisen_Scop3[[#This Row],[Hin- & Rückfahrt (km / Jahr)]]*Flugreisen_Scop3[[#This Row],[Emissionsfaktor \n(kg CO2e / Pkm) ]]/1000,\"k.A.\")","v":0}]
[null,null,null,"Long-haul (≥ 3700km), Economy class",null,{"$f":"Flugreisen_Scop3[[#This Row],[Oneway: Gesamte Entfernung \n(km / Jahr)]]*2","v":0},{"$f":"VLOOKUP(D415,EF_Scope3_Flugreisen[[Flugreisen (Klasse)]:[Total kg CO2e / Pkm (Personenkilometer)]],2,FALSE)","v":0.24918044470505127},{"$f":"IFERROR(Flugreisen_Scop3[[#This Row],[Hin- & Rückfahrt (km / Jahr)]]*Flugreisen_Scop3[[#This Row],[Emissionsfaktor \n(kg CO2e / Pkm) ]]/1000,\"k.A.\")","v":0}]
[null,null,null,"Long-haul (≥ 3700km), Premium economy class",null,{"$f":"Flugreisen_Scop3[[#This Row],[Oneway: Gesamte Entfernung \n(km / Jahr)]]*2","v":0},{"$f":"VLOOKUP(D416,EF_Scope3_Flugreisen[[Flugreisen (Klasse)]:[Total kg CO2e / Pkm (Personenkilometer)]],2,FALSE)","v":0.39869300563758392},{"$f":"IFERROR(Flugreisen_Scop3[[#This Row],[Hin- & Rückfahrt (km / Jahr)]]*Flugreisen_Scop3[[#This Row],[Emissionsfaktor \n(kg CO2e / Pkm) ]]/1000,\"k.A.\")","v":0}]
[null,null,null,"Long-haul (≥ 3700km), Business class",null,{"$f":"Flugreisen_Scop3[[#This Row],[Oneway: Gesamte Entfernung \n(km / Jahr)]]*2","v":0},{"$f":"VLOOKUP(D417,EF_Scope3_Flugreisen[[Flugreisen (Klasse)]:[Total kg CO2e / Pkm (Personenkilometer)]],2,FALSE)","v":0.72262973080890158},{"$f":"IFERROR(Flugreisen_Scop3[[#This Row],[Hin- & Rückfahrt (km / Jahr)]]*Flugreisen_Scop3[[#This Row],[Emissionsfaktor \n(kg CO2e / Pkm) ]]/1000,\"k.A.\")","v":0}]
[null,null,null,"Long-haul (≥ 3700km), First class",null,{"$f":"Flugreisen_Scop3[[#This Row],[Oneway: Gesamte Entfernung \n(km / Jahr)]]*2","v":0},{"$f":"VLOOKUP(D418,EF_Scope3_Flugreisen[[Flugreisen (Klasse)]:[Total kg CO2e / Pkm (Personenkilometer)]],2,FALSE)","v":0.99671861989403043},{"$f":"IFERROR(Flugreisen_Scop3[[#This Row],[Hin- & Rückfahrt (km / Jahr)]]*Flugreisen_Scop3[[#This Row],[Emissionsfaktor \n(kg CO2e / Pkm) ]]/1000,\"k.A.\")","v":0}]
[null,null,null,"Summe (Flugreisen)",{"$f":"SUBTOTAL(109,Flugreisen_Scop3[Oneway: Gesamte Entfernung \n(km / Jahr)])","v":0},{"$f":"SUBTOTAL(109,Flugreisen_Scop3[Hin- & Rückfahrt (km / Jahr)])","v":0},null,{"$f":"SUBTOTAL(109,Flugreisen_Scop3[Ergebnis \n(t CO2e / Jahr)])","v":0}]
[]
[null,null,null,"Landreisen","Hin- & Rückfahrt: Gesamte Entfernung (km / Jahr)","Emissionsfaktor \n(kg CO2e / Pkm) ","Ergebnis \n(t CO2e / Jahr)"]
[null,null,null,"Bahnreisen, Nahverkehr",null,{"$f":"VLOOKUP(Landreisen_Scope3[[#This Row],[Landreisen]],EF_Scope3_Landreisen[[Landreisen ]:[Total kg CO2e / Pkm (Personenkilometer)]],2,FALSE)","v":5.0999999999999997E-2},{"$f":"IFERROR(Landreisen_Scope3[[#This Row],[Hin- & Rückfahrt: Gesamte Entfernung (km / Jahr)]]*Landreisen_Scope3[[#This Row],[Emissionsfaktor \n(kg CO2e / Pkm) ]]/1000,\"k.A.\")","v":0}]
[null,null,null,"Bahnreisen, Fernverkehr",null,{"$f":"VLOOKUP(Landreisen_Scope3[[#This Row],[Landreisen]],EF_Scope3_Landreisen[[Landreisen ]:[Total kg CO2e / Pkm (Personenkilometer)]],2,FALSE)","v":2.7E-2},{"$f":"IFERROR(Landreisen_Scope3[[#This Row],[Hin- & Rückfahrt: Gesamte Entfernung (km / Jahr)]]*Landreisen_Scope3[[#This Row],[Emissionsfaktor \n(kg CO2e / Pkm) ]]/1000,\"k.A.\")","v":0}]
[null,null,null,"Autos (außerhalb des eigenen Fuhrparks)",null,{"$f":"VLOOKUP(Landreisen_Scope3[[#This Row],[Landreisen]],EF_Scope3_Landreisen[[Landreisen ]:[Total kg CO2e / Pkm (Personenkilometer)]],2,FALSE)","v":0.16400000000000001},{"$f":"IFERROR(Landreisen_Scope3[[#This Row],[Hin- & Rückfahrt: Gesamte Entfernung (km / Jahr)]]*Landreisen_Scope3[[#This Row],[Emissionsfaktor \n(kg CO2e / Pkm) ]]/1000,\"k.A.\")","v":0}]
[null,null,null,"Summe (Landreisen)",{"$f":"SUBTOTAL(109,Landreisen_Scope3[Hin- & Rückfahrt: Gesamte Entfernung (km / Jahr)])","v":0},null,{"$f":"SUBTOTAL(109,Landreisen_Scope3[Ergebnis \n(t CO2e / Jahr)])","v":0}]
[]
[]
[null,null,null,"Scope 3.6.2 - Übernachtung bei Dienstreisen (Bottom-Up)"]
[null,null,null,"In der Dropdownliste wird eine beschränkte Auswahl von Ländern dargestellt. Falls die Dropdownliste keine Angaben zu Zieldestinationen enthält, geben Sie bitte die Ländernamen und entsprechende Kontinente selbst ein. "]
[null,null,null,"Die Emissionsfaktoren werden entweder durch Länder (falls im Blatt \"EF\" vorhanden sind) oder durch Kontinente automatisch dargestellt."]
[null,null,null,"Länder","Kontinente","Anzahl der Nächte\n(inkl. Anzahl der Zimmer)","Emissionsfaktor \n(kg CO2e / Nacht)","Ergebnis \n(t CO2e / Jahr)"]
[null,null,null,"Argentinien","Amerika",null,{"$f":"IFERROR(IFERROR(VLOOKUP(D432,EF!$D$487:$G$524,4,FALSE),VLOOKUP(E432,EF!$E$526:$G$530,3,FALSE)),\"Länder/Kontinente auswählen\")","v":14.071428571428571},{"$f":"IFERROR(Hotel_stay_Scope_3[[#This Row],[Anzahl der Nächte\n(inkl. Anzahl der Zimmer)]]*Hotel_stay_Scope_3[[#This Row],[Emissionsfaktor \n(kg CO2e / Nacht)]]/1000,\"k.A.\")","v":0}]
[null,null,null,"Armenien","Asien",null,{"$f":"IFERROR(IFERROR(VLOOKUP(D433,EF!$D$487:$G$524,4,FALSE),VLOOKUP(E433,EF!$E$526:$G$530,3,FALSE)),\"Länder/Kontinente auswählen\")","v":61.457894736842093},{"$f":"IFERROR(Hotel_stay_Scope_3[[#This Row],[Anzahl der Nächte\n(inkl. Anzahl der Zimmer)]]*Hotel_stay_Scope_3[[#This Row],[Emissionsfaktor \n(kg CO2e / Nacht)]]/1000,\"k.A.\")","v":0}]
[null,null,null,"Australien","Ozeanien",null,{"$f":"IFERROR(IFERROR(VLOOKUP(D434,EF!$D$487:$G$524,4,FALSE),VLOOKUP(E434,EF!$E$526:$G$530,3,FALSE)),\"Länder/Kontinente auswählen\")","v":35},{"$f":"IFERROR(Hotel_stay_Scope_3[[#This Row],[Anzahl der Nächte\n(inkl. Anzahl der Zimmer)]]*Hotel_stay_Scope_3[[#This Row],[Emissionsfaktor \n(kg CO2e / Nacht)]]/1000,\"k.A.\")","v":0}]
[null,null,null,"Bangladesch","Asien",null,{"$f":"IFERROR(IFERROR(VLOOKUP(D435,EF!$D$487:$G$524,4,FALSE),VLOOKUP(E435,EF!$E$526:$G$530,3,FALSE)),\"Länder/Kontinente auswählen\")","v":61.457894736842093},{"$f":"IFERROR(Hotel_stay_Scope_3[[#This Row],[Anzahl der Nächte\n(inkl. Anzahl der Zimmer)]]*Hotel_stay_Scope_3[[#This Row],[Emissionsfaktor \n(kg CO2e / Nacht)]]/1000,\"k.A.\")","v":0}]
[null,null,null,"Belgien","Europa",null,{"$f":"IFERROR(IFERROR(VLOOKUP(D436,EF!$D$487:$G$524,4,FALSE),VLOOKUP(E436,EF!$E$526:$G$530,3,FALSE)),\"Länder/Kontinente auswählen\")","v":12.2},{"$f":"IFERROR(Hotel_stay_Scope_3[[#This Row],[Anzahl der Nächte\n(inkl. Anzahl der Zimmer)]]*Hotel_stay_Scope_3[[#This Row],[Emissionsfaktor \n(kg CO2e / Nacht)]]/1000,\"k.A.\")","v":0}]
[null,null,null,"Brasilien","Amerika",null,{"$f":"IFERROR(IFERROR(VLOOKUP(D437,EF!$D$487:$G$524,4,FALSE),VLOOKUP(E437,EF!$E$526:$G$530,3,FALSE)),\"Länder/Kontinente auswählen\")","v":8.6999999999999993},{"$f":"IFERROR(Hotel_stay_Scope_3[[#This Row],[Anzahl der Nächte\n(inkl. Anzahl der Zimmer)]]*Hotel_stay_Scope_3[[#This Row],[Emissionsfaktor \n(kg CO2e / Nacht)]]/1000,\"k.A.\")","v":0}]
[null,null,null,"China","Asien",null,{"$f":"IFERROR(IFERROR(VLOOKUP(D438,EF!$D$487:$G$524,4,FALSE),VLOOKUP(E438,EF!$E$526:$G$530,3,FALSE)),\"Länder/Kontinente auswählen\")","v":53.5},{"$f":"IFERROR(Hotel_stay_Scope_3[[#This Row],[Anzahl der Nächte\n(inkl. Anzahl der Zimmer)]]*Hotel_stay_Scope_3[[#This Row],[Emissionsfaktor \n(kg CO2e / Nacht)]]/1000,\"k.A.\")","v":0}]
[null,null,null,"Costa Rica","Amerika",null,{"$f":"IFERROR(IFERROR(VLOOKUP(D439,EF!$D$487:$G$524,4,FALSE),VLOOKUP(E439,EF!$E$526:$G$530,3,FALSE)),\"Länder/Kontinente auswählen\")","v":4.7},{"$f":"IFERROR(Hotel_stay_Scope_3[[#This Row],[Anzahl der Nächte\n(inkl. Anzahl der Zimmer)]]*Hotel_stay_Scope_3[[#This Row],[Emissionsfaktor \n(kg CO2e / Nacht)]]/1000,\"k.A.\")","v":0}]
[null,null,null,"Dänemark","Europa",null,{"$f":"IFERROR(IFERROR(VLOOKUP(D440,EF!$D$487:$G$524,4,FALSE),VLOOKUP(E440,EF!$E$526:$G$530,3,FALSE)),\"Länder/Kontinente auswählen\")","v":11.577777777777776},{"$f":"IFERROR(Hotel_stay_Scope_3[[#This Row],[Anzahl der Nächte\n(inkl. Anzahl der Zimmer)]]*Hotel_stay_Scope_3[[#This Row],[Emissionsfaktor \n(kg CO2e / Nacht)]]/1000,\"k.A.\")","v":0}]
[null,null,null,"Deutschland","Europa",null,{"$f":"IFERROR(IFERROR(VLOOKUP(D441,EF!$D$487:$G$524,4,FALSE),VLOOKUP(E441,EF!$E$526:$G$530,3,FALSE)),\"Länder/Kontinente auswählen\")","v":13.2},{"$f":"IFERROR(Hotel_stay_Scope_3[[#This Row],[Anzahl der Nächte\n(inkl. Anzahl der Zimmer)]]*Hotel_stay_Scope_3[[#This Row],[Emissionsfaktor \n(kg CO2e / Nacht)]]/1000,\"k.A.\")","v":0}]
[null,null,null,"Finnland","Europa",null,{"$f":"IFERROR(IFERROR(VLOOKUP(D442,EF!$D$487:$G$524,4,FALSE),VLOOKUP(E442,EF!$E$526:$G$530,3,FALSE)),\"Länder/Kontinente auswählen\")","v":11.577777777777776},{"$f":"IFERROR(Hotel_stay_Scope_3[[#This Row],[Anzahl der Nächte\n(inkl. Anzahl der Zimmer)]]*Hotel_stay_Scope_3[[#This Row],[Emissionsfaktor \n(kg CO2e / Nacht)]]/1000,\"k.A.\")","v":0}]
[null,null,null,"Frankreich","Europa",null,{"$f":"IFERROR(IFERROR(VLOOKUP(D443,EF!$D$487:$G$524,4,FALSE),VLOOKUP(E443,EF!$E$526:$G$530,3,FALSE)),\"Länder/Kontinente auswählen\")","v":6.7},{"$f":"IFERROR(Hotel_stay_Scope_3[[#This Row],[Anzahl der Nächte\n(inkl. Anzahl der Zimmer)]]*Hotel_stay_Scope_3[[#This Row],[Emissionsfaktor \n(kg CO2e / Nacht)]]/1000,\"k.A.\")","v":0}]
[null,null,null,"Griechenland","Europa",null,{"$f":"IFERROR(IFERROR(VLOOKUP(D444,EF!$D$487:$G$524,4,FALSE),VLOOKUP(E444,EF!$E$526:$G$530,3,FALSE)),\"Länder/Kontinente auswählen\")","v":11.577777777777776},{"$f":"IFERROR(Hotel_stay_Scope_3[[#This Row],[Anzahl der Nächte\n(inkl. Anzahl der Zimmer)]]*Hotel_stay_Scope_3[[#This Row],[Emissionsfaktor \n(kg CO2e / Nacht)]]/1000,\"k.A.\")","v":0}]
[null,null,null,"Indien","Asien",null,{"$f":"IFERROR(IFERROR(VLOOKUP(D445,EF!$D$487:$G$524,4,FALSE),VLOOKUP(E445,EF!$E$526:$G$530,3,FALSE)),\"Länder/Kontinente auswählen\")","v":58.9},{"$f":"IFERROR(Hotel_stay_Scope_3[[#This Row],[Anzahl der Nächte\n(inkl. Anzahl der Zimmer)]]*Hotel_stay_Scope_3[[#This Row],[Emissionsfaktor \n(kg CO2e / Nacht)]]/1000,\"k.A.\")","v":0}]
[null,null,null,"Irland","Europa",null,{"$f":"IFERROR(IFERROR(VLOOKUP(D446,EF!$D$487:$G$524,4,FALSE),VLOOKUP(E446,EF!$E$526:$G$530,3,FALSE)),\"Länder/Kontinente auswählen\")","v":11.577777777777776},{"$f":"IFERROR(Hotel_stay_Scope_3[[#This Row],[Anzahl der Nächte\n(inkl. Anzahl der Zimmer)]]*Hotel_stay_Scope_3[[#This Row],[Emissionsfaktor \n(kg CO2e / Nacht)]]/1000,\"k.A.\")","v":0}]
[null,null,null,"Israel","Asien",null,{"$f":"IFERROR(IFERROR(VLOOKUP(D447,EF!$D$487:$G$524,4,FALSE),VLOOKUP(E447,EF!$E$526:$G$530,3,FALSE)),\"Länder/Kontinente auswählen\")","v":61.457894736842093},{"$f":"IFERROR(Hotel_stay_Scope_3[[#This Row],[Anzahl der Nächte\n(inkl. Anzahl der Zimmer)]]*Hotel_stay_Scope_3[[#This Row],[Emissionsfaktor \n(kg CO2e / Nacht)]]/1000,\"k.A.\")","v":0}]
[null,null,null,"Italien","Europa",null,{"$f":"IFERROR(IFERROR(VLOOKUP(D448,EF!$D$487:$G$524,4,FALSE),VLOOKUP(E448,EF!$E$526:$G$530,3,FALSE)),\"Länder/Kontinente auswählen\")","v":14.3},{"$f":"IFERROR(Hotel_stay_Scope_3[[#This Row],[Anzahl der Nächte\n(inkl. Anzahl der Zimmer)]]*Hotel_stay_Scope_3[[#This Row],[Emissionsfaktor \n(kg CO2e / Nacht)]]/1000,\"k.A.\")","v":0}]
[null,null,null,"Japan","Asien",null,{"$f":"IFERROR(IFERROR(VLOOKUP(D449,EF!$D$487:$G$524,4,FALSE),VLOOKUP(E449,EF!$E$526:$G$530,3,FALSE)),\"Länder/Kontinente auswählen\")","v":39},{"$f":"IFERROR(Hotel_stay_Scope_3[[#This Row],[Anzahl der Nächte\n(inkl. Anzahl der Zimmer)]]*Hotel_stay_Scope_3[[#This Row],[Emissionsfaktor \n(kg CO2e / Nacht)]]/1000,\"k.A.\")","v":0}]
[null,null,null,"Kanada","Amerika",null,{"$f":"IFERROR(IFERROR(VLOOKUP(D450,EF!$D$487:$G$524,4,FALSE),VLOOKUP(E450,EF!$E$526:$G$530,3,FALSE)),\"Länder/Kontinente auswählen\")","v":7.4},{"$f":"IFERROR(Hotel_stay_Scope_3[[#This Row],[Anzahl der Nächte\n(inkl. Anzahl der Zimmer)]]*Hotel_stay_Scope_3[[#This Row],[Emissionsfaktor \n(kg CO2e / Nacht)]]/1000,\"k.A.\")","v":0}]
[null,null,null,"Kirgisistan","Asien",null,{"$f":"IFERROR(IFERROR(VLOOKUP(D451,EF!$D$487:$G$524,4,FALSE),VLOOKUP(E451,EF!$E$526:$G$530,3,FALSE)),\"Länder/Kontinente auswählen\")","v":61.457894736842093},{"$f":"IFERROR(Hotel_stay_Scope_3[[#This Row],[Anzahl der Nächte\n(inkl. Anzahl der Zimmer)]]*Hotel_stay_Scope_3[[#This Row],[Emissionsfaktor \n(kg CO2e / Nacht)]]/1000,\"k.A.\")","v":0}]
[null,null,null,"Kolumbien","Amerika",null,{"$f":"IFERROR(IFERROR(VLOOKUP(D452,EF!$D$487:$G$524,4,FALSE),VLOOKUP(E452,EF!$E$526:$G$530,3,FALSE)),\"Länder/Kontinente auswählen\")","v":14.7},{"$f":"IFERROR(Hotel_stay_Scope_3[[#This Row],[Anzahl der Nächte\n(inkl. Anzahl der Zimmer)]]*Hotel_stay_Scope_3[[#This Row],[Emissionsfaktor \n(kg CO2e / Nacht)]]/1000,\"k.A.\")","v":0}]
[null,null,null,"Kroatien (Hrvatska)","Europa",null,{"$f":"IFERROR(IFERROR(VLOOKUP(D453,EF!$D$487:$G$524,4,FALSE),VLOOKUP(E453,EF!$E$526:$G$530,3,FALSE)),\"Länder/Kontinente auswählen\")","v":11.577777777777776},{"$f":"IFERROR(Hotel_stay_Scope_3[[#This Row],[Anzahl der Nächte\n(inkl. Anzahl der Zimmer)]]*Hotel_stay_Scope_3[[#This Row],[Emissionsfaktor \n(kg CO2e / Nacht)]]/1000,\"k.A.\")","v":0}]
[null,null,null,"Lettland","Europa",null,{"$f":"IFERROR(IFERROR(VLOOKUP(D454,EF!$D$487:$G$524,4,FALSE),VLOOKUP(E454,EF!$E$526:$G$530,3,FALSE)),\"Länder/Kontinente auswählen\")","v":11.577777777777776},{"$f":"IFERROR(Hotel_stay_Scope_3[[#This Row],[Anzahl der Nächte\n(inkl. Anzahl der Zimmer)]]*Hotel_stay_Scope_3[[#This Row],[Emissionsfaktor \n(kg CO2e / Nacht)]]/1000,\"k.A.\")","v":0}]
[null,null,null,"Luxemburg","Europa",null,{"$f":"IFERROR(IFERROR(VLOOKUP(D455,EF!$D$487:$G$524,4,FALSE),VLOOKUP(E455,EF!$E$526:$G$530,3,FALSE)),\"Länder/Kontinente auswählen\")","v":11.577777777777776},{"$f":"IFERROR(Hotel_stay_Scope_3[[#This Row],[Anzahl der Nächte\n(inkl. Anzahl der Zimmer)]]*Hotel_stay_Scope_3[[#This Row],[Emissionsfaktor \n(kg CO2e / Nacht)]]/1000,\"k.A.\")","v":0}]
[null,null,null,"Malawi","Afrika",null,{"$f":"IFERROR(IFERROR(VLOOKUP(D456,EF!$D$487:$G$524,4,FALSE),VLOOKUP(E456,EF!$E$526:$G$530,3,FALSE)),\"Länder/Kontinente auswählen\")","v":47.8},{"$f":"IFERROR(Hotel_stay_Scope_3[[#This Row],[Anzahl der Nächte\n(inkl. Anzahl der Zimmer)]]*Hotel_stay_Scope_3[[#This Row],[Emissionsfaktor \n(kg CO2e / Nacht)]]/1000,\"k.A.\")","v":0}]
[null,null,null,"Malaysia","Asien",null,{"$f":"IFERROR(IFERROR(VLOOKUP(D457,EF!$D$487:$G$524,4,FALSE),VLOOKUP(E457,EF!$E$526:$G$530,3,FALSE)),\"Länder/Kontinente auswählen\")","v":61.5},{"$f":"IFERROR(Hotel_stay_Scope_3[[#This Row],[Anzahl der Nächte\n(inkl. Anzahl der Zimmer)]]*Hotel_stay_Scope_3[[#This Row],[Emissionsfaktor \n(kg CO2e / Nacht)]]/1000,\"k.A.\")","v":0}]
[null,null,null,"Myanmar","Asien",null,{"$f":"IFERROR(IFERROR(VLOOKUP(D458,EF!$D$487:$G$524,4,FALSE),VLOOKUP(E458,EF!$E$526:$G$530,3,FALSE)),\"Länder/Kontinente auswählen\")","v":61.457894736842093},{"$f":"IFERROR(Hotel_stay_Scope_3[[#This Row],[Anzahl der Nächte\n(inkl. Anzahl der Zimmer)]]*Hotel_stay_Scope_3[[#This Row],[Emissionsfaktor \n(kg CO2e / Nacht)]]/1000,\"k.A.\")","v":0}]
[null,null,null,"Namibia","Afrika",null,{"$f":"IFERROR(IFERROR(VLOOKUP(D459,EF!$D$487:$G$524,4,FALSE),VLOOKUP(E459,EF!$E$526:$G$530,3,FALSE)),\"Länder/Kontinente auswählen\")","v":47.8},{"$f":"IFERROR(Hotel_stay_Scope_3[[#This Row],[Anzahl der Nächte\n(inkl. Anzahl der Zimmer)]]*Hotel_stay_Scope_3[[#This Row],[Emissionsfaktor \n(kg CO2e / Nacht)]]/1000,\"k.A.\")","v":0}]
[null,null,null,"Neuseeland","Ozeanien",null,{"$f":"IFERROR(IFERROR(VLOOKUP(D460,EF!$D$487:$G$524,4,FALSE),VLOOKUP(E460,EF!$E$526:$G$530,3,FALSE)),\"Länder/Kontinente auswählen\")","v":35},{"$f":"IFERROR(Hotel_stay_Scope_3[[#This Row],[Anzahl der Nächte\n(inkl. Anzahl der Zimmer)]]*Hotel_stay_Scope_3[[#This Row],[Emissionsfaktor \n(kg CO2e / Nacht)]]/1000,\"k.A.\")","v":0}]
[null,null,null,"Niederlande","Europa",null,{"$f":"IFERROR(IFERROR(VLOOKUP(D461,EF!$D$487:$G$524,4,FALSE),VLOOKUP(E461,EF!$E$526:$G$530,3,FALSE)),\"Länder/Kontinente auswählen\")","v":14.8},{"$f":"IFERROR(Hotel_stay_Scope_3[[#This Row],[Anzahl der Nächte\n(inkl. Anzahl der Zimmer)]]*Hotel_stay_Scope_3[[#This Row],[Emissionsfaktor \n(kg CO2e / Nacht)]]/1000,\"k.A.\")","v":0}]
[null,null,null,"Norwegen","Europa",null,{"$f":"IFERROR(IFERROR(VLOOKUP(D462,EF!$D$487:$G$524,4,FALSE),VLOOKUP(E462,EF!$E$526:$G$530,3,FALSE)),\"Länder/Kontinente auswählen\")","v":11.577777777777776},{"$f":"IFERROR(Hotel_stay_Scope_3[[#This Row],[Anzahl der Nächte\n(inkl. Anzahl der Zimmer)]]*Hotel_stay_Scope_3[[#This Row],[Emissionsfaktor \n(kg CO2e / Nacht)]]/1000,\"k.A.\")","v":0}]
[null,null,null,"Österreich","Europa",null,{"$f":"IFERROR(IFERROR(VLOOKUP(D463,EF!$D$487:$G$524,4,FALSE),VLOOKUP(E463,EF!$E$526:$G$530,3,FALSE)),\"Länder/Kontinente auswählen\")","v":11.577777777777776},{"$f":"IFERROR(Hotel_stay_Scope_3[[#This Row],[Anzahl der Nächte\n(inkl. Anzahl der Zimmer)]]*Hotel_stay_Scope_3[[#This Row],[Emissionsfaktor \n(kg CO2e / Nacht)]]/1000,\"k.A.\")","v":0}]
[null,null,null,"Peru","Amerika",null,{"$f":"IFERROR(IFERROR(VLOOKUP(D464,EF!$D$487:$G$524,4,FALSE),VLOOKUP(E464,EF!$E$526:$G$530,3,FALSE)),\"Länder/Kontinente auswählen\")","v":14.071428571428571},{"$f":"IFERROR(Hotel_stay_Scope_3[[#This Row],[Anzahl der Nächte\n(inkl. Anzahl der Zimmer)]]*Hotel_stay_Scope_3[[#This Row],[Emissionsfaktor \n(kg CO2e / Nacht)]]/1000,\"k.A.\")","v":0}]
[null,null,null,"Polen","Europa",null,{"$f":"IFERROR(IFERROR(VLOOKUP(D465,EF!$D$487:$G$524,4,FALSE),VLOOKUP(E465,EF!$E$526:$G$530,3,FALSE)),\"Länder/Kontinente auswählen\")","v":11.577777777777776},{"$f":"IFERROR(Hotel_stay_Scope_3[[#This Row],[Anzahl der Nächte\n(inkl. Anzahl der Zimmer)]]*Hotel_stay_Scope_3[[#This Row],[Emissionsfaktor \n(kg CO2e / Nacht)]]/1000,\"k.A.\")","v":0}]
[null,null,null,"Portugal","Europa",null,{"$f":"IFERROR(IFERROR(VLOOKUP(D466,EF!$D$487:$G$524,4,FALSE),VLOOKUP(E466,EF!$E$526:$G$530,3,FALSE)),\"Länder/Kontinente auswählen\")","v":19},{"$f":"IFERROR(Hotel_stay_Scope_3[[#This Row],[Anzahl der Nächte\n(inkl. Anzahl der Zimmer)]]*Hotel_stay_Scope_3[[#This Row],[Emissionsfaktor \n(kg CO2e / Nacht)]]/1000,\"k.A.\")","v":0}]
[null,null,null,"Republik Korea","Asien",null,{"$f":"IFERROR(IFERROR(VLOOKUP(D467,EF!$D$487:$G$524,4,FALSE),VLOOKUP(E467,EF!$E$526:$G$530,3,FALSE)),\"Länder/Kontinente auswählen\")","v":61.457894736842093},{"$f":"IFERROR(Hotel_stay_Scope_3[[#This Row],[Anzahl der Nächte\n(inkl. Anzahl der Zimmer)]]*Hotel_stay_Scope_3[[#This Row],[Emissionsfaktor \n(kg CO2e / Nacht)]]/1000,\"k.A.\")","v":0}]
[null,null,null,"Rumänien","Europa",null,{"$f":"IFERROR(IFERROR(VLOOKUP(D468,EF!$D$487:$G$524,4,FALSE),VLOOKUP(E468,EF!$E$526:$G$530,3,FALSE)),\"Länder/Kontinente auswählen\")","v":11.577777777777776},{"$f":"IFERROR(Hotel_stay_Scope_3[[#This Row],[Anzahl der Nächte\n(inkl. Anzahl der Zimmer)]]*Hotel_stay_Scope_3[[#This Row],[Emissionsfaktor \n(kg CO2e / Nacht)]]/1000,\"k.A.\")","v":0}]
[null,null,null,"Russische Föderation","Asien",null,{"$f":"IFERROR(IFERROR(VLOOKUP(D469,EF!$D$487:$G$524,4,FALSE),VLOOKUP(E469,EF!$E$526:$G$530,3,FALSE)),\"Länder/Kontinente auswählen\")","v":24.2},{"$f":"IFERROR(Hotel_stay_Scope_3[[#This Row],[Anzahl der Nächte\n(inkl. Anzahl der Zimmer)]]*Hotel_stay_Scope_3[[#This Row],[Emissionsfaktor \n(kg CO2e / Nacht)]]/1000,\"k.A.\")","v":0}]
[null,null,null,"Schweden","Europa",null,{"$f":"IFERROR(IFERROR(VLOOKUP(D470,EF!$D$487:$G$524,4,FALSE),VLOOKUP(E470,EF!$E$526:$G$530,3,FALSE)),\"Länder/Kontinente auswählen\")","v":11.577777777777776},{"$f":"IFERROR(Hotel_stay_Scope_3[[#This Row],[Anzahl der Nächte\n(inkl. Anzahl der Zimmer)]]*Hotel_stay_Scope_3[[#This Row],[Emissionsfaktor \n(kg CO2e / Nacht)]]/1000,\"k.A.\")","v":0}]
[null,null,null,"Schweiz","Europa",null,{"$f":"IFERROR(IFERROR(VLOOKUP(D471,EF!$D$487:$G$524,4,FALSE),VLOOKUP(E471,EF!$E$526:$G$530,3,FALSE)),\"Länder/Kontinente auswählen\")","v":6.6},{"$f":"IFERROR(Hotel_stay_Scope_3[[#This Row],[Anzahl der Nächte\n(inkl. Anzahl der Zimmer)]]*Hotel_stay_Scope_3[[#This Row],[Emissionsfaktor \n(kg CO2e / Nacht)]]/1000,\"k.A.\")","v":0}]
[null,null,null,"Serbien","Europa",null,{"$f":"IFERROR(IFERROR(VLOOKUP(D472,EF!$D$487:$G$524,4,FALSE),VLOOKUP(E472,EF!$E$526:$G$530,3,FALSE)),\"Länder/Kontinente auswählen\")","v":11.577777777777776},{"$f":"IFERROR(Hotel_stay_Scope_3[[#This Row],[Anzahl der Nächte\n(inkl. Anzahl der Zimmer)]]*Hotel_stay_Scope_3[[#This Row],[Emissionsfaktor \n(kg CO2e / Nacht)]]/1000,\"k.A.\")","v":0}]
[null,null,null,"Singapur","Asien",null,{"$f":"IFERROR(IFERROR(VLOOKUP(D473,EF!$D$487:$G$524,4,FALSE),VLOOKUP(E473,EF!$E$526:$G$530,3,FALSE)),\"Länder/Kontinente auswählen\")","v":24.5},{"$f":"IFERROR(Hotel_stay_Scope_3[[#This Row],[Anzahl der Nächte\n(inkl. Anzahl der Zimmer)]]*Hotel_stay_Scope_3[[#This Row],[Emissionsfaktor \n(kg CO2e / Nacht)]]/1000,\"k.A.\")","v":0}]
[null,null,null,"Slowakei","Europa",null,{"$f":"IFERROR(IFERROR(VLOOKUP(D474,EF!$D$487:$G$524,4,FALSE),VLOOKUP(E474,EF!$E$526:$G$530,3,FALSE)),\"Länder/Kontinente auswählen\")","v":11.577777777777776},{"$f":"IFERROR(Hotel_stay_Scope_3[[#This Row],[Anzahl der Nächte\n(inkl. Anzahl der Zimmer)]]*Hotel_stay_Scope_3[[#This Row],[Emissionsfaktor \n(kg CO2e / Nacht)]]/1000,\"k.A.\")","v":0}]
[null,null,null,"Slowenien","Europa",null,{"$f":"IFERROR(IFERROR(VLOOKUP(D475,EF!$D$487:$G$524,4,FALSE),VLOOKUP(E475,EF!$E$526:$G$530,3,FALSE)),\"Länder/Kontinente auswählen\")","v":11.577777777777776},{"$f":"IFERROR(Hotel_stay_Scope_3[[#This Row],[Anzahl der Nächte\n(inkl. Anzahl der Zimmer)]]*Hotel_stay_Scope_3[[#This Row],[Emissionsfaktor \n(kg CO2e / Nacht)]]/1000,\"k.A.\")","v":0}]
[null,null,null,"Spanien","Europa",null,{"$f":"IFERROR(IFERROR(VLOOKUP(D476,EF!$D$487:$G$524,4,FALSE),VLOOKUP(E476,EF!$E$526:$G$530,3,FALSE)),\"Länder/Kontinente auswählen\")","v":7},{"$f":"IFERROR(Hotel_stay_Scope_3[[#This Row],[Anzahl der Nächte\n(inkl. Anzahl der Zimmer)]]*Hotel_stay_Scope_3[[#This Row],[Emissionsfaktor \n(kg CO2e / Nacht)]]/1000,\"k.A.\")","v":0}]
[null,null,null,"Südafrika","Afrika",null,{"$f":"IFERROR(IFERROR(VLOOKUP(D477,EF!$D$487:$G$524,4,FALSE),VLOOKUP(E477,EF!$E$526:$G$530,3,FALSE)),\"Länder/Kontinente auswählen\")","v":51.4},{"$f":"IFERROR(Hotel_stay_Scope_3[[#This Row],[Anzahl der Nächte\n(inkl. Anzahl der Zimmer)]]*Hotel_stay_Scope_3[[#This Row],[Emissionsfaktor \n(kg CO2e / Nacht)]]/1000,\"k.A.\")","v":0}]
[null,null,null,"Taiwan","Asien",null,{"$f":"IFERROR(IFERROR(VLOOKUP(D478,EF!$D$487:$G$524,4,FALSE),VLOOKUP(E478,EF!$E$526:$G$530,3,FALSE)),\"Länder/Kontinente auswählen\")","v":61.457894736842093},{"$f":"IFERROR(Hotel_stay_Scope_3[[#This Row],[Anzahl der Nächte\n(inkl. Anzahl der Zimmer)]]*Hotel_stay_Scope_3[[#This Row],[Emissionsfaktor \n(kg CO2e / Nacht)]]/1000,\"k.A.\")","v":0}]
[null,null,null,"Thailand","Asien",null,{"$f":"IFERROR(IFERROR(VLOOKUP(D479,EF!$D$487:$G$524,4,FALSE),VLOOKUP(E479,EF!$E$526:$G$530,3,FALSE)),\"Länder/Kontinente auswählen\")","v":43.4},{"$f":"IFERROR(Hotel_stay_Scope_3[[#This Row],[Anzahl der Nächte\n(inkl. Anzahl der Zimmer)]]*Hotel_stay_Scope_3[[#This Row],[Emissionsfaktor \n(kg CO2e / Nacht)]]/1000,\"k.A.\")","v":0}]
[null,null,null,"Tschechien","Europa",null,{"$f":"IFERROR(IFERROR(VLOOKUP(D480,EF!$D$487:$G$524,4,FALSE),VLOOKUP(E480,EF!$E$526:$G$530,3,FALSE)),\"Länder/Kontinente auswählen\")","v":11.577777777777776},{"$f":"IFERROR(Hotel_stay_Scope_3[[#This Row],[Anzahl der Nächte\n(inkl. Anzahl der Zimmer)]]*Hotel_stay_Scope_3[[#This Row],[Emissionsfaktor \n(kg CO2e / Nacht)]]/1000,\"k.A.\")","v":0}]
[null,null,null,"Türkei","Asien",null,{"$f":"IFERROR(IFERROR(VLOOKUP(D481,EF!$D$487:$G$524,4,FALSE),VLOOKUP(E481,EF!$E$526:$G$530,3,FALSE)),\"Länder/Kontinente auswählen\")","v":32.1},{"$f":"IFERROR(Hotel_stay_Scope_3[[#This Row],[Anzahl der Nächte\n(inkl. Anzahl der Zimmer)]]*Hotel_stay_Scope_3[[#This Row],[Emissionsfaktor \n(kg CO2e / Nacht)]]/1000,\"k.A.\")","v":0}]
[null,null,null,"Ungarn","Europa",null,{"$f":"IFERROR(IFERROR(VLOOKUP(D482,EF!$D$487:$G$524,4,FALSE),VLOOKUP(E482,EF!$E$526:$G$530,3,FALSE)),\"Länder/Kontinente auswählen\")","v":11.577777777777776},{"$f":"IFERROR(Hotel_stay_Scope_3[[#This Row],[Anzahl der Nächte\n(inkl. Anzahl der Zimmer)]]*Hotel_stay_Scope_3[[#This Row],[Emissionsfaktor \n(kg CO2e / Nacht)]]/1000,\"k.A.\")","v":0}]
[null,null,null,"Vereinigte Arabische Emirate","Asien",null,{"$f":"IFERROR(IFERROR(VLOOKUP(D483,EF!$D$487:$G$524,4,FALSE),VLOOKUP(E483,EF!$E$526:$G$530,3,FALSE)),\"Länder/Kontinente auswählen\")","v":63.8},{"$f":"IFERROR(Hotel_stay_Scope_3[[#This Row],[Anzahl der Nächte\n(inkl. Anzahl der Zimmer)]]*Hotel_stay_Scope_3[[#This Row],[Emissionsfaktor \n(kg CO2e / Nacht)]]/1000,\"k.A.\")","v":0}]
[null,null,null,"USA","Amerika",null,{"$f":"IFERROR(IFERROR(VLOOKUP(D484,EF!$D$487:$G$524,4,FALSE),VLOOKUP(E484,EF!$E$526:$G$530,3,FALSE)),\"Länder/Kontinente auswählen\")","v":16.100000000000001},{"$f":"IFERROR(Hotel_stay_Scope_3[[#This Row],[Anzahl der Nächte\n(inkl. Anzahl der Zimmer)]]*Hotel_stay_Scope_3[[#This Row],[Emissionsfaktor \n(kg CO2e / Nacht)]]/1000,\"k.A.\")","v":0}]
[null,null,null,"Vereinigtes Königreich","Europa",null,{"$f":"IFERROR(IFERROR(VLOOKUP(D485,EF!$D$487:$G$524,4,FALSE),VLOOKUP(E485,EF!$E$526:$G$530,3,FALSE)),\"Länder/Kontinente auswählen\")","v":10.4},{"$f":"IFERROR(Hotel_stay_Scope_3[[#This Row],[Anzahl der Nächte\n(inkl. Anzahl der Zimmer)]]*Hotel_stay_Scope_3[[#This Row],[Emissionsfaktor \n(kg CO2e / Nacht)]]/1000,\"k.A.\")","v":0}]
[null,null,null,"Summe (Übernachtung)",null,{"$f":"SUBTOTAL(109,Hotel_stay_Scope_3[Anzahl der Nächte\n(inkl. Anzahl der Zimmer)])","v":0},null,{"$f":"SUBTOTAL(109,Hotel_stay_Scope_3[Ergebnis \n(t CO2e / Jahr)])","v":0}]
[]
[null,"Kategorie 7: Mitarbeitendenmobilität"]
[null,null,null,"Scope 3.7 - Mitarbeitendenmobilität (Bottom-Up)"]
[null,null,null,"Anzahl der Mitarbeiterinnen",null,{"$f":"Anzahl_Mitarbeiterinnen","v":0}]
[null,null,null,{"$f":"_xlfn.UNICHAR(9733)&\"Helpdesk\"","v":"★Helpdesk"}]
[null,null,null,"Schritt 1 bis Schritt 3 (siehe unten) zeigen eine Möglichkeit zur Berechnung der GHG-Emissionen aus der Mitarbeitendenmobilität."]
[null,null,null,"Sie können aber auch direkt mit Schritt 3 anfangen, indem Sie die Entfernung nach verschiedenen Verkehrsmitteln in die gelb markierten Bereiche der Tabelle zu Schritt 3 eingeben."]
[null,null,null,"Schritt 1: Die Mitarbeiter*Innen werden in 7 Mobilitätsgruppen eingeteilt. "]
[null,null,null,"Angegeben wird die durchschnittliche Entfernung zum Arbeitsplatz innerhalb der Gruppe und die Aufteilung in die verschiedenen Verkehrsmittel.\n"]
[null,null,null,"Unten gibt es änderbare Defaultwerte. Wenn Sie individuelle Daten haben, passen Sie diese bitte in der entsprechenden Zelle an.\n\n\n\n",null,null,null,null,null,null,null,null,null,null,{"$f":"_xlfn.UNICHAR(9733)&\"Helpdesk\"","v":"★Helpdesk"},"Defaultwerte für Modal Split nach Entfernung zum Arbeitsplatz (Cafoges)"]
[null,null,null,"Entfernung Wohnort","Mitarbeitendenmobilität","Aufteilung in (%) der Mitarbeiterinnen","Angenomme Entfernung \n(One-way) ","Zufußgehen %","Fahrrad %","E-Bike %","ÖPNV %","Auto %","Summe",null,"Km","angenomme Entfernung\n (One-way) in Bilanz","Zufußgehen %","Fahrrad %","E-Bike %","ÖPNV %","Auto %","Summe"]
[null,null,null,"Entfernung Wohnort","Weniger als 5 km",null,{"$f":"Modal_Split_zur_Arbeit7[[#This Row],[angenomme Entfernung\n (One-way) in Bilanz]]","v":2.1177699228791775},{"$f":"Modal_Split_zur_Arbeit7[[#This Row],[Zufußgehen %]]","v":0.1322163461719057},{"$f":"Modal_Split_zur_Arbeit7[[#This Row],[Fahrrad %]]","v":0.74469274753808712},{"$f":"Modal_Split_zur_Arbeit7[[#This Row],[E-Bike %]]","v":1.7371161851921293E-2},{"$f":"Modal_Split_zur_Arbeit7[[#This Row],[ÖPNV %]]","v":6.6317932646107608E-2},{"$f":"Modal_Split_zur_Arbeit7[[#This Row],[Auto %]]","v":3.9401811791978249E-2},{"$f":"SUM(Modal_Split_zur_Arbeit78[[#This Row],[Zufußgehen %]:[Auto %]])","v":1},null,"Weniger als 5 km",2.1177699228791775,0.1322163461719057,0.74469274753808712,1.7371161851921293E-2,6.6317932646107608E-2,3.9401811791978249E-2,{"$f":"SUM(Modal_Split_zur_Arbeit7[[#This Row],[Zufußgehen %]:[Auto %]])","v":1}]
[null,null,null,"Entfernung Wohnort","5 - 9 Kilometer",null,{"$f":"Modal_Split_zur_Arbeit7[[#This Row],[angenomme Entfernung\n (One-way) in Bilanz]]","v":6.5784459660613281},{"$f":"Modal_Split_zur_Arbeit7[[#This Row],[Zufußgehen %]]","v":8.3745560257507609E-3},{"$f":"Modal_Split_zur_Arbeit7[[#This Row],[Fahrrad %]]","v":0.63633493039383271},{"$f":"Modal_Split_zur_Arbeit7[[#This Row],[E-Bike %]]","v":4.053810460381721E-2},{"$f":"Modal_Split_zur_Arbeit7[[#This Row],[ÖPNV %]]","v":0.145345044495231},{"$f":"Modal_Split_zur_Arbeit7[[#This Row],[Auto %]]","v":0.16940736448136828},{"$f":"SUM(Modal_Split_zur_Arbeit78[[#This Row],[Zufußgehen %]:[Auto %]])","v":1},null,"5 - 9 Kilometer",6.5784459660613281,8.3745560257507609E-3,0.63633493039383271,4.053810460381721E-2,0.145345044495231,0.16940736448136828,{"$f":"SUM(Modal_Split_zur_Arbeit7[[#This Row],[Zufußgehen %]:[Auto %]])","v":1}]
[null,null,null,"Entfernung Wohnort","10 - 19 Kilometer",null,{"$f":"Modal_Split_zur_Arbeit7[[#This Row],[angenomme Entfernung\n (One-way) in Bilanz]]","v":13.363255813953488},{"$f":"Modal_Split_zur_Arbeit7[[#This Row],[Zufußgehen %]]","v":0},{"$f":"Modal_Split_zur_Arbeit7[[#This Row],[Fahrrad %]]","v":0.26460847762199324},{"$f":"Modal_Split_zur_Arbeit7[[#This Row],[E-Bike %]]","v":3.9915085533354086E-2},{"$f":"Modal_Split_zur_Arbeit7[[#This Row],[ÖPNV %]]","v":0.21744783681429086},{"$f":"Modal_Split_zur_Arbeit7[[#This Row],[Auto %]]","v":0.47802860003036168},{"$f":"SUM(Modal_Split_zur_Arbeit78[[#This Row],[Zufußgehen %]:[Auto %]])","v":1},null,"10 - 19 Kilometer",13.363255813953488,0,0.26460847762199324,3.9915085533354086E-2,0.21744783681429086,0.47802860003036168,{"$f":"SUM(Modal_Split_zur_Arbeit7[[#This Row],[Zufußgehen %]:[Auto %]])","v":1}]
[null,null,null,"Entfernung Wohnort","20 - 29 Kilometer",null,{"$f":"Modal_Split_zur_Arbeit7[[#This Row],[angenomme Entfernung\n (One-way) in Bilanz]]","v":22.802090592334494},{"$f":"Modal_Split_zur_Arbeit7[[#This Row],[Zufußgehen %]]","v":0},{"$f":"Modal_Split_zur_Arbeit7[[#This Row],[Fahrrad %]]","v":2.0760520409421408E-2},{"$f":"Modal_Split_zur_Arbeit7[[#This Row],[E-Bike %]]","v":1.5606252490699581E-2},{"$f":"Modal_Split_zur_Arbeit7[[#This Row],[ÖPNV %]]","v":0.35111344022985808},{"$f":"Modal_Split_zur_Arbeit7[[#This Row],[Auto %]]","v":0.61251978687002107},{"$f":"SUM(Modal_Split_zur_Arbeit78[[#This Row],[Zufußgehen %]:[Auto %]])","v":1},null,"20 - 29 Kilometer",22.802090592334494,0,2.0760520409421408E-2,1.5606252490699581E-2,0.35111344022985808,0.61251978687002107,{"$f":"SUM(Modal_Split_zur_Arbeit7[[#This Row],[Zufußgehen %]:[Auto %]])","v":1}]
[null,null,null,"Entfernung Wohnort","30 - 39 Kilometer",null,{"$f":"Modal_Split_zur_Arbeit7[[#This Row],[angenomme Entfernung\n (One-way) in Bilanz]]","v":33.698481561822128},{"$f":"Modal_Split_zur_Arbeit7[[#This Row],[Zufußgehen %]]","v":0},{"$f":"Modal_Split_zur_Arbeit7[[#This Row],[Fahrrad %]]","v":1.8895775618609806E-2},{"$f":"Modal_Split_zur_Arbeit7[[#This Row],[E-Bike %]]","v":6.3170420900499936E-3},{"$f":"Modal_Split_zur_Arbeit7[[#This Row],[ÖPNV %]]","v":0.38433774776748075},{"$f":"Modal_Split_zur_Arbeit7[[#This Row],[Auto %]]","v":0.59044943452385945},{"$f":"SUM(Modal_Split_zur_Arbeit78[[#This Row],[Zufußgehen %]:[Auto %]])","v":1},null,"30 - 39 Kilometer",33.698481561822128,0,1.8895775618609806E-2,6.3170420900499936E-3,0.38433774776748075,0.59044943452385945,{"$f":"SUM(Modal_Split_zur_Arbeit7[[#This Row],[Zufußgehen %]:[Auto %]])","v":1}]
[null,null,null,"Entfernung Wohnort","40 - 49 Kilometer",null,{"$f":"Modal_Split_zur_Arbeit7[[#This Row],[angenomme Entfernung\n (One-way) in Bilanz]]","v":41.717171717171716},{"$f":"Modal_Split_zur_Arbeit7[[#This Row],[Zufußgehen %]]","v":0},{"$f":"Modal_Split_zur_Arbeit7[[#This Row],[Fahrrad %]]","v":1.4948849669575739E-2},{"$f":"Modal_Split_zur_Arbeit7[[#This Row],[E-Bike %]]","v":5.8857501665604333E-4},{"$f":"Modal_Split_zur_Arbeit7[[#This Row],[ÖPNV %]]","v":0.34616225480620344},{"$f":"Modal_Split_zur_Arbeit7[[#This Row],[Auto %]]","v":0.6383003205075648},{"$f":"SUM(Modal_Split_zur_Arbeit78[[#This Row],[Zufußgehen %]:[Auto %]])","v":1},null,"40 - 49 Kilometer",41.717171717171716,0,1.4948849669575739E-2,5.8857501665604333E-4,0.34616225480620344,0.6383003205075648,{"$f":"SUM(Modal_Split_zur_Arbeit7[[#This Row],[Zufußgehen %]:[Auto %]])","v":1}]
[null,null,null,"Entfernung Wohnort","Mehr als 50 Kilometer",null,{"$f":"Modal_Split_zur_Arbeit7[[#This Row],[angenomme Entfernung\n (One-way) in Bilanz]]","v":78.181571815718158},{"$f":"Modal_Split_zur_Arbeit7[[#This Row],[Zufußgehen %]]","v":0},{"$f":"Modal_Split_zur_Arbeit7[[#This Row],[Fahrrad %]]","v":0},{"$f":"Modal_Split_zur_Arbeit7[[#This Row],[E-Bike %]]","v":6.953378189253772E-3},{"$f":"Modal_Split_zur_Arbeit7[[#This Row],[ÖPNV %]]","v":0.42427681330869504},{"$f":"Modal_Split_zur_Arbeit7[[#This Row],[Auto %]]","v":0.56876980850205117},{"$f":"SUM(Modal_Split_zur_Arbeit78[[#This Row],[Zufußgehen %]:[Auto %]])","v":1},null,"Mehr als 50 Kilometer",78.181571815718158,0,0,6.953378189253772E-3,0.42427681330869504,0.56876980850205117,{"$f":"SUM(Modal_Split_zur_Arbeit7[[#This Row],[Zufußgehen %]:[Auto %]])","v":1}]
[null,null,null,"Summe",null,{"$f":"SUBTOTAL(109,Modal_Split_zur_Arbeit78[Aufteilung in (%) der Mitarbeiterinnen])","v":0}]
[]
[null,null,null,"Eingabe der Arbeitstage im Jahr und der entsprechenden Anteile differenziert nach \"täglich zur Arbeit fahren\" und \"nicht-täglich\"."]
[null,null,null,"Operationalisierung Häufigkeit","Arbeitstage im Jahr","Anteil der Mitarbeiterinnen"]
[null,null,null,"täglich zur Arbeit fahren (5 Tage/Woche)"]
[null,null,null,"Nicht-täglich zur Arbeit fahren (weniger als 5 Tage/Woche)"]
[null,null,null,"Gewichtete Arbeitstage im Jahr",{"$f":"SUMPRODUCT(E509:E510,F509:F510)","v":0}]
[]
[null,null,null,"Schritt 2: Automatische Berechnung der Kiliometer nach Verkehrsmittel."]
[null,null,null,"Mitarbeitendenmobilität","Gesamte Entfernung (Hin-& Zurück): km / Jahr",null,"Zufußgehen (km)","Fahrad (km)","E-Bike (km)","ÖPNV (km)","Auto (km)"]
[null,null,null,{"$f":"E498","v":"Weniger als 5 km"},{"$f":"Anzahl_Mitarbeiterinnen*F498*G498*2*$E$511","v":0},null,{"$f":"$E515*H498","v":0},{"$f":"$E515*I498","v":0},0,0,0]
[null,null,null,"5 - 9 Kilometer",{"$f":"Anzahl_Mitarbeiterinnen*F499*G499*2*$E$511","v":0},null,0,0,0,0,0]
[null,null,null,"10 - 19 Kilometer",0,null,0,0,0,0,0]
[null,null,null,"20 - 29 Kilometer",0,null,0,0,0,0,0]
[null,null,null,"30 - 39 Kilometer",0,null,0,0,0,0,0]
[null,null,null,"40 - 49 Kilometer",0,null,0,0,0,0,0]
[null,null,null,"Mehr als 50 Kilometer",0,null,{"$f":"$E521*H504","v":0},0,0,0,0]
[null,null,null,"Summe",{"$f":"SUM(E515:E521)","v":0},null,{"$f":"SUM(G515:G521)","v":0},0,{"$f":"SUM(I515:I521)","v":0},{"$f":"SUM(J515:J521)","v":0},0]
[null,null,null,"Anteil",{"$f":"SUM(G523:K523)","v":0},null,{"$f":"IFERROR(G522/$E$522,\"k.A.\")","v":"k.A."},{"$f":"IFERROR(H522/$E$522,\"k.A.\")","v":"k.A."},{"$f":"IFERROR(I522/$E$522,\"k.A.\")","v":"k.A."},{"$f":"IFERROR(J522/$E$522,\"k.A.\")","v":"k.A."},{"$f":"IFERROR(K522/$E$522,\"k.A.\")","v":"k.A."}]
[]
[]
[null,null,null,"Schritt 3: Berechnung der GHG-Emissionen"]
[null,null,null,"Hinweis:   "]
[null,null,null,"Falls Sie die Daten anhand von Schritt 1 und Schritt 2 ermittelt haben, wurden die Daten für E-Bikes, Pkw, und ÖPNV automatisch in folgende Tabelle übernommen."]
[null,null,null,"Alternativ können Sie die Daten auch anhand Ihrer eigenen Ermittlungsmethode direkt in die gelb markierten Bereiche eintragen."]
[null,null,null,"Mitarbeitendenmobilität","Gesamte Entfernung \n(Hin-&Zürck): km / Jahr","Emissionsfaktor \n(kg CO2e / pkm )","Ergebnis \n(t CO2e / Jahr)"]
[null,null,null,"E-Bike",null,{"$f":"VLOOKUP(THG_Pendel[[#This Row],[Mitarbeitendenmobilität]],Table_EF_Pendel[[Verkehrsmittel]:[Emissionsfaktor (kg CO2e/pkm)]],2,FALSE)","v":2.1000000000000001E-2},{"$f":"IFERROR(THG_Pendel[[#This Row],[Gesamte Entfernung \n(Hin-&Zürck): km / Jahr]]*THG_Pendel[[#This Row],[Emissionsfaktor \n(kg CO2e / pkm )]]/1000,\"k.A.\")","v":0}]
[null,null,null,"Linienbus, Nahverkehr",null,{"$f":"VLOOKUP(THG_Pendel[[#This Row],[Mitarbeitendenmobilität]],Table_EF_Pendel[[Verkehrsmittel]:[Emissionsfaktor (kg CO2e/pkm)]],2,FALSE)","v":8.4000000000000005E-2},{"$f":"IFERROR(THG_Pendel[[#This Row],[Gesamte Entfernung \n(Hin-&Zürck): km / Jahr]]*THG_Pendel[[#This Row],[Emissionsfaktor \n(kg CO2e / pkm )]]/1000,\"k.A.\")","v":0}]
[null,null,null,"Linienbus, Fernverkehr",null,{"$f":"VLOOKUP(THG_Pendel[[#This Row],[Mitarbeitendenmobilität]],Table_EF_Pendel[[Verkehrsmittel]:[Emissionsfaktor (kg CO2e/pkm)]],2,FALSE)","v":0.03},{"$f":"IFERROR(THG_Pendel[[#This Row],[Gesamte Entfernung \n(Hin-&Zürck): km / Jahr]]*THG_Pendel[[#This Row],[Emissionsfaktor \n(kg CO2e / pkm )]]/1000,\"k.A.\")","v":0}]
[null,null,null,"Pkw",null,{"$f":"VLOOKUP(THG_Pendel[[#This Row],[Mitarbeitendenmobilität]],Table_EF_Pendel[[Verkehrsmittel]:[Emissionsfaktor (kg CO2e/pkm)]],2,FALSE)","v":0.16400000000000001},{"$f":"IFERROR(THG_Pendel[[#This Row],[Gesamte Entfernung \n(Hin-&Zürck): km / Jahr]]*THG_Pendel[[#This Row],[Emissionsfaktor \n(kg CO2e / pkm )]]/1000,\"k.A.\")","v":0}]
[null,null,null,"Eisenbahn, Nahverkehr",null,{"$f":"VLOOKUP(THG_Pendel[[#This Row],[Mitarbeitendenmobilität]],Table_EF_Pendel[[Verkehrsmittel]:[Emissionsfaktor (kg CO2e/pkm)]],2,FALSE)","v":5.0999999999999997E-2},{"$f":"IFERROR(THG_Pendel[[#This Row],[Gesamte Entfernung \n(Hin-&Zürck): km / Jahr]]*THG_Pendel[[#This Row],[Emissionsfaktor \n(kg CO2e / pkm )]]/1000,\"k.A.\")","v":0}]
[null,null,null,"Eisenbahn, Fernverkehr",null,{"$f":"VLOOKUP(THG_Pendel[[#This Row],[Mitarbeitendenmobilität]],Table_EF_Pendel[[Verkehrsmittel]:[Emissionsfaktor (kg CO2e/pkm)]],2,FALSE)","v":2.7E-2},{"$f":"IFERROR(THG_Pendel[[#This Row],[Gesamte Entfernung \n(Hin-&Zürck): km / Jahr]]*THG_Pendel[[#This Row],[Emissionsfaktor \n(kg CO2e / pkm )]]/1000,\"k.A.\")","v":0}]
[null,null,null,"Straßen-, Stadt- und U-Bahn",null,{"$f":"VLOOKUP(THG_Pendel[[#This Row],[Mitarbeitendenmobilität]],Table_EF_Pendel[[Verkehrsmittel]:[Emissionsfaktor (kg CO2e/pkm)]],2,FALSE)","v":4.9000000000000002E-2},{"$f":"IFERROR(THG_Pendel[[#This Row],[Gesamte Entfernung \n(Hin-&Zürck): km / Jahr]]*THG_Pendel[[#This Row],[Emissionsfaktor \n(kg CO2e / pkm )]]/1000,\"k.A.\")","v":0}]
[null,null,null,"ÖPNV, allgemein",null,{"$f":"VLOOKUP(THG_Pendel[[#This Row],[Mitarbeitendenmobilität]],Table_EF_Pendel[[Verkehrsmittel]:[Emissionsfaktor (kg CO2e/pkm)]],2,FALSE)","v":6.133333333333333E-2},{"$f":"IFERROR(THG_Pendel[[#This Row],[Gesamte Entfernung \n(Hin-&Zürck): km / Jahr]]*THG_Pendel[[#This Row],[Emissionsfaktor \n(kg CO2e / pkm )]]/1000,\"k.A.\")","v":0}]
[null,null,null,"Summe (Mitarbeitendenmobilität)",{"$f":"SUM(THG_Pendel[Gesamte Entfernung \n(Hin-&Zürck): km / Jahr])","v":0},null,{"$f":"SUM(THG_Pendel[Ergebnis \n(t CO2e / Jahr)])","v":0}]
[]
[]
[null,"Kategorie 16:  Patient*innenmobilität"]
[null,null,"Scope 3.16 Patient*innenmobilität (Bottom-Up)"]
[null,null,null,"Es umfasst folgende 3 Aspekten: 1) Notfallkontakte; 2) Regelkontakte; 3) Verlegungsfahrten"]
[null,null,"Scope 3.16.1 - Patient*innenmobilität\\An- und Abreise Notfallkontakte (Bottom-Up)"]
[null,null,null,"Untergruppe A: Notfallkontakte_Helikopterflüge"]
[null,null,null,"1) Erfassung des Gesamt-Kerosinverbrauchs"]
[null,null,null,"Anzahl Flüge im Bilanzjahr",null,"Anzahl /Jahr",null,{"$f":"_xlfn.UNICHAR(9733)&\"Helpdesk\"","v":"★Helpdesk"},"Defaultwerte (Cafoges)"]
[null,null,"i","Kerosinverbrauch pro km ",{"$f":"I549","v":1.1123076923076922},"kg / km",null,"Kerosinverbrauch pro km ",1.1123076923076922,"kg / km"]
[null,null,null,"Durchschnittliche Distanz pro Flug (km)",{"$f":"I550","v":167.04190443684655},"km / Flug",null,"Durchschnittliche Distanz pro Flug (km)",167.04190443684655,"km / Flug"]
[null,null,null,"Gesamt-Kerosinverbrauch (kg)",{"$f":"IFERROR($E$548*$E$549*$E$550,\"k.A.\")","v":0},"kg / Jahr"]
[]
[null,null,null,"2)Berechnung der GHG-Emissionen"]
[null,null,null,{"$f":"Table_EF_Pendel[[#Headers],[Verkehrsmittel]]","v":"Verkehrsmittel"},"Gesamt-Kerosinverbrauch (kg/Jahr)","Emissionsfaktor (kg CO2e / kg )","Ergebnis \n(t CO2e / Jahr)"]
[null,null,null,"Helikopter",{"$f":"E551","v":0},{"$f":"EF!$D$572","v":3.88},{"$f":"IFERROR(E555*F555/1000,\"k.A.\")","v":0}]
[]
[null,null,null,"Untergruppe B: Notfallkontakte_Krankenwagen&Pkws"]
[null,null,null,"Gesamtanzahl Notfallkontakte (ohne Helikopter)","Anreise (Anzahl/Jahr)","Abreise (Anzahl/Jahr)"]
[null,null,null,"KTW (Krankentransportwagen) / \nRTW (Rettungswagen)"]
[null,null,null,"PKW"]
[null,null,null,null,null,null,null,{"$f":"_xlfn.UNICHAR(9733)&\"Helpdesk\"","v":"★Helpdesk"},"Defaultwerte (Cafoges)"]
[null,null,"i","Annahme Entfernung",{"$f":"I562","v":10},"km pro Fahrt",null,"Annahme Entfernung",10,"km pro Fahrt"]
[]
[null,null,null,"Verkehrsmittel","Entfernung (An-&Abreise) in km","Emissionsfaktor \n(kg CO2e / km )","Ergebnis \n(t CO2e / Jahr)"]
[null,null,null,"KTW (Krankentransportwagen) / \nRTW (Rettungswagen)",{"$f":"(E559+F559)*$E$562","v":0},{"$f":"VLOOKUP(D565,EF_Patient_Land[[Verkehrsmittel]:[THG-Emissionsfaktor (kg CO2e/pkm)]],2,FALSE)","v":0.36456999999999995},{"$f":"IFERROR(Patient_Notfallkontakte_Krankenwagen_Pkws[[#This Row],[Entfernung (An-&Abreise) in km]]*Patient_Notfallkontakte_Krankenwagen_Pkws[[#This Row],[Emissionsfaktor \n(kg CO2e / km )]]/1000,\"k.A.\")","v":0}]
[null,null,null,"PKW",{"$f":"(E560+F560)*$E$562","v":0},{"$f":"VLOOKUP(D566,EF_Patient_Land[[Verkehrsmittel]:[THG-Emissionsfaktor (kg CO2e/pkm)]],2,FALSE)","v":0.16400000000000001},{"$f":"IFERROR(Patient_Notfallkontakte_Krankenwagen_Pkws[[#This Row],[Entfernung (An-&Abreise) in km]]*Patient_Notfallkontakte_Krankenwagen_Pkws[[#This Row],[Emissionsfaktor \n(kg CO2e / km )]]/1000,\"k.A.\")","v":0}]
[null,null,null,"Summe",{"$f":"SUBTOTAL(109,Patient_Notfallkontakte_Krankenwagen_Pkws[Entfernung (An-&Abreise) in km])","v":0},null,{"$f":"SUBTOTAL(109,Patient_Notfallkontakte_Krankenwagen_Pkws[Ergebnis \n(t CO2e / Jahr)])","v":0}]
[]
[null,null,"Scope 3.16.2 - Patient*innenmobilität\\An- und Abreise Regelkontakte (Bottom-Up)"]
[null,null,null,"Untergruppe A: Regelkontakte_Außerhalb Deutschlands"]
[null,null,null,"Es wurde angenommen, dass die Patient*innen per Flug nach Deutschland angereist sind. ",null,null,null,null,null,{"$f":"_xlfn.UNICHAR(9733)&\"Helpdesk\"","v":"★Helpdesk"},"Default-Werte"]
[null,null,null,"Herkunftskontinent","Anzahl der Patient*innen / Jahr","Entfernung (one-way) in km","Emissionsfaktor (kg CO2e / km )","Ergebnis (t CO2e / Jahr)",null,"Annahme","Fahrstrecke: km ","Quelle"]
[null,null,"i","Afrika",null,{"$f":"K573","v":14000},{"$f":"IF(F573>3700,EF!$D$548,EF!$D$547)","v":0.32537799150830105},{"$f":"IFERROR(E573*F573*2*G573/1000,\"k.A.\")","v":0},null,"Afrika",14000,"Suedafrika → Frankfurt, DE"]
[null,null,null,"Amerika",null,{"$f":"K574","v":8000},{"$f":"IF(F574>3700,EF!$D$548,EF!$D$547)","v":0.32537799150830105},{"$f":"IFERROR(E574*F574*2*G574/1000,\"k.A.\")","v":0},null,"Amerika",8000,"USA -> Frankfurt, DE"]
[null,null,null,"Asien",null,10000,{"$f":"IF(F575>3700,EF!$D$548,EF!$D$547)","v":0.32537799150830105},0,null,"Asien",10000,"China → Frankfurt, DE"]
[null,null,null,"Europa",null,1500,{"$f":"IF(F576>3700,EF!$D$548,EF!$D$547)","v":0.25871740161073831},0,null,"Europa",1500,"Einschätzung"]
[null,null,null,"Ozeanien",null,17000,{"$f":"IF(F577>3700,EF!$D$548,EF!$D$547)","v":0.32537799150830105},0,null,"Ozeanien",17000,"Sydney → Frankfurt, DE"]
[null,null,null,"Summe",{"$f":"SUBTOTAL(109,Tabelle49[Anzahl der Patient*innen / Jahr])","v":0},null,null,{"$f":"SUBTOTAL(109,Tabelle49[Ergebnis (t CO2e / Jahr)])","v":0}]
[]
[]
[null,null,null,"Untergruppe B:  Regelkontakte_Innerhalb Deutschlands"]
[null,null,null,"1) In welchem Postleitzahlbereich befindet sich Ihr Krankenhaus? Bitte auswählen.  "]
[]
[null,null,null,"2) Die Abbildung [22] gibt einen Überblick über die Postleitzahlbereiche innerhalb von Deutschland.  "]
[null,null,null,"Bitte schätzen Sie die Anzahl der Patient*innen aus den entsprechenden Postleitzahlbereichen und schreiben sie unten in die Tabelle. "]
[null,null,null,"Postleitzahlbereich","Anzahl der Patienten","Anteil aller Patienten in % ","Angenommene Entfernung \n(One-way) in km","Entfernung (Hin-& Zurück) in km"]
[null,null,null,"Gebiet 0",null,{"$f":"IFERROR(Tabelle51[[#This Row],[Anzahl der Patienten]]/Tabelle51[[#Totals],[Anzahl der Patienten]],\"k.A.\")","v":"k.A."},{"$f":"IFERROR(INDEX(OFFSET(EF!$C$552:$C$561,0,MATCH(Tabelle51[[#This Row],[Postleitzahlbereich]],EF!$C$552:$C$561,0)),MATCH($E$582,EF!$D$551:$M$551,0)),\"k.A.\")","v":"k.A."},{"$f":"IFERROR(G587*2*Tabelle51[[#This Row],[Anzahl der Patienten]],\"k.A.\")","v":"k.A."}]
[null,null,null,"Gebiet 1",null,{"$f":"IFERROR(Tabelle51[[#This Row],[Anzahl der Patienten]]/Tabelle51[[#Totals],[Anzahl der Patienten]],\"k.A.\")","v":"k.A."},{"$f":"IFERROR(INDEX(OFFSET(EF!$C$552:$C$561,0,MATCH(Tabelle51[[#This Row],[Postleitzahlbereich]],EF!$C$552:$C$561,0)),MATCH($E$582,EF!$D$551:$M$551,0)),\"k.A.\")","v":"k.A."},{"$f":"IFERROR(G588*2*Tabelle51[[#This Row],[Anzahl der Patienten]],\"k.A.\")","v":"k.A."}]
[null,null,null,"Gebiet 2",null,{"$f":"IFERROR(Tabelle51[[#This Row],[Anzahl der Patienten]]/Tabelle51[[#Totals],[Anzahl der Patienten]],\"k.A.\")","v":"k.A."},{"$f":"IFERROR(INDEX(OFFSET(EF!$C$552:$C$561,0,MATCH(Tabelle51[[#This Row],[Postleitzahlbereich]],EF!$C$552:$C$561,0)),MATCH($E$582,EF!$D$551:$M$551,0)),\"k.A.\")","v":"k.A."},{"$f":"IFERROR(G589*2*Tabelle51[[#This Row],[Anzahl der Patienten]],\"k.A.\")","v":"k.A."}]
[null,null,null,"Gebiet 3",null,{"$f":"IFERROR(Tabelle51[[#This Row],[Anzahl der Patienten]]/Tabelle51[[#Totals],[Anzahl der Patienten]],\"k.A.\")","v":"k.A."},{"$f":"IFERROR(INDEX(OFFSET(EF!$C$552:$C$561,0,MATCH(Tabelle51[[#This Row],[Postleitzahlbereich]],EF!$C$552:$C$561,0)),MATCH($E$582,EF!$D$551:$M$551,0)),\"k.A.\")","v":"k.A."},{"$f":"IFERROR(G590*2*Tabelle51[[#This Row],[Anzahl der Patienten]],\"k.A.\")","v":"k.A."}]
[null,null,null,"Gebiet 4",null,{"$f":"IFERROR(Tabelle51[[#This Row],[Anzahl der Patienten]]/Tabelle51[[#Totals],[Anzahl der Patienten]],\"k.A.\")","v":"k.A."},{"$f":"IFERROR(INDEX(OFFSET(EF!$C$552:$C$561,0,MATCH(Tabelle51[[#This Row],[Postleitzahlbereich]],EF!$C$552:$C$561,0)),MATCH($E$582,EF!$D$551:$M$551,0)),\"k.A.\")","v":"k.A."},{"$f":"IFERROR(G591*2*Tabelle51[[#This Row],[Anzahl der Patienten]],\"k.A.\")","v":"k.A."}]
[null,null,null,"Gebiet 5",null,{"$f":"IFERROR(Tabelle51[[#This Row],[Anzahl der Patienten]]/Tabelle51[[#Totals],[Anzahl der Patienten]],\"k.A.\")","v":"k.A."},{"$f":"IFERROR(INDEX(OFFSET(EF!$C$552:$C$561,0,MATCH(Tabelle51[[#This Row],[Postleitzahlbereich]],EF!$C$552:$C$561,0)),MATCH($E$582,EF!$D$551:$M$551,0)),\"k.A.\")","v":"k.A."},{"$f":"IFERROR(G592*2*Tabelle51[[#This Row],[Anzahl der Patienten]],\"k.A.\")","v":"k.A."}]
[null,null,null,"Gebiet 6",null,{"$f":"IFERROR(Tabelle51[[#This Row],[Anzahl der Patienten]]/Tabelle51[[#Totals],[Anzahl der Patienten]],\"k.A.\")","v":"k.A."},{"$f":"IFERROR(INDEX(OFFSET(EF!$C$552:$C$561,0,MATCH(Tabelle51[[#This Row],[Postleitzahlbereich]],EF!$C$552:$C$561,0)),MATCH($E$582,EF!$D$551:$M$551,0)),\"k.A.\")","v":"k.A."},{"$f":"IFERROR(G593*2*Tabelle51[[#This Row],[Anzahl der Patienten]],\"k.A.\")","v":"k.A."}]
[null,null,null,"Gebiet 7",null,{"$f":"IFERROR(Tabelle51[[#This Row],[Anzahl der Patienten]]/Tabelle51[[#Totals],[Anzahl der Patienten]],\"k.A.\")","v":"k.A."},{"$f":"IFERROR(INDEX(OFFSET(EF!$C$552:$C$561,0,MATCH(Tabelle51[[#This Row],[Postleitzahlbereich]],EF!$C$552:$C$561,0)),MATCH($E$582,EF!$D$551:$M$551,0)),\"k.A.\")","v":"k.A."},{"$f":"IFERROR(G594*2*Tabelle51[[#This Row],[Anzahl der Patienten]],\"k.A.\")","v":"k.A."}]
[null,null,null,"Gebiet 8",null,{"$f":"IFERROR(Tabelle51[[#This Row],[Anzahl der Patienten]]/Tabelle51[[#Totals],[Anzahl der Patienten]],\"k.A.\")","v":"k.A."},{"$f":"IFERROR(INDEX(OFFSET(EF!$C$552:$C$561,0,MATCH(Tabelle51[[#This Row],[Postleitzahlbereich]],EF!$C$552:$C$561,0)),MATCH($E$582,EF!$D$551:$M$551,0)),\"k.A.\")","v":"k.A."},{"$f":"IFERROR(G595*2*Tabelle51[[#This Row],[Anzahl der Patienten]],\"k.A.\")","v":"k.A."}]
[null,null,null,"Gebiet 9",null,{"$f":"IFERROR(Tabelle51[[#This Row],[Anzahl der Patienten]]/Tabelle51[[#Totals],[Anzahl der Patienten]],\"k.A.\")","v":"k.A."},{"$f":"IFERROR(INDEX(OFFSET(EF!$C$552:$C$561,0,MATCH(Tabelle51[[#This Row],[Postleitzahlbereich]],EF!$C$552:$C$561,0)),MATCH($E$582,EF!$D$551:$M$551,0)),\"k.A.\")","v":"k.A."},{"$f":"IFERROR(G596*2*Tabelle51[[#This Row],[Anzahl der Patienten]],\"k.A.\")","v":"k.A."}]
[null,null,null,"Summe",{"$f":"SUBTOTAL(109,Tabelle51[Anzahl der Patienten])","v":0},{"$f":"SUBTOTAL(109,Tabelle51[Anteil aller Patienten in % ])","v":0},null,{"$f":"SUBTOTAL(109,Tabelle51[Entfernung (Hin-& Zurück) in km])","v":0}]
[]
[null,null,null,"3) Berechnung der GHG-Emissionen der Patient*innenmobilität innerhalb Deutschlands. Es wurde angenommen, dass die Patient*innen per Pkw angereist sind."]
[null,null,null,{"$f":"Table_EF_Pendel[[#Headers],[Verkehrsmittel]]","v":"Verkehrsmittel"},"Entfernung (Hin-&Zurück) in km","Emissionsfaktor\n(kg CO2e / km )","Ergebnis \n(t CO2e / Jahr)"]
[null,null,null,"PKW",{"$f":"Tabelle51[[#Totals],[Entfernung (Hin-& Zurück) in km]]","v":0},{"$f":"VLOOKUP(D601,EF_Patient_Land[[Verkehrsmittel]:[THG-Emissionsfaktor (kg CO2e/pkm)]],2,FALSE)","v":0.16400000000000001},{"$f":"E601*F601/1000","v":0}]
[]
[null,null,"Scope 3.16.3 - Patient*innenmobilität\\Verlegungen (Bottom-Up)",null,null,null,null,null,null,null,{"$f":"_xlfn.UNICHAR(9733)&\"Helpdesk\"","v":"★Helpdesk"},"Defaultwerte  (Cafoges)"]
[null,null,null,"Verkehrsmittel","Anzahl / Jahr","Annahme: Entfernung One-way in km","Entfernung (Hin-& Zurück) in km / Jahr","Emissionsfaktor\n(kg CO2e / km )","Ergebnis \n(t CO2e / Jahr)",null,"Verkehrsmittel","Annahme: Entfernung One-way in km"]
[null,null,"i","KTW (Krankentransportwagen)",null,{"$f":"L605","v":13.356363636363636},{"$f":"IF(ISNUMBER(Tabelle53[[#This Row],[Anzahl / Jahr]]),Tabelle53[[#This Row],[Anzahl / Jahr]]*Tabelle53[[#This Row],[Annahme: Entfernung One-way in km]]*2,\"k.A\")","v":"k.A"},{"$f":"VLOOKUP(D605,EF_Patient_Land[[Verkehrsmittel]:[THG-Emissionsfaktor (kg CO2e/pkm)]],2,FALSE)","v":0.23155999999999999},{"$f":"IFERROR(Tabelle53[[#This Row],[Entfernung (Hin-& Zurück) in km / Jahr]]*Tabelle53[[#This Row],[Emissionsfaktor\n(kg CO2e / km )]]/1000,\"k.A\")","v":"k.A"},null,"KTW (Krankentransportwagen)",13.356363636363636]
[null,null,null,"RTW (Rettungswagen) / \nITW (Intensivtransportwagen)",null,{"$f":"L606","v":19.091133004926107},{"$f":"IF(ISNUMBER(Tabelle53[[#This Row],[Anzahl / Jahr]]),Tabelle53[[#This Row],[Anzahl / Jahr]]*Tabelle53[[#This Row],[Annahme: Entfernung One-way in km]]*2,\"k.A\")","v":"k.A"},{"$f":"VLOOKUP(D606,EF_Patient_Land[[Verkehrsmittel]:[THG-Emissionsfaktor (kg CO2e/pkm)]],2,FALSE)","v":0.49757999999999997},{"$f":"IFERROR(Tabelle53[[#This Row],[Entfernung (Hin-& Zurück) in km / Jahr]]*Tabelle53[[#This Row],[Emissionsfaktor\n(kg CO2e / km )]]/1000,\"k.A\")","v":"k.A"},null,"RTW (Rettungswagen) / \nITW (Intensivtransportwagen)",19.091133004926107]
[null,null,null,"Taxi",null,2.0172549019607802,{"$f":"IF(ISNUMBER(Tabelle53[[#This Row],[Anzahl / Jahr]]),Tabelle53[[#This Row],[Anzahl / Jahr]]*Tabelle53[[#This Row],[Annahme: Entfernung One-way in km]]*2,\"k.A\")","v":"k.A"},{"$f":"VLOOKUP(D607,EF_Patient_Land[[Verkehrsmittel]:[THG-Emissionsfaktor (kg CO2e/pkm)]],2,FALSE)","v":0.16400000000000001},{"$f":"IFERROR(Tabelle53[[#This Row],[Entfernung (Hin-& Zurück) in km / Jahr]]*Tabelle53[[#This Row],[Emissionsfaktor\n(kg CO2e / km )]]/1000,\"k.A\")","v":"k.A"},null,"Taxi",2.0172549019607802]
[null,null,null,"Summe",{"$f":"SUBTOTAL(109,Tabelle53[Anzahl / Jahr])","v":0},null,null,null,{"$f":"SUBTOTAL(109,Tabelle53[Ergebnis \n(t CO2e / Jahr)])","v":0}]
[]
[null,null,null,"Zusammenfassung der Ergebnisse",null,"Ergebnis \n(t CO2e / Jahr)","Anteil in %"]
[null,null,null,{"$f":"C545","v":"Scope 3.16.1 - Patient*innenmobilität\\An- und Abreise Notfallkontakte (Bottom-Up)"},null,{"$f":"IFERROR(Result_Scope3_P_Mobilität_Notfall_Helikoper+Result_Scope3_P_Mobilität_Notfall_K_RTW_PKW,\"k.A.\")","v":0},{"$f":"IFERROR(F611/$F$614,\"k.A.\")","v":"k.A."}]
[null,null,null,{"$f":"C569","v":"Scope 3.16.2 - Patient*innenmobilität\\An- und Abreise Regelkontakte (Bottom-Up)"},null,{"$f":"IFERROR(Result_Scope3_Patient_Regelkontakte_innerhalb_DE+Result_Scope3_Patient_Regelkontakte_Non_DE, \"k.A.\")","v":0},{"$f":"IFERROR(F612/$F$614,\"k.A.\")","v":"k.A."}]
[null,null,null,{"$f":"C603","v":"Scope 3.16.3 - Patient*innenmobilität\\Verlegungen (Bottom-Up)"},null,{"$f":"IFERROR(Result_Scope3_Patient_Verlegung,\"k.A.\")","v":0},"k.A."]
[null,null,null,"Summe",null,{"$f":"SUM(F611:F613)","v":0},"k.A."]

{"sheet":"Ergebnisse","index":6,"n_rows":71,"n_cols":17,"rows_kept":71,"cut":false,"hidden":false,"merged":[[47,2,47,5],[47,11,47,14]]}
[]
[]
[]
[]
[]
[]
[null,null,"Name der Organisation:",{"$f":"Eckdaten!$C$7","v":"Klinikum ###"}]
[null,null,"Bilanzzeitraum:",{"$f":"IF(OR(ISBLANK(Eckdaten!$C$21),ISBLANK(Eckdaten!$C$22)),\"Bilanzzeitraum im Blatt Eckdaten noch nicht definiert\",TEXT(Eckdaten!$C$21, \"TT.MM.JJJJ\") &\" - \" &TEXT(Eckdaten!$C$22, \"TT.MM.JJJJ\"))","v":"Bilanzzeitraum im Blatt Eckdaten noch nicht definiert"}]
[]
[null,null,"1. Gesamte absolute und normierte GWP-Ergebnisse"]
[null,null,"Gesamtergebnisse unter ortsbezogenem Ansatz für Scope 2",null,null,null,null,null,null,null,null,"Gesamtergebnisse unter marktbasiertem Ansatz für Scope 2"]
[null,null,"Summe :",{"$f":"Total_Summe_Ort","v":0},"[t CO2e]",null,null,null,null,null,null,"Summe :",{"$f":"Total_Summe_Markt","v":0},"[t CO2e]"]
[null,null,{"$f":"D7&\": \"&Ergebnisse!$C$14 & \" [t CO2e]\"","v":"Klinikum ###: Bilanzjahr 1900 [t CO2e]"},null,null,null,null,null,null,null,null,{"$f":"C13","v":"Klinikum ###: Bilanzjahr 1900 [t CO2e]"}]
[null,null,{"$f":"\"Bilanzjahr \" & TEXT(Eckdaten!$C$21,\"JJJJ\")","v":"Bilanzjahr 1900"}," t CO2e / Jahr","Anteil in %",null,null,null,null,null,null,{"$f":"\"Bilanzjahr \" & TEXT(Eckdaten!$C$21,\"JJJJ\")","v":"Bilanzjahr 1900"}," t CO2e / Jahr","Anteil in %"]
[null,null,"Scope 1",{"$f":"IF(ISNUMBER(Summe_Scope_1),Summe_Scope_1,\"k.A.\")","v":0},{"$f":"IFERROR(D15/$D$18,\"k.A.\")","v":"k.A."},null,null,null,null,null,null,"Scope 1",{"$f":"IF(ISNUMBER(Summe_Scope_1),Summe_Scope_1,\"k.A.\")","v":0},{"$f":"IFERROR(M15/$M$18,\"k.A.\")","v":"k.A."}]
[null,null,"Scope 2 (Ortsbezogener Ansatz)",{"$f":"IF(ISNUMBER(Summe_Scope_2_Mix),Summe_Scope_2_Mix,\"k.A.\")","v":0},{"$f":"IFERROR(D16/$D$18,\"k.A.\")","v":"k.A."},null,null,null,null,null,null,"Scope 2 (Marktbasierter Ansatz)",{"$f":"IF(ISNUMBER(Summe_Scope_2_spezifisch),Summe_Scope_2_spezifisch,\"k.A.\")","v":"k.A."},{"$f":"IFERROR(M16/$M$18,\"k.A.\")","v":"k.A."}]
[null,null,"Scope 3",{"$f":"IF(ISNUMBER(Summe_Scope_3),Summe_Scope_3,\"k.A.\")","v":0},"k.A.",null,null,null,null,null,null,"Scope 3",{"$f":"IF(ISNUMBER(Summe_Scope_3),Summe_Scope_3,\"k.A.\")","v":0},"k.A."]
[null,null,"Summe",{"$f":"SUM(D15:D17)","v":0},{"$f":"SUM(E15:E17)","v":0},null,null,null,null,null,null,"Summe",{"$f":"SUM(M15:M17)","v":0},{"$f":"SUM(N15:N17)","v":0}]
[]
[null,null,"Die unten gezeigten normierten Parameter ermöglichen die GWP-Ergebnisse nach Leistung besser zu verstehen oder einer Bewertung gegenüber einem bestimmten Benchmark zu vergleichen."]
[null,null,"Normierung","Normierte Parameter","Normierte Gesamtergebnisse",null,null,null,null,null,null,{"$f":"C21","v":"Normierung"},{"$f":"D21","v":"Normierte Parameter"},{"$f":"E21","v":"Normierte Gesamtergebnisse"}]
[null,null,"Normiert nach Anzahl der Mitarbeiter*innen",{"$f":"IF(Anzahl_Mitarbeiterinnen,Anzahl_Mitarbeiterinnen,\"k.A.\")","v":"k.A."},{"$f":"IFERROR(Total_Summe_Ort/$D$22,\"k.A\")","v":"k.A"},null,null,null,null,null,null,{"$f":"C22","v":"Normiert nach Anzahl der Mitarbeiter*innen"},{"$f":"D22","v":"k.A."},{"$f":"IFERROR(Total_Summe_Markt/$M$22,\"k.A.\")","v":"k.A."}]
[null,null,"Normiert nach Anzahl der Planbetten",{"$f":"IF(Anzahl_der_Planbetten,Anzahl_der_Planbetten,\"k.A.\")","v":"k.A."},{"$f":"IFERROR(Total_Summe_Ort/$D$23,\"k.A\")","v":"k.A"},null,null,null,null,null,null,{"$f":"C23","v":"Normiert nach Anzahl der Planbetten"},{"$f":"D23","v":"k.A."},{"$f":"IFERROR(Total_Summe_Markt/$M$23,\"k.A\")","v":"k.A"}]
[null,null,"Normiert nach Anzahl der belegten Betten",{"$f":"IF(Anzahl_der_belegten_Betten,Anzahl_der_belegten_Betten,\"k.A.\")","v":"k.A."},{"$f":"IFERROR(Total_Summe_Ort/$D$24,\"k.A\")","v":"k.A"},null,null,null,null,null,null,{"$f":"C24","v":"Normiert nach Anzahl der belegten Betten"},"k.A.",{"$f":"IFERROR(Total_Summe_Markt/$M$24,\"k.A\")","v":"k.A"}]
[null,null,"Normieren nach Anzahl der Patient*innen",{"$f":"IF(Anzahl_der_Patientinnen,Anzahl_der_Patientinnen,\"k.A.\")","v":"k.A."},{"$f":"IFERROR(Total_Summe_Ort/$D$25,\"k.A\")","v":"k.A"},null,null,null,null,null,null,{"$f":"C25","v":"Normieren nach Anzahl der Patient*innen"},{"$f":"D25","v":"k.A."},{"$f":"IFERROR(Total_Summe_Markt/$M$25,\"k.A\")","v":"k.A"}]
[]
[]
[]
[]
[]
[]
[]
[]
[]
[]
[]
[]
[]
[]
[]
[]
[]
[]
[]
[null,null,"2. Aufteilung der GWP-Ergebnisse"]
[null,null,"Aufteilung der Ergebnisse (unter ortsbezogenem Ansatz für Scope 2)",null,null,null,null,null,null,null,null,"Aufteilung der Ergebnisse (unter marktbasiertem Ansatz für Scope 2)"]
[null,null,"Scope",null,null,null," t CO2e / Jahr","Anteil in % am Gesamtergebnis",null,null,null,"Scope",null,null,null," t CO2e / Jahr","Anteil in % am Gesamtergebnis"]
[null,null,{"$f":"Scope_1!$B$10","v":"Scope 1.1 - Direkte Emissionen aus Verbrennungsprozessen stationärer Anlagen (selbst produzierte Energie)"},null,null,null,{"$f":"IF(Scope1_1_Ja_Nein=\"Nein\",0,IF(Option_Auswahl_S1_1=\"Option 1\",Result_Scope1_1_Option1,Result_Scope1_1_Option2))","v":0},{"$f":"IFERROR(G48/Total_Summe_Ort,\"k.A.\")","v":"k.A."},null,null,null,{"$f":"C48","v":"Scope 1.1 - Direkte Emissionen aus Verbrennungsprozessen stationärer Anlagen (selbst produzierte Energie)"},null,null,null,{"$f":"IF(Scope1_1_Ja_Nein=\"Nein\",0,IF(Option_Auswahl_S1_1=\"Option 1\",Result_Scope1_1_Option1,Result_Scope1_1_Option2))","v":0},{"$f":"IFERROR(P48/Total_Summe_Markt,\"k.A.\")","v":"k.A."}]
[null,null,{"$f":"Scope_1!$B$50","v":"Scope 1.2 - Direkte Emissionen aus Verbrennungsprozessen mobiler Anlagen"},null,null,null,{"$f":"Result_Scope1_2_Fuhrpark","v":0},"k.A.",null,null,null,"Scope 1.2 - Direkte Emissionen aus Verbrennungsprozessen mobiler Anlagen",null,null,null,{"$f":"Result_Scope1_2_Fuhrpark","v":0},"k.A."]
[null,null,{"$f":"Scope_1!$B$68","v":"Scope 1.3 - Direkte Emissionen aus Kältemittelverlusten"},null,null,null,{"$f":"Result_Scope1_3_KM","v":0},"k.A.",null,null,null,"Scope 1.3 - Direkte Emissionen aus Kältemittelverlusten",null,null,null,{"$f":"Result_Scope1_3_KM","v":0},"k.A."]
[null,null,{"$f":"Scope_1!$B$82","v":"Scope 1.4 - Direkte Emissionen aus medizinischen & technischen flüchtigen Gasen"},null,null,null,{"$f":"Result_Scope1_4_Medi_Gase+ Result_Scope1_4_Analyse_Gase","v":0},"k.A.",null,null,null,"Scope 1.4 - Direkte Emissionen aus medizinischen & technischen flüchtigen Gasen",null,null,null,{"$f":"Result_Scope1_4_Medi_Gase+ Result_Scope1_4_Analyse_Gase","v":0},"k.A."]
[null,null,"Scope 2.1 - Indirekte Emissionen aus eingekaufter Energie (Strom, Wärme, Kälte, Dampf)",null,null,null,{"$f":"Result_Scope2_Ortsb_Mix","v":0},"k.A.",null,null,null,"Scope 2.1 - Indirekte Emissionen aus eingekaufter Energie (Strom, Wärme, Kälte, Dampf)",null,null,null,{"$f":"Summe_Scope_2_spezifisch","v":"Auswahl der Option; s.Zeile D41"},"k.A."]
[null,null,{"$f":"Scope_3!$D$15 &\" (\" &Auswahl_Methode_Medikamente&\")\"","v":"Scope 3.1.1 - Eingekaufte Medikamente (Option 1: Hybrid)"},null,null,null,{"$f":"IF(Auswahl_Methode_Medikamente=\"Option 1: Hybrid\",Result_Scope3_Medikamente_Option1,(IF(Auswahl_Methode_Medikamente=\"Option 2: Top-Down (CDP)\",Result_Scope3_Medikamente_Option2,Result_Scope3_Medikamente_Option3)))","v":0},"k.A.",null,null,null,"Scope 3.1.1 - Eingekaufte Medikamente (Option 1: Hybrid)",null,null,null,{"$f":"IF(Auswahl_Methode_Medikamente=\"Option 1: Hybrid\",Result_Scope3_Medikamente_Option1,(IF(Auswahl_Methode_Medikamente=\"Option 2: Top-Down (CDP)\",Result_Scope3_Medikamente_Option2,Result_Scope3_Medikamente_Option3)))","v":0},"k.A."]
[null,null,{"$f":"Scope_3!$D$118","v":"Scope 3.1.2 - Eingekaufte medizinische & technische Gase (Bottom-Up)"},null,null,null,{"$f":"Result_Scope3_Gase","v":0},"k.A.",null,null,null,"Scope 3.1.2 - Eingekaufte medizinische & technische Gase (Bottom-Up)",null,null,null,{"$f":"Result_Scope3_Gase","v":0},"k.A."]
[null,null,{"$f":"Scope_3.1.3_Med_Verbrauchsmaterialien","v":"Scope 3.1.3 - Eingekaufte medizinische Verbrauchsmaterialien (Top-Down)"},null,null,null,{"$f":"Result_Scope3_MedizinischVM_Option3","v":0},"k.A.",null,null,null,"Scope 3.1.3 - Eingekaufte medizinische Verbrauchsmaterialien (Top-Down)",null,null,null,{"$f":"Result_Scope3_MedizinischVM_Option3","v":0},"k.A."]
[null,null,{"$f":"Scope_3!$D$149","v":"Scope 3.1.4 - Eingekaufte Kältemittel (KM) (Bottom-Up)"},null,null,null,{"$f":"Result_Scope3_KM","v":0},"k.A.",null,null,null,"Scope 3.1.4 - Eingekaufte Kältemittel (KM) (Bottom-Up)",null,null,null,{"$f":"Result_Scope3_KM","v":0},"k.A."]
[null,null,{"$f":"Scope_3!$D$161&\" (\"&Auswahl_Methode_Lebensmittel&\")\"","v":"Scope 3.1.5 - Eingekaufte Lebensmittel (Option 1: Bottom-Up)"},null,null,null,{"$f":"IF(Auswahl_Methode_Lebensmittel=\"Option 1: Bottom-Up\",Result_Scope3_Lebensmittel_Option1,Result_Scope3_Lebensmittel_Option2)","v":0},"k.A.",null,null,null,"Scope 3.1.5 - Eingekaufte Lebensmittel (Option 1: Bottom-Up)",null,null,null,{"$f":"IF(Auswahl_Methode_Lebensmittel=\"Option 1: Bottom-Up\",Result_Scope3_Lebensmittel_Option1,Result_Scope3_Lebensmittel_Option2)","v":0},"k.A."]
[null,null,{"$f":"Scope_3!$D$209&\" (\"&Auswahl_Methode_Textile&\")\"","v":"Scope 3.1.6 - Eingekaufte Textilien ()"},null,null,null,{"$f":"IF(Auswahl_Methode_Textile=\"Option 1: Bottom-Up\",Result_Scope3_Textile_option1,Result_Scope3_Textile_option2)","v":0},"k.A.",null,null,null,"Scope 3.1.6 - Eingekaufte Textilien ()",null,null,null,{"$f":"IF(Auswahl_Methode_Textile=\"Option 1: Bottom-Up\",Result_Scope3_Textile_option1,Result_Scope3_Textile_option2)","v":0},"k.A."]
[null,null,{"$f":"Scope_3!$D$233&\" (\"&Auswahl_Methode_HygieneA&\")\"","v":"Scope 3.1.7 - Eingekaufte Hygieneartikel & Reinigungsmittel ()"},null,null,null,{"$f":"IF(Auswahl_Methode_HygieneA=\"Option 1: Bottom-Up\",Result_Scope3_HygieneA_Option1,Result_Scope3_HygieneA_Option2)","v":0},"k.A.",null,null,null,"Scope 3.1.7 - Eingekaufte Hygieneartikel & Reinigungsmittel ()",null,null,null,{"$f":"IF(Auswahl_Methode_HygieneA=\"Option 1: Bottom-Up\",Result_Scope3_HygieneA_Option1,Result_Scope3_HygieneA_Option2)","v":0},"k.A."]
[null,null,{"$f":"Scope_3!D253&\" (\"&Auswahl_Methode_Papier&\")\"","v":"Scope 3.1.8 - Eingekauftes Papier/Pappe ()"},null,null,null,{"$f":"IF(Auswahl_Methode_Papier=\"Option 1: Bottom-Up\",Result_Scope3_Papier_Option1,Result_Scope3_Papier_Option2)","v":0},"k.A.",null,null,null,"Scope 3.1.8 - Eingekauftes Papier/Pappe ()",null,null,null,{"$f":"IF(Auswahl_Methode_Papier=\"Option 1: Bottom-Up\",Result_Scope3_Papier_Option1,Result_Scope3_Papier_Option2)","v":0},"k.A."]
[null,null,{"$f":"Scope_3!D271","v":"Scope 3.1.9 - Wasserverbrauch (Bottom-Up)"},null,null,null,{"$f":"Result_Scope3_Wasser","v":0},"k.A.",null,null,null,"Scope 3.1.9 - Wasserverbrauch (Bottom-Up)",null,null,null,{"$f":"Result_Scope3_Wasser","v":0},"k.A."]
[null,null,{"$f":"Scope_3!D278","v":"Scope 3.1.10 - Externe Dienstleistungen: Serverraum & Internet (Bottom-Up)"},null,null,null,{"$f":"Result_Scope3_Internet+Result_Scope3_Serverraum","v":0},"k.A.",null,null,null,"Scope 3.1.10 - Externe Dienstleistungen: Serverraum & Internet (Bottom-Up)",null,null,null,{"$f":"Result_Scope3_Internet+Result_Scope3_Serverraum","v":0},"k.A."]
[null,null,{"$f":"Scope_3!$D$300","v":"Scope 3.2.1 - Eingekaufte IT-Geräte (Bottom-Up)"},null,null,null,{"$f":"Result_Scope3_IT_Geraete","v":0},"k.A.",null,null,null,"Scope 3.2.1 - Eingekaufte IT-Geräte (Bottom-Up)",null,null,null,{"$f":"Result_Scope3_IT_Geraete","v":0},"k.A."]
[null,null,{"$f":"Scope_3!$D$315","v":"Scope 3.3 - Brennstoff- und energiebezogene Emissionen (Bottom-Up)"},null,null,null,{"$f":"Result_Scope3_Energie","v":0},"k.A.",null,null,null,"Scope 3.3 - Brennstoff- und energiebezogene Emissionen (Bottom-Up)",null,null,null,{"$f":"Result_Scope3_Energie","v":0},"k.A."]
[null,null,{"$f":"Scope_3!$D$388","v":"Scope 3.5 - Abfall & Abwasser (am Standort) (Bottom-Up)"},null,null,null,{"$f":"Result_Scope3_Abfall+ Result_Scope3_Abwasser","v":0},"k.A.",null,null,null,"Scope 3.5 - Abfall & Abwasser (am Standort) (Bottom-Up)",null,null,null,{"$f":"Result_Scope3_Abfall+ Result_Scope3_Abwasser","v":0},"k.A."]
[null,null,{"$f":"Scope_3!$D$406","v":"Scope 3.6.1 - Geschäftsreisen (Bottom-Up)"},null,null,null,{"$f":"Result_Scope3_Flugreisen+Result_Scope3_Landreisen","v":0},"k.A.",null,null,null,"Scope 3.6.1 - Geschäftsreisen (Bottom-Up)",null,null,null,{"$f":"Result_Scope3_Flugreisen+Result_Scope3_Landreisen","v":0},"k.A."]
[null,null,{"$f":"Scope_3!$D$428","v":"Scope 3.6.2 - Übernachtung bei Dienstreisen (Bottom-Up)"},null,null,null,{"$f":"Result_Scope3_Uebernachtung","v":0},"k.A.",null,null,null,"Scope 3.6.2 - Übernachtung bei Dienstreisen (Bottom-Up)",null,null,null,{"$f":"Result_Scope3_Uebernachtung","v":0},"k.A."]
[null,null,{"$f":"Scope_3!$D$489","v":"Scope 3.7 - Mitarbeitendenmobilität (Bottom-Up)"},null,null,null,{"$f":"Result_Scope3_Mitarbeitendenmobilität","v":0},"k.A.",null,null,null,"Scope 3.7 - Mitarbeitendenmobilität (Bottom-Up)",null,null,null,{"$f":"Result_Scope3_Mitarbeitendenmobilität","v":0},"k.A."]
[null,null,{"$f":"Scope_3.16_Patient_innenmobilität","v":"Scope 3.16 Patient*innenmobilität (Bottom-Up)"},null,null,null,{"$f":"Results_Scope3_Patient_Mobilitaet","v":0},"k.A.",null,null,null,"Scope 3.16 Patient*innenmobilität (Bottom-Up)",null,null,null,{"$f":"Results_Scope3_Patient_Mobilitaet","v":0},"k.A."]
[]
[null,null,"3. Ergebnisse in PDF umwandeln"]

{"sheet":"EF","index":7,"n_rows":572,"n_cols":14,"rows_kept":572,"cut":false,"hidden":false,"merged":[]}
[null,null,null,null,null,null,null,null,null,"Defaultwerte","Lebensmittelgruppe","Getreideprodukte",null,"Gebiet 0"]
[null,null,null,null,null,null,null,null,null,"Nutzereingabe",null,"Fleisch",null,"Gebiet 1"]
[null,null,null,null,null,null,null,null,"Option 1","Option 1: Bottom-Up",null,"Fisch",null,"Gebiet 2"]
[null,null,null,null,null,null,null,null,"Option 2","Option 2: Top-Down",null,"Milchprodukte",null,"Gebiet 3"]
[null,null,null,null,null,null,null,null,null,"Option 3: Top-Down",null,"Eier",null,"Gebiet 4"]
[null,null,null,null,null,null,null,null,"Option 1: Hybrid","Ja",null,"Gemüse_Obst_Schalenfrüchte ",null,"Gebiet 5"]
[null,null,null,null,null,null,null,null,"Option 2: Top-Down (CDP)","Nein",null,"Fette_Öle",null,"Gebiet 6"]
[null,null,null,null,null,null,null,null,"Option 3: Top-Down (KliOL)","Liter ",null,"Getränke",null,"Gebiet 7"]
[null,null,null,null,null,null,null,null,null,"Kilogramm",null,"Babynahrung_Sondennahrung",null,"Gebiet 8"]
[null,null,null,null,null,null,null,null,null,null,null,"Süßwaren",null,"Gebiet 9"]
[null,null,null,null,null,null,null,null,null,null,null,"Gewürze"]
[null,"Brennstoffe (Scope 1)",null,null,null,null,null,null,null,null,null,"Sonstige"]
[null,"Primärenergiebezogene direkte Emissionsfaktoren der Stromerzeugung und der Wärmebereitstellung"]
[null,null,"Brennstoffe (DE)","Einheit","kg CO2 / kWh","kg CH4  / kWh","kg N2O / kWh","Gesamte kg CO2e  / kWh","Quelle"]
[null,null,"Erdgas","m³",0.20069999999999999,2.32E-4,5.0000000000000004E-6,{"$f":"EF!$E15+EF!$F15*Methan_IPCC_AR6+EF!$G15*N2O_IPCC_AR6","v":0.2085378},"[1], [5] Tabelle 7"]
[null,null,"Öl","Liter",0.26646999999999998,{"$f":"0.000021","v":2.0999999999999999E-5},{"$f":"0.000006","v":6.0000000000000002E-6},{"$f":"EF!$E16+EF!$F16*Methan_IPCC_AR6+EF!$G16*N2O_IPCC_AR6","v":0.26869389999999993},"[1], [5] Tabelle 7"]
[null,null,"Braunkohle","Tonnen",0.39338000000000001,1.9999999999999999E-6,1.2999999999999999E-5,{"$f":"EF!$E17+EF!$F17*Methan_IPCC_AR6+EF!$G17*N2O_IPCC_AR6","v":0.39698480000000003},"[1], [5] Tabelle 7"]
[null,null,"Steinkohle","Tonnen",0.33722999999999997,3.9999999999999998E-6,3.9999999999999998E-6,{"$f":"EF!$E18+EF!$F18*Methan_IPCC_AR6+EF!$G18*N2O_IPCC_AR6","v":0.33843359999999995},"[1], [5] Tabelle 7"]
[null,null,"Holz","Tonnen",0,4.0000000000000003E-5,1.1E-5,{"$f":"EF!$E19+EF!$F19*Methan_IPCC_AR6+EF!$G19*N2O_IPCC_AR6","v":4.1190000000000003E-3},"[1], [5] Tabelle 32"]
[null,null,"Biogas/Biomethan (Energiepflanzen, Gülle, Abfall)","m³",0,1.8996114110700641E-3,5.7239746140001891E-6,{"$f":"EF!$E20+EF!$F20*Methan_IPCC_AR6+EF!$G20*N2O_IPCC_AR6","v":5.4561803438476837E-2},"[1], [5] Tabelle 34, Tabelle 37"]
[null,null,"Flüssige Biomasse (z.B. Pflanzenöl)","Liter",0,{"$f":"0.01/1000","v":1.0000000000000001E-5},{"$f":"0.002/1000","v":1.9999999999999999E-6},{"$f":"EF!$E21+EF!$F21*Methan_IPCC_AR6+EF!$G21*N2O_IPCC_AR6","v":8.25E-4},"[1], [5] Tabelle 43"]
[]
[null,"Fuhrpark (Scope 1)"]
[null,null,"Tank-to-Wheel: Erfassung aller direkten Emissionen des Fahrzeugbetriebes"]
[null,null,"Kraftstoffe","Emissionsfaktor","Einheit","Quelle"]
[null,null,"Benzin",2.42,"kg CO2e/Liter","[8], [9]"]
[null,null,"Benzin E5 (5 Vol.-% Bioethanol)",2.2999999999999998,"kg CO2e/Liter","[8], [9]"]
[null,null,"Benzin E10 (10 Vol.-% Bioethanol)",2.1800000000000002,"kg CO2e/Liter","[8], [9]"]
[null,null,"Diesel",2.67,"kg CO2e/Liter","[8], [9]"]
[null,null,"Diesel D7 (7 Vol.-% Biodiesel)",2.48,"kg CO2e/Liter","[8], [9]"]
[null,null,"Biodiesel",0,"kg CO2e/Liter","[8], [9]"]
[null,null,"Autogas (LPG)",1.7,"kg CO2e/Liter","[8], [9]"]
[null,null,"Erdgas (CNG)",2.68,"kg CO2e/kg*","[8], [9]"]
[null,null,"Flugbenzin ",2.5,"kg CO2e/Liter","[8]"]
[null,null,"Kerosin (Jet A1 und Jet A)",2.54,"kg CO2e/Liter","[8]"]
[null,null,"*Es gibt für Erdgas (CNG) nur einen Emissionsfaktor bezogen auf kg."]
[]
[null,"Kältemittel (Scope 1)"]
[null,null,"Erfassung der in die Atmosphäre emittierten direkten Emissionen von Kältemitteln. Quelle:[1]; Die Emissionsfaktoren für die Kältemittel-Mischung basieren auf eigenen Berechnungen auf Basis von [1]"]
[null,null,"Kältemittel","IPCC 2021 (AR6) [1]; eigene Berechnungen","Einheit"]
[null,null,"Kohlenstoffdioxid",1,"kg CO2e/kg"]
[null,null,"Methan",27.9,"kg CO2e/kg"]
[null,null,"Lachgas (Distickstoffmonoxid)",273,"kg CO2e/kg"]
[null,null,"Stickstofftrifluorid",17400,"kg CO2e/kg"]
[null,null,"Schwefelhexafluorid",24300,"kg CO2e/kg"]
[null,null,"Ammoniak (R717) ",0,"kg CO2e/kg"]
[null,"Fluorkohlenwasserstoffe (HFCs)","HCFC-22",1960,"kg CO2e/kg"]
[null,null,"HFC-23 (R-23)",14600,"kg CO2e/kg"]
[null,null,"HFC-32 (R-32)",771,"kg CO2e/kg"]
[null,null,"HFC-41 (R-41)",135,"kg CO2e/kg"]
[null,null,"HFC-125 (R-125)",3740,"kg CO2e/kg"]
[null,null,"HFC-134 (R-134)",1260,"kg CO2e/kg"]
[null,null,"HFC-134a (R-134a)",1530,"kg CO2e/kg"]
[null,null,"HFC-143 (R-143)",364,"kg CO2e/kg"]
[null,null,"HFC-143a (R-143a)",5810,"kg CO2e/kg"]
[null,null,"HFC-152 (R-152)",21.5,"kg CO2e/kg"]
[null,null,"HFC-152a (R-152a)",164,"kg CO2e/kg"]
[null,null,"HFC-161 (R-161)",4.84,"kg CO2e/kg"]
[null,null,"HFC-227ea (R-227ea)",3600,"kg CO2e/kg"]
[null,null,"HFC-236cb (R-236cb)",1350,"kg CO2e/kg"]
[null,null,"HFC-236ea (R-236ea)",1500,"kg CO2e/kg"]
[null,null,"HFC-236fa (R-236fa)",8690,"kg CO2e/kg"]
[null,null,"HFC-245ca (R-245ca)",787,"kg CO2e/kg"]
[null,null,"HFC-245fa (R-245fa)",962,"kg CO2e/kg"]
[null,null,"HFC-365mfc ",914,"kg CO2e/kg"]
[null,null,"HFC-43-10mee (R-4310)",1600,"kg CO2e/kg"]
[null,"Perfluorierte Kohlenwasserstoffe (PFCs)","PFC-14 (Perfluoromethane)",7380,"kg CO2e/kg"]
[null,null,"PFC-116 (Perfluoroethane)  ",12400,"kg CO2e/kg"]
[null,null,"PFC-218 (Perfluoropropane)  ",9290,"kg CO2e/kg"]
[null,null,"PFC-318 (Perfluorocyclobutane)",10200,"kg CO2e/kg"]
[null,null,"PFC-31-10 (Perfluorobutane)  ",10000,"kg CO2e/kg"]
[null,null,"PFC-41-12 (Perfluoropentane)  ",9220,"kg CO2e/kg"]
[null,null,"PFC-51-14 (Perfluorohexane)  ",8620,"kg CO2e/kg"]
[null,null,"PFC-91-18 (Perfluorodecalin)  ",7480,"kg CO2e/kg"]
[null,"Kältemittel-Mischung","R-401A",1263.0999999999999,"kg CO2e/kg","53% HCFC-22 , 34% HCFC-124 , 13% HFC-152a"]
[null,null,"R-401B",1380.8,"kg CO2e/kg","61% HCFC-22 , 28% HCFC-124 , 11% HFC-152a"]
[null,null,"R-401C",981.84,"kg CO2e/kg","33% HCFC-22 , 52% HCFC-124 , 15% HFC-152a"]
[null,null,"R-402A",2988.8004000000001,"kg CO2e/kg","38% HCFC-22 , 60% HFC-125 , 2% propane"]
[null,null,"R-402B",2597.2003999999997,"kg CO2e/kg","60% HCFC-22 , 38% HFC-125 , 2% propane"]
[null,null,"R-403A",3328.0010000000002,"kg CO2e/kg","75% HCFC-22 , 20% PFC-218 , 5% propane"]
[null,null,"R-403B",4720.701,"kg CO2e/kg","56% HCFC-22 , 39% PFC-218 , 5% propane"]
[null,null,"R-404A",4728,"kg CO2e/kg","44% HFC-125 , 4% HFC-134a , 52% HFC 143a"]
[null,null,"R-407A",2262.1999999999998,"kg CO2e/kg","20% HFC-32 , 40% HFC-125 , 40% HFC-134a"]
[null,null,"R-407B",3001.1,"kg CO2e/kg","10% HFC-32 , 70% HFC-125 , 20% HFC-134a"]
[null,null,"R-407C",1907.9299999999998,"kg CO2e/kg","23% HFC-32 , 25% HFC-125 , 52% HFC-134a"]
[null,null,"R-407D",1747.65,"kg CO2e/kg","15% HFC-32 , 15% HFC-125 , 70% HFC-134a"]
[null,null,"R-407E",1671.75,"kg CO2e/kg","25% HFC-32 , 15% HFC-125 , 60% HFC-134a"]
[null,null,"R-407F",1965.3,"kg CO2e/kg","30% HFC-32 , 30% HFC-125 , 40% HFC-134a"]
[null,null,"R-408A",3855.6,"kg CO2e/kg","47% HCFC-22 , 7% HFC-125 , 46% HFC 143a"]
[null,null,"R-410A",2255.5,"kg CO2e/kg","50% HFC-32 , 50% HFC-125"]
[null,null,"R-410B",2403.9499999999998,"kg CO2e/kg","45% HFC-32 , 55% HFC-125 "]
[null,null,"R-411A",1733.07,"kg CO2e/kg","87.5% HCFC-22 , 11% HFC-152a , 1.5% propylene"]
[null,null,"R-411B",1847.3799999999999,"kg CO2e/kg","94% HCFC-22 , 3% HFC-152a , 3% propylene"]
[null,null,"R-412A",2411.5,"kg CO2e/kg","70% HCFC-22 , 5% PFC-218 , 25% HCFC-142b"]
[null,null,"R-413A",2182.59,"kg CO2e/kg","88% HFC-134a , 9% PFC-218 , 3% isobutane"]
[null,null,"R-415A",1636.7199999999998,"kg CO2e/kg","82% HCFC-22 , 18% HFC-152a"]
[null,null,"R-415B",613,"kg CO2e/kg","25% HCFC-22 , 75% HFC-152a"]
[null,null,"R-416A",1138.56,"kg CO2e/kg","59% HFC-134a , 39.5% HCFC-124, 1.5% isobutane"]
[null,null,"R-417A",2507.8402040000001,"kg CO2e/kg","46.6% HFC-125 , 50% HFC-134a , 3.4% butane"]
[null,null,"R-417B",3234.590162,"kg CO2e/kg","79% HFC-125 , 18.3% HFC-134a , 2.7% butane"]
[null,null,"R-417C",1934.940102,"kg CO2e/kg","19.5% HFC-125 , 78.8% HFC-134a , 1.7% butane"]
[null,null,"R-418A",1885.7002999999997,"kg CO2e/kg","96% HCFC-22 , 2.5% HFC-152a, 1.5% propane"]
[null,null,"R-419A",3170.51748,"kg CO2e/kg","77% HFC-125,  19% HFC-134a,  4 % HCE-170"]
[null,null,"R-419B",2548.3152949999999,"kg CO2e/kg","48.5% HFC-125,  48% HFC-134a, 3.5 % HCE-170"]
[null,null,"R-420A",1622.4,"kg CO2e/kg","12% HCFC-142b, 88% HFC-134a"]
[null,null,"R-421A",2811.7999999999997,"kg CO2e/kg","58% HFC-125, 42% HFC-134a"]
[null,null,"R-421B",3408.5,"kg CO2e/kg","85% HFC-125, 15% HFC-134a"]
[null,null,"R-422A",3358.7919999999995,"kg CO2e/kg","85.1% HFC-125 , 11.5% HFC-134a , 3.4% isobutane"]
[null,null,"R-422B",2699.69,"kg CO2e/kg","55% HFC-125 , 42% HFC-134a , 3% isobutane"]
[null,null,"R-422C",3296.39,"kg CO2e/kg","82% HFC-125 , 15% HFC-134a , 3% isobutane"]
[null,null,"R-422D",2916.7919999999999,"kg CO2e/kg","65.1% HFC-125 , 31.5% HFC-134a , 3.4% isobutane"]
[null,null,"R-422E",2770.5709999999999,"kg CO2e/kg","58% HFC-125 , 39.3% HFC-134a , 2.7% isobutane"]
[null,null,"R-423A",2513.25,"kg CO2e/kg","47.5% HFC-227ea , 52.5% HFC-134a ,  "]
[null,null,"R-424A",2607.8570600000003,"kg CO2e/kg","50.5% HFC-125, 47% HFC-134a, 1% Butane, 0.9% HC-600a, 0.6% HC-601a"]
[null,null,"R-425A",1637.9849999999999,"kg CO2e/kg","12% HFC-227ea , 69.5% HFC-134a ,  18.5% HFC-32 "]
[null,null,"R-426A",1613.6700780000001,"kg CO2e/kg","5.1% HFC-125, 93% HFC-134a, 1.3% butane, 0.6% HC-601a"]
[null,null,"R-427A",2396.65,"kg CO2e/kg","25% HFC-125, 50% HFC-134a , 10% HFC 143a, 15% HFC-32 "]
[null,null,"R-428A",4060.5569999999998,"kg CO2e/kg","77.5% HFC-125 , 20% HFC-143a , 1.9% isobutane"]
[null,null,"R-429A",17.562200000000001,"kg CO2e/kg","30% HC-600a, 60% HCE-170, 10% HFC-152a"]
[null,null,"R-430A",125.36,"kg CO2e/kg","24% HC-600a, 76% HFC-152a"]
[null,null,"R-431A",47.574199999999998,"kg CO2e/kg","71% Propane, 29% HFC-152a"]
[null,null,"R-434A",3654.3639999999996,"kg CO2e/kg","63.2% HFC-125, 16% HFC-134a, 18% HFC-143a, 2.8% isobutane"]
[null,null,"R-435A",33.149600000000007,"kg CO2e/kg","80% HCE-170, 20% HFC-152a"]
[null,null,"R-437A",1930.3800839999999,"kg CO2e/kg","19.5% HFC-125, 78.5% HFC-134a, 1.4% Butane, 0.6% HC-601a"]
[null,null,"R-438A",2424.8251020000002,"kg CO2e/kg","45% HFC-125, 44.2% HFC-134a, 1.7% Butane, 8.5% HFC-32, 0.6% HC-601a"]
[null,null,"R-439A",2143.3900000000003,"kg CO2e/kg","47% HFC-125,  50% HFC-32, 3% HC-600a "]
[null,null,"R-444A",101.8571,"kg CO2e/kg","5% HFC-152a,  12% HFC-32, 83% HFO-1234ze(E)"]
[null,null,"R-445A",337.03629999999993,"kg CO2e/kg","10% HFC-152a,  41.5% HFC-32, 49% HFO-1234ze(E)"]
[null,null,"R-500",9267.9680000000008,"kg CO2e/kg","73.8% CFC-12 , 26.2% HFC-152a"]
[null,null,"R-503",15558.4,"kg CO2e/kg","59.9% CFC-13 , 40.1% HFC-23"]
[null,null,"R-504",5344.4220000000005,"kg CO2e/kg","48.2% HFC-32 , 51.8% CFC-115"]
[null,null,"R-507",4775,"kg CO2e/kg","50% HFC-125 , 50% HFC-143a"]
[null,null,"R-507A",4775,"kg CO2e/kg","50% HFC-125 , 50% HFC-143a"]
[null,null,"R-508A",13258,"kg CO2e/kg","39% HFC-23 , 61% PFC-116"]
[null,null,"R-508B",13412,"kg CO2e/kg","46% HFC-23 , 54% PFC-116"]
[null,null,"R-509",6064.8,"kg CO2e/kg","44% HCFC-22 , 56% PFC-218"]
[null,null,"R-509A",6064.8,"kg CO2e/kg","44% HCFC-22 , 56% PFC-218"]
[null,null,"R-512A",232.29999999999998,"kg CO2e/kg","5% HFC-134a,95% HFC-152a"]
[]
[null,"Medizinische und technische flüchtige Gase (Scope 1)"]
[null,null,"Erfassung der in die Atmosphäre emittierten direkten Emissionen von medizinischen und technischen flüchtigen Gasen"]
[null,null,"Gase","EF (IPCC2021) ","Einheit"]
[null,null,"Kohlenstoffdioxid",1,"kg CO2e/kg"]
[null,null,"Methan",{"$f":"Methan_IPCC_AR6","v":27.9},"kg CO2e/kg"]
[null,null,"Sevofluran",195,"kg CO2e/kg"]
[null,null,"Lachgas (Distickstoffmonoxid)",{"$f":"N2O_IPCC_AR6","v":273},"kg CO2e/kg"]
[null,null,"Isofluran",539,"kg CO2e/kg"]
[null,null,"Desfluran",2590,"kg CO2e/kg"]
[null,null,"Ethan",0.437,"kg CO2e/kg"]
[null,null,"Propan",0.02,"kg CO2e/kg"]
[null,null,"Butan",6.0000000000000001E-3,"kg CO2e/kg"]
[]
[]
[null,{"$f":"Scope_2!B9","v":"Scope 2: Indirekte Emissionen aus gekauftem Strom, Wärme/Kälte, Dampf"}]
[null,"Ortsbezogener Ansatz","Energie","CO2 Faktor (t CO2/ MWh)","CH4 Faktor (t CH4/ MWh)","N2O Faktor (t N2O/ MWh)","THG-Emissionsfaktor (t CO2e/ MWh)","Quelle:"]
[null,"(Endenergie)","Strommix",0.36720399999999997,1.92E-4,1.0000000000000001E-5,{"$f":"D156+E156*Methan_IPCC_AR6+F156*N2O_IPCC_AR6","v":0.37529079999999998},"[5] Tabelle 61"]
[null,null,"Fernwärme-Mix",0.25531199999999998,6.3999999999999997E-5,5.0000000000000004E-6,{"$f":"D157+E157*Methan_IPCC_AR6+F157*N2O_IPCC_AR6","v":0.25846259999999999},"[5] Tabelle 61"]
[null,null,"Dampf",{"$f":"0.318024*0.85","v":0.27032039999999996},{"$f":"0.0005779017809226*0.85","v":4.9121651378421E-4},{"$f":"0.0000019907532*0.85","v":1.6921402200000001E-6},{"$f":"D158+E158*Methan_IPCC_AR6+F158*N2O_IPCC_AR6","v":0.28448729501463943},"Eigene Berechnung basiert auf [2]"]
[]
[null,"Marktbasierter Ansatz","Energieträger","CO2 Faktor (t CO2/ MWh)","CH4 Faktor (t CH4/ MWh)","N2O Faktor (t N2O/ MWh)","THG-Emissionsfaktor (t CO2e/ MWh)","Quelle"]
[null,"(Endenergie): Strom",{"$f":"C15","v":"Erdgas"},{"$f":"E15/Brutto_Nutzungsgrade_Erdgas/Netto_BruttoStrom_Ratio_Erdgas","v":0.37494384027563821},{"$f":"F15/Brutto_Nutzungsgrade_Erdgas/Netto_BruttoStrom_Ratio_Erdgas","v":4.3341789209739949E-4},{"$f":"G15/Brutto_Nutzungsgrade_Erdgas/Netto_BruttoStrom_Ratio_Erdgas","v":9.3409028469267135E-6},{"$f":"D161+E161*Methan_IPCC_AR6+F161*N2O_IPCC_AR6","v":0.38958626594236667},"Eigene Berechnungen aus [1], [5] Tabelle 7"]
[null,null,"Öl",{"$f":"E16/Brutto_Nutzungsgrade_Öl/Netto_BruttoStrom_Ratio_Öl","v":0.80994237651486578},{"$f":"F16/Brutto_Nutzungsgrade_Öl/Netto_BruttoStrom_Ratio_Öl","v":6.3830036802687664E-5},{"$f":"G16/Brutto_Nutzungsgrade_Öl/Netto_BruttoStrom_Ratio_Öl","v":1.8237153372196476E-5},0.81670197741227035,"Eigene Berechnungen aus [1], [5] Tabelle 7"]
[null,null,"Braunkohle",{"$f":"E17/Brutto_Nutzungsgrade_Braunkohle/Netto_BruttoStrom_Ratio_Braunkohle","v":1.0826980561019899},{"$f":"F17/Brutto_Nutzungsgrade_Braunkohle/Netto_BruttoStrom_Ratio_Braunkohle","v":5.5045912659616142E-6},{"$f":"G17/Brutto_Nutzungsgrade_Braunkohle/Netto_BruttoStrom_Ratio_Braunkohle","v":3.5779843228750494E-5},1.0926195313997593,"Eigene Berechnungen aus [1], [5] Tabelle 7"]
[null,null,"Steinkohle",{"$f":"E18/Brutto_Nutzungsgrade_Steinkohle/Netto_BruttoStrom_Ratio_Steinkohle","v":0.85156324897833025},{"$f":"F18/Brutto_Nutzungsgrade_Steinkohle/Netto_BruttoStrom_Ratio_Steinkohle","v":1.0100682014984791E-5},{"$f":"G18/Brutto_Nutzungsgrade_Steinkohle/Netto_BruttoStrom_Ratio_Steinkohle","v":1.0100682014984791E-5},0.85460254419663917,"Eigene Berechnungen aus [1], [5] Tabelle 7"]
[null,null,"Holz",0,{"$f":"F19/Brutto_Nutzungsgrade_Holz/Netto_BruttoStrom_Ratio_Holz","v":1.2746781288884546E-4},{"$f":"G19/Brutto_Nutzungsgrade_Holz/Netto_BruttoStrom_Ratio_Holz","v":3.5053648544432491E-5},{"$f":"D165+E165*Methan_IPCC_AR6+F165*N2O_IPCC_AR6","v":1.3125998032228858E-2},"Eigene Berechnungen aus [1], [5] Tabelle 32"]
[null,null,"Biogas/Biomethan (Energiepflanzen, Gülle, Abfall)",0,{"$f":"F20/Brutto_Nutzungsgrade_Biogas/Netto_BruttoStrom_Ratio_Biogas","v":3.8798321351120177E-3},{"$f":"G20/Brutto_Nutzungsgrade_Biogas/Netto_BruttoStrom_Ratio_Biogas","v":1.1690843989747034E-5},{"$f":"D166+E166*Methan_IPCC_AR6+F166*N2O_IPCC_AR6","v":0.11143891697882623},"Eigene Berechnungen aus [1], [5] Tabelle 37"]
[null,null,"Flüssige Biomasse (z.B. Pflanzenöl)",0,{"$f":"F21/Brutto_Nutzungsgrade_Flüssig_Biomasse/Netto_BruttoStrom_Ratio_flüssig_Biomasse","v":3.9066524135377632E-5},{"$f":"G21/Brutto_Nutzungsgrade_Flüssig_Biomasse/Netto_BruttoStrom_Ratio_flüssig_Biomasse","v":7.8133048270755257E-6},{"$f":"D167+E167*Methan_IPCC_AR6+F167*N2O_IPCC_AR6","v":3.2229882411686545E-3},"Eigene Berechnungen aus [1], [5] Tabelle 43"]
[null,null,"Kernenergie",0,0,0,{"$f":"D168+E168*Methan_IPCC_AR6+F168*N2O_IPCC_AR6","v":0},"[5]"]
[null,null,"Erneuerbare Energien (Sonstige)",0,0,0,0,"[5]"]
[]
[null,null,"Energieträger","Brutto-Nutzungsgrade/elektrischen Nutzungsgrad der Stromerzeugung","Quelle","Nettostromerzeugung / Bruttostromerzeugung","Quelle"]
[null,null,{"$f":"C161","v":"Erdgas"},0.55400000000000005,"[5] Tabelle 6",0.96620968080105696,"[19]"]
[null,null,"Öl",0.376,"[5] Tabelle 6",0.87499657884319959,"[19]"]
[null,null,"Braunkohle",0.39400000000000002,"[5] Tabelle 6",0.92216513210866491,"[19]"]
[null,null,"Steinkohle",0.437,"[5] Tabelle 6",0.90620792380394388,"[19]"]
[null,null,"Holz",0.33100000000000002,"Eigene Berechnungen aus [5] Tabelle 31",0.94805048201094644,"[19]"]
[null,null,"Biogas/Biomethan (Energiepflanzen, Gülle, Abfall)",0.51644059233999562,"Eigene Berechnungen aus [5] Tabelle 34, Tabelle 36",0.94805048201094644,"[19]"]
[null,null,"Flüssige Biomasse (z.B. Pflanzenöl)",0.27,"[5] Tabelle 42",0.94805048201094644,"[19]"]
[null,null,"Kernenergie",0.33,"[5] Tabelle 6",0.945664128934816,"[19]"]
[]
[null,"Marktbasierter Ansatz","Energieträger","CO2 Faktor (t CO2/ MWh)","CH4 Faktor (t CH4/ MWh)","N2O Faktor (t N2O/ MWh)","THG-Emissionsfaktor (t CO2e/ MWh)","Quelle"]
[null,"(Endenergie): Wärme/Kälte","Erdgas",0.20069500000000001,1.1E-5,9.9999999999999995E-7,{"$f":"D182+E182*Methan_IPCC_AR6+F182*N2O_IPCC_AR6","v":0.20127490000000001},"[1], [5] Tabelle 61"]
[null,null,"Heizöl / Diesel",0.26647199999999999,0,1.9999999999999999E-6,0.26701799999999998,"[1], [5] Tabelle 61"]
[null,null,"Braunkohlenbriketts",0.35636899999999999,8.5400000000000005E-4,1.9000000000000001E-5,0.38538259999999996,"[1], [5] Tabelle 61"]
[null,null,"Steinkohle",0.35142000000000001,4.8200000000000001E-4,4.1E-5,0.37606080000000003,"[1], [5] Tabelle 61"]
[null,null,"Fernwärme-Mix",{"$f":"D157","v":0.25531199999999998},{"$f":"E157","v":6.3999999999999997E-5},5.0000000000000004E-6,0.25846259999999999,"[1], [5] Tabelle 61"]
[null,null,"Strommix",{"$f":"D156","v":0.36720399999999997},{"$f":"E156","v":1.92E-4},1.0000000000000001E-5,0.37529079999999998,"[1], [5] Tabelle 61"]
[null,null,"Holz",0,{"$f":"F19/Nutzungsgrade_Wärme_Holz","v":4.780704385912282E-5},{"$f":"G19/Nutzungsgrade_Wärme_Holz","v":1.3146937061258774E-5},4.9229303413931714E-3,"[1], [5] Tabelle 32"]
[null,null,"Biogas/Biomethan (Energiepflanzen, Gülle, Abfall)",0,{"$f":"F20/Nutzungsgrade_Wärme_Biogas","v":1.6485505140797639E-3},{"$f":"G20/Nutzungsgrade_Wärme_Biogas","v":4.9674692610811488E-6},4.7350678451100567E-2,"[1], [5]"]
[null,null,"Flüssige Biomasse (z.B. Pflanzenöl)",{"$f":"E21/Nutzungsgrade_Wärme_Flüssige_Biomasse","v":0},{"$f":"F21/Nutzungsgrade_Wärme_Flüssige_Biomasse","v":1.3850415512465375E-5},{"$f":"G21/Nutzungsgrade_Wärme_Flüssige_Biomasse","v":2.7700831024930747E-6},{"$f":"D190+E190*Methan_IPCC_AR6+F190*N2O_IPCC_AR6","v":1.1426592797783932E-3},"[1], [5] Tabelle 43"]
[]
[null,null,"Energieträger","Nutzungsgrad der Wärmebereistellung ","Quelle"]
[null,null,"Holz ",0.83669678714859441,"Eigene Berechungen aus [5] Tabelle 77"]
[null,null,"Biogas/Biomethan (Energiepflanzen, Gülle, Abfall)",1.1522919042189281,"Eigene Berechungen aus [5] Tabelle 89"]
[null,null,"Flüssige Biomasse (z.B. Pflanzenöl, Industrie)",0.72199999999999998,"Eigene Berechungen aus [5] Tabelle 82"]
[]
[]
[null,"Medikamente (Scope 3)"]
[null,null,"Emissionsfaktoren mit dem Bottom-Up-Ansatz"]
[null,null,"Wirkstoffe","Emissionsfaktor (kg CO2e)","per kg  / per 1000 I.E Wirkstoff","Quelle","Anmerkung"]
[null,null,"Acetylsalicylsäure",4.9000000000000004,"per kg API","[43]","betrachtete Prozesse: API-Produktion"]
[null,null,"Albumin (Human)",604.66575,"per kg API","[33]","• betrachtete Prozesse: API-Produktion, galenische Formulierung, Verpackung \n• Mittelwert (ohne Distribution) von 4 Produkten mit unterschiedlichen Konzentrationen . Eigene Umrechnung von Dose-Basis auf API-Menge.  "]
[null,null,"Blutgerinnungsfaktor VIII / (F VIII:C) / Rekomb.",73.2256,"per 1.000 I.E. API","[44]","• betrachtete Prozesse: API-Produktion, galenische Formulierung, Verpackung \n• EF (ohne Distribution)"]
[null,null,"Bupivacain",23.340591,"per kg API","[34]","betrachtete Prozesse: API-Produktion"]
[null,null,"Colecalciferol (+ Natriumfluorid, Calciumcarbonat)",9.4124999999999998E-5,"per 1.000 I.E. API","[45]","• betrachtete Prozesse: API-Produktion\n• 0.25kg CO2e/g Vitamin D3 im Durchlaufprozess (EN: continuous process). Batch-Prozess verursacht ca. 15 Faktor (grob abgelesen aus Abbildung 9) höher GWP-Wert als Durchlaufprozess. \n• EF für Batch-Prozess wird hier angenommen. Eigene Umrechnung von Gramm API auf I.E. API"]
[null,null,"Dexmedetomidin",3006,"per kg API","[34]","betrachtete Prozesse: API-Produktion"]
[null,null,"Ephedrin",82,"per kg API","[34]","betrachtete Prozesse: API-Produktion"]
[null,null,"Epinephrin / Epinephrin (Razemisch)",33.827187000000002,"per kg API","[34]","betrachtete Prozesse: API-Produktion"]
[null,null,"Fentanyl / Fentanyl (Transdermal)",95.8,"per kg API","[34]","betrachtete Prozesse: API-Produktion"]
[null,null,"Glycopyrroniumbromid",76,"per kg API","[34]","betrachtete Prozesse: API-Produktion"]
[null,null,"Hydromorphon-Hcl",799,"per kg API","[34]","betrachtete Prozesse: API-Produktion"]
[null,null,"Ibuprofen",26.643750000000001,"per kg API","[35]","• betrachtete Prozesse: API-Produktion, galenische Formulierung, Verpackung \n• GWP-Anteil der Produktion wurde anhand des %-Anteils der Produktion (73.5%) berechnet.  \n• Umrechnung von 1 Packung Eudorlin® auf kg API"]
[null,null,"Immunglobulin G / G+A / G-Vorhyaluronidase",2910.3,"per kg API","[36]","• betrachtete Prozesse: API-Produktion, galenische Formulierung, Verpackung \n• Mittelwert  (ohne Distribution) vom Wirkstoff mit 50g/l 100ml, 50g/l 50ml und 50g/l 200ml\n• Umrechnung von \"Einmaldosis-Set\" auf kg API"]
[null,null,"Infliximab",25499.999999999996,"per kg API","[37]","• betrachtete Prozesse: API-Produktion\n• Mittelwert von \"best-case scenario\" (2kg CO2e/100mg API) und \"worst-case scenario\" (3,1 kg CO2e/100mg API) "]
[null,null,"Ketamin",140,"per kg API","[34]","betrachtete Prozesse: API-Produktion"]
[null,null,"Lidocain / Lidocain + Prilocain",28.599285999999999,"per kg API","[34]","betrachtete Prozesse: API-Produktion"]
[null,null,"Metformin",22.3,"per kg API","[38]","• betrachtete Prozesse: API-Produktion\n• unterschiedliche Produktionsländer wurden untersucht. Der höchste GWP-Wert wurde hier als Proxy aus dem konservativen Ansatz angenommen.  "]
[null,null,"Midazolam",444,"per kg API","[34]","betrachtete Prozesse: API-Produktion"]
[null,null,"Morphin / Morphin Sulfat / Morphinhydrochlorid",1506,"per kg API","[34]","betrachtete Prozesse: API-Produktion"]
[null,null,"Naproxen",2.2999999999999998,"per kg API","[43]","betrachtete Prozesse: API-Produktion"]
[null,null,"Neostigmin",21.812297000000001,"per kg API","[34]","betrachtete Prozesse: API-Produktion"]
[null,null,"Nitrofurantoin",341.5,"per kg API","[39]","• betrachtete Prozesse: API-Produktion\n• Mittelwert von 2 Verfahren:\n1) kontinuierliche Doppelschneckenextrusion (EN: Continuous Twin-Screw Extrusion, TSE):  76 kg CO2e/kg API; \n2) Batch-Syntheseverfahren mit Lösungsmittel: 607 kg CO2e/kg API"]
[null,null,"Nivolumab",207000,"per kg API","[40] ","• betrachtete Prozesse: API-Produktion\n• Mittelwert von 2 Herstellungsverfahren: \n1)\"fed-batch, multi-use technology cultivation\": 277 t CO2e/kg API\n2)\"perfusion, single-use technology cultivation\": 137 t CO2e/kg API"]
[null,null,"Ondansetron",36.732593000000001,"per kg API","[34]","betrachtete Prozesse: API-Produktion"]
[null,null,"Paracetamol",0.66400000000000003,"per kg API","[41]","• betrachtete Prozesse: API-Produktion, galenische Formulierung, Verpackung \n• EF bezieht sich auf Tabletten. "]
[null,null,"Phenoxymethylpenicillin",6.02,"per kg API","[46]","betrachtete Prozesse: API-Produktion"]
[null,null,"Phenylephrin",171,"per kg API","[34]","betrachtete Prozesse: API-Produktion"]
[null,null,"Propofol",21,"per kg API","[34]","betrachtete Prozesse: API-Produktion"]
[null,null,"Remifentanil",103,"per kg API","[34]","betrachtete Prozesse: API-Produktion"]
[null,null,"Rocuroniumbromid",144,"per kg API","[34]","betrachtete Prozesse: API-Produktion"]
[null,null,"Ropivacain",35.632758000000003,"per kg API","[34]","betrachtete Prozesse: API-Produktion"]
[null,null,"Sertralin",3690,"per kg API","[42]","• betrachtete Prozesse: API-Produktion\n• Mittelwert wird genommen aus 3 Herstellungsrouten und 2 Varianten: \n1) EtOH (Ethanol) ohne/mit Rückgewinnung von Lösemitteln: 3390/1260 kg CO2e/kg API\n2) THF (Tetrahydrofuran) ohne/mit Rückgewinnung von Lösemitteln: 5160/2020 kg CO2e/kg API\nTHF mit : 2020 kg CO2e/kg API\n3) TOL (Toluene) ohne/mit Rückgewinnung von Lösemitteln: 8170/2140 kg CO2e/kg API"]
[null,null,"Sugammadex",11.582380000000001,"per kg API","[34]","betrachtete Prozesse: API-Produktion"]
[null,null,"Suxamethonium",11.225565,"per kg API","[34]","betrachtete Prozesse: API-Produktion"]
[null,null,"Vancomycin",60,"per kg API","[43]","betrachtete Prozesse: API-Produktion"]
[]
[]
[]
[null,null,"Auf Basis von Einkaufsausgaben ","t CO2-eq/Mio. €","Standardabweichung","Quelle"]
[null,null,"Medikamente, Option 1",{"$f":"EF_Medikamente_KliOL","v":296},"k.A.","Mit einem konservativen Ansatz wird der höhere GWP-Wert aus den Optionen 2 und 3 verwendet."]
[null,null,"Medikamente, Option 2",186,"±87","Durchschnittwert von CDP-Ergebnissen  der 11 Pharmaunternehmen basierten auf eigene Berechnung [3]"]
[null,null,"Medikamente, Option 3",296,"k.A.","[28]"]
[]
[]
[null,"Medizinische und technische flüchtige Gase (Scope 3)"]
[null,null,"Gase","Emissionsfaktor (kg CO2e/kg)","Quelle"]
[null,null,"Argon",2.2400000000000002,"[31]"]
[null,null,"C2H2",4.2747400000000004,"[31]"]
[null,null,"CH4",0.65898000000000001,"[32]"]
[null,null,"CO",1.5,"[31]"]
[null,null,"CO2",0.49299999999999999,"[31]"]
[null,null,"H2",1.7558400000000001,"[24]"]
[null,null,"He",8.5565499999999997,"[32]"]
[null,null,"Luft, verdicht",1.2E-2,"[31]"]
[null,null,"N2",0.22105,"[32]"]
[null,null,"N2O",2.7295500000000001,"[32], Annahme wie Ammoniak "]
[null,null,"NO",{"$f":"D256","v":2.7295500000000001},"[32], Annahme wie Ammoniak "]
[null,null,"O2",0.55081999999999998,"[32]"]
[null,null,"Propan, C₃H₈",{"$f":"D275","v":0.85709000000000002},{"$f":"E275","v":"[32]"}]
[null,null,"Propen, C3H6",1.50115,{"$f":"E276","v":"[16]"}]
[null,null,"Sevofluran",269.96555999999998,"Eigene Modellierung basiert auf Inventardaten von [6] und Datenbank [2]."]
[null,null,"Isofluran",147.52145999999999,"Eigene Modellierung basiert auf Inventardaten von [6] und Datenbank [2]."]
[null,null,"Desfluran",188.79313999999999,"Eigene Modellierung basiert auf Inventardaten von [6] und Datenbank [2]."]
[]
[null,"Kältemittel (Scope 3)"]
[null,null,"Aufgrund der Mangel der Daten können nur die Emissionsfaktoren der beschänkten Kältemittel dargestellt. Für die anderen Kältemittel werden die Emissionsfaktoren grob eingeschätzt."]
[null,null,"Kältemittel","Emissionsfaktor (kg CO2e/kg)","Quelle"]
[null,null,"Ammoniak (R-717) ",2.6219999999999999,"[16]"]
[null,null,"Chlorodifluormethan (R-22)",8.3109999999999999,"[16]"]
[null,null,"Difluormethan (R-32)",5.202,"[16]"]
[null,null,"R-404A",11.35,"[16]"]
[null,null,"R-407C",9.67,"[16]"]
[null,null,"R-410A",10.43,"[16]"]
[null,null,"Kohlenstoffdioxid (R-744)",1.087,"[16]"]
[null,null,"Propan (R-290)",0.85709000000000002,"[32]"]
[null,null,"Tetrafluorethan (R-134a)",7.968,"[16]"]
[null,null,"Tetrafluorpropen (R-1234ze)",6.101,"[16]"]
[null,null,"Sonstige KM als Fluorkohlenwasserstoffe (HFCs)",{"$f":"AVERAGE(D269:D270,D276:D277)","v":6.8955000000000002},"Eigene Berechnungen auf Basis von bekannten Emissionsfaktoren"]
[null,null,"Sonstige KM als Perfluorierte Kohlenwasserstoffe (PFCs)",{"$f":"D276","v":7.968},"Eigene Berechnungen auf Basis von bekannten Emissionsfaktoren"]
[null,null,"Sonstige KM als Kältemittel-Mischung",{"$f":"AVERAGE(D271:D273)","v":10.483333333333333},"Eigene Berechnungen auf Basis von bekannten Emissionsfaktoren"]
[]
[]
[null,"Medizinische Verbrauchsmaterialien (Scope 3)"]
[null,null,"Auf Basis von Einkaufsausgaben ","t CO2-eq/Mio. €","Quelle"]
[null,null,"Medikamente",315,"[28]"]
[]
[]
[null,"Lebensmittel (Scope 3)"]
[null,null,"Lebensmittelgruppe","Untergruppe","Emissionsfaktor (kg CO2e/kg)","Quelle"]
[null,null,"Getreideprodukte","Getreide/Cerealien, Mehl, Teige, Teigwaren, Salzgebäck",0.6875,"[21]"]
[null,null,null,"Dauerbackwaren, Gebäck/Feingebäck, Kuchen, Torten",1.6,"[21]"]
[null,null,null,"Reis",3.1,"[21]"]
[null,null,"Fleisch","Rind/Kalb",13.6,"[21]"]
[null,null,null,"Schwein",4.5999999999999996,"[21]"]
[null,null,null,"Geflügel",5.5,"[21]"]
[null,null,null,"Schaf/Ziege/Lamm",10.85,"[25]"]
[null,null,null,"Wild",11.5,"[21]"]
[null,null,"Fisch","Fisch",5.375,"[21]"]
[null,null,null,"Meeresfrüchte",12.5,"[21]"]
[null,null,"Milchprodukte","Butter",9,"[21]"]
[null,null,null,"Milch und Joghurt",1.3999999999999997,"[21]"]
[null,null,null,"Käse",6.371428571428571,"[21]"]
[null,null,null,"Sahne&Quark",3.7166666666666668,"[21]"]
[null,null,"Eier","Eier",3,"[21]"]
[null,null,"Gemüse_Obst_Schalenfrüchte ","Obst/Gemüse frisch",0.37749999999999995,"[21]"]
[null,null,null,"Obst/Gemüse TK",0.76,"[21]"]
[null,null,null,"Obst/Gemüse Dose/Glas",1.5214285714285711,"[21]"]
[null,null,null,"Obst/Gemüse trocken",1.7333333333333334,"[21]"]
[null,null,null,"Schalenfrüchte (Nüsse, Mandeln)",1.1500000000000001,"[21]"]
[null,null,null,"Tofu",1,"[21]"]
[null,null,"Fette_Öle","Fette/Öle",3,"[21]"]
[null,null,"Getränke","Kaffee-/Kakaopulver",5.3,"[21]"]
[null,null,null,"Beuteltee",{"$f":"4*(1-13%)","v":3.48},"[26]"]
[null,null,null,"Bier/Wein",0.96666666666666667,"[21]"]
[null,null,null,"Säfte",0.45,"[21]"]
[null,null,null,"Milchersatz-Drinks",0.32499999999999996,"[21]"]
[null,null,null,"Mineralwasser",0.2,"[21]"]
[null,null,"Babynahrung_Sondennahrung","Baby- und Sondennahrung",1.4607142857142854,"Mittelwert von Vollmich und Gemüse im Glas"]
[null,null,"Süßwaren","Schokoladenwaren",4.0999999999999996,"[21]"]
[null,null,null,"Sonstige",1.0499999999999998,"Eigene Einschätzung"]
[null,null,"Gewürze","Zucker",0.78934000000000004,"[24]"]
[null,null,null,"Salz",0.18859999999999999,"[23]"]
[null,null,null,"Sonstige",0.48897000000000002,"Mittelwert von Zucker und Salz"]
[null,null,"Sonstige","Sonstige, fleischhaltig",{"$f":"AVERAGE(E290:E292)*35%+AVERAGE(E305:E306)*35%+AVERAGE(E293:E299)*30%","v":3.5672470238095233},"Eigene Berechnung: 35% Getreideprodukte; 35% Gemüse; 30% Fleischhaltig  "]
[null,null,null,"Sonstige, Vegetarisch/Vegan",{"$f":"AVERAGE(E290:E292)*35%+AVERAGE(E305:E306)*35%+E310*30%","v":1.1276041666666667},"Eigene Berechnung: 35% Getreideprodukte; 35% Gemüse; 30% Tofu"]
[]
[null,null,"Lebensmittel","Emissionsfaktor (kg CO2e/Euro)","Quelle"]
[null,null,"Auf Basis von Einkaufsausgaben ",0.76621682555323301,"Eigene Berechnungen"]
[]
[null,"Textilien (Scope 3)"]
[null,null,"Textilien","Emissionsfaktor (kg CO2e/kg)","Quelle"]
[null,null,"Seide",14.9,"[15]"]
[null,null,"Viskose",23,"[15], Daten aus Diagramm ausgelesen."]
[null,null,"Flachs/Leinen",25.9,{"$f":"E333","v":"[15], Daten aus Diagramm ausgelesen."}]
[null,null,"Wollstoff",19.5,{"$f":"E334","v":"[15], Daten aus Diagramm ausgelesen."}]
[null,null,"Baumwolle",22.7,{"$f":"E335","v":"[15], Daten aus Diagramm ausgelesen."}]
[null,null,"Polyester",27.2,"[15]"]
[null,null,"PA6 (Nylon)",30.9,"[15]"]
[null,null,"Acrylstoffe",35.700000000000003,"[15]"]
[null,null,"Poplypropylen",25.5,{"$f":"E336","v":"[15], Daten aus Diagramm ausgelesen."}]
[]
[null,null,"Textilien","Emissionsfaktor (kg CO2e/Euro)","Quelle"]
[null,null,"Auf Basis von Einkaufsausgaben ",3.7595382169794176,"Eigene Berechnungen"]
[]
[null,"Hygieneartikel (Scope 3)"]
[null,null,"Hygieneartikel & Renigungsmittel","Emissionsfaktor (kg CO2e/kg)","Quelle"]
[null,null,"Hygienepapier, Primärfaser",1.353,"[27]"]
[null,null,"Hygienepapier, Recyclingfaser",1.1930000000000001,"[27]"]
[null,null,"Körperpflegemittel",0.5,"eingeschätzt auf Basis von [17]"]
[null,null,"Sonstige Hygieneartikel, z.B. Haarbürste",3.218,"Eigene Modellierung auf Basis von [2]"]
[null,null,"Reinigungschemikalien",0.46440999999999999,"Eigene Modellierung auf Basis von [2]"]
[null,null,"Reinigungsutensilien",1.9410000000000001,"Eigene Modellierung auf Basis von [2]"]
[]
[null,null,"Hygieneartikel & Renigungsmittel","Emissionsfaktor (kg CO2e/Euro)","Quelle"]
[null,null,"Auf Basis von Einkaufsausgaben ",0.38500000000000001,"Eigene Berechnungen"]
[]
[null,"Papier/Pappe (Scope 3)"]
[null,null,"Papier/Pappe","Emissionsfaktor (kg CO2e/kg)","Quelle"]
[null,null,"Druckerzeugnisse",0.96111999999999997,"[24]"]
[null,null,"Etiketten",2.1113862377754216,"[24]: 50% Label, Plastic/50% Label, Paper"]
[null,null,"Papier, Primärfaser",0.97099999999999997,"[27]"]
[null,null,"Papier, Reyclingfaser",0.82199999999999995,"[27]"]
[null,null,"Versandbedarf",0.94881000000000004,"[24]"]
[]
[null,null,{"$f":"C358","v":"Papier/Pappe"},"Emissionsfaktor (kg CO2e/Euro)","Quelle"]
[null,null,"Auf Basis von Einkaufsausgaben ",1.1306314394650332,"Eigene Berechnungen"]
[]
[null,"Wasser (Scope 3)"]
[null,null,"Wasser","Emissionsfaktor (kg CO2e/kg)","Quelle"]
[null,null,"Leitungswasser",3.3E-4,"[24]"]
[null,null,"Entsalztes Wasser",4.4000000000000002E-4,"[32]"]
[]
[null,"Dienstleistung: Serverraum & Internet (Scope 3)"]
[null,null,"Spalte1","Energieintensität Datenübertragung","Emissionsfaktor  (kg CO2e / Einheit )","Quelle"]
[null,null,"Stromverbrauch im externen Serverraum",null,{"$f":"$D$423+$G$156","v":0.43256339999999999},"EF-Summe aus Scope 2 + Scope 3"]
[null,null,"Datenmenge in Mobilfunknetz",100,{"$f":"D376/1000*$E$375","v":4.3256340000000004E-2},"Berechnet aus Annahme auf Basis von [18]: Energieintensität Datenübertragung 100 Wh / GB"]
[null,null,"Datenmenge in Festnetz",6.5,{"$f":"D377/1000*$E$375","v":2.8116621E-3},"Berechnet aus Annahme auf Basis von [18]: Energieintensität Datenübertragung 6.5 Wh / GB"]
[]
[null,"Kapitalgüter (Scope 3)"]
[null,null,"IT-Geräte","Emissionsfaktor (kg CO2e/Stück)","Quelle"]
[null,null,"Desktop-PC (ohne Monitor)",372.8,"[13] "]
[null,null,"Laptop",283.39999999999998,"[13] "]
[null,null,"Server",571,"[12]"]
[null,null,"Drucker ",100.7,"[13] "]
[null,null,"Smartphone",50.5,"[13] "]
[null,null,"Tablet",116.1,"[13] "]
[null,null,"Desktop Monitor",393.6,"[13] "]
[]
[]
[null,"Brennstoff- und energiebezogene Emissionen (Scope 3)"]
[null,null,"Vorkette aus Scope 1.1: Primärenergiebezogene direkte Emissionsfaktoren der Stromerzeugung und der Wärmebereitstellung"]
[null,null,"Energieträger (Scope 3)","Emissionsfaktor (kg CO2e/ kWh Primärenergie)","Quelle:"]
[null,null,"Erdgas",3.99184E-2,"Eigene Berechnung aus [5] Tabelle 7"]
[null,null,"Öl",4.3710800000000001E-2,"Eigene Berechnung aus [5] Tabelle 7"]
[null,null,"Braunkohle",1.0624600000000001E-2,"Eigene Berechnung aus [5] Tabelle 7"]
[null,null,"Steinkohle",4.4188600000000001E-2,"Eigene Berechnung aus [5] Tabelle 7"]
[null,null,"Holz",{"$f":"0.021","v":2.1000000000000001E-2},"Eigene Berechnung aus [5] Tabelle 31 und Tabelle 32"]
[null,null,"Biogas/Biomethan (Energiepflanzen, Gülle, Abfall)",0.11823301284683101,"Eigene Berechnung aus [5] Tabelle 34, Tabelle 36 und Tabelle 37"]
[null,null,"Flüssige Biomasse (z.B. Pflanzenöl)",0.12723103399999999,"Eigene Berechnung aus [5] Tabelle 42 und Tabelle 43"]
[null,null,"Photovoltaik",5.6860799999999996E-2,"Eigene Berechnung aus [5] Tabelle 10"]
[null,null,"Windenergie an Land",1.7640799999999998E-2,"Eigene Berechnung aus [5] Tabelle 14"]
[null,null,"Windenergie auf See",9.6449999999999991E-3,"Eigene Berechnung aus [5] Tabelle 18"]
[null,null,"Wasserkraft ",4.3037579085252707E-3,"Eigene Berechnung aus [5] Tabelle 20 und Tabelle 22"]
[null,null,"Geothermie (Erdwärme)",0.1455912,"Eigene Berechnung aus [5] Tabelle 27"]
[]
[null,null,"Vorkette aus Scope 1.2: Well-to-Tank"]
[null,null,"Kraftstoffe (Scope 3)","Emissionsfaktor ","Einheit","Quelle:"]
[null,null,"Benzin",0.45999999999999996,"kg CO2e/Liter","Eigene Berechnung aus [8], [9]"]
[null,null,"Benzin E5 (5 Vol.-% Bioethanol)",0.5,"kg CO2e/Liter","Eigene Berechnung aus [8], [9]"]
[null,null,"Benzin E10 (10 Vol.-% Bioethanol)",0.54,"kg CO2e/Liter","Eigene Berechnung aus [8], [9]"]
[null,null,"Diesel",0.57000000000000028,"kg CO2e/Liter","Eigene Berechnung aus [8], [9]"]
[null,null,"Diesel D7 (7 Vol.-% Biodiesel)",0.66999999999999993,"kg CO2e/Liter","Eigene Berechnung aus [8], [9]"]
[null,null,"Biodiesel",1.92,"kg CO2e/Liter","Eigene Berechnung aus [8], [9]"]
[null,null,"Autogas (LPG)",0.19999999999999996,"kg CO2e/Liter","Eigene Berechnung aus [8], [9]"]
[null,null,"Erdgas (CNG)",0.38999999999999968,"kg CO2e/kg*","Eigene Berechnung aus [8], [9]"]
[null,null,"Flugbenzin ",0.50999999999999979,"kg CO2e/Liter","Eigene Berechnung aus [8]"]
[null,null,"Kerosin (Jet A1 und Jet A)",0.56000000000000005,"kg CO2e/Liter","Eigene Berechnung aus [8]"]
[null,null,"*Es gibt für Erdgas (CNG) nur Emissionsfaktor bezogen auf kg."]
[]
[]
[null,null,"Vorkette aus Scope 2: gekaufter Strom, Wärme/Kälte"]
[null,"Ortsbezogener Ansatz","Energieträger (Scope 3)","Emissionsfaktor (kg CO2e/ kWh Endenergie)","Quelle:"]
[null,"(Endenergie)","Strommix",5.72726E-2,"Eigene Berechnungen aus [1], [5] Tabelle 61"]
[null,null,"Fernwärme-Mix",4.5756999999999999E-2,"Eigene Berechnungen aus [1], [5] Tabelle 61"]
[null,null,"Dampf",{"$f":"$G$158/85%*15%","v":5.0203640296701081E-2},"[3], Annahme: Vorkette macht ca.15% der gesamten Dampferzeugung aus."]
[null,"Marktbasierter Ansatz",{"$f":"C393","v":"Erdgas"},{"$f":"$D$393/Brutto_Nutzungsgrade_Erdgas/Netto_BruttoStrom_Ratio_Erdgas","v":7.4574779240951863E-2},"Eigene Berechnungen aus [1], [5]"]
[null,"(Endenergie): Strom",{"$f":"C394","v":"Öl"},{"$f":"$D$394/Brutto_Nutzungsgrade_Öl/Netto_BruttoStrom_Ratio_Öl","v":0.13286009393690096},"Eigene Berechnungen aus [1], [5]"]
[null,null,"Braunkohle",{"$f":"$D$395/Brutto_Nutzungsgrade_Braunkohle/Netto_BruttoStrom_Ratio_Braunkohle","v":2.9242040182167885E-2},"Eigene Berechnungen aus [1], [5]"]
[null,null,"Steinkohle",{"$f":"$D$396/Brutto_Nutzungsgrade_Steinkohle/Netto_BruttoStrom_Ratio_Steinkohle","v":0.11158374932183925},"Eigene Berechnungen aus [1], [5]"]
[null,null,"Holz",{"$f":"$D$397/Brutto_Nutzungsgrade_Holz/Netto_BruttoStrom_Ratio_Holz","v":6.6920601766643856E-2},"Eigene Berechnungen aus [1], [5]"]
[null,null,"Biogas/Biomethan (Energiepflanzen, Gülle, Abfall)",{"$f":"$D$398/Brutto_Nutzungsgrade_Biogas/Netto_BruttoStrom_Ratio_Biogas","v":0.2414832001961098},"Eigene Berechnungen aus [1], [5]"]
[null,null,"Flüssige Biomasse (z.B. Pflanzenöl)",{"$f":"$D$399/Brutto_Nutzungsgrade_Flüssig_Biomasse/Netto_BruttoStrom_Ratio_flüssig_Biomasse","v":0.49704742605300517},"Eigene Berechnungen aus [1], [5]"]
[null,null,{"$f":"C400","v":"Photovoltaik"},{"$f":"$D$400","v":5.6860799999999996E-2},"Eigene Berechnungen aus [1], [5]"]
[null,null,"Windenergie an Land",{"$f":"D401","v":1.7640799999999998E-2},"Eigene Berechnungen aus [1], [5]"]
[null,null,"Windenergie auf See",9.6449999999999991E-3,"Eigene Berechnungen aus [1], [5]"]
[null,null,"Wasserkraft ",4.3037579085252707E-3,"Eigene Berechnungen aus [1], [5]"]
[null,null,"Geothermie (Erdwärme)",0.1455912,"Eigene Berechnungen aus [1], [5]"]
[null,"Marktbasierter Ansatz","Erdgas",{"$f":"43.4446/1000","v":4.34446E-2},"Eigene Berechnungen aus [1], [5] Tabelle 61"]
[null,"(Endenergie): Wärme/Kälte","Heizöl / Diesel",{"$f":"45.7772/1000","v":4.5777200000000004E-2},"Eigene Berechnungen aus [1], [5] Tabelle 61"]
[null,null,"Braunkohlenbriketts",{"$f":"59.2844/1000","v":5.9284400000000001E-2},"Eigene Berechnungen aus [1], [5] Tabelle 61"]
[null,null,"Steinkohle",{"$f":"59.193/1000","v":5.9192999999999996E-2},"Eigene Berechnungen aus [1], [5] Tabelle 61"]
[null,null,"Fernwärme-Mix",{"$f":"D424","v":4.5756999999999999E-2},"Eigene Berechnungen aus [1], [5] Tabelle 61"]
[null,null,"Strommix",{"$f":"D423","v":5.72726E-2},"Eigene Berechnungen aus [1], [5] Tabelle 61"]
[null,null,"Holz",{"$f":"0.0249799375821764","v":2.4979937582176402E-2},"Eigene Berechnungen aus [1], [5] Tabelle 71, Tabelle 78"]
[null,null,"Biogas/Biomethan (Energiepflanzen, Gülle, Abfall)",9.4134578915787206E-2,"Eigene Berechnungen aus [1], [5] Tabelle 89, Tabelle 90"]
[null,null,"Flüssige Biomasse (z.B. Pflanzenöl)",0.142743908061117,"Eigene Berechnungen aus [1], [5] Tabelle 82, Tabelle 83"]
[null,null,"Solarthermie",2.0637851612903199E-2,"Eigene Berechnungen aus [1], [5] Tabelle 102, Tabelle 103"]
[]
[null,"Abfall & Abwasser (Scope 3)"]
[null,null,"Abfall","Emissionsfaktor (kg CO2e / kg) ","Quelle"]
[null,null,"Gewerbemischabfall zur Verbrennung",0.16700000000000001,"[29]: Herkömmliche Verbrennungsanlagen mit Energiegewinnung"]
[null,null,"Abfälle zur Kompostierung ",3.7999999999999999E-2,"[24]"]
[null,null,"Sondermüllverbrennung",0.94899999999999995,"[29]"]
[null,null,"Papier Pappe Kartonage (PPK) (stoffliche Verwertung)",0.55970000000000009,"[48]"]
[null,null,"Kunststoffe (stoffliche Verwertung)",0.73670000000000002,"[48]"]
[null,null,"Kunststoffe (energetisch)",2.3875000000000002,"[48]"]
[null,null,"Kunststoffe 83% energetisch; 17% stofflich",{"$f":"D455*17%+D456*83%","v":2.1068639999999998},"[48]"]
[null,null,"Glas (stoffl. Verwertung)",0.38500000000000001,"[48]"]
[null,null,"E-Schrott (Recycling)",1.1479999999999999,"Eigene Modellierung "]
[]
[null,null,"Abwasser","Emissionsfaktor (t CO2e / m³) ","Quelle"]
[null,null,"Abwasserreinigung",2.7399999999999999E-4,"[30]"]
[]
[null,"Geschäftsreisen (Scope 3)"]
[null,null,"Das Umweltbundesamt brücksichtigt die Nicht-CO2-Klimaeffekte für die Beurteilung der gesamten Klimawirksamkeit der Dienstflugreisen. "]
[null,null,"Diese zusätzlichen Nicht-CO2-Klimaeffekte werden durch einen RFI-Faktor (Radiative Forcing Index) ausgedrückt. Der beschreibt zusätzliche Auswirkungen bei der Verbrennung von Flugkraftstoffen in höheren Atmosphärenschichten sowie Kondensstreifen, Zirruswolken."]
[null,null,"Untenstehende Faktoren sind auf Basis von \"UK Government GHG Conversion Factors\" [7], aber mit einen RFI-Faktor von 3 [11] gerechnet . "]
[null,null,"Flugreisen (Klasse)","Total kg CO2e / Pkm (Personenkilometer)","Quelle"]
[null,null,"Flugreisen, innerhalb Deutschlands",0.214,"[10]"]
[null,null,"Short-haul (< 3700km), Average passenger",0.25871740161073831,"Eigene Berechnungen auf Basis von [7] und [11]"]
[null,null,"Short-haul (< 3700km), Economy class",0.25449087211586013,"Eigene Berechnungen auf Basis von [7] und [11]"]
[null,null,"Short-haul (< 3700km), Business class",0.38171614763687745,"Eigene Berechnungen auf Basis von [7] und [11]"]
[null,null,"long-haul (≥ 3700km), Average passenger",0.32537799150830105,"Eigene Berechnungen auf Basis von [7] und [11]"]
[null,null,"long-haul (≥ 3700km), Economy class",0.24918044470505127,"Eigene Berechnungen auf Basis von [7] und [11]"]
[null,null,"long-haul (≥ 3700km), Premium economy class",0.39869300563758392,"Eigene Berechnungen auf Basis von [7] und [11]"]
[null,null,"long-haul (≥ 3700km), Business class",0.72262973080890158,"Eigene Berechnungen auf Basis von [7] und [11]"]
[null,null,"long-haul (≥ 3700km), First class",0.99671861989403043,"Eigene Berechnungen auf Basis von [7] und [11]"]
[]
[null,null,"Landreisen ","Total kg CO2e / Pkm (Personenkilometer)","Quelle"]
[null,null,"Bahnreisen, Nahverkehr",5.0999999999999997E-2,"[10]"]
[null,null,"Bahnreisen, Fernverkehr",2.7E-2,"[10]"]
[null,null,"Autos (außerhalb des eigenen Fuhrparks)",0.16400000000000001,"[10]"]
[]
[null,"Übernachtungen (Scope 3)"]
[null,"Hotelübernachtungen im Zusammenhang mit Dienstreisen"]
[null,null,"Country (EN)","Länder (DE)","Kontinente","Unit","Total kg CO2e per unit","Quelle"]
[null,null,"Australia","Australien","Ozeanien","Room per night",35,"[7]"]
[null,null,"Belgium","Belgien","Europa","Room per night",12.2,"[7]"]
[null,null,"Brazil","Brasilien","Amerika","Room per night",8.6999999999999993,"[7]"]
[null,null,"Canada","Kanada","Amerika","Room per night",7.4,"[7]"]
[null,null,"Chile","Chile","Amerika","Room per night",27.6,"[7]"]
[null,null,"China","China","Asien","Room per night",53.5,"[7]"]
[null,null,"Colombia","Kolumbien","Amerika","Room per night",14.7,"[7]"]
[null,null,"Costa Rica","Costa Rica","Amerika","Room per night",4.7,"[7]"]
[null,null,"Egypt","Ägypten","Afrika","Room per night",44.2,"[7]"]
[null,null,"France","Frankreich","Europa","Room per night",6.7,"[7]"]
[null,null,"Germany","Deutschland","Europa","Room per night",13.2,"[7]"]
[null,null,"Hong Kong, China","Hong Kong, China","Asien","Room per night",51.5,"[7]"]
[null,null,"India","Indien","Asien","Room per night",58.9,"[7]"]
[null,null,"Indonesia","Indonesien","Asien","Room per night",62.7,"[7]"]
[null,null,"Italy","Italien","Europa","Room per night",14.3,"[7]"]
[null,null,"Japan","Japan","Asien","Room per night",39,"[7]"]
[null,null,"Jordan","Jordanien","Asien","Room per night",68.900000000000006,"[7]"]
[null,null,"Korea","Korea","Asien","Room per night",55.8,"[7]"]
[null,null,"Malaysia","Malaysia","Asien","Room per night",61.5,"[7]"]
[null,null,"Maldives","Malediven","Asien","Room per night",152.19999999999999,"[7]"]
[null,null,"Mexico","Mexiko","Amerika","Room per night",19.3,"[7]"]
[null,null,"Netherlands","Niederlande","Europa","Room per night",14.8,"[7]"]
[null,null,"Oman","Oman","Asien","Room per night",90.3,"[7]"]
[null,null,"Philippines","Philippinen","Asien","Room per night",54.3,"[7]"]
[null,null,"Portugal","Portugal","Europa","Room per night",19,"[7]"]
[null,null,"Qatar","Katar","Asien","Room per night",86.2,"[7]"]
[null,null,"Russian Federation","Russische Föderation","Asien","Room per night",24.2,"[7]"]
[null,null,"Saudi Arabia","Saudi-Arabien","Asien","Room per night",106.4,"[7]"]
[null,null,"Singapore","Singapur","Asien","Room per night",24.5,"[7]"]
[null,null,"South Africa","Südafrika","Afrika","Room per night",51.4,"[7]"]
[null,null,"Spain","Spanien","Europa","Room per night",7,"[7]"]
[null,null,"Switzerland","Schweiz","Europa","Room per night",6.6,"[7]"]
[null,null,"Thailand","Thailand","Asien","Room per night",43.4,"[7]"]
[null,null,"Turkey","Türkei","Asien","Room per night",32.1,"[7]"]
[null,null,"UK ","Vereinigtes Königreich","Europa","Room per night",10.4,"[7]"]
[null,null,"United Arab Emirates","Vereinigte Arabische Emirate","Asien","Room per night",63.8,"[7]"]
[null,null,"United States","USA","Amerika","Room per night",16.100000000000001,"[7]"]
[null,null,"Vietnam","Vietnam","Asien","Room per night",38.5,"[7]"]
[null,null,"Ermittlung der durchschnittlichen Werte nach Kontinenten auf Basis von bekannten Emissionsfaktoren"]
[null,null,null,null,"Afrika","Room per night",{"$f":"SUMIF($E$487:$E$524,$E526,$G$487:$G$524)/COUNTIF($E$487:$E$524,E526)","v":47.8},"Eigene Berechnungen "]
[null,null,null,null,"Amerika","Room per night",{"$f":"SUMIF($E$487:$E$524,$E527,$G$487:$G$524)/COUNTIF($E$487:$E$524,E527)","v":14.071428571428571},"Eigene Berechnungen "]
[null,null,null,null,"Asien","Room per night",{"$f":"SUMIF($E$487:$E$524,$E528,$G$487:$G$524)/COUNTIF($E$487:$E$524,E528)","v":61.457894736842093},"Eigene Berechnungen "]
[null,null,null,null,"Europa","Room per night",{"$f":"SUMIF($E$487:$E$524,$E529,$G$487:$G$524)/COUNTIF($E$487:$E$524,E529)","v":11.577777777777776},"Eigene Berechnungen "]
[null,null,null,null,"Ozeanien","Room per night",{"$f":"SUMIF($E$487:$E$524,$E530,$G$487:$G$524)/COUNTIF($E$487:$E$524,E530)","v":35},"Eigene Berechnungen "]
[]
[null,"Mitarbeitendenmobilität (Scope 3)"]
[null,"Emissionsfaktor auf Basis von Aktivitätsdaten"]
[null,null,"Verkehrsmittel","Emissionsfaktor (kg CO2e/pkm)","Quelle"]
[null,null,"E-Bike",2.1000000000000001E-2,"Eigene Modellierung auf Basis von [2]"]
[null,null,"Linienbus, Nahverkehr",8.4000000000000005E-2,"[10]"]
[null,null,"Linienbus, Fernverkehr",0.03,"[10]"]
[null,null,"Pkw",0.16400000000000001,"[10]"]
[null,null,"Eisenbahn, Nahverkehr",5.0999999999999997E-2,"[10]"]
[null,null,"Eisenbahn, Fernverkehr",2.7E-2,"[10]"]
[null,null,"Straßen-, Stadt- und U-Bahn",4.9000000000000002E-2,"[10]"]
[null,null,"ÖPNV, allgemein",{"$f":"AVERAGE(bahn__Nah_THG_Default,Bus_nah_THG_Default,U_Bahn_THG_Default)","v":6.133333333333333E-2},"Mittelwert aus \"Straßen-, Stadt- und U-Bahn\", \"Eisenbahn, Nahverkehr\" und \"Linienbus, Nahverkehr\" [10]"]
[]
[null,"Patient*innenmobilität (Scope 3)"]
[null,null,"Außerhalb Deutschlands"]
[null,null,"Flugreisen ","Total kg CO2e / Pkm (Personenkilometer)","Quelle"]
[null,null,{"$f":"C470","v":"Short-haul (< 3700km), Average passenger"},{"$f":"D470","v":0.25871740161073831},{"$f":"E470","v":"Eigene Berechnungen auf Basis von [7] und [11]"}]
[null,null,{"$f":"C473","v":"long-haul (≥ 3700km), Average passenger"},{"$f":"D473","v":0.32537799150830105},{"$f":"E473","v":"Eigene Berechnungen auf Basis von [7] und [11]"}]
[]
[null,null,"Innerhalb Deutschlands: Entfernung in km zwischen 2 Gebieten (Default Value: Cafegos)"]
[null,null,"PLZ-Bereich","Gebiet 0","Gebiet 1","Gebiet 2","Gebiet 3","Gebiet 4","Gebiet 5","Gebiet 6","Gebiet 7","Gebiet 8","Gebiet 9","PLZ-Bereich: Zentrale Stadt"]
[null,null,"Gebiet 0",20,190,480,330,680,570,540,510,460,320,"Dresden"]
[null,null,"Gebiet 1",190,20,290,240,530,600,620,630,580,450,"Berlin"]
[null,null,"Gebiet 2",480,290,20,270,370,460,570,650,790,610,"Hamburg"]
[null,null,"Gebiet 3",330,240,270,20,500,320,320,390,520,350,"Göttingen"]
[null,null,"Gebiet 4",680,530,370,500,20,420,200,180,400,380,"Essen"]
[null,null,"Gebiet 5",570,600,460,320,420,20,290,350,560,390,"Bonn"]
[null,null,"Gebiet 6",540,620,570,320,200,290,20,130,370,240,"Mannheim"]
[null,null,"Gebiet 7",510,630,650,390,180,350,130,20,230,210,"Stuttgart"]
[null,null,"Gebiet 8",460,580,790,520,400,560,370,230,20,170,"München"]
[null,null,"Gebiet 9",320,450,610,350,380,390,240,210,170,20,"Nürnberg"]
[]
[null,null,"Verkehrsmittel","THG-Emissionsfaktor (kg CO2e/pkm)","Quelle"]
[null,null,"KTW (Krankentransportwagen) / \nRTW (Rettungswagen)",{"$f":"AVERAGE(D566:D567)","v":0.36456999999999995},"[7]"]
[null,null,"PKW",{"$f":"D538","v":0.16400000000000001},{"$f":"E538","v":"[10]"}]
[null,null,"KTW (Krankentransportwagen)",0.23155999999999999,"[7]: Average vans (up to 3.5 tonnes)"]
[null,null,"RTW (Rettungswagen)",0.49757999999999997,"[7]: Rigid (>3.5 - 7.5 tonnes)"]
[null,null,"RTW (Rettungswagen) / \nITW (Intensivtransportwagen)",{"$f":"D567","v":0.49757999999999997},"Annahme: gleiches Fahrzeug wie RTW"]
[null,null,"Taxi",{"$f":"D565","v":0.16400000000000001},"Annahme: gleiches wie PKW"]
[]
[null,null,"Verkehrsmittel","THG-Emissionsfaktor (kg CO2e/kg Kerosin)","Quelle"]
[null,null,"Helikopter",3.88,"[8]"]

{"sheet":"Quellen","index":8,"n_rows":59,"n_cols":3,"rows_kept":59,"cut":false,"hidden":false,"merged":[[26,1,27,1],[9,1,10,1],[16,1,17,1],[18,1,19,1],[21,1,22,1],[23,1,24,1]]}
[]
[]
[]
[]
[null,"Quellen- und Literaturverzeichnis"]
[null,"[1]","IPCC, 2021: Smith, C., Z.R.J. Nicholls, K. Armour, W. Collins, P. Forster, M. Meinshausen, M.D. Palmer, and M. Watanabe, 2021: The Earth’s Energy Budget, Climate Feedbacks, and Climate Sensitivity Supplementary Material. In Climate Change 2021: The Physical Science Basis. Contribution of Working Group I to the Sixth Assessment Report of the Intergovernmental Panel on Climate Change [Masson-Delmotte, V., P. Zhai, A. Pirani, S.L. Connors, C. Péan, S. Berger, N. Caud, Y. Chen,\nL. Goldfarb, M.I. Gomis, M. Huang, K. Leitzell, E. Lonnoy, J.B.R. Matthews, T.K. Maycock, T. Waterfield, O. Yelekçi, R. Yu, and B. Zhou (eds.)]. Available from https://www.ipcc.ch/\nhttps://www.ipcc.ch/report/ar6/wg1/downloads/report/IPCC_AR6_WGI_Chapter07_SM.pdf "]
[null,"[2]","Ecoinvent Version 3.8 (2021) Databank: https://ecoinvent.org/ "]
[null,"[3]","https://www.cdp.net/en/; 11 Unternehmen sind Roche (CH), Novartis (CH), Merck & CO (USA), Biogen (USA), Bristol-Myers SQUIBB (USA), Johnson & Johnson (USA), TAKEDA (J), SANOFI (F), Bayer (D), PFIZER (US), GLAXOSMITHKLINE (GB)"]
[null,"[4]","EPA Center for Corporate Climate Leadership, 2021, https://www.epa.gov/climateleadership/ghg-emission-factors-hub"]
[null,"[5]","Emissionsbilanz erneuerbarer Energieträger Bestimmung der vermiedenen Emissionen im Jahr 2020, Dr. Thomas Lauf, Michael Memmler, Sven Schneider,"]
[null,null,"https://www.umweltbundesamt.de/publikationen/emissionsbilanz-erneuerbarer-energietraeger-2020"]
[null,"[6]","The carbon footprint of general anaesthetics: A case study in the UK, Xiaocheng Hu, JM Tom Pierce, Tim Taylor, Karyn Morrissey, Resources, Conservation & Recycling 167 (2021) 105411, https://doi.org/10.1016/j.resconrec.2021.105411 "]
[null,"[7]","UK Government GHG Conversion Factors for Company Reporting, Version 2.0, 2022, https://www.gov.uk/government/publications/greenhouse-gas-reporting-conversion-factors-2022"]
[null,"[8]","\nDIN EN 16258; Methode zur Berechnung und Deklaration des Energieverbrauchs und der Treibhausgasemissionen bei Transportdienstleistungen (Güter- und Personenverkehr); Deutsche Fassung EN 16258:2012"]
[null,"[9]","Berechnung des Energieverbrauchs und der Treibhausgasemissionen des ÖPNV, https://www.bmvi.de/SharedDocs/DE/Anlage/G/energieverbrauch-treibhausgasemission-oepnv.pdf?__blob=publicationFile  "]
[null,"[10]","UBA, Emissionsdaten,  2022, https://www.umweltbundesamt.de/themen/verkehr-laerm/emissionsdaten#verkehrsmittelvergleich_personenverkehr_tabelle"]
[null,"[11]","UBA, Umweltschonender Luftverkehr, lokal – national – international, 2019"]
[null,null,"https://www.umweltbundesamt.de/sites/default/files/medien/1410/publikationen/2019-11-06_texte-130-2019_umweltschonender_luftverkehr_0.pdf"]
[null,"[12]","KPI4DCE, Kennzahlen und Indikatoren für die Beurteilung der Ressourceneffizienz von Rechenzentren und Prüfung der praktischen Anwendbarkeit, 2018"]
[null,null,"https://www.umweltbundesamt.de/publikationen/kennzahlen-indikatoren-fuer-die-beurteilung-der "]
[null,"[13]","Narendra Singh, Oladele A. Ogunseitan, 2022, Disentangling the worldwide web of e-waste and climate change co-benefits, Circular Economy 1 (2022) 100011"]
[null,"[14]","Ökologische und ökonomische Aspekte beim Vergleich von Arbeitsplatzcomputern für den Einsatz in Behörden unter Einbeziehung des Nutzerverhaltens (Öko-APC)"]
[null,null,"https://www.umweltbundesamt.de/publikationen/oekologische-oekonomische-aspekte-beim-vergleich"]
[null,"[15]","Environmental improvement potential of textiles (IMPRO Textiles), European Commission’s Joint Research Centre (JRC), 2014"]
[null,null,"https://op.europa.eu/en/publication-detail/-/publication/f8d0def8-4fd5-4d84-a308-1dfa5cf2e823/language-en"]
[null,"[16]","ÖKOBAUDAT-Datensätze (Version: 2021-II vom 25.06.2021), https://www.oekobaudat.de"]
[null,"[17]","Escamilla M., Ferrer A., Fuentes N., Hidalgo C., Kaps R., Kougoulis J. (2012). Revision of European Ecolabel Criteria for Soaps, Shampoos and Hair Conditioners – Preliminary results from the technical analysis. European Commission, DG JRC, "]
[null,null,"https://dokumen.tips/download/link/revision-of-european-ecolabel-criteria-for-soaps-shampoos-analysis-lca-for"]
[null,"[18]","https://s22.q4cdn.com/959853165/files/doc_events/2021/Carbon-impact-of-video-streaming.pdf"]
[null,"[19]","AG Energiebilanzen e.V. https://ag-energiebilanzen.de/wp-content/uploads/2022/03/STRERZ_2021Feb22_web.xlsx"]
[null,"[20]","https://www.gasido.de/technische-gase-umrechnung-formeln-m3-liter-kg"]
[null,"[21]","CO2-Fußabdrücke von ausgewählten Obst- und Gemüseprodukten „an der Supermarktkasse“ in Deutschland in Kilogramm CO2-Äquivalenten pro Kilogramm Lebensmittel. Bezugsjahr: 2019."]
[null,"[22]","https://www.postleitzahlen.de/plz/bereiche"]
[null,"[23]","Ermittlung des Product Carbon Footprint (PCF) von Speisesalz sowie sinnvoller Handlungsoptionen im PCF-Kontext für die Südsalz GmbH Quack, D.; Stratmann, B.; 2012 Auftraggeber: Südsalz GmbH, Heilbronn."]
[null,"[24]","PEF Datensätze; https://eplca.jrc.ec.europa.eu/EnvironmentalFootprint.html"]
[null,"[25]","Jones, A.K., et al. The carbon footprint of lamb: Sources of variation and opportunities for mitigation. Agr. Syst. (2013),\nhttp://dx.doi.org/10.1016/j.agsy.2013.09.006; "]
[null,"[26]","https://circularecology.com/news/the-carbon-footprint-of-a-cup-of-tea"]
[null,"[27]","Aktualisierte Ökobilanz von Grafik- und Hygienepapier; https://www.bvse.de/dateien2020/1-Bilder/01-Nachrichten/02-Papier/2022/1117-UBA-Studio_123-2022_aktualisierte_oekobilanz_von_grafik-_und_hygienepapier.pdf"]
[null,"[28]","Franke B., Zeitz C., Quitmann, C. [2023]. Treibhausgasbilanzierung von Kliniken auf Basis von ecocockpit. KliOL –Klimaschutz in Kliniken durch Optimierung der Lieferketten am Beispiel des Universitätsklinikums Heidelberg, FKZ 03KF0150B. Entwurf 24.03.2023, ifeu-Institut für Energie- und Umweltforschung Heidelberg gGmbH, https://www.klinikum.uni-heidelberg.de/klimaschutz-in-kliniken-durch-optimierung-der-lieferketten-kliol  "]
[null,"[29]","Rizan C, Bhutta. MF, Reed M et al. The carbon footprint of waste streams in a UK hospital Journal of Cleaner Production 2020. DOI: https://doi.org/10.1016/j.jclepro.2020.125446 "]
[null,"[30]","Umweltbundesamt, ProBas (Prozessorientierte Basisdaten für Umweltmanagementsysteme), https://www.probas.umweltbundesamt.de"]
[null,"[31]","Idemat: https://www.ecocostsvalue.com/data"]
[null,"[32]","https://www.bafa.de/SharedDocs/Downloads/DE/Energie/eew_infoblatt_co2_faktoren_2021.pdf?__blob=publicationFile&v=5"]
[null,"[33]","Elena Neri und Riccardo Maria Pulselli, „Environmental Product Declaration - Albumin“, hg. von EDP International AB, 5. Juni 2019, www.environdec.com."]
[null,"[34]","Abhijeet G. Parvatker u. a., „Cradle-to-Gate Greenhouse Gas Emissions for Twenty Anesthetic Active Pharmaceutical Ingredients Based on Process Scale-Up and Process Design Calculations“, ACS Sustainable Chemistry & Engineering 7, Nr. 7 (1. April 2019): 6580–91, https://doi.org/10.1021/acssuschemeng.8b05473."]
[null,"[35]","Marc-William Siegert u. a., „Cradle-to-Grave Life Cycle Assessment of an Ibuprofen Analgesic“, Sustainable Chemistry and Pharmacy 18 (Dezember 2020): 100329, https://doi.org/10.1016/j.scp.2020.100329."]
[null,"[36]","Elena Neri und Riccardo Maria Pulselli, „Environmental Product Declaration - Ig Vena“, hg. von EDP International AB, 6. Mai 2019, www.environdec.com."]
[null,"[37]","Ana Gabriela Renteria Gamiz u. a., „Environmental Sustainability Assessment of the Manufacturing Process of a Biological Active Pharmaceutical Ingredient“, Journal of Chemical Technology & Biotechnology 94, Nr. 6 (2019): 1937–44, https://doi.org/10.1002/jctb.5975."]
[null,"[38]","Ecovamed, „Carbon footprint of Metformin“, 2022, www.ecovamed.com."]
[null,"[39]","Or Galant u. a., „Mechanochemistry can reduce life cycle environmental impacts of manufacturing active pharmaceutical ingredients“, ACS Sustainable Chemistry & Engineering 10, Nr. 4 (31. Januar 2022): 1430–39, https://doi.org/10.1021/acssuschemeng.1c06434."]
[null,"[40]","Eri Amasawa u. a., „Cost–Benefit Analysis of Monoclonal Antibody Cultivation Scenarios in Terms of Life Cycle Environmental Impact and Operating Cost“, ACS Sustainable Chemistry & Engineering 9, Nr. 42 (25. Oktober 2021): 14012–21, https://doi.org/10.1021/acssuschemeng.1c01435."]
[null,"[41]","Rachit Kumar Sharma u. a., „Comparing the Environmental Impacts of Paracetamol Dosage Forms Using Life Cycle Assessment“, Environment, Development and Sustainability 24, Nr. 10 (1. Oktober 2022): 12446–66, https://doi.org/10.1007/s10668-021-01948-2."]
[null,"[42]","Concepción Jiménez-González und Michael Overcash, „Life Cycle Inventory of Refinery Products: Review and Comparison of Commercially Available Databases“, Environmental Science & Technology 34, Nr. 22 (1. November 2000): 4789–96, https://doi.org/10.1021/es991140f."]
[null,"[43]","Drew J & Rizan C. (2022). HealthcareLCA Database [Online Database]. HealthcareLCA. Retrieved from: healthcarelca.com/database."]
[null,"[44]","Elena Neri und Riccardo Maria Pulselli, „Environmental Product Declaration - Emoclot 500“, hg. von EDP International AB, 23. Januar 2018, www.environdec.com."]
[null,"[45]","Fabio Grimaldi u. a., „Life Cycle Assessment of an Enzymatic Ibuprofen Production Process with Automatic Recycling and Purification“, ACS Sustainable Chemistry & Engineering 9, Nr. 39 (4. Oktober 2021): 13135–50, https://doi.org/10.1021/acssuschemeng.1c02309."]
[null,"[46]","Robert Brunet, Gonzalo Guillén-Gosálbez, und Laureano Jiménez, „Combined Simulation–Optimization Methodology to Reduce the Environmental Impact of Pharmaceutical Processes: Application to the Production of Penicillin V“, Journal of Cleaner Production 76 (1. August 2014): 55–63, https://doi.org/10.1016/j.jclepro.2014.02.012."]
[null,"[47]","Jonathan Drew, Sean D Christie, Daniel Rainham, Chantelle Rizan; HealthcareLCA: an open-access living database of health-care environmental impact assessments;  Vol 6 December 2022, www.thelancet.com/planetary-health; DOI:https://doi.org/10.1016/S2542-5196(22)00257-1"]
[null,"[48]","Bulach, W.; Dehoust, G.; Mayer, F.; Möck, A. (2022): Öko-/Klimabilanz zu den Leistungen der dualen Systeme im Bereich des Verpackungsrecyclings im Auftrag der workinghead GmbH & Co. KG. Unter Mitarbeit von Green Delta GmbH. Öko-Institut e.V."]